Workbook

Sheet Lakás Törlesztéscsökkentő fiók
A1: tájékoztató kalkuláció a K&H törlesztéscsökkentő hitelről
A2: Kiváltandó hitel: eredendően lakáscélú hitel
A4: JELENLEGI HITEL (nem kombinált hitel) | I4: árfolyam | M4: alap | O4: Induló díjakkal | P4: Csak kamattal | Q4: HUF | R4: 0.08 | S4: =IF(B5=Q4,"","HUF") -> HUF | T4: igen | U4: 0
A5: A hitel devizaneme | E5: TÖRLESZTÉSCSÖKKENÉS ÖSSZEGE | G5: =IF(G9>0,"",J24) ->  | I5: CHF | J5: 310 | K5: HUF/CHF | L5: 3 hónap | M5: 0.021 | N5: K1 | O5: =HLOOKUP($B$26,$K$29:$N$35,2,FALSE) -> 0.026 | P5: =O5+0.002 -> 0.028 | Q5: CHF | R5: 0.07 | S5: =IF(B5=Q4,"",B5) -> 0 | T5: nem | U5: =+U4+0.1 -> 0.1
A6: =IF(B5="","",IF(B5=Q4,"forinthitel, emiatt ezt nem kell kitölteni",CONCATENATE("fennálló tőketartozás megadása HUF vagy ",B5,"?"))) ->  | I6: EUR | J6: 315 | K6: HUF/EUR | L6: 12 hónap | M6: 0.0211 | N6: K2 | O6: =HLOOKUP($B$26,$K$29:$N$35,3,FALSE) -> 0.027 | P6: =O6+0.002 -> 0.029 | Q6: EUR | R6: 0.09 | T6: % | U6: =+U5+0.1 -> 0.2
A7: =CONCATENATE("Fennálló tőketartozás ",IF(B5=Q4,Q4,B6)) -> Fennálló tőketartozás | E7: havonta | F7: évente | G7: =IF(G9>0,J23,J24) -> lejáratig | I7: JPY | J7: 215 | K7: HUF/100JPY | L7: 3 év | M7: 0.0281 | N7: K3 | O7: =HLOOKUP($B$26,$K$29:$N$35,4,FALSE) -> 0.029 | P7: 0.031 | Q7: JPY | R7: 0.05 | T7: Ft | U7: 0.3
A8: Hátralévő futamidő (hónap) | I8: HUF | J8: 1 | L8: 5 év | M8: 0.033 | N8: K4 | O8: =HLOOKUP($B$26,$K$29:$N$35,5,FALSE) -> 0.031 | P8: 0.033 | S8: =IF(OR(B5="",B5=Q4,AND(B5<>Q4,B6<>Q4,B5<>B6)),S9,B6) -> fehér | U8: 0.4
A9: Havi törlesztőrészlet (forintban) | E9: =IF(OR(B9=0,ISERROR(B9-B28)),"",B9-B28) ->  | F9: =IF(OR(B9=0,ISERROR(B9-B28)),"",E9*12) ->  | G9: =IF(OR(B9=0,ISERROR(B9-B28)),"",(B9*B8)-(B28*J10)) ->  | L9: most | M9: =VLOOKUP(B26,L5:M8,2,FALSE) -> 0.0211 | N9: K5 | O9: =HLOOKUP($B$26,$K$29:$N$35,6,FALSE) -> 0.034 | P9: 0.036 | S9: fehér | U9: 0.5
A10: Végtörlesztési díj %-ban vagy forintban? | I10: futamidő | J10: =IF(OR(B8="",B17="",AND(B8<>"",B17=T4,B18="")),0,MIN(420,IF(B17=T5,B8,B18))) -> 0 | N10: K6 | O10: =HLOOKUP($B$26,$K$29:$N$35,7,FALSE) -> 0.043 | P10: 0.045 | U10: 0.6
A11: Végtörlesztési díj % | I11: szla | J11: 508 | N11: most | O11: =VLOOKUP(B21,N5:P10,IF(B19=O4,2,3),FALSE) ->  | U11: 0.7
A12: Végtörlesztési díj HUF | I12: DD | J12: 116 | N12: Bérátutalás | O12: =IF(B22=$T$4,-0.5%,0%) -> -0.005 | U12: 0.8
I13: életbizt | J13: 2400 | N13: vagyonbiztosítás | O13: =IF(B23=$T$4,-0.2%,0%) -> -0.002 | U13: 0.9
A14: K&H TÖRLESZTÉSCSÖKKENTŐ HITEL | I14: Földhivatal | J14: 12600 | N14: életbiztosítás | O14: =IF(B24=$T$4,-0.3%,0%) -> 0 | U14: 1
A15: Devizanem | B15: HUF | N15: Prémium ügyfél | O15: =IF(B25=$T$4,-0.25%,0%) -> 0
A16: =IF(OR(B5=Q4,B6=Q4),"Hitelösszeg","Hitelösszeg a megadott árfolyammal") -> Hitelösszeg a megadott árfolyammal | B16: =IF(OR(AND(B5<>Q4,B6=""),AND(B5="",B6="")),"",IF(OR(B5=Q4,B6=Q4),IF(B10=T6,B7*(1+B11),B7+B12),IF(B10=T6,IF(B6=Q7,B7*J7/100,B7*IF(B6=I5,J5,J6))*(1+B11),IF(B6=Q7,B7*J7/100,B7*IF(B6=I5,J5,J6))+B12))) ->  | N16: Kamatfelár | O16: =MAX(2%,SUM(O11:O15)) -> 
A17: Futamidő módosítás történik? (max 420 hónap lehet) | B17: nem | N17: Kamatkedvezmények | O17: =SUM(O12:O15) -> -0.007
A18: =IF(OR(B8="",B17=""),"",IF(AND(B17=T5,B8<421),CONCATENATE("változatlan futamidő: ",B8," hónap"),IF(AND(B17=T5,B8>420),"maximum szabály miatt a futamidő: 420 hónap",IF(AND(B8<>"",B17=T4,B18=""),"új futamidő: ",CONCATENATE("új futamidő: ",J10," (hónap)"))))) ->  | N18: valós kedvezmény | O18: =O16-O11 -> 
A19: Induló díjakkal vagy csak kamattal | B19: Induló díjakkal | J19: becslés a jelenlegire
A20: Szerződéskötési díj: | B20: =IF(OR(AND(B5<>Q4,B6=""),AND(B5="",B6="")),"",IF(OR(B19=P4,B16=""),0,MIN(200000,B16*1%))) ->  | J20: =PMT(VLOOKUP(B5,Q4:R7,2,FALSE)/12,B8,-B7*IF(B5=Q4,1,VLOOKUP(B6,I5:J8,2,FALSE))) -> 
A21: Kockázati besorolás (K1-K6): | M21: megtaki | N21: kamat | O21: EBKM | Q21: megtak | R21: kamat | S21: záró
A22: Bérátutalás kamatkedvezménye | B22: igen | M22: 0 | N22: 0.0115 | O22: 0.0116 | P22: 1 | Q22: =L56 ->  | R22: =Q22*$N$26/12 ->  | S22: =+Q22+R22 -> 
A23: Vagyonbiztosítás kamatkedvezménye | B23: igen | J23: lejáratig | M23: 5000 | N23: 0.0195 | O23: 0.0197 | P23: =+P22+1 -> 2 | Q23: =+S22+$L$56 ->  | S23: =+Q23+R23 -> 
A24: Életbiztosítás kamatkedvezménye | B24: nem | E24: Hitelközvetítő neve (cégneve) | J24: üres | M24: 10000 | N24: 0.0205 | O24: 0.0207 | P24: =+P23+1 -> 3 | S24: =+Q24+R24 -> 
A25: Prémium ügyfélkör kamatkedvezménye | B25: nem | E25: Tanácsadó neve | M25: 35000 | N25: 0.0215 | O25: 0.0217 | P25: 4
A26: Kamatperiódus hossza | B26: 12 hónap | E26: telefonszám | M26: most | N26: =VLOOKUP(L56,M22:N25,2) ->  | O26: =VLOOKUP(L56,M22:O25,3) ->  | P26: 5
A27: Ügyleti éves kamatláb | B27: =IF(OR(B16=0,B16="",ISERROR(M9+O16)),"",M9+O16) ->  | E27: e-mail | P27: 6
A28: Havi törlesztőrészlet összege | B28: =IF(ISERROR(PMT(B27/12,J10,-B16)),"",PMT(B27/12,J10,-B16)) ->  | K28: kamatfelárak | P28: 7
A29: THM¹ | B29: =IF(ABS('THM fiók'!I2)*100>1,"",'THM fiók'!H1) ->  | K29: 3 hónap | L29: 12 hónap | M29: 3 év | N29: 5 év | P29: 8
K30: 0.026 | L30: 0.026 | M30: 0.0256 | N30: 0.0288 | P30: 9
A31: Induló díjas konstrukcióknál szerződéskötési díj esetében az alábbi akciós kedvezményt nyújtjuk 2014. március 1. és 2015. március 31. között befogadott igénylések esetén: - elengedjük a teljes szerződéskötési díjat, amennyiben Ön újonnan nyit, vagy rendelkezik már K&H okos számlacsomagok egyikével, és a szerződéskötéstől számított 5 évig megtartja. - elengedjük a szerződéskötési díj 50%-át abban az esetben is, ha az utóbbi pontban felsorolt feltételeknek nem tesz eleget. | K31: 0.027 | L31: 0.027 | M31: 0.0266 | N31: 0.0298 | P31: 10
A32: A hatályos akcióink további részletei a kapcsolódó feltételekkel megtalálhatóak a lentebb nevezett hatályos hirdetményben vagy honlapunkon (www.kh.hu). | K32: 0.029 | L32: 0.029 | M32: 0.0286 | N32: 0.0318 | P32: 11
K33: 0.031 | L33: 0.031 | M33: 0.0306 | N33: 0.0338 | P33: 12
A34: Amennyiben további kérdése merülne fel, hívja bizalommal a tanácsadóját. | K34: 0.034 | L34: 0.034 | M34: 0.0336 | N34: 0.0368 | P34: 13
K35: 0.043 | L35: 0.043 | M35: 0.0426 | N35: 0.0458 | P35: 14 | R35: =Q35*$N$26/12 ->  | S35: =+Q35+R35 -> 
A36: Jelen kalkuláció nem minősül ajánlattételnek, a benne szereplő adatok kizárólag tájékoztató jellegűek. A kondíciók módosításának jogát a Bank fenntartja, és a kalkuláció nem kötelez hitelnyújtásra. | P36: 15
A37: A hitelszerződés megkötésének feltétele a bank által előírt dokumentáció benyújtása, a termékhez kapcsolódó alapfeltételeknek való megfelelés, majd a bank belső szabályzata alapján meghozott pozitív bírálat és a szerződési feltételek elfogadása. | K37: ¹ A Teljes Hiteldíj Mutató (THM) meghatározása az aktuális feltételek, illetve a hatályos jogszabályok figyelembevételével történt és a feltételek változása esetén mértéke módosulhat. A THM mutató értéke nem tükrözi a hitel kamatkockázatát. Az ügyleti kamaton felül a szerződéskötési díjat, a földhivatali eljárási illetéket és a K&H lakossági bankszámlacsomag havi díját tartalmazza. | P37: 16
A38: A termék részletes leírását, illetve feltételeit a vonatkozó szerződés, az Általános Szerződési Feltételek, a K&H Bank Üzletszabályzata, valamint az aktuális hirdetmény tartalmazza, mely utóbbiak megtekinthetők a bankfiókokban és a www.kh.hu internetes oldalon. | K38: ¹ A Teljes Hiteldíj Mutató (THM) meghatározása az aktuális feltételek, illetve a hatályos jogszabályok figyelembevételével történt és a feltételek változása esetén mértéke módosulhat. A THM mutató értéke nem tükrözi a hitel kamatkockázatát. Az ügyleti kamaton felül a szerződéskötési díjat, a földhivatali eljárási illetéket, a K&H lakossági bankszámlacsomag havi díját és havi 2.400 Ft (csoportos beszedéssel teljesített) életbiztosítás díját tartalmazza . | P38: 17
A39: A K&H törlesztéscsökkentő hitel kondíciói a hatályos "A forint alapú K&H üzleti feltételű lakáshitelek, K&H törlesztőcsökkentő hitel és K&H zöldhitel ingatlanfedezettel kondícióiról" c. hirdetmény alapján kerülnek meghatározásra. | P39: 18
A40: =IF(B24="nem",K37,K38) -> ¹ A Teljes Hiteldíj Mutató (THM) meghatározása az aktuális feltételek, illetve a hatályos jogszabályok figyelembevételével történt és a feltételek változása esetén mértéke módosulhat. A THM mutató értéke nem tükrözi a hitel kamatkockázatát. Az ügyleti kamaton felül a szerződéskötési díjat, a földhivatali eljárási illetéket és a K&H lakossági bankszámlacsomag havi díját tartalmazza. | P40: 19
P41: 20
P42: 21
P43: 22
P44: 23
P45: 24
P46: 25
P47: 26
P48: 27
P49: 28
P50: 29
P51: 30
P52: 31
P53: 32
K54: K&H BIZTOS TARTALÉK megtakarítás | P54: 33
K55: Törlesztéscsökkenés havi összegének %-a | L55: 1 | P55: 34
K56: Havi megtakarítás összege | L56: =IF(ISERROR(E9*L55),"",E9*L55) ->  | P56: 35
K57: Aktuális éves betéti kamatláb² | L57: =IF(ISERROR(N26),"",N26) ->  | P57: 36
K58: EBKM² | L58: =IF(ISERROR(O26),"",O26) ->  | P58: 37
P59: 38
K60: Megtakarított összeg 1 év múlva | L60: =IF(ISERROR(VLOOKUP(12,P22:S441,4,FALSE)),"",VLOOKUP(12,P22:S441,4,FALSE)) ->  | P60: 39
K61: =CONCATENATE("Megtakarított összeg ",IF(J10=0,"…",J10)," hónap alatt") -> Megtakarított összeg … hónap alatt | L61: =IF(ISERROR(VLOOKUP(IF(B17=T5,B8,B18),P22:S441,4,FALSE)),"",VLOOKUP(IF(B17=T5,B8,B18),P22:S441,4,FALSE)) ->  | P61: 40
P62: 41
P63: 42
P64: 43
K65: ² A betéti kamat és az EBKM mértéke a TERMÉSZETES SZEMÉLYEK bankszámláira, betétszámláira, lekötött betéteire valamint pénztári tranzakcióira vonatkozó hatályos hirdetmény alapján kerül meghatározásra. A megtakarításra vonatkozó számítás nem ajánlattétel, a kamat és így az EBKM mértéke változhat. A betéti kalkuláció kizárólag a megtakarított összegre vonatkozik 2 499 999 forintig terjedő betétrészre vonatkozó premium kammattal számítva mely az adott hónapban megtakarított összeg nagyságának függvénye, továbbá feltétele a számla minimum 50 000 forint napi záró egyenlege amely - az adott hónap első banki munkanapjától kezdődően - minden nap eléri a minimum egyenleget. EBKM: 1,51%-2,94% | P65: 44
P66: 45
P67: 46
P68: 47
P69: 48
P70: 49
P71: 50
P72: 51
P73: 52
P74: 53
P75: 54
P76: 55
P77: 56
P78: 57
P79: 58
P80: 59
P81: 60
P82: 61
P83: 62
P84: 63
P85: 64
P86: 65
P87: 66 | Q87: =+S86+$L$56 -> 
P88: =+P87+1 -> 67
P89: 68
P90: 69
P91: 70
P92: 71
P93: 72
P94: 73
P95: 74
P96: 75
P97: 76
P98: 77
P99: 78 | R99: =Q99*$N$26/12 ->  | S99: =+Q99+R99 -> 
P100: 79
P101: 80
P102: 81
P103: 82
P104: 83
P105: 84
P106: 85
P107: 86
P108: 87
P109: 88
P110: 89
P111: 90
P112: 91
P113: 92
P114: 93
P115: 94
P116: 95
P117: 96
P118: 97
P119: 98
P120: 99
P121: 100
P122: 101
P123: 102
P124: 103
P125: 104
P126: 105
P127: 106
P128: 107
P129: 108
P130: 109
P131: 110
P132: 111
P133: 112
P134: 113
P135: 114
P136: 115
P137: 116
P138: 117
P139: 118
P140: 119
P141: 120
P142: 121
P143: 122
P144: 123
P145: 124
P146: 125
P147: 126
P148: 127
P149: 128
P150: 129
P151: 130 | Q151: =+S150+$L$56 -> 
P152: =+P151+1 -> 131
P153: 132
P154: 133
P155: 134
P156: 135
P157: 136
P158: 137
P159: 138
P160: 139
P161: 140
P162: 141
P163: 142 | R163: =Q163*$N$26/12 ->  | S163: =+Q163+R163 -> 
P164: 143
P165: 144
P166: 145
P167: 146
P168: 147
P169: 148
P170: 149
P171: 150
P172: 151
P173: 152
P174: 153
P175: 154
P176: 155
P177: 156
P178: 157
P179: 158
P180: 159
P181: 160
P182: 161
P183: 162
P184: 163
P185: 164
P186: 165
P187: 166
P188: 167
P189: 168
P190: 169
P191: 170
P192: 171
P193: 172
P194: 173
P195: 174
P196: 175
P197: 176
P198: 177
P199: 178
P200: 179
P201: 180
... 240 more rows

Sheet Személyi Törl. csökkentő fiók
A1: tájékoztató kalkuláció a K&H törlesztéscsökkentő hitelről
A2: Kiváltandó hitel: eredendően szabad felhasználású jelzáloghitel
A4: JELENLEGI HITEL (nem kombinált hitel) | I4: árfolyam | M4: alap | O4: Induló díjakkal | P4: Csak kamattal | Q4: HUF | R4: 0.08 | S4: =IF(B5=Q4,"","HUF") -> HUF | T4: igen | U4: 0
A5: A hitel devizaneme | E5: TÖRLESZTÉSCSÖKKENÉS ÖSSZEGE | G5: =IF(G9>0,"",J24) ->  | I5: CHF | J5: 310 | K5: HUF/CHF | L5: 3 hónap | M5: 0.021 | N5: K1 | O5: =HLOOKUP($B$26,$K$29:$N$35,2,FALSE) -> 0.045 | P5: =O5+0.002 -> 0.047 | Q5: CHF | R5: 0.07 | S5: =IF(B5=Q4,"",B5) -> 0 | T5: nem | U5: =+U4+0.1 -> 0.1
A6: =IF(B5="","",IF(B5=Q4,"forinthitel, emiatt ezt nem kell kitölteni",CONCATENATE("fennálló tőketartozás megadása HUF vagy ",B5,"?"))) ->  | I6: EUR | J6: 315 | K6: HUF/EUR | L6: 12 hónap | M6: 0.0211 | N6: K2 | O6: =HLOOKUP($B$26,$K$29:$N$35,3,FALSE) -> 0.05 | P6: =O6+0.002 -> 0.052 | Q6: EUR | R6: 0.09 | T6: % | U6: =+U5+0.1 -> 0.2
A7: =CONCATENATE("Fennálló tőketartozás ",IF(B5=Q4,Q4,B6)) -> Fennálló tőketartozás | E7: havonta | F7: évente | G7: =IF(G9>0,J23,J24) -> lejáratig | I7: JPY | J7: 215 | K7: HUF/100JPY | L7: 3 év | M7: 0.0281 | N7: K3 | O7: =HLOOKUP($B$26,$K$29:$N$35,4,FALSE) -> 0.0575 | P7: 0.0595 | Q7: JPY | R7: 0.05 | T7: Ft | U7: 0.3
A8: Hátralévő futamidő (hónap) | I8: HUF | J8: 1 | L8: 5 év | M8: 0.033 | N8: K4 | O8: =HLOOKUP($B$26,$K$29:$N$35,5,FALSE) -> 0.068 | P8: 0.07 | S8: =IF(OR(B5="",B5=Q4,AND(B5<>Q4,B6<>Q4,B5<>B6)),S9,B6) -> fehér | U8: 0.4
A9: Havi törlesztőrészlet (forintban) | E9: =IF(OR(B9=0,ISERROR(B9-B28)),"",B9-B28) ->  | F9: =IF(OR(B9=0,ISERROR(B9-B28)),"",E9*12) ->  | G9: =IF(OR(B9=0,ISERROR(B9-B28)),"",(B9*B8)-(B28*J10)) ->  | L9: most | M9: =VLOOKUP(B26,L5:M8,2,FALSE) -> 0.0211 | N9: K5 | O9: =HLOOKUP($B$26,$K$29:$N$35,6,FALSE) -> 0 | P9: 0.002 | S9: fehér | U9: 0.5
A10: Végtörlesztési díj %-ban vagy forintban? | I10: futamidő | J10: =IF(OR(B8="",B17="",AND(B8<>"",B17=T4,B18="")),0,MIN(420,IF(B17=T5,B8,B18))) -> 0 | N10: K6 | O10: =HLOOKUP($B$26,$K$29:$N$35,7,FALSE) -> 0 | P10: 0.002 | U10: 0.6
A11: Végtörlesztési díj % | I11: szla | J11: 508 | N11: most | O11: =VLOOKUP(B21,N5:P10,IF(B19=O4,2,3),FALSE) ->  | U11: 0.7
A12: Végtörlesztési díj HUF | I12: DD | J12: 116 | N12: Bérátutalás | O12: =IF(B22=$T$4,-0.5%,0%) -> -0.005 | U12: 0.8
I13: életbizt | J13: 2400 | N13: vagyonbiztosítás | O13: =IF(B23=$T$4,-0.2%,0%) -> -0.002 | U13: 0.9
A14: K&H TÖRLESZTÉSCSÖKKENTŐ HITEL | I14: Földhivatal | J14: 12600 | N14: életbiztosítás | O14: =IF(B24=$T$4,-0.3%,0%) -> 0 | U14: 1
A15: Devizanem | B15: HUF | N15: Prémium ügyfél | O15: =IF(B25=$T$4,-0.25%,0%) -> 0
A16: =IF(OR(B5=Q4,B6=Q4),"Hitelösszeg","Hitelösszeg a megadott árfolyammal") -> Hitelösszeg a megadott árfolyammal | B16: =IF(OR(AND(B5<>Q4,B6=""),AND(B5="",B6="")),"",IF(OR(B5=Q4,B6=Q4),IF(B10=T6,B7*(1+B11),B7+B12),IF(B10=T6,IF(B6=Q7,B7*J7/100,B7*IF(B6=I5,J5,J6))*(1+B11),IF(B6=Q7,B7*J7/100,B7*IF(B6=I5,J5,J6))+B12))) ->  | N16: Kamatfelár | O16: =MAX(2%,SUM(O11:O15)) -> 
A17: Futamidő módosítás történik? (max 420 hónap lehet) | B17: nem | N17: Kamatkedvezmények | O17: =SUM(O12:O15) -> -0.007
A18: =IF(OR(B8="",B17=""),"",IF(AND(B17=T5,B8<421),CONCATENATE("változatlan futamidő: ",B8," hónap"),IF(AND(B17=T5,B8>420),"maximum szabály miatt a futamidő: 420 hónap",IF(AND(B8<>"",B17=T4,B18=""),"új futamidő: ",CONCATENATE("új futamidő: ",J10," (hónap)"))))) ->  | N18: valós kedvezmény | O18: =O16-O11 -> 
A19: Induló díjakkal vagy csak kamattal | B19: Induló díjakkal | J19: becslés a jelenlegire
A20: Szerződéskötési díj: | B20: =IF(OR(AND(B5<>Q4,B6=""),AND(B5="",B6="")),"",IF(OR(B19=P4,B16=""),0,MIN(200000,B16*1%))) ->  | J20: =PMT(VLOOKUP(B5,Q4:R7,2,FALSE)/12,B8,-B7*IF(B5=Q4,1,VLOOKUP(B6,I5:J8,2,FALSE))) -> 
A21: Kockázati besorolás (K1-K4): | M21: megtaki | N21: kamat | O21: EBKM | Q21: megtak | R21: kamat | S21: záró
A22: Bérátutalás kamatkedvezménye | B22: igen | M22: 0 | N22: 0.0115 | O22: 0.0116 | P22: 1 | Q22: =M53 ->  | R22: =Q22*$N$26/12 ->  | S22: =+Q22+R22 -> 
A23: Vagyonbiztosítás kamatkedvezménye | B23: igen | J23: lejáratig | M23: 5000 | N23: 0.0195 | O23: 0.0197 | P23: =+P22+1 -> 2 | Q23: =+S22+$M$53 ->  | S23: =+Q23+R23 -> 
A24: Életbiztosítás kamatkedvezménye | B24: nem | E24: Hitelközvetítő neve (cégneve) | J24: üres | M24: 10000 | N24: 0.0205 | O24: 0.0207 | P24: =+P23+1 -> 3 | S24: =+Q24+R24 -> 
A25: Prémium ügyfélkör kamatkedvezménye | B25: nem | E25: Tanácsadó neve | M25: 35000 | N25: 0.0215 | O25: 0.0217 | P25: 4
A26: Kamatperiódus hossza | B26: 12 hónap | E26: telefonszám | M26: most | N26: =VLOOKUP(M53,M22:N25,2) ->  | O26: =VLOOKUP(M53,M22:O25,3) ->  | P26: 5
A27: Ügyleti éves kamatláb | B27: =IF(OR(B16=0,B16="",ISERROR(M9+O16)),"",M9+O16) ->  | E27: e-mail | P27: 6
A28: Havi törlesztőrészlet összege | B28: =IF(ISERROR(PMT(B27/12,J10,-B16)),"",PMT(B27/12,J10,-B16)) ->  | K28: kamatfelárak | P28: 7
A29: THM¹ | B29: =IF(ABS('THM fiók HE'!I2)*100>1,"",'THM fiók HE'!H1) ->  | K29: 3 hónap | L29: 12 hónap | M29: 3 év | N29: 5 év | P29: 8
K30: 0.045 | L30: 0.045 | M30: 0.0496 | N30: 0.0528 | P30: 9
A31: Induló díjas konstrukcióknál szerződéskötési díj esetében az alábbi akciós kedvezményt nyújtjuk 2014. március 1. és 2015. március 31. között befogadott igénylések esetén: - elengedjük a teljes szerződéskötési díjat, amennyiben Ön újonnan nyit, vagy rendelkezik már K&H okos számlacsomagok egyikével, és a szerződéskötéstől számított 5 évig megtartja. - elengedjük a szerződéskötési díj 50%-át abban az esetben is, ha az utóbbi pontban felsorolt feltételeknek nem tesz eleget. | K31: 0.05 | L31: 0.05 | M31: 0.0546 | N31: 0.0578 | P31: 10
A32: A hatályos akcióink további részletei a kapcsolódó feltételekkel megtalálhatóak a lentebb nevezett hatályos hirdetményben vagy honlapunkon (www.kh.hu). | K32: 0.0575 | L32: 0.0575 | M32: 0.0621 | N32: 0.0653 | P32: 11
K33: 0.068 | L33: 0.068 | M33: 0.0726 | N33: 0.0758 | P33: 12
A34: Amennyiben további kérdése merülne fel, hívja bizalommal a tanácsadóját. | P34: 13
P35: 14
A36: Jelen kalkuláció nem minősül ajánlattételnek, a benne szereplő adatok kizárólag tájékoztató jellegűek. A kondíciók módosításának jogát a Bank fenntartja, és a kalkuláció nem kötelez hitelnyújtásra. | P36: 15
A37: A hitelszerződés megkötésének feltétele a bank által előírt dokumentáció benyújtása, a termékhez kapcsolódó alapfeltételeknek való megfelelés, majd a bank belső szabályzata alapján meghozott pozitív bírálat és a szerződési feltételek elfogadása. | K37: ¹ A Teljes Hiteldíj Mutató (THM) meghatározása az aktuális feltételek, illetve a hatályos jogszabályok figyelembevételével történt és a feltételek változása esetén mértéke módosulhat. A THM mutató értéke nem tükrözi a hitel kamatkockázatát. Az ügyleti kamaton felül a szerződéskötési díjat, a földhivatali eljárási illetéket és a K&H lakossági bankszámlacsomag havi díját tartalmazza. | P37: 16
A38: A termék részletes leírását, illetve feltételeit a vonatkozó szerződés, az Általános Szerződési Feltételek, a K&H Bank Üzletszabályzata, valamint az aktuális hirdetmény tartalmazza, mely utóbbiak megtekinthetők a bankfiókokban és a www.kh.hu internetes oldalon. | K38: ¹ A Teljes Hiteldíj Mutató (THM) meghatározása az aktuális feltételek, illetve a hatályos jogszabályok figyelembevételével történt és a feltételek változása esetén mértéke módosulhat. A THM mutató értéke nem tükrözi a hitel kamatkockázatát. Az ügyleti kamaton felül a szerződéskötési díjat, a földhivatali eljárási illetéket, a K&H lakossági bankszámlacsomag havi díját és havi 2.400 Ft (csoportos beszedéssel teljesített) életbiztosítás díját tartalmazza . | P38: 17
A39: A K&H törlesztéscsökkentő hitel kondíciói a hatályos "A forint alapú K&H ingatlanfedezetű személyi hitel és a K&H törlesztőcsökkentő hitel kondícióiról" c. hirdetmény alapján kerülnek meghatározásra. | P39: 18
A40: =IF(B24="nem",K37,K38) -> ¹ A Teljes Hiteldíj Mutató (THM) meghatározása az aktuális feltételek, illetve a hatályos jogszabályok figyelembevételével történt és a feltételek változása esetén mértéke módosulhat. A THM mutató értéke nem tükrözi a hitel kamatkockázatát. Az ügyleti kamaton felül a szerződéskötési díjat, a földhivatali eljárási illetéket és a K&H lakossági bankszámlacsomag havi díját tartalmazza. | P40: 19
P41: 20
P42: 21
P43: 22
P44: 23
P45: 24
P46: 25
P47: 26
P48: 27
P49: 28
P50: 29
L51: K&H BIZTOS TARTALÉK megtakarítás | P51: 30
L52: Törlesztéscsökkenés havi összegének %-a | M52: 1 | P52: 31
L53: Havi megtakarítás összege | M53: =IF(ISERROR(E9*M52),"",E9*M52) ->  | P53: 32
L54: Aktuális éves betéti kamatláb² | M54: =IF(ISERROR(N26),"",N26) ->  | P54: 33
L55: EBKM² | M55: =IF(ISERROR(O26),"",O26) ->  | P55: 34
P56: 35
L57: Megtakarított összeg 1 év múlva | M57: =IF(ISERROR(VLOOKUP(12,P22:S441,4,FALSE)),"",VLOOKUP(12,P22:S441,4,FALSE)) ->  | P57: 36
L58: =CONCATENATE("Megtakarított összeg ",IF(J10=0,"…",J10)," hónap alatt") -> Megtakarított összeg … hónap alatt | M58: =IF(ISERROR(VLOOKUP(IF(B17=T5,B8,B18),P22:S441,4,FALSE)),"",VLOOKUP(IF(B17=T5,B8,B18),P22:S441,4,FALSE)) ->  | P58: 37
P59: 38
P60: 39
P61: 40
P62: 41
P63: 42
P64: 43
L65: ² A betéti kamat és az EBKM mértéke a TERMÉSZETES SZEMÉLYEK bankszámláira, betétszámláira, lekötött betéteire valamint pénztári tranzakcióira vonatkozó hatályos hirdetmény alapján kerül meghatározásra. A megtakarításra vonatkozó számítás nem ajánlattétel, a kamat és így az EBKM mértéke változhat. A betéti kalkuláció kizárólag a megtakarított összegre vonatkozik 2 499 999 forintig terjedő betétrészre vonatkozó premium kammattal számítva mely az adott hónapban megtakarított összeg nagyságának függvénye, továbbá feltétele a számla minimum 50 000 forint napi záró egyenlege amely - az adott hónap első banki munkanapjától kezdődően - minden nap eléri a minimum egyenleget. EBKM: 1,51%-2,94% | P65: 44
P66: 45
P67: 46
P68: 47
P69: 48
P70: 49
P71: 50
P72: 51
P73: 52
P74: 53
P75: 54
P76: 55
P77: 56
P78: 57
P79: 58
P80: 59
P81: 60
P82: 61
P83: 62
P84: 63
P85: 64
P86: 65 | R86: =Q86*$N$26/12 -> 
P87: 66 | Q87: =+S86+$M$53 -> 
P88: =+P87+1 -> 67 | S88: =+Q88+R88 -> 
P89: 68
P90: 69
P91: 70
P92: 71
P93: 72
P94: 73
P95: 74
P96: 75
P97: 76
P98: 77
P99: 78
P100: 79
P101: 80
P102: 81
P103: 82
P104: 83
P105: 84
P106: 85
P107: 86
P108: 87
P109: 88
P110: 89
P111: 90
P112: 91
P113: 92
P114: 93
P115: 94
P116: 95
P117: 96
P118: 97
P119: 98
P120: 99
P121: 100
P122: 101
P123: 102
P124: 103
P125: 104
P126: 105
P127: 106
P128: 107
P129: 108
P130: 109
P131: 110
P132: 111
P133: 112
P134: 113
P135: 114
P136: 115
P137: 116
P138: 117
P139: 118
P140: 119
P141: 120
P142: 121
P143: 122
P144: 123
P145: 124
P146: 125
P147: 126
P148: 127
P149: 128
P150: 129 | R150: =Q150*$N$26/12 -> 
P151: 130 | Q151: =+S150+$M$53 -> 
P152: =+P151+1 -> 131 | S152: =+Q152+R152 -> 
P153: 132
P154: 133
P155: 134
P156: 135
P157: 136
P158: 137
P159: 138
P160: 139
P161: 140
P162: 141
P163: 142
P164: 143
P165: 144
P166: 145
P167: 146
P168: 147
P169: 148
P170: 149
P171: 150
P172: 151
P173: 152
P174: 153
P175: 154
P176: 155
P177: 156
P178: 157
P179: 158
P180: 159
P181: 160
P182: 161
P183: 162
P184: 163
P185: 164
P186: 165
P187: 166
P188: 167
P189: 168
P190: 169
P191: 170
P192: 171
P193: 172
P194: 173
P195: 174
P196: 175
P197: 176
P198: 177
P199: 178
P200: 179
P201: 180
... 240 more rows

Sheet Segédlet
A1: Segédlet az ügyfelek által nem ismert adatok becsléséhez | L1: =VLOOKUP(B6,H3:L422,5,FALSE) ->  | N1: =IF(ISERROR(L1),1,2) -> 1 | P1: CHF | Q1: 2 | W1: =CONCATENATE(YEAR(TODAY()),"-",MONTH(TODAY())) -> 2015-2 | X1: =VLOOKUP(W1,R6:U161,Q4) ->  | AA1: =VLOOKUP(B18,W3:AA422,5,FALSE)*X1 ->  | AC1: =IF(ISERROR(AA1),1,2) -> 1
J2: 0.09004260772 | P2: EUR | Q2: 3 | Y2: 0.07531396046
A3: Forintalapú hitel | H3: 1 | I3: =B4 -> 0 | J3: =I3*$J$2/12 -> 0 | K3: =$B$5 -> 0 | L3: =I3+J3-K3 -> 0 | P3: JPY | Q3: 4 | R3: közép | S3: vételi | W3: 1 | X3: =+B16/S4 ->  | Y3: =X3*$Y$2/12 ->  | Z3: =+B17/X1 ->  | AA3: =X3+Y3-Z3 ->  | AB3: =AA3*$X$1 -> 
A4: Eredeti hitelösszeg HUF | H4: =+H3+1 -> 2 | I4: =+L3 -> 0 | J4: =I4*$J$2/12 -> 0 | K4: =IF(H4>$B$6,0,$B$5) -> 0 | L4: =I4+J4-K4 -> 0 | Q4: =VLOOKUP(B15,P1:Q3,2,FALSE) ->  | R4: =VLOOKUP(R5,R6:U161,Q4,FALSE) ->  | S4: =R4/(1.01) ->  | W4: =+W3+1 -> 2 | X4: =+AA3 ->  | Y4: =X4*$Y$2/12 ->  | Z4: =IF(H4>$B$18,0,$B$17/$X$1) -> 0 | AA4: =X4+Y4-Z4 ->  | AB4: =AA4*$X$1 -> 
A5: Jelenlegi havi részlet HUF | H5: =+H4+1 -> 3 | I5: =+L4 -> 0 | J5: =I5*$J$2/12 -> 0 | K5: 0 | L5: =I5+J5-K5 -> 0 | R5: =CONCATENATE(B19,"-",B20) -> - | S5: CHF | T5: EUR | U5: JPY | W5: =+W4+1 -> 3 | X5: =+AA4 ->  | Y5: =X5*$Y$2/12 ->  | Z5: =IF(H5>$B$18,0,$B$17/$X$1) -> 0 | AA5: =X5+Y5-Z5 -> 
A6: Eredeti futamidő (hónap) | H6: 4 | I6: 0 | J6: 0 | K6: 0 | L6: 0 | P6: 2003 | Q6: 1 | R6: =CONCATENATE(P6,"-",Q6) -> 2003-1 | S6: 160.34 | T6: 234.74 | U6: 1.888 | W6: 4 | Z6: 0
A7: Hitelfelvétel éve | H7: 5 | I7: 0 | J7: 0 | K7: 0 | L7: 0 | P7: =IF(Q6=12,P6+1,P6) -> 2003 | Q7: =IF(Q6=12,1,Q6+1) -> 2 | R7: =CONCATENATE(P7,"-",Q7) -> 2003-2 | S7: 166.96 | T7: 245.16 | U7: 1.8829 | W7: 5 | Z7: 0
A8: Hitelfelvétel hónapja | H8: 6 | I8: 0 | J8: 0 | K8: 0 | L8: 0 | P8: =IF(Q7=12,P7+1,P7) -> 2003 | Q8: =IF(Q7=12,1,Q7+1) -> 3 | R8: 2003-3 | S8: 166.65 | T8: 244.63 | U8: 1.9139 | W8: 6 | Z8: 0
A9: Fennálló tőketartozás (becslés!) | B9: =IF(OR(N1=1,ISERROR(VLOOKUP(B6-B10,H3:L422,5,FALSE)),ABS(L1)*100>1),"",VLOOKUP(B6-B10,H3:L422,5,FALSE)) ->  | H9: 7 | I9: 0 | J9: 0 | K9: 0 | L9: 0 | P9: 2003 | Q9: 4 | R9: 2003-4 | S9: 163.58 | T9: 245.29 | U9: 1.8911 | W9: 7 | Z9: 0
A10: Hátralévő futamidő (hónap) | B10: =IF(OR(B6="",B7="",B8=""),"",B6-((YEAR(TODAY())-B7)*12-(B8-MONTH(TODAY())))) ->  | H10: 8 | I10: 0 | J10: 0 | K10: 0 | L10: 0 | P10: 2003 | Q10: 5 | R10: 2003-5 | S10: 162.01 | T10: 244.8 | U10: 1.844 | W10: 8 | Z10: 0
A11: Hiteldíj (becslés!) | B11: =IF(ABS(L1)*100>1,"",J2) ->  | H11: 9 | I11: 0 | J11: 0 | K11: 0 | L11: 0 | P11: 2003 | Q11: 6 | R11: 2003-6 | S11: 167.36 | T11: 259.1 | U11: 1.8693 | W11: 9 | Z11: 0
H12: 10 | I12: 0 | J12: 0 | K12: 0 | L12: 0 | P12: 2003 | Q12: 7 | R12: 2003-7 | S12: 167.88 | T12: 260.7 | U12: 1.9642 | W12: 10 | Z12: 0
H13: 11 | I13: 0 | J13: 0 | K13: 0 | L13: 0 | P13: 2003 | Q13: 8 | R13: 2003-8 | S13: 168.82 | T13: 260.65 | U13: 1.9428 | W13: 11 | Z13: 0
A14: Devizaalapú hitel | H14: 12 | I14: 0 | J14: 0 | K14: 0 | L14: 0 | P14: 2003 | Q14: 9 | R14: 2003-9 | S14: 163.88 | T14: 255.25 | U14: 1.9261 | W14: 12 | Z14: 0
A15: A hitel devizaneme | H15: 13 | I15: 0 | J15: 0 | K15: 0 | L15: 0 | P15: 2003 | Q15: 10 | R15: 2003-10 | S15: 165.84 | T15: 256.32 | U15: 2.0063 | W15: 13 | Z15: 0
A16: Eredeti hitelösszeg HUF | H16: 14 | I16: 0 | J16: 0 | K16: 0 | L16: 0 | P16: 2003 | Q16: 11 | R16: 2003-11 | S16: 164.43 | T16: 258.07 | U16: 2.0261 | W16: 14 | Z16: 0
A17: Jelenlegi havi részlet HUF | H17: 15 | I17: 0 | J17: 0 | K17: 0 | L17: 0 | P17: 2003 | Q17: 12 | R17: 2003-12 | S17: 169.61 | T17: 263.33 | U17: 1.992 | W17: 15 | Z17: 0
A18: Eredeti futamidő (hónap) | H18: 16 | I18: 0 | J18: 0 | K18: 0 | L18: 0 | P18: 2004 | Q18: 1 | R18: 2004-1 | S18: 170.33 | T18: 266.19 | U18: 1.984 | W18: 16 | Z18: 0
A19: Hitelfelvétel éve | H19: 17 | I19: 0 | J19: 0 | K19: 0 | L19: 0 | P19: 2004 | Q19: 2 | R19: 2004-2 | S19: 166.44 | T19: 263.01 | U19: 1.9477 | W19: 17 | Z19: 0
A20: Hitelfelvétel hónapja | H20: 18 | I20: 0 | J20: 0 | K20: 0 | L20: 0 | P20: 2004 | Q20: 3 | R20: 2004-3 | S20: 161.36 | T20: 252.7 | U20: 1.8524 | W20: 18 | Z20: 0
A21: Fennálló tőketartozás (becslés!) | B21: =IF(OR(AC1=1,ISERROR(VLOOKUP(B18-B22,W3:AA422,5,FALSE)),ABS(AA1)*100>1),"",VLOOKUP(B18-B22,W3:AA422,5,FALSE))*X1 ->  | H21: 19 | I21: 0 | J21: 0 | K21: 0 | L21: 0 | P21: 2004 | Q21: 4 | R21: 2004-4 | S21: 163.52 | T21: 253.32 | U21: 1.9534 | W21: 19 | Z21: 0
A22: Hátralévő futamidő (hónap) | B22: =IF(OR(B18="",B19="",B20=""),"",B18-((YEAR(TODAY())-B19)*12-(B20-MONTH(TODAY())))) ->  | H22: 20 | I22: 0 | J22: 0 | K22: 0 | L22: 0 | P22: 2004 | Q22: 5 | R22: 2004-5 | S22: 166.54 | T22: 256.39 | U22: 1.8937 | W22: 20 | Z22: 0
A23: Hiteldíj (becslés!) | B23: =IF(ABS(AA1)*100>1,"",Y2) ->  | H23: 21 | I23: 0 | J23: 0 | K23: 0 | L23: 0 | P23: 2004 | Q23: 6 | R23: 2004-6 | S23: 166.45 | T23: 252.9 | U23: 1.8882 | W23: 21 | Z23: 0
H24: 22 | I24: 0 | J24: 0 | K24: 0 | L24: 0 | P24: 2004 | Q24: 7 | R24: 2004-7 | S24: 163.55 | T24: 249.63 | U24: 1.8471 | W24: 22 | Z24: 0
H25: 23 | I25: 0 | J25: 0 | K25: 0 | L25: 0 | P25: 2004 | Q25: 8 | R25: 2004-8 | S25: 162.63 | T25: 249.68 | U25: 1.8309 | W25: 23 | Z25: 0
H26: 24 | I26: 0 | J26: 0 | K26: 0 | L26: 0 | P26: 2004 | Q26: 9 | R26: 2004-9 | S26: 161.11 | T26: 248.28 | U26: 1.8523 | W26: 24 | Z26: 0
H27: 25 | I27: 0 | J27: 0 | K27: 0 | L27: 0 | P27: 2004 | Q27: 10 | R27: 2004-10 | S27: 160.64 | T27: 247.7 | U27: 1.8246 | W27: 25 | Z27: 0
H28: 26 | I28: 0 | J28: 0 | K28: 0 | L28: 0 | P28: 2004 | Q28: 11 | R28: 2004-11 | S28: 159.79 | T28: 243.42 | U28: 1.7811 | W28: 26 | Z28: 0
H29: 27 | I29: 0 | J29: 0 | K29: 0 | L29: 0 | P29: 2004 | Q29: 12 | R29: 2004-12 | S29: 160.66 | T29: 245.9 | U29: 1.7631 | W29: 27 | Z29: 0
H30: 28 | I30: 0 | J30: 0 | K30: 0 | L30: 0 | P30: 2005 | Q30: 1 | R30: 2005-1 | S30: 159.4 | T30: 247.1 | U30: 1.8356 | W30: 28 | Z30: 0
H31: 29 | I31: 0 | J31: 0 | K31: 0 | L31: 0 | P31: 2005 | Q31: 2 | R31: 2005-2 | S31: 157.35 | T31: 244.11 | U31: 1.7899 | W31: 29 | Z31: 0
H32: 30 | I32: 0 | J32: 0 | K32: 0 | L32: 0 | P32: 2005 | Q32: 3 | R32: 2005-3 | S32: 157.03 | T32: 243.3 | U32: 1.7407 | W32: 30 | Z32: 0
H33: 31 | I33: 0 | J33: 0 | K33: 0 | L33: 0 | P33: 2005 | Q33: 4 | R33: 2005-4 | S33: 159.22 | T33: 247.27 | U33: 1.7799 | W33: 31 | Z33: 0
H34: 32 | I34: 0 | J34: 0 | K34: 0 | L34: 0 | P34: 2005 | Q34: 5 | R34: 2005-5 | S34: 162.81 | T34: 251.34 | U34: 1.8555 | W34: 32 | Z34: 0
H35: 33 | I35: 0 | J35: 0 | K35: 0 | L35: 0 | P35: 2005 | Q35: 6 | R35: 2005-6 | S35: 161.54 | T35: 248.55 | U35: 1.8879 | W35: 33 | Z35: 0
H36: 34 | I36: 0 | J36: 0 | K36: 0 | L36: 0 | P36: 2005 | Q36: 7 | R36: 2005-7 | S36: 158.3 | T36: 246.84 | U36: 1.8224 | W36: 34 | Z36: 0
H37: 35 | I37: 0 | J37: 0 | K37: 0 | L37: 0 | P37: 2005 | Q37: 8 | R37: 2005-8 | S37: 157.32 | T37: 244.01 | U37: 1.7983 | W37: 35 | Z37: 0
H38: 36 | I38: 0 | J38: 0 | K38: 0 | L38: 0 | P38: 2005 | Q38: 9 | R38: 2005-9 | S38: 158.68 | T38: 245.29 | U38: 1.8166 | W38: 36 | Z38: 0
H39: 37 | I39: 0 | J39: 0 | K39: 0 | L39: 0 | P39: 2005 | Q39: 10 | R39: 2005-10 | S39: 163.48 | T39: 253.3 | U39: 1.8401 | W39: 37 | Z39: 0
H40: 38 | I40: 0 | J40: 0 | K40: 0 | L40: 0 | P40: 2005 | Q40: 11 | R40: 2005-11 | S40: 162.12 | T40: 249.89 | U40: 1.796 | W40: 38 | Z40: 0
H41: 39 | I41: 0 | J41: 0 | K41: 0 | L41: 0 | P41: 2005 | Q41: 12 | R41: 2005-12 | S41: 164.02 | T41: 253.09 | U41: 1.8121 | W41: 39 | Z41: 0
H42: 40 | I42: 0 | J42: 0 | K42: 0 | L42: 0 | P42: 2006 | Q42: 1 | R42: 2006-1 | S42: 161.76 | T42: 250.43 | U42: 1.8122 | W42: 40 | Z42: 0
H43: 41 | I43: 0 | J43: 0 | K43: 0 | L43: 0 | P43: 2006 | Q43: 2 | R43: 2006-2 | S43: 161.25 | T43: 251.27 | U43: 1.794 | W43: 41 | Z43: 0
H44: 42 | I44: 0 | J44: 0 | K44: 0 | L44: 0 | P44: 2006 | Q44: 3 | R44: 2006-3 | S44: 169.63 | T44: 265.85 | U44: 1.8766 | W44: 42 | Z44: 0
H45: 43 | I45: 0 | J45: 0 | K45: 0 | L45: 0 | P45: 2006 | Q45: 4 | R45: 2006-4 | S45: 169.65 | T45: 266.72 | U45: 1.8568 | W45: 43 | Z45: 0
H46: 44 | I46: 0 | J46: 0 | K46: 0 | L46: 0 | P46: 2006 | Q46: 5 | R46: 2006-5 | S46: 172.96 | T46: 268.34 | U46: 1.8933 | W46: 44 | Z46: 0
H47: 45 | I47: 0 | J47: 0 | K47: 0 | L47: 0 | P47: 2006 | Q47: 6 | R47: 2006-6 | S47: 173.39 | T47: 269.43 | U47: 1.8579 | W47: 45 | Z47: 0
H48: 46 | I48: 0 | J48: 0 | K48: 0 | L48: 0 | P48: 2006 | Q48: 7 | R48: 2006-7 | S48: 180.96 | T48: 282.62 | U48: 1.926 | W48: 46 | Z48: 0
H49: 47 | I49: 0 | J49: 0 | K49: 0 | L49: 0 | P49: 2006 | Q49: 8 | R49: 2006-8 | S49: 174.26 | T49: 275.56 | U49: 1.8581 | W49: 47 | Z49: 0
H50: 48 | I50: 0 | J50: 0 | K50: 0 | L50: 0 | P50: 2006 | Q50: 9 | R50: 2006-9 | S50: 170.92 | T50: 272.84 | U50: 1.828 | W50: 48 | Z50: 0
H51: 49 | I51: 0 | J51: 0 | K51: 0 | L51: 0 | P51: 2006 | Q51: 10 | R51: 2006-10 | S51: 166.79 | T51: 265.74 | U51: 1.7738 | W51: 49 | Z51: 0
H52: 50 | I52: 0 | J52: 0 | K52: 0 | L52: 0 | P52: 2006 | Q52: 11 | R52: 2006-11 | S52: 161.02 | T52: 257.31 | U52: 1.7029 | W52: 50 | Z52: 0
H53: 51 | I53: 0 | J53: 0 | K53: 0 | L53: 0 | P53: 2006 | Q53: 12 | R53: 2006-12 | S53: 158.16 | T53: 252.75 | U53: 1.6313 | W53: 51 | Z53: 0
H54: 52 | I54: 0 | J54: 0 | K54: 0 | L54: 0 | P54: 2007 | Q54: 1 | R54: 2007-1 | S54: 156.3 | T54: 252.09 | U54: 1.616 | W54: 52 | Z54: 0
H55: 53 | I55: 0 | J55: 0 | K55: 0 | L55: 0 | P55: 2007 | Q55: 2 | R55: 2007-2 | S55: 154.87 | T55: 251.98 | U55: 1.5954 | W55: 53 | Z55: 0
H56: 54 | I56: 0 | J56: 0 | K56: 0 | L56: 0 | P56: 2007 | Q56: 3 | R56: 2007-3 | S56: 156.79 | T56: 251.75 | U56: 1.643 | W56: 54 | Z56: 0
H57: 55 | I57: 0 | J57: 0 | K57: 0 | L57: 0 | P57: 2007 | Q57: 4 | R57: 2007-4 | S57: 150.11 | T57: 245.64 | U57: 1.5348 | W57: 55 | Z57: 0
H58: 56 | I58: 0 | J58: 0 | K58: 0 | L58: 0 | P58: 2007 | Q58: 5 | R58: 2007-5 | S58: 150.62 | T58: 248.43 | U58: 1.524 | W58: 56 | Z58: 0
H59: 57 | I59: 0 | J59: 0 | K59: 0 | L59: 0 | P59: 2007 | Q59: 6 | R59: 2007-6 | S59: 151.7 | T59: 251.56 | U59: 1.5301 | W59: 57 | Z59: 0
H60: 58 | I60: 0 | J60: 0 | K60: 0 | L60: 0 | P60: 2007 | Q60: 7 | R60: 2007-7 | S60: 148.07 | T60: 245.55 | U60: 1.4559 | W60: 58 | Z60: 0
H61: 59 | I61: 0 | J61: 0 | K61: 0 | L61: 0 | P61: 2007 | Q61: 8 | R61: 2007-8 | S61: 157.63 | T61: 258.17 | U61: 1.637 | W61: 59 | Z61: 0
H62: 60 | I62: 0 | J62: 0 | K62: 0 | L62: 0 | P62: 2007 | Q62: 9 | R62: 2007-9 | S62: 154.56 | T62: 254.45 | U62: 1.5945 | W62: 60 | Z62: 0
H63: 61 | I63: 0 | J63: 0 | K63: 0 | L63: 0 | P63: 2007 | Q63: 10 | R63: 2007-10 | S63: 148.91 | T63: 249.88 | U63: 1.4928 | W63: 61 | Z63: 0
H64: 62 | I64: 0 | J64: 0 | K64: 0 | L64: 0 | P64: 2007 | Q64: 11 | R64: 2007-11 | S64: 154.74 | T64: 254.37 | U64: 1.5679 | W64: 62 | Z64: 0
H65: 63 | I65: 0 | J65: 0 | K65: 0 | L65: 0 | P65: 2007 | Q65: 12 | R65: 2007-12 | S65: 151.6 | T65: 252.99 | U65: 1.5444 | W65: 63 | Z65: 0
H66: 64 | I66: 0 | J66: 0 | K66: 0 | L66: 0 | P66: 2008 | Q66: 1 | R66: 2008-1 | S66: 156.33 | T66: 253.62 | U66: 1.588 | W66: 64 | Z66: 0
H67: 65 | I67: 0 | J67: 0 | K67: 0 | L67: 0 | P67: 2008 | Q67: 2 | R67: 2008-2 | S67: 163.13 | T67: 262.16 | U67: 1.6515 | W67: 65 | Z67: 0
H68: 66 | I68: 0 | J68: 0 | K68: =IF(H68>$B$6,0,$B$5) -> 0 | L68: 0 | P68: 2008 | Q68: 3 | R68: 2008-3 | S68: 163.46 | T68: 257.26 | U68: 1.6429 | W68: 66 | Z68: 0 | AB68: =AA68*$X$1 -> 
H69: =+H68+1 -> 67 | I69: =+L68 -> 0 | J69: =I69*$J$2/12 -> 0 | K69: 0 | L69: =I69+J69-K69 -> 0 | P69: 2008 | Q69: 4 | R69: 2008-4 | S69: 159.29 | T69: 251.88 | U69: 1.5748 | W69: =+W68+1 -> 67 | X69: =+AA68 ->  | Y69: =X69*$Y$2/12 ->  | Z69: =IF(H69>$B$18,0,$B$17/$X$1) -> 0 | AA69: =X69+Y69-Z69 -> 
H70: 68 | I70: 0 | J70: 0 | K70: 0 | L70: 0 | P70: 2008 | Q70: 5 | R70: 2008-5 | S70: 153.06 | T70: 250.2 | U70: 1.5358 | W70: 68 | Z70: 0
H71: 69 | I71: 0 | J71: 0 | K71: 0 | L71: 0 | P71: 2008 | Q71: 6 | R71: =CONCATENATE(P71,"-",Q71) -> 2008-6 | S71: 153.54 | T71: 247.28 | U71: 1.486 | W71: 69 | Z71: 0
H72: 70 | I72: 0 | J72: 0 | K72: 0 | L72: 0 | P72: =IF(Q71=12,P71+1,P71) -> 2008 | Q72: =IF(Q71=12,1,Q71+1) -> 7 | R72: 2008-7 | S72: 143.57 | T72: 231.41 | U72: 1.3752 | W72: 70 | Z72: 0
H73: 71 | I73: 0 | J73: 0 | K73: 0 | L73: 0 | P73: 2008 | Q73: 8 | R73: 2008-8 | S73: 147.83 | T73: 239.3 | U73: 1.4711 | W73: 71 | Z73: 0
H74: 72 | I74: 0 | J74: 0 | K74: 0 | L74: 0 | P74: 2008 | Q74: 9 | R74: 2008-9 | S74: 151.65 | T74: 240.92 | U74: 1.614 | W74: 72 | Z74: 0
H75: 73 | I75: 0 | J75: 0 | K75: 0 | L75: 0 | P75: 2008 | Q75: 10 | R75: 2008-10 | S75: 171.81 | T75: 266.09 | U75: 1.9392 | W75: 73 | Z75: 0
H76: 74 | I76: 0 | J76: 0 | K76: 0 | L76: 0 | P76: 2008 | Q76: 11 | R76: 2008-11 | S76: 179.83 | T76: 271.58 | U76: 2.2056 | W76: 74 | Z76: 0
H77: 75 | I77: 0 | J77: 0 | K77: 0 | L77: 0 | P77: 2008 | Q77: 12 | R77: 2008-12 | S77: 168.45 | T77: 265.79 | U77: 2.1753 | W77: 75 | Z77: 0
H78: 76 | I78: 0 | J78: 0 | K78: 0 | L78: 0 | P78: 2009 | Q78: 1 | R78: 2009-1 | S78: 190.76 | T78: 280.8 | U78: 2.4036 | W78: 76 | Z78: 0
H79: 77 | I79: 0 | J79: 0 | K79: 0 | L79: 0 | P79: 2009 | Q79: 2 | R79: 2009-2 | S79: 199.25 | T79: 298.34 | U79: 2.5221 | W79: 77 | Z79: 0
H80: 78 | I80: 0 | J80: 0 | K80: 0 | L80: 0 | P80: 2009 | Q80: 3 | R80: 2009-3 | S80: 192.75 | T80: 295 | U80: 2.3268 | W80: 78 | Z80: 0
H81: 79 | I81: 0 | J81: 0 | K81: 0 | L81: 0 | P81: 2009 | Q81: 4 | R81: 2009-4 | S81: 191.01 | T81: 289.16 | U81: 2.2011 | W81: 79 | Z81: 0
H82: 80 | I82: 0 | J82: 0 | K82: 0 | L82: 0 | P82: 2009 | Q82: 5 | R82: 2009-5 | S82: 191.56 | T82: 288.02 | U82: 2.2343 | W82: 80 | Z82: 0
H83: 81 | I83: 0 | J83: 0 | K83: 0 | L83: 0 | P83: 2009 | Q83: 6 | R83: 2009-6 | S83: 184.44 | T83: 278.81 | U83: 2.0468 | W83: 81 | Z83: 0
H84: 82 | I84: 0 | J84: 0 | K84: 0 | L84: 0 | P84: 2009 | Q84: 7 | R84: 2009-7 | S84: 179.52 | T84: 272.76 | U84: 2.0722 | W84: 82 | Z84: 0
H85: 83 | I85: 0 | J85: 0 | K85: 0 | L85: 0 | P85: 2009 | Q85: 8 | R85: 2009-8 | S85: 175.74 | T85: 268.73 | U85: 1.9772 | W85: 83 | Z85: 0
H86: 84 | I86: 0 | J86: 0 | K86: 0 | L86: 0 | P86: 2009 | Q86: 9 | R86: 2009-9 | S86: 179.85 | T86: 272.87 | U86: 2.0511 | W86: 84 | Z86: 0
H87: 85 | I87: 0 | J87: 0 | K87: 0 | L87: 0 | P87: 2009 | Q87: 10 | R87: 2009-10 | S87: 176.51 | T87: 267.12 | U87: 1.9941 | W87: 85 | Z87: 0
H88: 86 | I88: 0 | J88: 0 | K88: 0 | L88: 0 | P88: 2009 | Q88: 11 | R88: 2009-11 | S88: 178.12 | T88: 269.06 | U88: 2.0133 | W88: 86 | Z88: 0
H89: 87 | I89: 0 | J89: 0 | K89: 0 | L89: 0 | P89: 2009 | Q89: 12 | R89: 2009-12 | S89: 182.36 | T89: 275.92 | U89: 2.1271 | W89: 87 | Z89: 0
H90: 88 | I90: 0 | J90: 0 | K90: 0 | L90: 0 | P90: 2010 | Q90: 1 | R90: 2010-1 | S90: 180.45 | T90: 266.51 | U90: 2.0372 | W90: 88 | Z90: 0
H91: 89 | I91: 0 | J91: 0 | K91: 0 | L91: 0 | P91: 2010 | Q91: 2 | R91: 2010-2 | S91: 185.48 | T91: 272 | U91: 2.2212 | W91: 89 | Z91: 0
H92: 90 | I92: 0 | J92: 0 | K92: 0 | L92: 0 | P92: 2010 | Q92: 3 | R92: 2010-3 | S92: 182.23 | T92: 265.99 | U92: 2.1403 | W92: 90 | Z92: 0
H93: 91 | I93: 0 | J93: 0 | K93: 0 | L93: 0 | P93: 2010 | Q93: 4 | R93: 2010-4 | S93: 183.95 | T93: 263.63 | U93: 2.0891 | W93: 91 | Z93: 0
H94: 92 | I94: 0 | J94: 0 | K94: 0 | L94: 0 | P94: 2010 | Q94: 5 | R94: 2010-5 | S94: 196.2 | T94: 275.01 | U94: 2.381 | W94: 92 | Z94: 0
H95: 93 | I95: 0 | J95: 0 | K95: 0 | L95: 0 | P95: 2010 | Q95: 6 | R95: 2010-6 | S95: 200.15 | T95: 279.68 | U95: 2.517 | W95: 93 | Z95: 0
H96: 94 | I96: 0 | J96: 0 | K96: 0 | L96: 0 | P96: 2010 | Q96: 7 | R96: 2010-7 | S96: 207.76 | T96: 278.66 | U96: 2.4737 | W96: 94 | Z96: 0
H97: 95 | I97: 0 | J97: 0 | K97: 0 | L97: 0 | P97: 2010 | Q97: 8 | R97: 2010-8 | S97: 206.74 | T97: 279.78 | U97: 2.5339 | W97: 95 | Z97: 0
H98: 96 | I98: 0 | J98: 0 | K98: 0 | L98: 0 | P98: 2010 | Q98: 9 | R98: 2010-9 | S98: 216.2 | T98: 281.71 | U98: 2.5424 | W98: 96 | Z98: 0
H99: 97 | I99: 0 | J99: 0 | K99: 0 | L99: 0 | P99: 2010 | Q99: 10 | R99: 2010-10 | S99: 203.98 | T99: 274.6 | U99: 2.3976 | W99: 97 | Z99: 0
H100: 98 | I100: 0 | J100: 0 | K100: 0 | L100: 0 | P100: 2010 | Q100: 11 | R100: 2010-11 | S100: 206.68 | T100: 276.46 | U100: 2.4456 | W100: 98 | Z100: 0
H101: 99 | I101: 0 | J101: 0 | K101: 0 | L101: 0 | P101: 2010 | Q101: 12 | R101: 2010-12 | S101: 215.62 | T101: 275.71 | U101: 2.4679 | W101: 99 | Z101: 0
H102: 100 | I102: 0 | J102: 0 | K102: 0 | L102: 0 | P102: 2011 | Q102: 1 | R102: 2011-1 | S102: 214.33 | T102: 276 | U102: 2.4921 | W102: 100 | Z102: 0
H103: 101 | I103: 0 | J103: 0 | K103: 0 | L103: 0 | P103: 2011 | Q103: 2 | R103: 2011-2 | S103: 207 | T103: 271.14 | U103: 2.4018 | W103: 101 | Z103: 0
H104: 102 | I104: 0 | J104: 0 | K104: 0 | L104: 0 | P104: 2011 | Q104: 3 | R104: 2011-3 | S104: 212.44 | T104: 273.9 | U104: 2.4018 | W104: 102 | Z104: 0
H105: 103 | I105: 0 | J105: 0 | K105: 0 | L105: 0 | P105: 2011 | Q105: 4 | R105: 2011-4 | S105: 207.17 | T105: 267.35 | U105: 2.2208 | W105: 103 | Z105: 0
H106: 104 | I106: 0 | J106: 0 | K106: 0 | L106: 0 | P106: 2011 | Q106: 5 | R106: 2011-5 | S106: 211.16 | T106: 266.85 | U106: 2.3138 | W106: 104 | Z106: 0
H107: 105 | I107: 0 | J107: 0 | K107: 0 | L107: 0 | P107: 2011 | Q107: 6 | R107: 2011-6 | S107: 217.95 | T107: 265.5 | U107: 2.2939 | W107: 105 | Z107: 0
H108: 106 | I108: 0 | J108: 0 | K108: 0 | L108: 0 | P108: 2011 | Q108: 7 | R108: 2011-7 | S108: 234.31 | T108: 270.82 | U108: 2.417 | W108: 106 | Z108: 0
H109: 107 | I109: 0 | J109: 0 | K109: 0 | L109: 0 | P109: 2011 | Q109: 8 | R109: 2011-8 | S109: 238.09 | T109: 270.8 | U109: 2.4602 | W109: 107 | Z109: 0
H110: 108 | I110: 0 | J110: 0 | K110: 0 | L110: 0 | P110: 2011 | Q110: 9 | R110: 2011-9 | S110: 238.47 | T110: 287.76 | U110: 2.7235 | W110: 108 | Z110: 0
H111: 109 | I111: 0 | J111: 0 | K111: 0 | L111: 0 | P111: 2011 | Q111: 10 | R111: 2011-10 | S111: 235.59 | T111: 291.39 | U111: 2.7446 | W111: 109 | Z111: 0
H112: 110 | I112: 0 | J112: 0 | K112: 0 | L112: 0 | P112: 2011 | Q112: 11 | R112: 2011-11 | S112: 254.98 | T112: 316.23 | U112: 3.0288 | W112: 110 | Z112: 0
H113: 111 | I113: 0 | J113: 0 | K113: 0 | L113: 0 | P113: 2011 | Q113: 12 | R113: 2011-12 | S113: 247.77 | T113: 303.81 | U113: 3.0019 | W113: 111 | Z113: 0
H114: 112 | I114: 0 | J114: 0 | K114: 0 | L114: 0 | P114: 2012 | Q114: 1 | R114: 2012-1 | S114: 255.47 | T114: 309.3 | U114: 3.143 | W114: 112 | Z114: 0
H115: 113 | I115: 0 | J115: 0 | K115: 0 | L115: 0 | P115: 2012 | Q115: 2 | R115: 2012-2 | S115: 240.1 | T115: 290.02 | U115: 2.8047 | W115: 113 | Z115: 0
H116: 114 | I116: 0 | J116: 0 | K116: 0 | L116: 0 | P116: 2012 | Q116: 3 | R116: 2012-3 | S116: 240.98 | T116: 291.72 | U116: 2.6791 | W116: 114 | Z116: 0
H117: 115 | I117: 0 | J117: 0 | K117: 0 | L117: 0 | P117: 2012 | Q117: 4 | R117: 2012-4 | S117: 247.45 | T117: 297.39 | U117: 2.7944 | W117: 115 | Z117: 0
H118: 116 | I118: 0 | J118: 0 | K118: 0 | L118: 0 | P118: 2012 | Q118: 5 | R118: 2012-5 | S118: 243.32 | T118: 292.35 | U118: 2.8462 | W118: 116 | Z118: 0
H119: 117 | I119: 0 | J119: 0 | K119: 0 | L119: 0 | P119: 2012 | Q119: 6 | R119: 2012-6 | S119: 246.32 | T119: 295.85 | U119: 2.9666 | W119: 117 | Z119: 0
H120: 118 | I120: 0 | J120: 0 | K120: 0 | L120: 0 | P120: 2012 | Q120: 7 | R120: 2012-7 | S120: 241.44 | T120: 290.02 | U120: 2.9977 | W120: 118 | Z120: 0
H121: 119 | I121: 0 | J121: 0 | K121: 0 | L121: 0 | P121: 2012 | Q121: 8 | R121: 2012-8 | S121: 232.34 | T121: 279.05 | U121: 2.8658 | W121: 119 | Z121: 0
H122: 120 | I122: 0 | J122: 0 | K122: 0 | L122: 0 | P122: 2012 | Q122: 9 | R122: 2012-9 | S122: 231.49 | T122: 281.44 | U122: 2.776 | W122: 120 | Z122: 0
H123: 121 | I123: 0 | J123: 0 | K123: 0 | L123: 0 | P123: 2012 | Q123: 10 | R123: 2012-10 | S123: 230.68 | T123: 278.99 | U123: 2.7392 | W123: 121 | Z123: 0
H124: 122 | I124: 0 | J124: 0 | K124: 0 | L124: 0 | P124: 2012 | Q124: 11 | R124: 2012-11 | S124: 237.05 | T124: 285.46 | U124: 2.7619 | W124: 122 | Z124: 0
H125: 123 | I125: 0 | J125: 0 | K125: 0 | L125: 0 | P125: =IF(Q124=12,P124+1,P124) -> 2012 | Q125: =IF(Q124=12,1,Q124+1) -> 12 | R125: 2012-12 | S125: 234.79 | T125: 283.79 | U125: 2.588 | W125: 123 | Z125: 0
H126: 124 | I126: 0 | J126: 0 | K126: 0 | L126: 0 | P126: 2013 | Q126: 1 | R126: 2013-1 | S126: 237.9 | T126: 293.75 | U126: 2.4706 | W126: 124 | Z126: 0
H127: 125 | I127: 0 | J127: 0 | K127: 0 | L127: 0 | P127: 2013 | Q127: 2 | R127: 2013-2 | S127: 237.72 | T127: 292.13 | U127: 2.3744 | W127: 125 | Z127: 0
H128: 126 | I128: 0 | J128: 0 | K128: 0 | L128: 0 | P128: 2013 | Q128: 3 | R128: 2013-3 | S128: 247.22 | T128: 305.52 | U128: 2.4473 | W128: 126 | Z128: 0
H129: 127 | I129: 0 | J129: 0 | K129: 0 | L129: 0 | P129: 2013 | Q129: 4 | R129: 2013-4 | S129: 242.8 | T129: 295 | U129: 2.3039 | W129: 127 | Z129: 0
H130: 128 | I130: 0 | J130: 0 | K130: 0 | L130: 0 | P130: 2013 | Q130: 5 | R130: 2013-5 | S130: 233.34 | T130: 291.94 | U130: 2.2085 | W130: 128 | Z130: 0
H131: 129 | I131: 0 | J131: 0 | K131: 0 | L131: 0 | P131: 2013 | Q131: 6 | R131: 2013-6 | S131: 236.53 | T131: 291.37 | U131: 2.3013 | W131: 129 | Z131: 0
H132: 130 | I132: 0 | J132: 0 | K132: =IF(H132>$B$6,0,$B$5) -> 0 | L132: 0 | P132: 2013 | Q132: 7 | R132: 2013-7 | S132: 235.23 | T132: 291.55 | U132: 2.2427 | W132: 130 | Z132: 0 | AB132: =AA132*$X$1 -> 
H133: =+H132+1 -> 131 | I133: =+L132 -> 0 | J133: =I133*$J$2/12 -> 0 | K133: 0 | L133: =I133+J133-K133 -> 0 | P133: 2013 | Q133: 8 | R133: 2013-8 | S133: 240.89 | T133: 298.96 | U133: 2.297 | W133: =+W132+1 -> 131 | X133: =+AA132 ->  | Y133: =X133*$Y$2/12 ->  | Z133: =IF(H133>$B$18,0,$B$17/$X$1) -> 0 | AA133: =X133+Y133-Z133 -> 
H134: 132 | I134: 0 | J134: 0 | K134: 0 | L134: 0 | P134: 2013 | Q134: 9 | R134: 2013-9 | S134: 243.04 | T134: 300.8 | U134: 2.2712 | W134: 132 | Z134: 0
H135: 133 | I135: 0 | J135: 0 | K135: 0 | L135: 0 | P135: =IF(Q134=12,P134+1,P134) -> 2013 | Q135: 10 | R135: =CONCATENATE(P135,"-",Q135) -> 2013-10 | S135: 239.39 | T135: 295.66 | U135: 2.2149 | W135: 133 | Z135: 0
H136: 134 | I136: 0 | J136: 0 | K136: 0 | L136: 0 | P136: 2013 | Q136: 11 | R136: 2013-11 | S136: 241.65 | T136: 298.38 | U136: 2.2121 | W136: 134 | Z136: 0
H137: 135 | I137: 0 | J137: 0 | K137: 0 | L137: 0 | P137: 2013 | Q137: 12 | R137: 2013-12 | S137: 248.05 | T137: 303.24 | U137: 2.1306 | W137: 135 | Z137: 0
H138: 136 | I138: 0 | J138: 0 | K138: 0 | L138: 0 | P138: 2014 | Q138: 1 | R138: 2014-1 | S138: 242.84 | T138: 299.96 | U138: 211.22 | W138: 136 | Z138: 0
H139: 137 | I139: 0 | J139: 0 | K139: 0 | L139: 0 | P139: 2014 | Q139: 2 | R139: 2014-2 | S139: 252.72 | T139: 308.92 | U139: 221.42 | W139: 137 | Z139: 0
H140: 138 | I140: 0 | J140: 0 | K140: 0 | L140: 0 | P140: 2014 | Q140: 3 | R140: 2014-3 | S140: 258.22 | T140: 313.51 | U140: 222.1 | W140: 138 | Z140: 0
H141: 139 | I141: 0 | J141: 0 | K141: 0 | L141: 0 | P141: 2014 | Q141: 4 | R141: 2014-4 | S141: 252.84 | T141: 307.44 | U141: 218.97 | W141: 139 | Z141: 0
H142: 140 | I142: 0 | J142: 0 | K142: 0 | L142: 0 | P142: 2014 | Q142: 5 | R142: 2014-5 | S142: 247.87 | T142: 302.84 | U142: 217.41 | W142: 140 | Z142: 0
H143: 141 | I143: 0 | J143: 0 | K143: 0 | L143: 0 | P143: =IF(Q142=12,P142+1,P142) -> 2014 | Q143: 6 | R143: =CONCATENATE(P143,"-",Q143) -> 2014-6 | S143: 252.5 | T143: 307.48 | U143: 223.05 | W143: 141 | Z143: 0
H144: 142 | I144: 0 | J144: 0 | K144: 0 | L144: 0 | P144: 2014 | Q144: 7 | R144: 2014-7 | S144: 254.81 | T144: 309.43 | U144: 223.97 | W144: 142 | Z144: 0
H145: 143 | I145: 0 | J145: 0 | K145: 0 | L145: 0 | P145: 2014 | Q145: 8 | R145: 2014-8 | S145: 257.62 | T145: 312.14 | U145: 227.42 | W145: 143 | Z145: 0
H146: 144 | I146: 0 | J146: 0 | K146: 0 | L146: 0 | P146: 2014 | Q146: 9 | R146: 2014-9 | S146: 260.22 | T146: 314.93 | U146: 227.16 | W146: 144 | Z146: 0
H147: 145 | I147: 0 | J147: 0 | K147: 0 | L147: 0 | P147: 2014 | Q147: 10 | R147: 2014-10 | S147: 253.5 | T147: 306.09 | U147: 225.71 | W147: 145 | Z147: 0
H148: 146 | I148: 0 | J148: 0 | K148: 0 | L148: 0 | P148: 2014 | Q148: 11 | R148: 2014-11 | S148: 254.53 | T148: 305.95 | U148: 210.99 | W148: 146 | Z148: 0
H149: 147 | I149: 0 | J149: 0 | K149: 0 | L149: 0 | P149: 2014 | Q149: 12 | R149: 2014-12 | S149: 256.33 | T149: 307.86 | U149: 208.96 | W149: 147 | Z149: 0
H150: 148 | I150: 0 | J150: 0 | K150: 0 | L150: 0 | P150: 2015 | Q150: 1 | R150: 2015-1 | S150: 256.33 | T150: 307.86 | U150: 208.96 | W150: 148 | Z150: 0
H151: 149 | I151: 0 | J151: 0 | K151: 0 | L151: 0 | P151: 2015 | Q151: 2 | R151: 2015-2 | S151: 256.33 | T151: 307.86 | U151: 208.96 | W151: 149 | Z151: 0
H152: 150 | I152: 0 | J152: 0 | K152: 0 | L152: 0 | P152: 2015 | Q152: 3 | R152: 2015-3 | S152: 256.33 | T152: 307.86 | U152: 208.96 | W152: 150 | Z152: 0
H153: 151 | I153: 0 | J153: 0 | K153: 0 | L153: 0 | P153: 2015 | Q153: 4 | R153: 2015-4 | S153: 256.33 | T153: 307.86 | U153: 208.96 | W153: 151 | Z153: 0
H154: 152 | I154: 0 | J154: 0 | K154: 0 | L154: 0 | P154: 2015 | Q154: 5 | R154: 2015-5 | S154: 256.33 | T154: 307.86 | U154: 208.96 | W154: 152 | Z154: 0
H155: 153 | I155: 0 | J155: 0 | K155: 0 | L155: 0 | P155: 2015 | Q155: 6 | R155: 2015-6 | S155: 256.33 | T155: 307.86 | U155: 208.96 | W155: 153 | Z155: 0
H156: 154 | I156: 0 | J156: 0 | K156: 0 | L156: 0 | P156: 2015 | Q156: 7 | R156: 2015-7 | S156: 256.33 | T156: 307.86 | U156: 208.96 | W156: 154 | Z156: 0
H157: 155 | I157: 0 | J157: 0 | K157: 0 | L157: 0 | P157: 2015 | Q157: 8 | R157: 2015-8 | S157: 256.33 | T157: 307.86 | U157: 208.96 | W157: 155 | Z157: 0
H158: 156 | I158: 0 | J158: 0 | K158: 0 | L158: 0 | P158: 2015 | Q158: 9 | R158: 2015-9 | S158: 256.33 | T158: 307.86 | U158: 208.96 | W158: 156 | Z158: 0
H159: 157 | I159: 0 | J159: 0 | K159: 0 | L159: 0 | P159: 2015 | Q159: 10 | R159: 2015-10 | S159: 256.33 | T159: 307.86 | U159: 208.96 | W159: 157 | Z159: 0
H160: 158 | I160: 0 | J160: 0 | K160: 0 | L160: 0 | P160: =IF(Q159=12,P159+1,P159) -> 2015 | Q160: 11 | R160: 2015-11 | S160: 256.33 | T160: 307.86 | U160: 208.96 | W160: 158 | Z160: 0
H161: 159 | I161: 0 | J161: 0 | K161: 0 | L161: 0 | P161: 2015 | Q161: 12 | R161: 2015-12 | S161: 256.33 | T161: 307.86 | U161: 208.96 | W161: 159 | Z161: 0
H162: 160 | I162: 0 | J162: 0 | K162: 0 | L162: 0 | W162: 160 | Z162: 0
H163: 161 | I163: 0 | J163: 0 | K163: 0 | L163: 0 | W163: 161 | Z163: 0
H164: 162 | I164: 0 | J164: 0 | K164: 0 | L164: 0 | W164: 162 | Z164: 0
H165: 163 | I165: 0 | J165: 0 | K165: 0 | L165: 0 | W165: 163 | Z165: 0
H166: 164 | I166: 0 | J166: 0 | K166: 0 | L166: 0 | W166: 164 | Z166: 0
H167: 165 | I167: 0 | J167: 0 | K167: 0 | L167: 0 | W167: 165 | Z167: 0
H168: 166 | I168: 0 | J168: 0 | K168: 0 | L168: 0 | W168: 166 | Z168: 0
H169: 167 | I169: 0 | J169: 0 | K169: 0 | L169: 0 | W169: 167 | Z169: 0
H170: 168 | I170: 0 | J170: 0 | K170: 0 | L170: 0 | W170: 168 | Z170: 0
H171: 169 | I171: 0 | J171: 0 | K171: 0 | L171: 0 | W171: 169 | Z171: 0
H172: 170 | I172: 0 | J172: 0 | K172: 0 | L172: 0 | W172: 170 | Z172: 0
H173: 171 | I173: 0 | J173: 0 | K173: 0 | L173: 0 | W173: 171 | Z173: 0
H174: 172 | I174: 0 | J174: 0 | K174: 0 | L174: 0 | W174: 172 | Z174: 0
H175: 173 | I175: 0 | J175: 0 | K175: 0 | L175: 0 | W175: 173 | Z175: 0
H176: 174 | I176: 0 | J176: 0 | K176: 0 | L176: 0 | W176: 174 | Z176: 0
H177: 175 | I177: 0 | J177: 0 | K177: 0 | L177: 0 | W177: 175 | Z177: 0
H178: 176 | I178: 0 | J178: 0 | K178: 0 | L178: 0 | W178: 176 | Z178: 0
H179: 177 | I179: 0 | J179: 0 | K179: 0 | L179: 0 | W179: 177 | Z179: 0
H180: 178 | I180: 0 | J180: 0 | K180: 0 | L180: 0 | W180: 178 | Z180: 0
H181: 179 | I181: 0 | J181: 0 | K181: 0 | L181: 0 | W181: 179 | Z181: 0
H182: 180 | I182: 0 | J182: 0 | K182: 0 | L182: 0 | W182: 180 | Z182: 0
H183: 181 | I183: 0 | J183: 0 | K183: 0 | L183: 0 | W183: 181 | Z183: 0
H184: 182 | I184: 0 | J184: 0 | K184: 0 | L184: 0 | W184: 182 | Z184: 0
H185: 183 | I185: 0 | J185: 0 | K185: 0 | L185: 0 | W185: 183 | Z185: 0
H186: 184 | I186: 0 | J186: 0 | K186: 0 | L186: 0 | W186: 184 | Z186: 0
H187: 185 | I187: 0 | J187: 0 | K187: 0 | L187: 0 | W187: 185 | Z187: 0
H188: 186 | I188: 0 | J188: 0 | K188: 0 | L188: 0 | W188: 186 | Z188: 0
H189: 187 | I189: 0 | J189: 0 | K189: 0 | L189: 0 | W189: 187 | Z189: 0
H190: 188 | I190: 0 | J190: 0 | K190: 0 | L190: 0 | W190: 188 | Z190: 0
H191: 189 | I191: 0 | J191: 0 | K191: 0 | L191: 0 | W191: 189 | Z191: 0
H192: 190 | I192: 0 | J192: 0 | K192: 0 | L192: 0 | W192: 190 | Z192: 0
H193: 191 | I193: 0 | J193: 0 | K193: 0 | L193: 0 | W193: 191 | Z193: 0
H194: 192 | I194: 0 | J194: 0 | K194: 0 | L194: 0 | W194: 192 | Z194: 0
H195: 193 | I195: 0 | J195: 0 | K195: 0 | L195: 0 | W195: 193 | Z195: 0
H196: 194 | I196: 0 | J196: 0 | K196: =IF(H196>$B$6,0,$B$5) -> 0 | L196: 0 | W196: 194 | Z196: 0 | AB196: =AA196*$X$1 -> 
H197: =+H196+1 -> 195 | I197: =+L196 -> 0 | J197: =I197*$J$2/12 -> 0 | K197: 0 | L197: =I197+J197-K197 -> 0 | W197: =+W196+1 -> 195 | X197: =+AA196 ->  | Y197: =X197*$Y$2/12 ->  | Z197: =IF(H197>$B$18,0,$B$17/$X$1) -> 0 | AA197: =X197+Y197-Z197 -> 
H198: 196 | I198: 0 | J198: 0 | K198: 0 | L198: 0 | W198: 196 | Z198: 0
H199: 197 | I199: 0 | J199: 0 | K199: 0 | L199: 0 | W199: 197 | Z199: 0
H200: 198 | I200: 0 | J200: 0 | K200: 0 | L200: 0 | W200: 198 | Z200: 0
... 222 more rows

Sheet THM fiók (hidden)
H1: 0.05541255046 | K1: =IRR(K2:K422) ->  | L1: =((1+K1)^12)-1 ->  | M1: 10
B2: nyitó | C2: kamat | D2: törlesztés | E2: záró | F2: számla | G2: életbizt | H2: =+'Lakás Törlesztéscsökkentő fiók'!B16-'Lakás Törlesztéscsökkentő fiók'!J14-'Lakás Törlesztéscsökkentő fiók'!B20 ->  | I2: =+H2-H422 ->  | K2: =-H2 -> 
A3: 1 | B3: =+'Lakás Törlesztéscsökkentő fiók'!B16 ->  | C3: =B3*'Lakás Törlesztéscsökkentő fiók'!$B$27/12 ->  | D3: =IF(A3>'Lakás Törlesztéscsökkentő fiók'!$J$10,0,'Lakás Törlesztéscsökkentő fiók'!$B$28) -> 0 | E3: =+B3+C3-D3 ->  | F3: =IF(A3>'Lakás Törlesztéscsökkentő fiók'!$J$10,0,'Lakás Törlesztéscsökkentő fiók'!$J$11) -> 0 | G3: =IF(OR(A3>'Lakás Törlesztéscsökkentő fiók'!$J$10,'Lakás Törlesztéscsökkentő fiók'!$B$24='Lakás Törlesztéscsökkentő fiók'!$T$5),0,'Lakás Törlesztéscsökkentő fiók'!$J$12+'Lakás Törlesztéscsökkentő fiók'!$J$13) -> 0 | H3: =(D3+F3+G3)/(1+$H$1)^(A3/12) -> 0 | K3: =D3+F3+G3 -> 0 | L3: =IRR($K$2:K3,0.05) -> 
A4: =+A3+1 -> 2 | B4: =+E3 ->  | C4: =B4*'Lakás Törlesztéscsökkentő fiók'!$B$27/12 ->  | D4: =IF(A4>'Lakás Törlesztéscsökkentő fiók'!$J$10,0,'Lakás Törlesztéscsökkentő fiók'!$B$28) -> 0 | E4: =+B4+C4-D4 ->  | F4: =IF(A4>'Lakás Törlesztéscsökkentő fiók'!$J$10,0,'Lakás Törlesztéscsökkentő fiók'!$J$11) -> 0 | G4: =IF(OR(A4>'Lakás Törlesztéscsökkentő fiók'!$J$10,'Lakás Törlesztéscsökkentő fiók'!$B$24='Lakás Törlesztéscsökkentő fiók'!$T$5),0,'Lakás Törlesztéscsökkentő fiók'!$J$12+'Lakás Törlesztéscsökkentő fiók'!$J$13) -> 0 | H4: =H3+(D4+F4+G4)/(1+$H$1)^(A4/12) -> 0 | K4: =D4+F4+G4 -> 0 | L4: =IRR($K$2:K4,0.05) -> 
A5: =+A4+1 -> 3 | B5: =+E4 ->  | C5: =B5*'Lakás Törlesztéscsökkentő fiók'!$B$27/12 ->  | D5: =IF(A5>'Lakás Törlesztéscsökkentő fiók'!$J$10,0,'Lakás Törlesztéscsökkentő fiók'!$B$28) -> 0 | F5: =IF(A5>'Lakás Törlesztéscsökkentő fiók'!$J$10,0,'Lakás Törlesztéscsökkentő fiók'!$J$11) -> 0 | G5: =IF(OR(A5>'Lakás Törlesztéscsökkentő fiók'!$J$10,'Lakás Törlesztéscsökkentő fiók'!$B$24='Lakás Törlesztéscsökkentő fiók'!$T$5),0,'Lakás Törlesztéscsökkentő fiók'!$J$12+'Lakás Törlesztéscsökkentő fiók'!$J$13) -> 0 | H5: =H4+(D5+F5+G5)/(1+$H$1)^(A5/12) -> 0 | K5: 0 | L5: =IRR($K$2:K5,0.05) -> 
A6: 4 | C6: =B6*'Lakás Törlesztéscsökkentő fiók'!$B$27/12 ->  | D6: =IF(A6>'Lakás Törlesztéscsökkentő fiók'!$J$10,0,'Lakás Törlesztéscsökkentő fiók'!$B$28) -> 0 | F6: =IF(A6>'Lakás Törlesztéscsökkentő fiók'!$J$10,0,'Lakás Törlesztéscsökkentő fiók'!$J$11) -> 0 | G6: =IF(OR(A6>'Lakás Törlesztéscsökkentő fiók'!$J$10,'Lakás Törlesztéscsökkentő fiók'!$B$24='Lakás Törlesztéscsökkentő fiók'!$T$5),0,'Lakás Törlesztéscsökkentő fiók'!$J$12+'Lakás Törlesztéscsökkentő fiók'!$J$13) -> 0 | H6: 0 | K6: 0 | L6: =IRR($K$2:K6,0.05) -> 
A7: 5 | C7: =B7*'Lakás Törlesztéscsökkentő fiók'!$B$27/12 ->  | D7: =IF(A7>'Lakás Törlesztéscsökkentő fiók'!$J$10,0,'Lakás Törlesztéscsökkentő fiók'!$B$28) -> 0 | F7: =IF(A7>'Lakás Törlesztéscsökkentő fiók'!$J$10,0,'Lakás Törlesztéscsökkentő fiók'!$J$11) -> 0 | G7: =IF(OR(A7>'Lakás Törlesztéscsökkentő fiók'!$J$10,'Lakás Törlesztéscsökkentő fiók'!$B$24='Lakás Törlesztéscsökkentő fiók'!$T$5),0,'Lakás Törlesztéscsökkentő fiók'!$J$12+'Lakás Törlesztéscsökkentő fiók'!$J$13) -> 0 | H7: 0 | K7: 0 | L7: =IRR($K$2:K7,0.05) -> 
A8: 6 | C8: =B8*'Lakás Törlesztéscsökkentő fiók'!$B$27/12 ->  | D8: =IF(A8>'Lakás Törlesztéscsökkentő fiók'!$J$10,0,'Lakás Törlesztéscsökkentő fiók'!$B$28) -> 0 | F8: =IF(A8>'Lakás Törlesztéscsökkentő fiók'!$J$10,0,'Lakás Törlesztéscsökkentő fiók'!$J$11) -> 0 | G8: =IF(OR(A8>'Lakás Törlesztéscsökkentő fiók'!$J$10,'Lakás Törlesztéscsökkentő fiók'!$B$24='Lakás Törlesztéscsökkentő fiók'!$T$5),0,'Lakás Törlesztéscsökkentő fiók'!$J$12+'Lakás Törlesztéscsökkentő fiók'!$J$13) -> 0 | H8: 0 | K8: 0 | L8: =IRR($K$2:K8,0.05) -> 
A9: 7 | C9: =B9*'Lakás Törlesztéscsökkentő fiók'!$B$27/12 ->  | D9: =IF(A9>'Lakás Törlesztéscsökkentő fiók'!$J$10,0,'Lakás Törlesztéscsökkentő fiók'!$B$28) -> 0 | F9: =IF(A9>'Lakás Törlesztéscsökkentő fiók'!$J$10,0,'Lakás Törlesztéscsökkentő fiók'!$J$11) -> 0 | G9: =IF(OR(A9>'Lakás Törlesztéscsökkentő fiók'!$J$10,'Lakás Törlesztéscsökkentő fiók'!$B$24='Lakás Törlesztéscsökkentő fiók'!$T$5),0,'Lakás Törlesztéscsökkentő fiók'!$J$12+'Lakás Törlesztéscsökkentő fiók'!$J$13) -> 0 | H9: 0 | K9: 0 | L9: =IRR($K$2:K9,0.05) -> 
A10: 8 | C10: =B10*'Lakás Törlesztéscsökkentő fiók'!$B$27/12 ->  | D10: =IF(A10>'Lakás Törlesztéscsökkentő fiók'!$J$10,0,'Lakás Törlesztéscsökkentő fiók'!$B$28) -> 0 | F10: =IF(A10>'Lakás Törlesztéscsökkentő fiók'!$J$10,0,'Lakás Törlesztéscsökkentő fiók'!$J$11) -> 0 | G10: =IF(OR(A10>'Lakás Törlesztéscsökkentő fiók'!$J$10,'Lakás Törlesztéscsökkentő fiók'!$B$24='Lakás Törlesztéscsökkentő fiók'!$T$5),0,'Lakás Törlesztéscsökkentő fiók'!$J$12+'Lakás Törlesztéscsökkentő fiók'!$J$13) -> 0 | H10: 0 | K10: 0 | L10: =IRR($K$2:K10,0.05) -> 
A11: 9 | C11: =B11*'Lakás Törlesztéscsökkentő fiók'!$B$27/12 ->  | D11: =IF(A11>'Lakás Törlesztéscsökkentő fiók'!$J$10,0,'Lakás Törlesztéscsökkentő fiók'!$B$28) -> 0 | F11: =IF(A11>'Lakás Törlesztéscsökkentő fiók'!$J$10,0,'Lakás Törlesztéscsökkentő fiók'!$J$11) -> 0 | G11: =IF(OR(A11>'Lakás Törlesztéscsökkentő fiók'!$J$10,'Lakás Törlesztéscsökkentő fiók'!$B$24='Lakás Törlesztéscsökkentő fiók'!$T$5),0,'Lakás Törlesztéscsökkentő fiók'!$J$12+'Lakás Törlesztéscsökkentő fiók'!$J$13) -> 0 | H11: 0 | K11: 0 | L11: =IRR($K$2:K11,0.05) -> 
A12: 10 | C12: =B12*'Lakás Törlesztéscsökkentő fiók'!$B$27/12 ->  | D12: =IF(A12>'Lakás Törlesztéscsökkentő fiók'!$J$10,0,'Lakás Törlesztéscsökkentő fiók'!$B$28) -> 0 | F12: =IF(A12>'Lakás Törlesztéscsökkentő fiók'!$J$10,0,'Lakás Törlesztéscsökkentő fiók'!$J$11) -> 0 | G12: =IF(OR(A12>'Lakás Törlesztéscsökkentő fiók'!$J$10,'Lakás Törlesztéscsökkentő fiók'!$B$24='Lakás Törlesztéscsökkentő fiók'!$T$5),0,'Lakás Törlesztéscsökkentő fiók'!$J$12+'Lakás Törlesztéscsökkentő fiók'!$J$13) -> 0 | H12: 0 | K12: 0 | L12: =IRR($K$2:K12,0.05) -> 
A13: 11 | C13: =B13*'Lakás Törlesztéscsökkentő fiók'!$B$27/12 ->  | D13: =IF(A13>'Lakás Törlesztéscsökkentő fiók'!$J$10,0,'Lakás Törlesztéscsökkentő fiók'!$B$28) -> 0 | F13: =IF(A13>'Lakás Törlesztéscsökkentő fiók'!$J$10,0,'Lakás Törlesztéscsökkentő fiók'!$J$11) -> 0 | G13: =IF(OR(A13>'Lakás Törlesztéscsökkentő fiók'!$J$10,'Lakás Törlesztéscsökkentő fiók'!$B$24='Lakás Törlesztéscsökkentő fiók'!$T$5),0,'Lakás Törlesztéscsökkentő fiók'!$J$12+'Lakás Törlesztéscsökkentő fiók'!$J$13) -> 0 | H13: 0 | K13: 0 | L13: =IRR($K$2:K13,0.05) -> 
A14: 12 | C14: =B14*'Lakás Törlesztéscsökkentő fiók'!$B$27/12 ->  | D14: =IF(A14>'Lakás Törlesztéscsökkentő fiók'!$J$10,0,'Lakás Törlesztéscsökkentő fiók'!$B$28) -> 0 | F14: =IF(A14>'Lakás Törlesztéscsökkentő fiók'!$J$10,0,'Lakás Törlesztéscsökkentő fiók'!$J$11) -> 0 | G14: =IF(OR(A14>'Lakás Törlesztéscsökkentő fiók'!$J$10,'Lakás Törlesztéscsökkentő fiók'!$B$24='Lakás Törlesztéscsökkentő fiók'!$T$5),0,'Lakás Törlesztéscsökkentő fiók'!$J$12+'Lakás Törlesztéscsökkentő fiók'!$J$13) -> 0 | H14: 0 | K14: 0 | L14: =IRR($K$2:K14,0.05) -> 
A15: 13 | C15: =B15*'Lakás Törlesztéscsökkentő fiók'!$B$27/12 ->  | D15: =IF(A15>'Lakás Törlesztéscsökkentő fiók'!$J$10,0,'Lakás Törlesztéscsökkentő fiók'!$B$28) -> 0 | F15: =IF(A15>'Lakás Törlesztéscsökkentő fiók'!$J$10,0,'Lakás Törlesztéscsökkentő fiók'!$J$11) -> 0 | G15: =IF(OR(A15>'Lakás Törlesztéscsökkentő fiók'!$J$10,'Lakás Törlesztéscsökkentő fiók'!$B$24='Lakás Törlesztéscsökkentő fiók'!$T$5),0,'Lakás Törlesztéscsökkentő fiók'!$J$12+'Lakás Törlesztéscsökkentő fiók'!$J$13) -> 0 | H15: 0 | K15: 0 | L15: =IRR($K$2:K15,0.05) -> 
A16: 14 | C16: =B16*'Lakás Törlesztéscsökkentő fiók'!$B$27/12 ->  | D16: =IF(A16>'Lakás Törlesztéscsökkentő fiók'!$J$10,0,'Lakás Törlesztéscsökkentő fiók'!$B$28) -> 0 | F16: =IF(A16>'Lakás Törlesztéscsökkentő fiók'!$J$10,0,'Lakás Törlesztéscsökkentő fiók'!$J$11) -> 0 | G16: =IF(OR(A16>'Lakás Törlesztéscsökkentő fiók'!$J$10,'Lakás Törlesztéscsökkentő fiók'!$B$24='Lakás Törlesztéscsökkentő fiók'!$T$5),0,'Lakás Törlesztéscsökkentő fiók'!$J$12+'Lakás Törlesztéscsökkentő fiók'!$J$13) -> 0 | H16: 0 | K16: 0 | L16: =IRR($K$2:K16,0.05) -> 
A17: 15 | C17: =B17*'Lakás Törlesztéscsökkentő fiók'!$B$27/12 ->  | D17: =IF(A17>'Lakás Törlesztéscsökkentő fiók'!$J$10,0,'Lakás Törlesztéscsökkentő fiók'!$B$28) -> 0 | F17: =IF(A17>'Lakás Törlesztéscsökkentő fiók'!$J$10,0,'Lakás Törlesztéscsökkentő fiók'!$J$11) -> 0 | G17: =IF(OR(A17>'Lakás Törlesztéscsökkentő fiók'!$J$10,'Lakás Törlesztéscsökkentő fiók'!$B$24='Lakás Törlesztéscsökkentő fiók'!$T$5),0,'Lakás Törlesztéscsökkentő fiók'!$J$12+'Lakás Törlesztéscsökkentő fiók'!$J$13) -> 0 | H17: 0 | K17: 0 | L17: =IRR($K$2:K17,0.05) -> 
A18: 16 | C18: =B18*'Lakás Törlesztéscsökkentő fiók'!$B$27/12 ->  | D18: =IF(A18>'Lakás Törlesztéscsökkentő fiók'!$J$10,0,'Lakás Törlesztéscsökkentő fiók'!$B$28) -> 0 | F18: =IF(A18>'Lakás Törlesztéscsökkentő fiók'!$J$10,0,'Lakás Törlesztéscsökkentő fiók'!$J$11) -> 0 | G18: =IF(OR(A18>'Lakás Törlesztéscsökkentő fiók'!$J$10,'Lakás Törlesztéscsökkentő fiók'!$B$24='Lakás Törlesztéscsökkentő fiók'!$T$5),0,'Lakás Törlesztéscsökkentő fiók'!$J$12+'Lakás Törlesztéscsökkentő fiók'!$J$13) -> 0 | H18: 0 | K18: 0 | L18: =IRR($K$2:K18,0.05) -> 
A19: 17 | C19: =B19*'Lakás Törlesztéscsökkentő fiók'!$B$27/12 ->  | D19: =IF(A19>'Lakás Törlesztéscsökkentő fiók'!$J$10,0,'Lakás Törlesztéscsökkentő fiók'!$B$28) -> 0 | F19: =IF(A19>'Lakás Törlesztéscsökkentő fiók'!$J$10,0,'Lakás Törlesztéscsökkentő fiók'!$J$11) -> 0 | G19: =IF(OR(A19>'Lakás Törlesztéscsökkentő fiók'!$J$10,'Lakás Törlesztéscsökkentő fiók'!$B$24='Lakás Törlesztéscsökkentő fiók'!$T$5),0,'Lakás Törlesztéscsökkentő fiók'!$J$12+'Lakás Törlesztéscsökkentő fiók'!$J$13) -> 0 | H19: 0 | K19: 0 | L19: =IRR($K$2:K19,0.05) -> 
A20: 18 | C20: =B20*'Lakás Törlesztéscsökkentő fiók'!$B$27/12 ->  | D20: =IF(A20>'Lakás Törlesztéscsökkentő fiók'!$J$10,0,'Lakás Törlesztéscsökkentő fiók'!$B$28) -> 0 | F20: =IF(A20>'Lakás Törlesztéscsökkentő fiók'!$J$10,0,'Lakás Törlesztéscsökkentő fiók'!$J$11) -> 0 | G20: =IF(OR(A20>'Lakás Törlesztéscsökkentő fiók'!$J$10,'Lakás Törlesztéscsökkentő fiók'!$B$24='Lakás Törlesztéscsökkentő fiók'!$T$5),0,'Lakás Törlesztéscsökkentő fiók'!$J$12+'Lakás Törlesztéscsökkentő fiók'!$J$13) -> 0 | H20: 0 | K20: 0 | L20: =IRR($K$2:K20,0.05) -> 
A21: 19 | C21: =B21*'Lakás Törlesztéscsökkentő fiók'!$B$27/12 ->  | D21: =IF(A21>'Lakás Törlesztéscsökkentő fiók'!$J$10,0,'Lakás Törlesztéscsökkentő fiók'!$B$28) -> 0 | F21: =IF(A21>'Lakás Törlesztéscsökkentő fiók'!$J$10,0,'Lakás Törlesztéscsökkentő fiók'!$J$11) -> 0 | G21: =IF(OR(A21>'Lakás Törlesztéscsökkentő fiók'!$J$10,'Lakás Törlesztéscsökkentő fiók'!$B$24='Lakás Törlesztéscsökkentő fiók'!$T$5),0,'Lakás Törlesztéscsökkentő fiók'!$J$12+'Lakás Törlesztéscsökkentő fiók'!$J$13) -> 0 | H21: 0 | K21: 0 | L21: =IRR($K$2:K21,0.05) -> 
A22: 20 | C22: =B22*'Lakás Törlesztéscsökkentő fiók'!$B$27/12 ->  | D22: =IF(A22>'Lakás Törlesztéscsökkentő fiók'!$J$10,0,'Lakás Törlesztéscsökkentő fiók'!$B$28) -> 0 | F22: =IF(A22>'Lakás Törlesztéscsökkentő fiók'!$J$10,0,'Lakás Törlesztéscsökkentő fiók'!$J$11) -> 0 | G22: =IF(OR(A22>'Lakás Törlesztéscsökkentő fiók'!$J$10,'Lakás Törlesztéscsökkentő fiók'!$B$24='Lakás Törlesztéscsökkentő fiók'!$T$5),0,'Lakás Törlesztéscsökkentő fiók'!$J$12+'Lakás Törlesztéscsökkentő fiók'!$J$13) -> 0 | H22: 0 | K22: 0 | L22: =IRR($K$2:K22,0.05) -> 
A23: 21 | C23: =B23*'Lakás Törlesztéscsökkentő fiók'!$B$27/12 ->  | D23: =IF(A23>'Lakás Törlesztéscsökkentő fiók'!$J$10,0,'Lakás Törlesztéscsökkentő fiók'!$B$28) -> 0 | F23: =IF(A23>'Lakás Törlesztéscsökkentő fiók'!$J$10,0,'Lakás Törlesztéscsökkentő fiók'!$J$11) -> 0 | G23: =IF(OR(A23>'Lakás Törlesztéscsökkentő fiók'!$J$10,'Lakás Törlesztéscsökkentő fiók'!$B$24='Lakás Törlesztéscsökkentő fiók'!$T$5),0,'Lakás Törlesztéscsökkentő fiók'!$J$12+'Lakás Törlesztéscsökkentő fiók'!$J$13) -> 0 | H23: 0 | K23: 0 | L23: =IRR($K$2:K23,0.05) -> 
A24: 22 | C24: =B24*'Lakás Törlesztéscsökkentő fiók'!$B$27/12 ->  | D24: =IF(A24>'Lakás Törlesztéscsökkentő fiók'!$J$10,0,'Lakás Törlesztéscsökkentő fiók'!$B$28) -> 0 | F24: =IF(A24>'Lakás Törlesztéscsökkentő fiók'!$J$10,0,'Lakás Törlesztéscsökkentő fiók'!$J$11) -> 0 | G24: =IF(OR(A24>'Lakás Törlesztéscsökkentő fiók'!$J$10,'Lakás Törlesztéscsökkentő fiók'!$B$24='Lakás Törlesztéscsökkentő fiók'!$T$5),0,'Lakás Törlesztéscsökkentő fiók'!$J$12+'Lakás Törlesztéscsökkentő fiók'!$J$13) -> 0 | H24: 0 | K24: 0 | L24: =IRR($K$2:K24,0.05) -> 
A25: 23 | C25: =B25*'Lakás Törlesztéscsökkentő fiók'!$B$27/12 ->  | D25: =IF(A25>'Lakás Törlesztéscsökkentő fiók'!$J$10,0,'Lakás Törlesztéscsökkentő fiók'!$B$28) -> 0 | F25: =IF(A25>'Lakás Törlesztéscsökkentő fiók'!$J$10,0,'Lakás Törlesztéscsökkentő fiók'!$J$11) -> 0 | G25: =IF(OR(A25>'Lakás Törlesztéscsökkentő fiók'!$J$10,'Lakás Törlesztéscsökkentő fiók'!$B$24='Lakás Törlesztéscsökkentő fiók'!$T$5),0,'Lakás Törlesztéscsökkentő fiók'!$J$12+'Lakás Törlesztéscsökkentő fiók'!$J$13) -> 0 | H25: 0 | K25: 0 | L25: =IRR($K$2:K25,0.05) -> 
A26: 24 | C26: =B26*'Lakás Törlesztéscsökkentő fiók'!$B$27/12 ->  | D26: =IF(A26>'Lakás Törlesztéscsökkentő fiók'!$J$10,0,'Lakás Törlesztéscsökkentő fiók'!$B$28) -> 0 | F26: =IF(A26>'Lakás Törlesztéscsökkentő fiók'!$J$10,0,'Lakás Törlesztéscsökkentő fiók'!$J$11) -> 0 | G26: =IF(OR(A26>'Lakás Törlesztéscsökkentő fiók'!$J$10,'Lakás Törlesztéscsökkentő fiók'!$B$24='Lakás Törlesztéscsökkentő fiók'!$T$5),0,'Lakás Törlesztéscsökkentő fiók'!$J$12+'Lakás Törlesztéscsökkentő fiók'!$J$13) -> 0 | H26: 0 | K26: 0 | L26: =IRR($K$2:K26,0.05) -> 
A27: 25 | C27: =B27*'Lakás Törlesztéscsökkentő fiók'!$B$27/12 ->  | D27: =IF(A27>'Lakás Törlesztéscsökkentő fiók'!$J$10,0,'Lakás Törlesztéscsökkentő fiók'!$B$28) -> 0 | F27: =IF(A27>'Lakás Törlesztéscsökkentő fiók'!$J$10,0,'Lakás Törlesztéscsökkentő fiók'!$J$11) -> 0 | G27: =IF(OR(A27>'Lakás Törlesztéscsökkentő fiók'!$J$10,'Lakás Törlesztéscsökkentő fiók'!$B$24='Lakás Törlesztéscsökkentő fiók'!$T$5),0,'Lakás Törlesztéscsökkentő fiók'!$J$12+'Lakás Törlesztéscsökkentő fiók'!$J$13) -> 0 | H27: 0 | K27: 0 | L27: =IRR($K$2:K27,0.05) -> 
A28: 26 | C28: =B28*'Lakás Törlesztéscsökkentő fiók'!$B$27/12 ->  | D28: =IF(A28>'Lakás Törlesztéscsökkentő fiók'!$J$10,0,'Lakás Törlesztéscsökkentő fiók'!$B$28) -> 0 | F28: =IF(A28>'Lakás Törlesztéscsökkentő fiók'!$J$10,0,'Lakás Törlesztéscsökkentő fiók'!$J$11) -> 0 | G28: =IF(OR(A28>'Lakás Törlesztéscsökkentő fiók'!$J$10,'Lakás Törlesztéscsökkentő fiók'!$B$24='Lakás Törlesztéscsökkentő fiók'!$T$5),0,'Lakás Törlesztéscsökkentő fiók'!$J$12+'Lakás Törlesztéscsökkentő fiók'!$J$13) -> 0 | H28: 0 | K28: 0 | L28: =IRR($K$2:K28,0.05) -> 
A29: 27 | C29: =B29*'Lakás Törlesztéscsökkentő fiók'!$B$27/12 ->  | D29: =IF(A29>'Lakás Törlesztéscsökkentő fiók'!$J$10,0,'Lakás Törlesztéscsökkentő fiók'!$B$28) -> 0 | F29: =IF(A29>'Lakás Törlesztéscsökkentő fiók'!$J$10,0,'Lakás Törlesztéscsökkentő fiók'!$J$11) -> 0 | G29: =IF(OR(A29>'Lakás Törlesztéscsökkentő fiók'!$J$10,'Lakás Törlesztéscsökkentő fiók'!$B$24='Lakás Törlesztéscsökkentő fiók'!$T$5),0,'Lakás Törlesztéscsökkentő fiók'!$J$12+'Lakás Törlesztéscsökkentő fiók'!$J$13) -> 0 | H29: 0 | K29: 0 | L29: =IRR($K$2:K29,0.05) -> 
A30: 28 | C30: =B30*'Lakás Törlesztéscsökkentő fiók'!$B$27/12 ->  | D30: =IF(A30>'Lakás Törlesztéscsökkentő fiók'!$J$10,0,'Lakás Törlesztéscsökkentő fiók'!$B$28) -> 0 | F30: =IF(A30>'Lakás Törlesztéscsökkentő fiók'!$J$10,0,'Lakás Törlesztéscsökkentő fiók'!$J$11) -> 0 | G30: =IF(OR(A30>'Lakás Törlesztéscsökkentő fiók'!$J$10,'Lakás Törlesztéscsökkentő fiók'!$B$24='Lakás Törlesztéscsökkentő fiók'!$T$5),0,'Lakás Törlesztéscsökkentő fiók'!$J$12+'Lakás Törlesztéscsökkentő fiók'!$J$13) -> 0 | H30: 0 | K30: 0 | L30: =IRR($K$2:K30,0.05) -> 
A31: 29 | C31: =B31*'Lakás Törlesztéscsökkentő fiók'!$B$27/12 ->  | D31: =IF(A31>'Lakás Törlesztéscsökkentő fiók'!$J$10,0,'Lakás Törlesztéscsökkentő fiók'!$B$28) -> 0 | F31: =IF(A31>'Lakás Törlesztéscsökkentő fiók'!$J$10,0,'Lakás Törlesztéscsökkentő fiók'!$J$11) -> 0 | G31: =IF(OR(A31>'Lakás Törlesztéscsökkentő fiók'!$J$10,'Lakás Törlesztéscsökkentő fiók'!$B$24='Lakás Törlesztéscsökkentő fiók'!$T$5),0,'Lakás Törlesztéscsökkentő fiók'!$J$12+'Lakás Törlesztéscsökkentő fiók'!$J$13) -> 0 | H31: 0 | K31: 0 | L31: =IRR($K$2:K31,0.05) -> 
A32: 30 | C32: =B32*'Lakás Törlesztéscsökkentő fiók'!$B$27/12 ->  | D32: =IF(A32>'Lakás Törlesztéscsökkentő fiók'!$J$10,0,'Lakás Törlesztéscsökkentő fiók'!$B$28) -> 0 | F32: =IF(A32>'Lakás Törlesztéscsökkentő fiók'!$J$10,0,'Lakás Törlesztéscsökkentő fiók'!$J$11) -> 0 | G32: =IF(OR(A32>'Lakás Törlesztéscsökkentő fiók'!$J$10,'Lakás Törlesztéscsökkentő fiók'!$B$24='Lakás Törlesztéscsökkentő fiók'!$T$5),0,'Lakás Törlesztéscsökkentő fiók'!$J$12+'Lakás Törlesztéscsökkentő fiók'!$J$13) -> 0 | H32: 0 | K32: 0 | L32: =IRR($K$2:K32,0.05) -> 
A33: 31 | C33: =B33*'Lakás Törlesztéscsökkentő fiók'!$B$27/12 ->  | D33: =IF(A33>'Lakás Törlesztéscsökkentő fiók'!$J$10,0,'Lakás Törlesztéscsökkentő fiók'!$B$28) -> 0 | F33: =IF(A33>'Lakás Törlesztéscsökkentő fiók'!$J$10,0,'Lakás Törlesztéscsökkentő fiók'!$J$11) -> 0 | G33: =IF(OR(A33>'Lakás Törlesztéscsökkentő fiók'!$J$10,'Lakás Törlesztéscsökkentő fiók'!$B$24='Lakás Törlesztéscsökkentő fiók'!$T$5),0,'Lakás Törlesztéscsökkentő fiók'!$J$12+'Lakás Törlesztéscsökkentő fiók'!$J$13) -> 0 | H33: 0 | K33: 0 | L33: =IRR($K$2:K33,0.05) -> 
A34: 32 | C34: =B34*'Lakás Törlesztéscsökkentő fiók'!$B$27/12 ->  | D34: =IF(A34>'Lakás Törlesztéscsökkentő fiók'!$J$10,0,'Lakás Törlesztéscsökkentő fiók'!$B$28) -> 0 | F34: =IF(A34>'Lakás Törlesztéscsökkentő fiók'!$J$10,0,'Lakás Törlesztéscsökkentő fiók'!$J$11) -> 0 | G34: =IF(OR(A34>'Lakás Törlesztéscsökkentő fiók'!$J$10,'Lakás Törlesztéscsökkentő fiók'!$B$24='Lakás Törlesztéscsökkentő fiók'!$T$5),0,'Lakás Törlesztéscsökkentő fiók'!$J$12+'Lakás Törlesztéscsökkentő fiók'!$J$13) -> 0 | H34: 0 | K34: 0 | L34: =IRR($K$2:K34,0.05) -> 
A35: 33 | C35: =B35*'Lakás Törlesztéscsökkentő fiók'!$B$27/12 ->  | D35: =IF(A35>'Lakás Törlesztéscsökkentő fiók'!$J$10,0,'Lakás Törlesztéscsökkentő fiók'!$B$28) -> 0 | F35: =IF(A35>'Lakás Törlesztéscsökkentő fiók'!$J$10,0,'Lakás Törlesztéscsökkentő fiók'!$J$11) -> 0 | G35: =IF(OR(A35>'Lakás Törlesztéscsökkentő fiók'!$J$10,'Lakás Törlesztéscsökkentő fiók'!$B$24='Lakás Törlesztéscsökkentő fiók'!$T$5),0,'Lakás Törlesztéscsökkentő fiók'!$J$12+'Lakás Törlesztéscsökkentő fiók'!$J$13) -> 0 | H35: 0 | K35: 0 | L35: =IRR($K$2:K35,0.05) -> 
A36: 34 | C36: =B36*'Lakás Törlesztéscsökkentő fiók'!$B$27/12 ->  | D36: =IF(A36>'Lakás Törlesztéscsökkentő fiók'!$J$10,0,'Lakás Törlesztéscsökkentő fiók'!$B$28) -> 0 | F36: =IF(A36>'Lakás Törlesztéscsökkentő fiók'!$J$10,0,'Lakás Törlesztéscsökkentő fiók'!$J$11) -> 0 | G36: =IF(OR(A36>'Lakás Törlesztéscsökkentő fiók'!$J$10,'Lakás Törlesztéscsökkentő fiók'!$B$24='Lakás Törlesztéscsökkentő fiók'!$T$5),0,'Lakás Törlesztéscsökkentő fiók'!$J$12+'Lakás Törlesztéscsökkentő fiók'!$J$13) -> 0 | H36: 0 | K36: 0 | L36: =IRR($K$2:K36,0.05) -> 
A37: 35 | C37: =B37*'Lakás Törlesztéscsökkentő fiók'!$B$27/12 ->  | D37: =IF(A37>'Lakás Törlesztéscsökkentő fiók'!$J$10,0,'Lakás Törlesztéscsökkentő fiók'!$B$28) -> 0 | F37: =IF(A37>'Lakás Törlesztéscsökkentő fiók'!$J$10,0,'Lakás Törlesztéscsökkentő fiók'!$J$11) -> 0 | G37: =IF(OR(A37>'Lakás Törlesztéscsökkentő fiók'!$J$10,'Lakás Törlesztéscsökkentő fiók'!$B$24='Lakás Törlesztéscsökkentő fiók'!$T$5),0,'Lakás Törlesztéscsökkentő fiók'!$J$12+'Lakás Törlesztéscsökkentő fiók'!$J$13) -> 0 | H37: 0 | K37: 0 | L37: =IRR($K$2:K37,0.05) -> 
A38: 36 | C38: =B38*'Lakás Törlesztéscsökkentő fiók'!$B$27/12 ->  | D38: =IF(A38>'Lakás Törlesztéscsökkentő fiók'!$J$10,0,'Lakás Törlesztéscsökkentő fiók'!$B$28) -> 0 | F38: =IF(A38>'Lakás Törlesztéscsökkentő fiók'!$J$10,0,'Lakás Törlesztéscsökkentő fiók'!$J$11) -> 0 | G38: =IF(OR(A38>'Lakás Törlesztéscsökkentő fiók'!$J$10,'Lakás Törlesztéscsökkentő fiók'!$B$24='Lakás Törlesztéscsökkentő fiók'!$T$5),0,'Lakás Törlesztéscsökkentő fiók'!$J$12+'Lakás Törlesztéscsökkentő fiók'!$J$13) -> 0 | H38: 0 | K38: 0 | L38: =IRR($K$2:K38,0.05) -> 
A39: 37 | C39: =B39*'Lakás Törlesztéscsökkentő fiók'!$B$27/12 ->  | D39: =IF(A39>'Lakás Törlesztéscsökkentő fiók'!$J$10,0,'Lakás Törlesztéscsökkentő fiók'!$B$28) -> 0 | F39: =IF(A39>'Lakás Törlesztéscsökkentő fiók'!$J$10,0,'Lakás Törlesztéscsökkentő fiók'!$J$11) -> 0 | G39: =IF(OR(A39>'Lakás Törlesztéscsökkentő fiók'!$J$10,'Lakás Törlesztéscsökkentő fiók'!$B$24='Lakás Törlesztéscsökkentő fiók'!$T$5),0,'Lakás Törlesztéscsökkentő fiók'!$J$12+'Lakás Törlesztéscsökkentő fiók'!$J$13) -> 0 | H39: 0 | K39: 0 | L39: =IRR($K$2:K39,0.05) -> 
A40: 38 | C40: =B40*'Lakás Törlesztéscsökkentő fiók'!$B$27/12 ->  | D40: =IF(A40>'Lakás Törlesztéscsökkentő fiók'!$J$10,0,'Lakás Törlesztéscsökkentő fiók'!$B$28) -> 0 | F40: =IF(A40>'Lakás Törlesztéscsökkentő fiók'!$J$10,0,'Lakás Törlesztéscsökkentő fiók'!$J$11) -> 0 | G40: =IF(OR(A40>'Lakás Törlesztéscsökkentő fiók'!$J$10,'Lakás Törlesztéscsökkentő fiók'!$B$24='Lakás Törlesztéscsökkentő fiók'!$T$5),0,'Lakás Törlesztéscsökkentő fiók'!$J$12+'Lakás Törlesztéscsökkentő fiók'!$J$13) -> 0 | H40: 0 | K40: 0 | L40: =IRR($K$2:K40,0.05) -> 
A41: 39 | C41: =B41*'Lakás Törlesztéscsökkentő fiók'!$B$27/12 ->  | D41: =IF(A41>'Lakás Törlesztéscsökkentő fiók'!$J$10,0,'Lakás Törlesztéscsökkentő fiók'!$B$28) -> 0 | F41: =IF(A41>'Lakás Törlesztéscsökkentő fiók'!$J$10,0,'Lakás Törlesztéscsökkentő fiók'!$J$11) -> 0 | G41: =IF(OR(A41>'Lakás Törlesztéscsökkentő fiók'!$J$10,'Lakás Törlesztéscsökkentő fiók'!$B$24='Lakás Törlesztéscsökkentő fiók'!$T$5),0,'Lakás Törlesztéscsökkentő fiók'!$J$12+'Lakás Törlesztéscsökkentő fiók'!$J$13) -> 0 | H41: 0 | K41: 0 | L41: =IRR($K$2:K41,0.05) -> 
A42: 40 | C42: =B42*'Lakás Törlesztéscsökkentő fiók'!$B$27/12 ->  | D42: =IF(A42>'Lakás Törlesztéscsökkentő fiók'!$J$10,0,'Lakás Törlesztéscsökkentő fiók'!$B$28) -> 0 | F42: =IF(A42>'Lakás Törlesztéscsökkentő fiók'!$J$10,0,'Lakás Törlesztéscsökkentő fiók'!$J$11) -> 0 | G42: =IF(OR(A42>'Lakás Törlesztéscsökkentő fiók'!$J$10,'Lakás Törlesztéscsökkentő fiók'!$B$24='Lakás Törlesztéscsökkentő fiók'!$T$5),0,'Lakás Törlesztéscsökkentő fiók'!$J$12+'Lakás Törlesztéscsökkentő fiók'!$J$13) -> 0 | H42: 0 | K42: 0 | L42: =IRR($K$2:K42,0.05) -> 
A43: 41 | C43: =B43*'Lakás Törlesztéscsökkentő fiók'!$B$27/12 ->  | D43: =IF(A43>'Lakás Törlesztéscsökkentő fiók'!$J$10,0,'Lakás Törlesztéscsökkentő fiók'!$B$28) -> 0 | F43: =IF(A43>'Lakás Törlesztéscsökkentő fiók'!$J$10,0,'Lakás Törlesztéscsökkentő fiók'!$J$11) -> 0 | G43: =IF(OR(A43>'Lakás Törlesztéscsökkentő fiók'!$J$10,'Lakás Törlesztéscsökkentő fiók'!$B$24='Lakás Törlesztéscsökkentő fiók'!$T$5),0,'Lakás Törlesztéscsökkentő fiók'!$J$12+'Lakás Törlesztéscsökkentő fiók'!$J$13) -> 0 | H43: 0 | K43: 0 | L43: =IRR($K$2:K43,0.05) -> 
A44: 42 | C44: =B44*'Lakás Törlesztéscsökkentő fiók'!$B$27/12 ->  | D44: =IF(A44>'Lakás Törlesztéscsökkentő fiók'!$J$10,0,'Lakás Törlesztéscsökkentő fiók'!$B$28) -> 0 | F44: =IF(A44>'Lakás Törlesztéscsökkentő fiók'!$J$10,0,'Lakás Törlesztéscsökkentő fiók'!$J$11) -> 0 | G44: =IF(OR(A44>'Lakás Törlesztéscsökkentő fiók'!$J$10,'Lakás Törlesztéscsökkentő fiók'!$B$24='Lakás Törlesztéscsökkentő fiók'!$T$5),0,'Lakás Törlesztéscsökkentő fiók'!$J$12+'Lakás Törlesztéscsökkentő fiók'!$J$13) -> 0 | H44: 0 | K44: 0 | L44: =IRR($K$2:K44,0.05) -> 
A45: 43 | C45: =B45*'Lakás Törlesztéscsökkentő fiók'!$B$27/12 ->  | D45: =IF(A45>'Lakás Törlesztéscsökkentő fiók'!$J$10,0,'Lakás Törlesztéscsökkentő fiók'!$B$28) -> 0 | F45: =IF(A45>'Lakás Törlesztéscsökkentő fiók'!$J$10,0,'Lakás Törlesztéscsökkentő fiók'!$J$11) -> 0 | G45: =IF(OR(A45>'Lakás Törlesztéscsökkentő fiók'!$J$10,'Lakás Törlesztéscsökkentő fiók'!$B$24='Lakás Törlesztéscsökkentő fiók'!$T$5),0,'Lakás Törlesztéscsökkentő fiók'!$J$12+'Lakás Törlesztéscsökkentő fiók'!$J$13) -> 0 | H45: 0 | K45: 0 | L45: =IRR($K$2:K45,0.05) -> 
A46: 44 | C46: =B46*'Lakás Törlesztéscsökkentő fiók'!$B$27/12 ->  | D46: =IF(A46>'Lakás Törlesztéscsökkentő fiók'!$J$10,0,'Lakás Törlesztéscsökkentő fiók'!$B$28) -> 0 | F46: =IF(A46>'Lakás Törlesztéscsökkentő fiók'!$J$10,0,'Lakás Törlesztéscsökkentő fiók'!$J$11) -> 0 | G46: =IF(OR(A46>'Lakás Törlesztéscsökkentő fiók'!$J$10,'Lakás Törlesztéscsökkentő fiók'!$B$24='Lakás Törlesztéscsökkentő fiók'!$T$5),0,'Lakás Törlesztéscsökkentő fiók'!$J$12+'Lakás Törlesztéscsökkentő fiók'!$J$13) -> 0 | H46: 0 | K46: 0 | L46: =IRR($K$2:K46,0.05) -> 
A47: 45 | C47: =B47*'Lakás Törlesztéscsökkentő fiók'!$B$27/12 ->  | D47: =IF(A47>'Lakás Törlesztéscsökkentő fiók'!$J$10,0,'Lakás Törlesztéscsökkentő fiók'!$B$28) -> 0 | F47: =IF(A47>'Lakás Törlesztéscsökkentő fiók'!$J$10,0,'Lakás Törlesztéscsökkentő fiók'!$J$11) -> 0 | G47: =IF(OR(A47>'Lakás Törlesztéscsökkentő fiók'!$J$10,'Lakás Törlesztéscsökkentő fiók'!$B$24='Lakás Törlesztéscsökkentő fiók'!$T$5),0,'Lakás Törlesztéscsökkentő fiók'!$J$12+'Lakás Törlesztéscsökkentő fiók'!$J$13) -> 0 | H47: 0 | K47: 0 | L47: =IRR($K$2:K47,0.05) -> 
A48: 46 | C48: =B48*'Lakás Törlesztéscsökkentő fiók'!$B$27/12 ->  | D48: =IF(A48>'Lakás Törlesztéscsökkentő fiók'!$J$10,0,'Lakás Törlesztéscsökkentő fiók'!$B$28) -> 0 | F48: =IF(A48>'Lakás Törlesztéscsökkentő fiók'!$J$10,0,'Lakás Törlesztéscsökkentő fiók'!$J$11) -> 0 | G48: =IF(OR(A48>'Lakás Törlesztéscsökkentő fiók'!$J$10,'Lakás Törlesztéscsökkentő fiók'!$B$24='Lakás Törlesztéscsökkentő fiók'!$T$5),0,'Lakás Törlesztéscsökkentő fiók'!$J$12+'Lakás Törlesztéscsökkentő fiók'!$J$13) -> 0 | H48: 0 | K48: 0 | L48: =IRR($K$2:K48,0.05) -> 
A49: 47 | C49: =B49*'Lakás Törlesztéscsökkentő fiók'!$B$27/12 ->  | D49: =IF(A49>'Lakás Törlesztéscsökkentő fiók'!$J$10,0,'Lakás Törlesztéscsökkentő fiók'!$B$28) -> 0 | F49: =IF(A49>'Lakás Törlesztéscsökkentő fiók'!$J$10,0,'Lakás Törlesztéscsökkentő fiók'!$J$11) -> 0 | G49: =IF(OR(A49>'Lakás Törlesztéscsökkentő fiók'!$J$10,'Lakás Törlesztéscsökkentő fiók'!$B$24='Lakás Törlesztéscsökkentő fiók'!$T$5),0,'Lakás Törlesztéscsökkentő fiók'!$J$12+'Lakás Törlesztéscsökkentő fiók'!$J$13) -> 0 | H49: 0 | K49: 0 | L49: =IRR($K$2:K49,0.05) -> 
A50: 48 | C50: =B50*'Lakás Törlesztéscsökkentő fiók'!$B$27/12 ->  | D50: =IF(A50>'Lakás Törlesztéscsökkentő fiók'!$J$10,0,'Lakás Törlesztéscsökkentő fiók'!$B$28) -> 0 | F50: =IF(A50>'Lakás Törlesztéscsökkentő fiók'!$J$10,0,'Lakás Törlesztéscsökkentő fiók'!$J$11) -> 0 | G50: =IF(OR(A50>'Lakás Törlesztéscsökkentő fiók'!$J$10,'Lakás Törlesztéscsökkentő fiók'!$B$24='Lakás Törlesztéscsökkentő fiók'!$T$5),0,'Lakás Törlesztéscsökkentő fiók'!$J$12+'Lakás Törlesztéscsökkentő fiók'!$J$13) -> 0 | H50: 0 | K50: 0 | L50: =IRR($K$2:K50,0.05) -> 
A51: 49 | C51: =B51*'Lakás Törlesztéscsökkentő fiók'!$B$27/12 ->  | D51: =IF(A51>'Lakás Törlesztéscsökkentő fiók'!$J$10,0,'Lakás Törlesztéscsökkentő fiók'!$B$28) -> 0 | F51: =IF(A51>'Lakás Törlesztéscsökkentő fiók'!$J$10,0,'Lakás Törlesztéscsökkentő fiók'!$J$11) -> 0 | G51: =IF(OR(A51>'Lakás Törlesztéscsökkentő fiók'!$J$10,'Lakás Törlesztéscsökkentő fiók'!$B$24='Lakás Törlesztéscsökkentő fiók'!$T$5),0,'Lakás Törlesztéscsökkentő fiók'!$J$12+'Lakás Törlesztéscsökkentő fiók'!$J$13) -> 0 | H51: 0 | K51: 0 | L51: =IRR($K$2:K51,0.05) -> 
A52: 50 | C52: =B52*'Lakás Törlesztéscsökkentő fiók'!$B$27/12 ->  | D52: =IF(A52>'Lakás Törlesztéscsökkentő fiók'!$J$10,0,'Lakás Törlesztéscsökkentő fiók'!$B$28) -> 0 | F52: =IF(A52>'Lakás Törlesztéscsökkentő fiók'!$J$10,0,'Lakás Törlesztéscsökkentő fiók'!$J$11) -> 0 | G52: =IF(OR(A52>'Lakás Törlesztéscsökkentő fiók'!$J$10,'Lakás Törlesztéscsökkentő fiók'!$B$24='Lakás Törlesztéscsökkentő fiók'!$T$5),0,'Lakás Törlesztéscsökkentő fiók'!$J$12+'Lakás Törlesztéscsökkentő fiók'!$J$13) -> 0 | H52: 0 | K52: 0 | L52: =IRR($K$2:K52,0.05) -> 
A53: 51 | C53: =B53*'Lakás Törlesztéscsökkentő fiók'!$B$27/12 ->  | D53: =IF(A53>'Lakás Törlesztéscsökkentő fiók'!$J$10,0,'Lakás Törlesztéscsökkentő fiók'!$B$28) -> 0 | F53: =IF(A53>'Lakás Törlesztéscsökkentő fiók'!$J$10,0,'Lakás Törlesztéscsökkentő fiók'!$J$11) -> 0 | G53: =IF(OR(A53>'Lakás Törlesztéscsökkentő fiók'!$J$10,'Lakás Törlesztéscsökkentő fiók'!$B$24='Lakás Törlesztéscsökkentő fiók'!$T$5),0,'Lakás Törlesztéscsökkentő fiók'!$J$12+'Lakás Törlesztéscsökkentő fiók'!$J$13) -> 0 | H53: 0 | K53: 0 | L53: =IRR($K$2:K53,0.05) -> 
A54: 52 | C54: =B54*'Lakás Törlesztéscsökkentő fiók'!$B$27/12 ->  | D54: =IF(A54>'Lakás Törlesztéscsökkentő fiók'!$J$10,0,'Lakás Törlesztéscsökkentő fiók'!$B$28) -> 0 | F54: =IF(A54>'Lakás Törlesztéscsökkentő fiók'!$J$10,0,'Lakás Törlesztéscsökkentő fiók'!$J$11) -> 0 | G54: =IF(OR(A54>'Lakás Törlesztéscsökkentő fiók'!$J$10,'Lakás Törlesztéscsökkentő fiók'!$B$24='Lakás Törlesztéscsökkentő fiók'!$T$5),0,'Lakás Törlesztéscsökkentő fiók'!$J$12+'Lakás Törlesztéscsökkentő fiók'!$J$13) -> 0 | H54: 0 | K54: 0 | L54: =IRR($K$2:K54,0.05) -> 
A55: 53 | C55: =B55*'Lakás Törlesztéscsökkentő fiók'!$B$27/12 ->  | D55: =IF(A55>'Lakás Törlesztéscsökkentő fiók'!$J$10,0,'Lakás Törlesztéscsökkentő fiók'!$B$28) -> 0 | F55: =IF(A55>'Lakás Törlesztéscsökkentő fiók'!$J$10,0,'Lakás Törlesztéscsökkentő fiók'!$J$11) -> 0 | G55: =IF(OR(A55>'Lakás Törlesztéscsökkentő fiók'!$J$10,'Lakás Törlesztéscsökkentő fiók'!$B$24='Lakás Törlesztéscsökkentő fiók'!$T$5),0,'Lakás Törlesztéscsökkentő fiók'!$J$12+'Lakás Törlesztéscsökkentő fiók'!$J$13) -> 0 | H55: 0 | K55: 0 | L55: =IRR($K$2:K55,0.05) -> 
A56: 54 | C56: =B56*'Lakás Törlesztéscsökkentő fiók'!$B$27/12 ->  | D56: =IF(A56>'Lakás Törlesztéscsökkentő fiók'!$J$10,0,'Lakás Törlesztéscsökkentő fiók'!$B$28) -> 0 | F56: =IF(A56>'Lakás Törlesztéscsökkentő fiók'!$J$10,0,'Lakás Törlesztéscsökkentő fiók'!$J$11) -> 0 | G56: =IF(OR(A56>'Lakás Törlesztéscsökkentő fiók'!$J$10,'Lakás Törlesztéscsökkentő fiók'!$B$24='Lakás Törlesztéscsökkentő fiók'!$T$5),0,'Lakás Törlesztéscsökkentő fiók'!$J$12+'Lakás Törlesztéscsökkentő fiók'!$J$13) -> 0 | H56: 0 | K56: 0 | L56: =IRR($K$2:K56,0.05) -> 
A57: 55 | C57: =B57*'Lakás Törlesztéscsökkentő fiók'!$B$27/12 ->  | D57: =IF(A57>'Lakás Törlesztéscsökkentő fiók'!$J$10,0,'Lakás Törlesztéscsökkentő fiók'!$B$28) -> 0 | F57: =IF(A57>'Lakás Törlesztéscsökkentő fiók'!$J$10,0,'Lakás Törlesztéscsökkentő fiók'!$J$11) -> 0 | G57: =IF(OR(A57>'Lakás Törlesztéscsökkentő fiók'!$J$10,'Lakás Törlesztéscsökkentő fiók'!$B$24='Lakás Törlesztéscsökkentő fiók'!$T$5),0,'Lakás Törlesztéscsökkentő fiók'!$J$12+'Lakás Törlesztéscsökkentő fiók'!$J$13) -> 0 | H57: 0 | K57: 0 | L57: =IRR($K$2:K57,0.05) -> 
A58: 56 | C58: =B58*'Lakás Törlesztéscsökkentő fiók'!$B$27/12 ->  | D58: =IF(A58>'Lakás Törlesztéscsökkentő fiók'!$J$10,0,'Lakás Törlesztéscsökkentő fiók'!$B$28) -> 0 | F58: =IF(A58>'Lakás Törlesztéscsökkentő fiók'!$J$10,0,'Lakás Törlesztéscsökkentő fiók'!$J$11) -> 0 | G58: =IF(OR(A58>'Lakás Törlesztéscsökkentő fiók'!$J$10,'Lakás Törlesztéscsökkentő fiók'!$B$24='Lakás Törlesztéscsökkentő fiók'!$T$5),0,'Lakás Törlesztéscsökkentő fiók'!$J$12+'Lakás Törlesztéscsökkentő fiók'!$J$13) -> 0 | H58: 0 | K58: 0 | L58: =IRR($K$2:K58,0.05) -> 
A59: 57 | C59: =B59*'Lakás Törlesztéscsökkentő fiók'!$B$27/12 ->  | D59: =IF(A59>'Lakás Törlesztéscsökkentő fiók'!$J$10,0,'Lakás Törlesztéscsökkentő fiók'!$B$28) -> 0 | F59: =IF(A59>'Lakás Törlesztéscsökkentő fiók'!$J$10,0,'Lakás Törlesztéscsökkentő fiók'!$J$11) -> 0 | G59: =IF(OR(A59>'Lakás Törlesztéscsökkentő fiók'!$J$10,'Lakás Törlesztéscsökkentő fiók'!$B$24='Lakás Törlesztéscsökkentő fiók'!$T$5),0,'Lakás Törlesztéscsökkentő fiók'!$J$12+'Lakás Törlesztéscsökkentő fiók'!$J$13) -> 0 | H59: 0 | K59: 0 | L59: =IRR($K$2:K59,0.05) -> 
A60: 58 | C60: =B60*'Lakás Törlesztéscsökkentő fiók'!$B$27/12 ->  | D60: =IF(A60>'Lakás Törlesztéscsökkentő fiók'!$J$10,0,'Lakás Törlesztéscsökkentő fiók'!$B$28) -> 0 | F60: =IF(A60>'Lakás Törlesztéscsökkentő fiók'!$J$10,0,'Lakás Törlesztéscsökkentő fiók'!$J$11) -> 0 | G60: =IF(OR(A60>'Lakás Törlesztéscsökkentő fiók'!$J$10,'Lakás Törlesztéscsökkentő fiók'!$B$24='Lakás Törlesztéscsökkentő fiók'!$T$5),0,'Lakás Törlesztéscsökkentő fiók'!$J$12+'Lakás Törlesztéscsökkentő fiók'!$J$13) -> 0 | H60: 0 | K60: 0 | L60: =IRR($K$2:K60,0.05) -> 
A61: 59 | C61: =B61*'Lakás Törlesztéscsökkentő fiók'!$B$27/12 ->  | D61: =IF(A61>'Lakás Törlesztéscsökkentő fiók'!$J$10,0,'Lakás Törlesztéscsökkentő fiók'!$B$28) -> 0 | F61: =IF(A61>'Lakás Törlesztéscsökkentő fiók'!$J$10,0,'Lakás Törlesztéscsökkentő fiók'!$J$11) -> 0 | G61: =IF(OR(A61>'Lakás Törlesztéscsökkentő fiók'!$J$10,'Lakás Törlesztéscsökkentő fiók'!$B$24='Lakás Törlesztéscsökkentő fiók'!$T$5),0,'Lakás Törlesztéscsökkentő fiók'!$J$12+'Lakás Törlesztéscsökkentő fiók'!$J$13) -> 0 | H61: 0 | K61: 0 | L61: =IRR($K$2:K61,0.05) -> 
A62: 60 | C62: =B62*'Lakás Törlesztéscsökkentő fiók'!$B$27/12 ->  | D62: =IF(A62>'Lakás Törlesztéscsökkentő fiók'!$J$10,0,'Lakás Törlesztéscsökkentő fiók'!$B$28) -> 0 | F62: =IF(A62>'Lakás Törlesztéscsökkentő fiók'!$J$10,0,'Lakás Törlesztéscsökkentő fiók'!$J$11) -> 0 | G62: =IF(OR(A62>'Lakás Törlesztéscsökkentő fiók'!$J$10,'Lakás Törlesztéscsökkentő fiók'!$B$24='Lakás Törlesztéscsökkentő fiók'!$T$5),0,'Lakás Törlesztéscsökkentő fiók'!$J$12+'Lakás Törlesztéscsökkentő fiók'!$J$13) -> 0 | H62: 0 | K62: 0 | L62: =IRR($K$2:K62,0.05) -> 
A63: 61 | C63: =B63*'Lakás Törlesztéscsökkentő fiók'!$B$27/12 ->  | D63: =IF(A63>'Lakás Törlesztéscsökkentő fiók'!$J$10,0,'Lakás Törlesztéscsökkentő fiók'!$B$28) -> 0 | F63: =IF(A63>'Lakás Törlesztéscsökkentő fiók'!$J$10,0,'Lakás Törlesztéscsökkentő fiók'!$J$11) -> 0 | G63: =IF(OR(A63>'Lakás Törlesztéscsökkentő fiók'!$J$10,'Lakás Törlesztéscsökkentő fiók'!$B$24='Lakás Törlesztéscsökkentő fiók'!$T$5),0,'Lakás Törlesztéscsökkentő fiók'!$J$12+'Lakás Törlesztéscsökkentő fiók'!$J$13) -> 0 | H63: 0 | K63: 0 | L63: =IRR($K$2:K63,0.05) -> 
A64: 62 | C64: =B64*'Lakás Törlesztéscsökkentő fiók'!$B$27/12 ->  | D64: =IF(A64>'Lakás Törlesztéscsökkentő fiók'!$J$10,0,'Lakás Törlesztéscsökkentő fiók'!$B$28) -> 0 | F64: =IF(A64>'Lakás Törlesztéscsökkentő fiók'!$J$10,0,'Lakás Törlesztéscsökkentő fiók'!$J$11) -> 0 | G64: =IF(OR(A64>'Lakás Törlesztéscsökkentő fiók'!$J$10,'Lakás Törlesztéscsökkentő fiók'!$B$24='Lakás Törlesztéscsökkentő fiók'!$T$5),0,'Lakás Törlesztéscsökkentő fiók'!$J$12+'Lakás Törlesztéscsökkentő fiók'!$J$13) -> 0 | H64: 0 | K64: 0 | L64: =IRR($K$2:K64,0.05) -> 
A65: 63 | C65: =B65*'Lakás Törlesztéscsökkentő fiók'!$B$27/12 ->  | D65: =IF(A65>'Lakás Törlesztéscsökkentő fiók'!$J$10,0,'Lakás Törlesztéscsökkentő fiók'!$B$28) -> 0 | F65: =IF(A65>'Lakás Törlesztéscsökkentő fiók'!$J$10,0,'Lakás Törlesztéscsökkentő fiók'!$J$11) -> 0 | G65: =IF(OR(A65>'Lakás Törlesztéscsökkentő fiók'!$J$10,'Lakás Törlesztéscsökkentő fiók'!$B$24='Lakás Törlesztéscsökkentő fiók'!$T$5),0,'Lakás Törlesztéscsökkentő fiók'!$J$12+'Lakás Törlesztéscsökkentő fiók'!$J$13) -> 0 | H65: 0 | K65: 0 | L65: =IRR($K$2:K65,0.05) -> 
A66: 64 | C66: =B66*'Lakás Törlesztéscsökkentő fiók'!$B$27/12 ->  | D66: =IF(A66>'Lakás Törlesztéscsökkentő fiók'!$J$10,0,'Lakás Törlesztéscsökkentő fiók'!$B$28) -> 0 | F66: =IF(A66>'Lakás Törlesztéscsökkentő fiók'!$J$10,0,'Lakás Törlesztéscsökkentő fiók'!$J$11) -> 0 | G66: =IF(OR(A66>'Lakás Törlesztéscsökkentő fiók'!$J$10,'Lakás Törlesztéscsökkentő fiók'!$B$24='Lakás Törlesztéscsökkentő fiók'!$T$5),0,'Lakás Törlesztéscsökkentő fiók'!$J$12+'Lakás Törlesztéscsökkentő fiók'!$J$13) -> 0 | H66: 0 | K66: 0 | L66: =IRR($K$2:K66,0.05) -> 
A67: 65 | C67: =B67*'Lakás Törlesztéscsökkentő fiók'!$B$27/12 ->  | D67: =IF(A67>'Lakás Törlesztéscsökkentő fiók'!$J$10,0,'Lakás Törlesztéscsökkentő fiók'!$B$28) -> 0 | F67: =IF(A67>'Lakás Törlesztéscsökkentő fiók'!$J$10,0,'Lakás Törlesztéscsökkentő fiók'!$J$11) -> 0 | G67: =IF(OR(A67>'Lakás Törlesztéscsökkentő fiók'!$J$10,'Lakás Törlesztéscsökkentő fiók'!$B$24='Lakás Törlesztéscsökkentő fiók'!$T$5),0,'Lakás Törlesztéscsökkentő fiók'!$J$12+'Lakás Törlesztéscsökkentő fiók'!$J$13) -> 0 | H67: 0 | K67: 0 | L67: =IRR($K$2:K67,0.05) -> 
A68: 66 | C68: =B68*'Lakás Törlesztéscsökkentő fiók'!$B$27/12 ->  | D68: =IF(A68>'Lakás Törlesztéscsökkentő fiók'!$J$10,0,'Lakás Törlesztéscsökkentő fiók'!$B$28) -> 0 | E68: =+B68+C68-D68 ->  | F68: =IF(A68>'Lakás Törlesztéscsökkentő fiók'!$J$10,0,'Lakás Törlesztéscsökkentő fiók'!$J$11) -> 0 | G68: =IF(OR(A68>'Lakás Törlesztéscsökkentő fiók'!$J$10,'Lakás Törlesztéscsökkentő fiók'!$B$24='Lakás Törlesztéscsökkentő fiók'!$T$5),0,'Lakás Törlesztéscsökkentő fiók'!$J$12+'Lakás Törlesztéscsökkentő fiók'!$J$13) -> 0 | H68: 0 | K68: =D68+F68+G68 -> 0 | L68: =IRR($K$2:K68,0.05) -> 
A69: =+A68+1 -> 67 | B69: =+E68 ->  | C69: =B69*'Lakás Törlesztéscsökkentő fiók'!$B$27/12 ->  | D69: =IF(A69>'Lakás Törlesztéscsökkentő fiók'!$J$10,0,'Lakás Törlesztéscsökkentő fiók'!$B$28) -> 0 | F69: =IF(A69>'Lakás Törlesztéscsökkentő fiók'!$J$10,0,'Lakás Törlesztéscsökkentő fiók'!$J$11) -> 0 | G69: =IF(OR(A69>'Lakás Törlesztéscsökkentő fiók'!$J$10,'Lakás Törlesztéscsökkentő fiók'!$B$24='Lakás Törlesztéscsökkentő fiók'!$T$5),0,'Lakás Törlesztéscsökkentő fiók'!$J$12+'Lakás Törlesztéscsökkentő fiók'!$J$13) -> 0 | H69: =H68+(D69+F69+G69)/(1+$H$1)^(A69/12) -> 0 | K69: 0 | L69: =IRR($K$2:K69,0.05) -> 
A70: 68 | C70: =B70*'Lakás Törlesztéscsökkentő fiók'!$B$27/12 ->  | D70: =IF(A70>'Lakás Törlesztéscsökkentő fiók'!$J$10,0,'Lakás Törlesztéscsökkentő fiók'!$B$28) -> 0 | F70: =IF(A70>'Lakás Törlesztéscsökkentő fiók'!$J$10,0,'Lakás Törlesztéscsökkentő fiók'!$J$11) -> 0 | G70: =IF(OR(A70>'Lakás Törlesztéscsökkentő fiók'!$J$10,'Lakás Törlesztéscsökkentő fiók'!$B$24='Lakás Törlesztéscsökkentő fiók'!$T$5),0,'Lakás Törlesztéscsökkentő fiók'!$J$12+'Lakás Törlesztéscsökkentő fiók'!$J$13) -> 0 | H70: 0 | K70: 0 | L70: =IRR($K$2:K70,0.05) -> 
A71: 69 | C71: =B71*'Lakás Törlesztéscsökkentő fiók'!$B$27/12 ->  | D71: =IF(A71>'Lakás Törlesztéscsökkentő fiók'!$J$10,0,'Lakás Törlesztéscsökkentő fiók'!$B$28) -> 0 | F71: =IF(A71>'Lakás Törlesztéscsökkentő fiók'!$J$10,0,'Lakás Törlesztéscsökkentő fiók'!$J$11) -> 0 | G71: =IF(OR(A71>'Lakás Törlesztéscsökkentő fiók'!$J$10,'Lakás Törlesztéscsökkentő fiók'!$B$24='Lakás Törlesztéscsökkentő fiók'!$T$5),0,'Lakás Törlesztéscsökkentő fiók'!$J$12+'Lakás Törlesztéscsökkentő fiók'!$J$13) -> 0 | H71: 0 | K71: 0 | L71: =IRR($K$2:K71,0.05) -> 
A72: 70 | C72: =B72*'Lakás Törlesztéscsökkentő fiók'!$B$27/12 ->  | D72: =IF(A72>'Lakás Törlesztéscsökkentő fiók'!$J$10,0,'Lakás Törlesztéscsökkentő fiók'!$B$28) -> 0 | F72: =IF(A72>'Lakás Törlesztéscsökkentő fiók'!$J$10,0,'Lakás Törlesztéscsökkentő fiók'!$J$11) -> 0 | G72: =IF(OR(A72>'Lakás Törlesztéscsökkentő fiók'!$J$10,'Lakás Törlesztéscsökkentő fiók'!$B$24='Lakás Törlesztéscsökkentő fiók'!$T$5),0,'Lakás Törlesztéscsökkentő fiók'!$J$12+'Lakás Törlesztéscsökkentő fiók'!$J$13) -> 0 | H72: 0 | K72: 0 | L72: =IRR($K$2:K72,0.05) -> 
A73: 71 | C73: =B73*'Lakás Törlesztéscsökkentő fiók'!$B$27/12 ->  | D73: =IF(A73>'Lakás Törlesztéscsökkentő fiók'!$J$10,0,'Lakás Törlesztéscsökkentő fiók'!$B$28) -> 0 | F73: =IF(A73>'Lakás Törlesztéscsökkentő fiók'!$J$10,0,'Lakás Törlesztéscsökkentő fiók'!$J$11) -> 0 | G73: =IF(OR(A73>'Lakás Törlesztéscsökkentő fiók'!$J$10,'Lakás Törlesztéscsökkentő fiók'!$B$24='Lakás Törlesztéscsökkentő fiók'!$T$5),0,'Lakás Törlesztéscsökkentő fiók'!$J$12+'Lakás Törlesztéscsökkentő fiók'!$J$13) -> 0 | H73: 0 | K73: 0 | L73: =IRR($K$2:K73,0.05) -> 
A74: 72 | C74: =B74*'Lakás Törlesztéscsökkentő fiók'!$B$27/12 ->  | D74: =IF(A74>'Lakás Törlesztéscsökkentő fiók'!$J$10,0,'Lakás Törlesztéscsökkentő fiók'!$B$28) -> 0 | F74: =IF(A74>'Lakás Törlesztéscsökkentő fiók'!$J$10,0,'Lakás Törlesztéscsökkentő fiók'!$J$11) -> 0 | G74: =IF(OR(A74>'Lakás Törlesztéscsökkentő fiók'!$J$10,'Lakás Törlesztéscsökkentő fiók'!$B$24='Lakás Törlesztéscsökkentő fiók'!$T$5),0,'Lakás Törlesztéscsökkentő fiók'!$J$12+'Lakás Törlesztéscsökkentő fiók'!$J$13) -> 0 | H74: 0 | K74: 0 | L74: =IRR($K$2:K74,0.05) -> 
A75: 73 | C75: =B75*'Lakás Törlesztéscsökkentő fiók'!$B$27/12 ->  | D75: =IF(A75>'Lakás Törlesztéscsökkentő fiók'!$J$10,0,'Lakás Törlesztéscsökkentő fiók'!$B$28) -> 0 | F75: =IF(A75>'Lakás Törlesztéscsökkentő fiók'!$J$10,0,'Lakás Törlesztéscsökkentő fiók'!$J$11) -> 0 | G75: =IF(OR(A75>'Lakás Törlesztéscsökkentő fiók'!$J$10,'Lakás Törlesztéscsökkentő fiók'!$B$24='Lakás Törlesztéscsökkentő fiók'!$T$5),0,'Lakás Törlesztéscsökkentő fiók'!$J$12+'Lakás Törlesztéscsökkentő fiók'!$J$13) -> 0 | H75: 0 | K75: 0 | L75: =IRR($K$2:K75,0.05) -> 
A76: 74 | C76: =B76*'Lakás Törlesztéscsökkentő fiók'!$B$27/12 ->  | D76: =IF(A76>'Lakás Törlesztéscsökkentő fiók'!$J$10,0,'Lakás Törlesztéscsökkentő fiók'!$B$28) -> 0 | F76: =IF(A76>'Lakás Törlesztéscsökkentő fiók'!$J$10,0,'Lakás Törlesztéscsökkentő fiók'!$J$11) -> 0 | G76: =IF(OR(A76>'Lakás Törlesztéscsökkentő fiók'!$J$10,'Lakás Törlesztéscsökkentő fiók'!$B$24='Lakás Törlesztéscsökkentő fiók'!$T$5),0,'Lakás Törlesztéscsökkentő fiók'!$J$12+'Lakás Törlesztéscsökkentő fiók'!$J$13) -> 0 | H76: 0 | K76: 0 | L76: =IRR($K$2:K76,0.05) -> 
A77: 75 | C77: =B77*'Lakás Törlesztéscsökkentő fiók'!$B$27/12 ->  | D77: =IF(A77>'Lakás Törlesztéscsökkentő fiók'!$J$10,0,'Lakás Törlesztéscsökkentő fiók'!$B$28) -> 0 | F77: =IF(A77>'Lakás Törlesztéscsökkentő fiók'!$J$10,0,'Lakás Törlesztéscsökkentő fiók'!$J$11) -> 0 | G77: =IF(OR(A77>'Lakás Törlesztéscsökkentő fiók'!$J$10,'Lakás Törlesztéscsökkentő fiók'!$B$24='Lakás Törlesztéscsökkentő fiók'!$T$5),0,'Lakás Törlesztéscsökkentő fiók'!$J$12+'Lakás Törlesztéscsökkentő fiók'!$J$13) -> 0 | H77: 0 | K77: 0 | L77: =IRR($K$2:K77,0.05) -> 
A78: 76 | C78: =B78*'Lakás Törlesztéscsökkentő fiók'!$B$27/12 ->  | D78: =IF(A78>'Lakás Törlesztéscsökkentő fiók'!$J$10,0,'Lakás Törlesztéscsökkentő fiók'!$B$28) -> 0 | F78: =IF(A78>'Lakás Törlesztéscsökkentő fiók'!$J$10,0,'Lakás Törlesztéscsökkentő fiók'!$J$11) -> 0 | G78: =IF(OR(A78>'Lakás Törlesztéscsökkentő fiók'!$J$10,'Lakás Törlesztéscsökkentő fiók'!$B$24='Lakás Törlesztéscsökkentő fiók'!$T$5),0,'Lakás Törlesztéscsökkentő fiók'!$J$12+'Lakás Törlesztéscsökkentő fiók'!$J$13) -> 0 | H78: 0 | K78: 0 | L78: =IRR($K$2:K78,0.05) -> 
A79: 77 | C79: =B79*'Lakás Törlesztéscsökkentő fiók'!$B$27/12 ->  | D79: =IF(A79>'Lakás Törlesztéscsökkentő fiók'!$J$10,0,'Lakás Törlesztéscsökkentő fiók'!$B$28) -> 0 | F79: =IF(A79>'Lakás Törlesztéscsökkentő fiók'!$J$10,0,'Lakás Törlesztéscsökkentő fiók'!$J$11) -> 0 | G79: =IF(OR(A79>'Lakás Törlesztéscsökkentő fiók'!$J$10,'Lakás Törlesztéscsökkentő fiók'!$B$24='Lakás Törlesztéscsökkentő fiók'!$T$5),0,'Lakás Törlesztéscsökkentő fiók'!$J$12+'Lakás Törlesztéscsökkentő fiók'!$J$13) -> 0 | H79: 0 | K79: 0 | L79: =IRR($K$2:K79,0.05) -> 
A80: 78 | C80: =B80*'Lakás Törlesztéscsökkentő fiók'!$B$27/12 ->  | D80: =IF(A80>'Lakás Törlesztéscsökkentő fiók'!$J$10,0,'Lakás Törlesztéscsökkentő fiók'!$B$28) -> 0 | F80: =IF(A80>'Lakás Törlesztéscsökkentő fiók'!$J$10,0,'Lakás Törlesztéscsökkentő fiók'!$J$11) -> 0 | G80: =IF(OR(A80>'Lakás Törlesztéscsökkentő fiók'!$J$10,'Lakás Törlesztéscsökkentő fiók'!$B$24='Lakás Törlesztéscsökkentő fiók'!$T$5),0,'Lakás Törlesztéscsökkentő fiók'!$J$12+'Lakás Törlesztéscsökkentő fiók'!$J$13) -> 0 | H80: 0 | K80: 0 | L80: =IRR($K$2:K80,0.05) -> 
A81: 79 | C81: =B81*'Lakás Törlesztéscsökkentő fiók'!$B$27/12 ->  | D81: =IF(A81>'Lakás Törlesztéscsökkentő fiók'!$J$10,0,'Lakás Törlesztéscsökkentő fiók'!$B$28) -> 0 | F81: =IF(A81>'Lakás Törlesztéscsökkentő fiók'!$J$10,0,'Lakás Törlesztéscsökkentő fiók'!$J$11) -> 0 | G81: =IF(OR(A81>'Lakás Törlesztéscsökkentő fiók'!$J$10,'Lakás Törlesztéscsökkentő fiók'!$B$24='Lakás Törlesztéscsökkentő fiók'!$T$5),0,'Lakás Törlesztéscsökkentő fiók'!$J$12+'Lakás Törlesztéscsökkentő fiók'!$J$13) -> 0 | H81: 0 | K81: 0 | L81: =IRR($K$2:K81,0.05) -> 
A82: 80 | C82: =B82*'Lakás Törlesztéscsökkentő fiók'!$B$27/12 ->  | D82: =IF(A82>'Lakás Törlesztéscsökkentő fiók'!$J$10,0,'Lakás Törlesztéscsökkentő fiók'!$B$28) -> 0 | F82: =IF(A82>'Lakás Törlesztéscsökkentő fiók'!$J$10,0,'Lakás Törlesztéscsökkentő fiók'!$J$11) -> 0 | G82: =IF(OR(A82>'Lakás Törlesztéscsökkentő fiók'!$J$10,'Lakás Törlesztéscsökkentő fiók'!$B$24='Lakás Törlesztéscsökkentő fiók'!$T$5),0,'Lakás Törlesztéscsökkentő fiók'!$J$12+'Lakás Törlesztéscsökkentő fiók'!$J$13) -> 0 | H82: 0 | K82: 0 | L82: =IRR($K$2:K82,0.05) -> 
A83: 81 | C83: =B83*'Lakás Törlesztéscsökkentő fiók'!$B$27/12 ->  | D83: =IF(A83>'Lakás Törlesztéscsökkentő fiók'!$J$10,0,'Lakás Törlesztéscsökkentő fiók'!$B$28) -> 0 | F83: =IF(A83>'Lakás Törlesztéscsökkentő fiók'!$J$10,0,'Lakás Törlesztéscsökkentő fiók'!$J$11) -> 0 | G83: =IF(OR(A83>'Lakás Törlesztéscsökkentő fiók'!$J$10,'Lakás Törlesztéscsökkentő fiók'!$B$24='Lakás Törlesztéscsökkentő fiók'!$T$5),0,'Lakás Törlesztéscsökkentő fiók'!$J$12+'Lakás Törlesztéscsökkentő fiók'!$J$13) -> 0 | H83: 0 | K83: 0 | L83: =IRR($K$2:K83,0.05) -> 
A84: 82 | C84: =B84*'Lakás Törlesztéscsökkentő fiók'!$B$27/12 ->  | D84: =IF(A84>'Lakás Törlesztéscsökkentő fiók'!$J$10,0,'Lakás Törlesztéscsökkentő fiók'!$B$28) -> 0 | F84: =IF(A84>'Lakás Törlesztéscsökkentő fiók'!$J$10,0,'Lakás Törlesztéscsökkentő fiók'!$J$11) -> 0 | G84: =IF(OR(A84>'Lakás Törlesztéscsökkentő fiók'!$J$10,'Lakás Törlesztéscsökkentő fiók'!$B$24='Lakás Törlesztéscsökkentő fiók'!$T$5),0,'Lakás Törlesztéscsökkentő fiók'!$J$12+'Lakás Törlesztéscsökkentő fiók'!$J$13) -> 0 | H84: 0 | K84: 0 | L84: =IRR($K$2:K84,0.05) -> 
A85: 83 | C85: =B85*'Lakás Törlesztéscsökkentő fiók'!$B$27/12 ->  | D85: =IF(A85>'Lakás Törlesztéscsökkentő fiók'!$J$10,0,'Lakás Törlesztéscsökkentő fiók'!$B$28) -> 0 | F85: =IF(A85>'Lakás Törlesztéscsökkentő fiók'!$J$10,0,'Lakás Törlesztéscsökkentő fiók'!$J$11) -> 0 | G85: =IF(OR(A85>'Lakás Törlesztéscsökkentő fiók'!$J$10,'Lakás Törlesztéscsökkentő fiók'!$B$24='Lakás Törlesztéscsökkentő fiók'!$T$5),0,'Lakás Törlesztéscsökkentő fiók'!$J$12+'Lakás Törlesztéscsökkentő fiók'!$J$13) -> 0 | H85: 0 | K85: 0 | L85: =IRR($K$2:K85,0.05) -> 
A86: 84 | C86: =B86*'Lakás Törlesztéscsökkentő fiók'!$B$27/12 ->  | D86: =IF(A86>'Lakás Törlesztéscsökkentő fiók'!$J$10,0,'Lakás Törlesztéscsökkentő fiók'!$B$28) -> 0 | F86: =IF(A86>'Lakás Törlesztéscsökkentő fiók'!$J$10,0,'Lakás Törlesztéscsökkentő fiók'!$J$11) -> 0 | G86: =IF(OR(A86>'Lakás Törlesztéscsökkentő fiók'!$J$10,'Lakás Törlesztéscsökkentő fiók'!$B$24='Lakás Törlesztéscsökkentő fiók'!$T$5),0,'Lakás Törlesztéscsökkentő fiók'!$J$12+'Lakás Törlesztéscsökkentő fiók'!$J$13) -> 0 | H86: 0 | K86: 0 | L86: =IRR($K$2:K86,0.05) -> 
A87: 85 | C87: =B87*'Lakás Törlesztéscsökkentő fiók'!$B$27/12 ->  | D87: =IF(A87>'Lakás Törlesztéscsökkentő fiók'!$J$10,0,'Lakás Törlesztéscsökkentő fiók'!$B$28) -> 0 | F87: =IF(A87>'Lakás Törlesztéscsökkentő fiók'!$J$10,0,'Lakás Törlesztéscsökkentő fiók'!$J$11) -> 0 | G87: =IF(OR(A87>'Lakás Törlesztéscsökkentő fiók'!$J$10,'Lakás Törlesztéscsökkentő fiók'!$B$24='Lakás Törlesztéscsökkentő fiók'!$T$5),0,'Lakás Törlesztéscsökkentő fiók'!$J$12+'Lakás Törlesztéscsökkentő fiók'!$J$13) -> 0 | H87: 0 | K87: 0 | L87: =IRR($K$2:K87,0.05) -> 
A88: 86 | C88: =B88*'Lakás Törlesztéscsökkentő fiók'!$B$27/12 ->  | D88: =IF(A88>'Lakás Törlesztéscsökkentő fiók'!$J$10,0,'Lakás Törlesztéscsökkentő fiók'!$B$28) -> 0 | F88: =IF(A88>'Lakás Törlesztéscsökkentő fiók'!$J$10,0,'Lakás Törlesztéscsökkentő fiók'!$J$11) -> 0 | G88: =IF(OR(A88>'Lakás Törlesztéscsökkentő fiók'!$J$10,'Lakás Törlesztéscsökkentő fiók'!$B$24='Lakás Törlesztéscsökkentő fiók'!$T$5),0,'Lakás Törlesztéscsökkentő fiók'!$J$12+'Lakás Törlesztéscsökkentő fiók'!$J$13) -> 0 | H88: 0 | K88: 0 | L88: =IRR($K$2:K88,0.05) -> 
A89: 87 | C89: =B89*'Lakás Törlesztéscsökkentő fiók'!$B$27/12 ->  | D89: =IF(A89>'Lakás Törlesztéscsökkentő fiók'!$J$10,0,'Lakás Törlesztéscsökkentő fiók'!$B$28) -> 0 | F89: =IF(A89>'Lakás Törlesztéscsökkentő fiók'!$J$10,0,'Lakás Törlesztéscsökkentő fiók'!$J$11) -> 0 | G89: =IF(OR(A89>'Lakás Törlesztéscsökkentő fiók'!$J$10,'Lakás Törlesztéscsökkentő fiók'!$B$24='Lakás Törlesztéscsökkentő fiók'!$T$5),0,'Lakás Törlesztéscsökkentő fiók'!$J$12+'Lakás Törlesztéscsökkentő fiók'!$J$13) -> 0 | H89: 0 | K89: 0 | L89: =IRR($K$2:K89,0.05) -> 
A90: 88 | C90: =B90*'Lakás Törlesztéscsökkentő fiók'!$B$27/12 ->  | D90: =IF(A90>'Lakás Törlesztéscsökkentő fiók'!$J$10,0,'Lakás Törlesztéscsökkentő fiók'!$B$28) -> 0 | F90: =IF(A90>'Lakás Törlesztéscsökkentő fiók'!$J$10,0,'Lakás Törlesztéscsökkentő fiók'!$J$11) -> 0 | G90: =IF(OR(A90>'Lakás Törlesztéscsökkentő fiók'!$J$10,'Lakás Törlesztéscsökkentő fiók'!$B$24='Lakás Törlesztéscsökkentő fiók'!$T$5),0,'Lakás Törlesztéscsökkentő fiók'!$J$12+'Lakás Törlesztéscsökkentő fiók'!$J$13) -> 0 | H90: 0 | K90: 0 | L90: =IRR($K$2:K90,0.05) -> 
A91: 89 | C91: =B91*'Lakás Törlesztéscsökkentő fiók'!$B$27/12 ->  | D91: =IF(A91>'Lakás Törlesztéscsökkentő fiók'!$J$10,0,'Lakás Törlesztéscsökkentő fiók'!$B$28) -> 0 | F91: =IF(A91>'Lakás Törlesztéscsökkentő fiók'!$J$10,0,'Lakás Törlesztéscsökkentő fiók'!$J$11) -> 0 | G91: =IF(OR(A91>'Lakás Törlesztéscsökkentő fiók'!$J$10,'Lakás Törlesztéscsökkentő fiók'!$B$24='Lakás Törlesztéscsökkentő fiók'!$T$5),0,'Lakás Törlesztéscsökkentő fiók'!$J$12+'Lakás Törlesztéscsökkentő fiók'!$J$13) -> 0 | H91: 0 | K91: 0 | L91: =IRR($K$2:K91,0.05) -> 
A92: 90 | C92: =B92*'Lakás Törlesztéscsökkentő fiók'!$B$27/12 ->  | D92: =IF(A92>'Lakás Törlesztéscsökkentő fiók'!$J$10,0,'Lakás Törlesztéscsökkentő fiók'!$B$28) -> 0 | F92: =IF(A92>'Lakás Törlesztéscsökkentő fiók'!$J$10,0,'Lakás Törlesztéscsökkentő fiók'!$J$11) -> 0 | G92: =IF(OR(A92>'Lakás Törlesztéscsökkentő fiók'!$J$10,'Lakás Törlesztéscsökkentő fiók'!$B$24='Lakás Törlesztéscsökkentő fiók'!$T$5),0,'Lakás Törlesztéscsökkentő fiók'!$J$12+'Lakás Törlesztéscsökkentő fiók'!$J$13) -> 0 | H92: 0 | K92: 0 | L92: =IRR($K$2:K92,0.05) -> 
A93: 91 | C93: =B93*'Lakás Törlesztéscsökkentő fiók'!$B$27/12 ->  | D93: =IF(A93>'Lakás Törlesztéscsökkentő fiók'!$J$10,0,'Lakás Törlesztéscsökkentő fiók'!$B$28) -> 0 | F93: =IF(A93>'Lakás Törlesztéscsökkentő fiók'!$J$10,0,'Lakás Törlesztéscsökkentő fiók'!$J$11) -> 0 | G93: =IF(OR(A93>'Lakás Törlesztéscsökkentő fiók'!$J$10,'Lakás Törlesztéscsökkentő fiók'!$B$24='Lakás Törlesztéscsökkentő fiók'!$T$5),0,'Lakás Törlesztéscsökkentő fiók'!$J$12+'Lakás Törlesztéscsökkentő fiók'!$J$13) -> 0 | H93: 0 | K93: 0 | L93: =IRR($K$2:K93,0.05) -> 
A94: 92 | C94: =B94*'Lakás Törlesztéscsökkentő fiók'!$B$27/12 ->  | D94: =IF(A94>'Lakás Törlesztéscsökkentő fiók'!$J$10,0,'Lakás Törlesztéscsökkentő fiók'!$B$28) -> 0 | F94: =IF(A94>'Lakás Törlesztéscsökkentő fiók'!$J$10,0,'Lakás Törlesztéscsökkentő fiók'!$J$11) -> 0 | G94: =IF(OR(A94>'Lakás Törlesztéscsökkentő fiók'!$J$10,'Lakás Törlesztéscsökkentő fiók'!$B$24='Lakás Törlesztéscsökkentő fiók'!$T$5),0,'Lakás Törlesztéscsökkentő fiók'!$J$12+'Lakás Törlesztéscsökkentő fiók'!$J$13) -> 0 | H94: 0 | K94: 0 | L94: =IRR($K$2:K94,0.05) -> 
A95: 93 | C95: =B95*'Lakás Törlesztéscsökkentő fiók'!$B$27/12 ->  | D95: =IF(A95>'Lakás Törlesztéscsökkentő fiók'!$J$10,0,'Lakás Törlesztéscsökkentő fiók'!$B$28) -> 0 | F95: =IF(A95>'Lakás Törlesztéscsökkentő fiók'!$J$10,0,'Lakás Törlesztéscsökkentő fiók'!$J$11) -> 0 | G95: =IF(OR(A95>'Lakás Törlesztéscsökkentő fiók'!$J$10,'Lakás Törlesztéscsökkentő fiók'!$B$24='Lakás Törlesztéscsökkentő fiók'!$T$5),0,'Lakás Törlesztéscsökkentő fiók'!$J$12+'Lakás Törlesztéscsökkentő fiók'!$J$13) -> 0 | H95: 0 | K95: 0 | L95: =IRR($K$2:K95,0.05) -> 
A96: 94 | C96: =B96*'Lakás Törlesztéscsökkentő fiók'!$B$27/12 ->  | D96: =IF(A96>'Lakás Törlesztéscsökkentő fiók'!$J$10,0,'Lakás Törlesztéscsökkentő fiók'!$B$28) -> 0 | F96: =IF(A96>'Lakás Törlesztéscsökkentő fiók'!$J$10,0,'Lakás Törlesztéscsökkentő fiók'!$J$11) -> 0 | G96: =IF(OR(A96>'Lakás Törlesztéscsökkentő fiók'!$J$10,'Lakás Törlesztéscsökkentő fiók'!$B$24='Lakás Törlesztéscsökkentő fiók'!$T$5),0,'Lakás Törlesztéscsökkentő fiók'!$J$12+'Lakás Törlesztéscsökkentő fiók'!$J$13) -> 0 | H96: 0 | K96: 0 | L96: =IRR($K$2:K96,0.05) -> 
A97: 95 | C97: =B97*'Lakás Törlesztéscsökkentő fiók'!$B$27/12 ->  | D97: =IF(A97>'Lakás Törlesztéscsökkentő fiók'!$J$10,0,'Lakás Törlesztéscsökkentő fiók'!$B$28) -> 0 | F97: =IF(A97>'Lakás Törlesztéscsökkentő fiók'!$J$10,0,'Lakás Törlesztéscsökkentő fiók'!$J$11) -> 0 | G97: =IF(OR(A97>'Lakás Törlesztéscsökkentő fiók'!$J$10,'Lakás Törlesztéscsökkentő fiók'!$B$24='Lakás Törlesztéscsökkentő fiók'!$T$5),0,'Lakás Törlesztéscsökkentő fiók'!$J$12+'Lakás Törlesztéscsökkentő fiók'!$J$13) -> 0 | H97: 0 | K97: 0 | L97: =IRR($K$2:K97,0.05) -> 
A98: 96 | C98: =B98*'Lakás Törlesztéscsökkentő fiók'!$B$27/12 ->  | D98: =IF(A98>'Lakás Törlesztéscsökkentő fiók'!$J$10,0,'Lakás Törlesztéscsökkentő fiók'!$B$28) -> 0 | F98: =IF(A98>'Lakás Törlesztéscsökkentő fiók'!$J$10,0,'Lakás Törlesztéscsökkentő fiók'!$J$11) -> 0 | G98: =IF(OR(A98>'Lakás Törlesztéscsökkentő fiók'!$J$10,'Lakás Törlesztéscsökkentő fiók'!$B$24='Lakás Törlesztéscsökkentő fiók'!$T$5),0,'Lakás Törlesztéscsökkentő fiók'!$J$12+'Lakás Törlesztéscsökkentő fiók'!$J$13) -> 0 | H98: 0 | K98: 0 | L98: =IRR($K$2:K98,0.05) -> 
A99: 97 | C99: =B99*'Lakás Törlesztéscsökkentő fiók'!$B$27/12 ->  | D99: =IF(A99>'Lakás Törlesztéscsökkentő fiók'!$J$10,0,'Lakás Törlesztéscsökkentő fiók'!$B$28) -> 0 | F99: =IF(A99>'Lakás Törlesztéscsökkentő fiók'!$J$10,0,'Lakás Törlesztéscsökkentő fiók'!$J$11) -> 0 | G99: =IF(OR(A99>'Lakás Törlesztéscsökkentő fiók'!$J$10,'Lakás Törlesztéscsökkentő fiók'!$B$24='Lakás Törlesztéscsökkentő fiók'!$T$5),0,'Lakás Törlesztéscsökkentő fiók'!$J$12+'Lakás Törlesztéscsökkentő fiók'!$J$13) -> 0 | H99: 0 | K99: 0 | L99: =IRR($K$2:K99,0.05) -> 
A100: 98 | C100: =B100*'Lakás Törlesztéscsökkentő fiók'!$B$27/12 ->  | D100: =IF(A100>'Lakás Törlesztéscsökkentő fiók'!$J$10,0,'Lakás Törlesztéscsökkentő fiók'!$B$28) -> 0 | F100: =IF(A100>'Lakás Törlesztéscsökkentő fiók'!$J$10,0,'Lakás Törlesztéscsökkentő fiók'!$J$11) -> 0 | G100: =IF(OR(A100>'Lakás Törlesztéscsökkentő fiók'!$J$10,'Lakás Törlesztéscsökkentő fiók'!$B$24='Lakás Törlesztéscsökkentő fiók'!$T$5),0,'Lakás Törlesztéscsökkentő fiók'!$J$12+'Lakás Törlesztéscsökkentő fiók'!$J$13) -> 0 | H100: 0 | K100: 0 | L100: =IRR($K$2:K100,0.05) -> 
A101: 99 | C101: =B101*'Lakás Törlesztéscsökkentő fiók'!$B$27/12 ->  | D101: =IF(A101>'Lakás Törlesztéscsökkentő fiók'!$J$10,0,'Lakás Törlesztéscsökkentő fiók'!$B$28) -> 0 | F101: =IF(A101>'Lakás Törlesztéscsökkentő fiók'!$J$10,0,'Lakás Törlesztéscsökkentő fiók'!$J$11) -> 0 | G101: =IF(OR(A101>'Lakás Törlesztéscsökkentő fiók'!$J$10,'Lakás Törlesztéscsökkentő fiók'!$B$24='Lakás Törlesztéscsökkentő fiók'!$T$5),0,'Lakás Törlesztéscsökkentő fiók'!$J$12+'Lakás Törlesztéscsökkentő fiók'!$J$13) -> 0 | H101: 0 | K101: 0 | L101: =IRR($K$2:K101,0.05) -> 
A102: 100 | C102: =B102*'Lakás Törlesztéscsökkentő fiók'!$B$27/12 ->  | D102: =IF(A102>'Lakás Törlesztéscsökkentő fiók'!$J$10,0,'Lakás Törlesztéscsökkentő fiók'!$B$28) -> 0 | F102: =IF(A102>'Lakás Törlesztéscsökkentő fiók'!$J$10,0,'Lakás Törlesztéscsökkentő fiók'!$J$11) -> 0 | G102: =IF(OR(A102>'Lakás Törlesztéscsökkentő fiók'!$J$10,'Lakás Törlesztéscsökkentő fiók'!$B$24='Lakás Törlesztéscsökkentő fiók'!$T$5),0,'Lakás Törlesztéscsökkentő fiók'!$J$12+'Lakás Törlesztéscsökkentő fiók'!$J$13) -> 0 | H102: 0 | K102: 0 | L102: =IRR($K$2:K102,0.05) -> 
A103: 101 | C103: =B103*'Lakás Törlesztéscsökkentő fiók'!$B$27/12 ->  | D103: =IF(A103>'Lakás Törlesztéscsökkentő fiók'!$J$10,0,'Lakás Törlesztéscsökkentő fiók'!$B$28) -> 0 | F103: =IF(A103>'Lakás Törlesztéscsökkentő fiók'!$J$10,0,'Lakás Törlesztéscsökkentő fiók'!$J$11) -> 0 | G103: =IF(OR(A103>'Lakás Törlesztéscsökkentő fiók'!$J$10,'Lakás Törlesztéscsökkentő fiók'!$B$24='Lakás Törlesztéscsökkentő fiók'!$T$5),0,'Lakás Törlesztéscsökkentő fiók'!$J$12+'Lakás Törlesztéscsökkentő fiók'!$J$13) -> 0 | H103: 0 | K103: 0 | L103: =IRR($K$2:K103,0.05) -> 
A104: 102 | C104: =B104*'Lakás Törlesztéscsökkentő fiók'!$B$27/12 ->  | D104: =IF(A104>'Lakás Törlesztéscsökkentő fiók'!$J$10,0,'Lakás Törlesztéscsökkentő fiók'!$B$28) -> 0 | F104: =IF(A104>'Lakás Törlesztéscsökkentő fiók'!$J$10,0,'Lakás Törlesztéscsökkentő fiók'!$J$11) -> 0 | G104: =IF(OR(A104>'Lakás Törlesztéscsökkentő fiók'!$J$10,'Lakás Törlesztéscsökkentő fiók'!$B$24='Lakás Törlesztéscsökkentő fiók'!$T$5),0,'Lakás Törlesztéscsökkentő fiók'!$J$12+'Lakás Törlesztéscsökkentő fiók'!$J$13) -> 0 | H104: 0 | K104: 0 | L104: =IRR($K$2:K104,0.05) -> 
A105: 103 | C105: =B105*'Lakás Törlesztéscsökkentő fiók'!$B$27/12 ->  | D105: =IF(A105>'Lakás Törlesztéscsökkentő fiók'!$J$10,0,'Lakás Törlesztéscsökkentő fiók'!$B$28) -> 0 | F105: =IF(A105>'Lakás Törlesztéscsökkentő fiók'!$J$10,0,'Lakás Törlesztéscsökkentő fiók'!$J$11) -> 0 | G105: =IF(OR(A105>'Lakás Törlesztéscsökkentő fiók'!$J$10,'Lakás Törlesztéscsökkentő fiók'!$B$24='Lakás Törlesztéscsökkentő fiók'!$T$5),0,'Lakás Törlesztéscsökkentő fiók'!$J$12+'Lakás Törlesztéscsökkentő fiók'!$J$13) -> 0 | H105: 0 | K105: 0 | L105: =IRR($K$2:K105,0.05) -> 
A106: 104 | C106: =B106*'Lakás Törlesztéscsökkentő fiók'!$B$27/12 ->  | D106: =IF(A106>'Lakás Törlesztéscsökkentő fiók'!$J$10,0,'Lakás Törlesztéscsökkentő fiók'!$B$28) -> 0 | F106: =IF(A106>'Lakás Törlesztéscsökkentő fiók'!$J$10,0,'Lakás Törlesztéscsökkentő fiók'!$J$11) -> 0 | G106: =IF(OR(A106>'Lakás Törlesztéscsökkentő fiók'!$J$10,'Lakás Törlesztéscsökkentő fiók'!$B$24='Lakás Törlesztéscsökkentő fiók'!$T$5),0,'Lakás Törlesztéscsökkentő fiók'!$J$12+'Lakás Törlesztéscsökkentő fiók'!$J$13) -> 0 | H106: 0 | K106: 0 | L106: =IRR($K$2:K106,0.05) -> 
A107: 105 | C107: =B107*'Lakás Törlesztéscsökkentő fiók'!$B$27/12 ->  | D107: =IF(A107>'Lakás Törlesztéscsökkentő fiók'!$J$10,0,'Lakás Törlesztéscsökkentő fiók'!$B$28) -> 0 | F107: =IF(A107>'Lakás Törlesztéscsökkentő fiók'!$J$10,0,'Lakás Törlesztéscsökkentő fiók'!$J$11) -> 0 | G107: =IF(OR(A107>'Lakás Törlesztéscsökkentő fiók'!$J$10,'Lakás Törlesztéscsökkentő fiók'!$B$24='Lakás Törlesztéscsökkentő fiók'!$T$5),0,'Lakás Törlesztéscsökkentő fiók'!$J$12+'Lakás Törlesztéscsökkentő fiók'!$J$13) -> 0 | H107: 0 | K107: 0 | L107: =IRR($K$2:K107,0.05) -> 
A108: 106 | C108: =B108*'Lakás Törlesztéscsökkentő fiók'!$B$27/12 ->  | D108: =IF(A108>'Lakás Törlesztéscsökkentő fiók'!$J$10,0,'Lakás Törlesztéscsökkentő fiók'!$B$28) -> 0 | F108: =IF(A108>'Lakás Törlesztéscsökkentő fiók'!$J$10,0,'Lakás Törlesztéscsökkentő fiók'!$J$11) -> 0 | G108: =IF(OR(A108>'Lakás Törlesztéscsökkentő fiók'!$J$10,'Lakás Törlesztéscsökkentő fiók'!$B$24='Lakás Törlesztéscsökkentő fiók'!$T$5),0,'Lakás Törlesztéscsökkentő fiók'!$J$12+'Lakás Törlesztéscsökkentő fiók'!$J$13) -> 0 | H108: 0 | K108: 0 | L108: =IRR($K$2:K108,0.05) -> 
A109: 107 | C109: =B109*'Lakás Törlesztéscsökkentő fiók'!$B$27/12 ->  | D109: =IF(A109>'Lakás Törlesztéscsökkentő fiók'!$J$10,0,'Lakás Törlesztéscsökkentő fiók'!$B$28) -> 0 | F109: =IF(A109>'Lakás Törlesztéscsökkentő fiók'!$J$10,0,'Lakás Törlesztéscsökkentő fiók'!$J$11) -> 0 | G109: =IF(OR(A109>'Lakás Törlesztéscsökkentő fiók'!$J$10,'Lakás Törlesztéscsökkentő fiók'!$B$24='Lakás Törlesztéscsökkentő fiók'!$T$5),0,'Lakás Törlesztéscsökkentő fiók'!$J$12+'Lakás Törlesztéscsökkentő fiók'!$J$13) -> 0 | H109: 0 | K109: 0 | L109: =IRR($K$2:K109,0.05) -> 
A110: 108 | C110: =B110*'Lakás Törlesztéscsökkentő fiók'!$B$27/12 ->  | D110: =IF(A110>'Lakás Törlesztéscsökkentő fiók'!$J$10,0,'Lakás Törlesztéscsökkentő fiók'!$B$28) -> 0 | F110: =IF(A110>'Lakás Törlesztéscsökkentő fiók'!$J$10,0,'Lakás Törlesztéscsökkentő fiók'!$J$11) -> 0 | G110: =IF(OR(A110>'Lakás Törlesztéscsökkentő fiók'!$J$10,'Lakás Törlesztéscsökkentő fiók'!$B$24='Lakás Törlesztéscsökkentő fiók'!$T$5),0,'Lakás Törlesztéscsökkentő fiók'!$J$12+'Lakás Törlesztéscsökkentő fiók'!$J$13) -> 0 | H110: 0 | K110: 0 | L110: =IRR($K$2:K110,0.05) -> 
A111: 109 | C111: =B111*'Lakás Törlesztéscsökkentő fiók'!$B$27/12 ->  | D111: =IF(A111>'Lakás Törlesztéscsökkentő fiók'!$J$10,0,'Lakás Törlesztéscsökkentő fiók'!$B$28) -> 0 | F111: =IF(A111>'Lakás Törlesztéscsökkentő fiók'!$J$10,0,'Lakás Törlesztéscsökkentő fiók'!$J$11) -> 0 | G111: =IF(OR(A111>'Lakás Törlesztéscsökkentő fiók'!$J$10,'Lakás Törlesztéscsökkentő fiók'!$B$24='Lakás Törlesztéscsökkentő fiók'!$T$5),0,'Lakás Törlesztéscsökkentő fiók'!$J$12+'Lakás Törlesztéscsökkentő fiók'!$J$13) -> 0 | H111: 0 | K111: 0 | L111: =IRR($K$2:K111,0.05) -> 
A112: 110 | C112: =B112*'Lakás Törlesztéscsökkentő fiók'!$B$27/12 ->  | D112: =IF(A112>'Lakás Törlesztéscsökkentő fiók'!$J$10,0,'Lakás Törlesztéscsökkentő fiók'!$B$28) -> 0 | F112: =IF(A112>'Lakás Törlesztéscsökkentő fiók'!$J$10,0,'Lakás Törlesztéscsökkentő fiók'!$J$11) -> 0 | G112: =IF(OR(A112>'Lakás Törlesztéscsökkentő fiók'!$J$10,'Lakás Törlesztéscsökkentő fiók'!$B$24='Lakás Törlesztéscsökkentő fiók'!$T$5),0,'Lakás Törlesztéscsökkentő fiók'!$J$12+'Lakás Törlesztéscsökkentő fiók'!$J$13) -> 0 | H112: 0 | K112: 0 | L112: =IRR($K$2:K112,0.05) -> 
A113: 111 | C113: =B113*'Lakás Törlesztéscsökkentő fiók'!$B$27/12 ->  | D113: =IF(A113>'Lakás Törlesztéscsökkentő fiók'!$J$10,0,'Lakás Törlesztéscsökkentő fiók'!$B$28) -> 0 | F113: =IF(A113>'Lakás Törlesztéscsökkentő fiók'!$J$10,0,'Lakás Törlesztéscsökkentő fiók'!$J$11) -> 0 | G113: =IF(OR(A113>'Lakás Törlesztéscsökkentő fiók'!$J$10,'Lakás Törlesztéscsökkentő fiók'!$B$24='Lakás Törlesztéscsökkentő fiók'!$T$5),0,'Lakás Törlesztéscsökkentő fiók'!$J$12+'Lakás Törlesztéscsökkentő fiók'!$J$13) -> 0 | H113: 0 | K113: 0 | L113: =IRR($K$2:K113,0.05) -> 
A114: 112 | C114: =B114*'Lakás Törlesztéscsökkentő fiók'!$B$27/12 ->  | D114: =IF(A114>'Lakás Törlesztéscsökkentő fiók'!$J$10,0,'Lakás Törlesztéscsökkentő fiók'!$B$28) -> 0 | F114: =IF(A114>'Lakás Törlesztéscsökkentő fiók'!$J$10,0,'Lakás Törlesztéscsökkentő fiók'!$J$11) -> 0 | G114: =IF(OR(A114>'Lakás Törlesztéscsökkentő fiók'!$J$10,'Lakás Törlesztéscsökkentő fiók'!$B$24='Lakás Törlesztéscsökkentő fiók'!$T$5),0,'Lakás Törlesztéscsökkentő fiók'!$J$12+'Lakás Törlesztéscsökkentő fiók'!$J$13) -> 0 | H114: 0 | K114: 0 | L114: =IRR($K$2:K114,0.05) -> 
A115: 113 | C115: =B115*'Lakás Törlesztéscsökkentő fiók'!$B$27/12 ->  | D115: =IF(A115>'Lakás Törlesztéscsökkentő fiók'!$J$10,0,'Lakás Törlesztéscsökkentő fiók'!$B$28) -> 0 | F115: =IF(A115>'Lakás Törlesztéscsökkentő fiók'!$J$10,0,'Lakás Törlesztéscsökkentő fiók'!$J$11) -> 0 | G115: =IF(OR(A115>'Lakás Törlesztéscsökkentő fiók'!$J$10,'Lakás Törlesztéscsökkentő fiók'!$B$24='Lakás Törlesztéscsökkentő fiók'!$T$5),0,'Lakás Törlesztéscsökkentő fiók'!$J$12+'Lakás Törlesztéscsökkentő fiók'!$J$13) -> 0 | H115: 0 | K115: 0 | L115: =IRR($K$2:K115,0.05) -> 
A116: 114 | C116: =B116*'Lakás Törlesztéscsökkentő fiók'!$B$27/12 ->  | D116: =IF(A116>'Lakás Törlesztéscsökkentő fiók'!$J$10,0,'Lakás Törlesztéscsökkentő fiók'!$B$28) -> 0 | F116: =IF(A116>'Lakás Törlesztéscsökkentő fiók'!$J$10,0,'Lakás Törlesztéscsökkentő fiók'!$J$11) -> 0 | G116: =IF(OR(A116>'Lakás Törlesztéscsökkentő fiók'!$J$10,'Lakás Törlesztéscsökkentő fiók'!$B$24='Lakás Törlesztéscsökkentő fiók'!$T$5),0,'Lakás Törlesztéscsökkentő fiók'!$J$12+'Lakás Törlesztéscsökkentő fiók'!$J$13) -> 0 | H116: 0 | K116: 0 | L116: =IRR($K$2:K116,0.05) -> 
A117: 115 | C117: =B117*'Lakás Törlesztéscsökkentő fiók'!$B$27/12 ->  | D117: =IF(A117>'Lakás Törlesztéscsökkentő fiók'!$J$10,0,'Lakás Törlesztéscsökkentő fiók'!$B$28) -> 0 | F117: =IF(A117>'Lakás Törlesztéscsökkentő fiók'!$J$10,0,'Lakás Törlesztéscsökkentő fiók'!$J$11) -> 0 | G117: =IF(OR(A117>'Lakás Törlesztéscsökkentő fiók'!$J$10,'Lakás Törlesztéscsökkentő fiók'!$B$24='Lakás Törlesztéscsökkentő fiók'!$T$5),0,'Lakás Törlesztéscsökkentő fiók'!$J$12+'Lakás Törlesztéscsökkentő fiók'!$J$13) -> 0 | H117: 0 | K117: 0 | L117: =IRR($K$2:K117,0.05) -> 
A118: 116 | C118: =B118*'Lakás Törlesztéscsökkentő fiók'!$B$27/12 ->  | D118: =IF(A118>'Lakás Törlesztéscsökkentő fiók'!$J$10,0,'Lakás Törlesztéscsökkentő fiók'!$B$28) -> 0 | F118: =IF(A118>'Lakás Törlesztéscsökkentő fiók'!$J$10,0,'Lakás Törlesztéscsökkentő fiók'!$J$11) -> 0 | G118: =IF(OR(A118>'Lakás Törlesztéscsökkentő fiók'!$J$10,'Lakás Törlesztéscsökkentő fiók'!$B$24='Lakás Törlesztéscsökkentő fiók'!$T$5),0,'Lakás Törlesztéscsökkentő fiók'!$J$12+'Lakás Törlesztéscsökkentő fiók'!$J$13) -> 0 | H118: 0 | K118: 0 | L118: =IRR($K$2:K118,0.05) -> 
A119: 117 | C119: =B119*'Lakás Törlesztéscsökkentő fiók'!$B$27/12 ->  | D119: =IF(A119>'Lakás Törlesztéscsökkentő fiók'!$J$10,0,'Lakás Törlesztéscsökkentő fiók'!$B$28) -> 0 | F119: =IF(A119>'Lakás Törlesztéscsökkentő fiók'!$J$10,0,'Lakás Törlesztéscsökkentő fiók'!$J$11) -> 0 | G119: =IF(OR(A119>'Lakás Törlesztéscsökkentő fiók'!$J$10,'Lakás Törlesztéscsökkentő fiók'!$B$24='Lakás Törlesztéscsökkentő fiók'!$T$5),0,'Lakás Törlesztéscsökkentő fiók'!$J$12+'Lakás Törlesztéscsökkentő fiók'!$J$13) -> 0 | H119: 0 | K119: 0 | L119: =IRR($K$2:K119,0.05) -> 
A120: 118 | C120: =B120*'Lakás Törlesztéscsökkentő fiók'!$B$27/12 ->  | D120: =IF(A120>'Lakás Törlesztéscsökkentő fiók'!$J$10,0,'Lakás Törlesztéscsökkentő fiók'!$B$28) -> 0 | F120: =IF(A120>'Lakás Törlesztéscsökkentő fiók'!$J$10,0,'Lakás Törlesztéscsökkentő fiók'!$J$11) -> 0 | G120: =IF(OR(A120>'Lakás Törlesztéscsökkentő fiók'!$J$10,'Lakás Törlesztéscsökkentő fiók'!$B$24='Lakás Törlesztéscsökkentő fiók'!$T$5),0,'Lakás Törlesztéscsökkentő fiók'!$J$12+'Lakás Törlesztéscsökkentő fiók'!$J$13) -> 0 | H120: 0 | K120: 0 | L120: =IRR($K$2:K120,0.05) -> 
A121: 119 | C121: =B121*'Lakás Törlesztéscsökkentő fiók'!$B$27/12 ->  | D121: =IF(A121>'Lakás Törlesztéscsökkentő fiók'!$J$10,0,'Lakás Törlesztéscsökkentő fiók'!$B$28) -> 0 | F121: =IF(A121>'Lakás Törlesztéscsökkentő fiók'!$J$10,0,'Lakás Törlesztéscsökkentő fiók'!$J$11) -> 0 | G121: =IF(OR(A121>'Lakás Törlesztéscsökkentő fiók'!$J$10,'Lakás Törlesztéscsökkentő fiók'!$B$24='Lakás Törlesztéscsökkentő fiók'!$T$5),0,'Lakás Törlesztéscsökkentő fiók'!$J$12+'Lakás Törlesztéscsökkentő fiók'!$J$13) -> 0 | H121: 0 | K121: 0 | L121: =IRR($K$2:K121,0.05) -> 
A122: 120 | C122: =B122*'Lakás Törlesztéscsökkentő fiók'!$B$27/12 ->  | D122: =IF(A122>'Lakás Törlesztéscsökkentő fiók'!$J$10,0,'Lakás Törlesztéscsökkentő fiók'!$B$28) -> 0 | F122: =IF(A122>'Lakás Törlesztéscsökkentő fiók'!$J$10,0,'Lakás Törlesztéscsökkentő fiók'!$J$11) -> 0 | G122: =IF(OR(A122>'Lakás Törlesztéscsökkentő fiók'!$J$10,'Lakás Törlesztéscsökkentő fiók'!$B$24='Lakás Törlesztéscsökkentő fiók'!$T$5),0,'Lakás Törlesztéscsökkentő fiók'!$J$12+'Lakás Törlesztéscsökkentő fiók'!$J$13) -> 0 | H122: 0 | K122: 0 | L122: =IRR($K$2:K122,0.05) -> 
A123: 121 | C123: =B123*'Lakás Törlesztéscsökkentő fiók'!$B$27/12 ->  | D123: =IF(A123>'Lakás Törlesztéscsökkentő fiók'!$J$10,0,'Lakás Törlesztéscsökkentő fiók'!$B$28) -> 0 | F123: =IF(A123>'Lakás Törlesztéscsökkentő fiók'!$J$10,0,'Lakás Törlesztéscsökkentő fiók'!$J$11) -> 0 | G123: =IF(OR(A123>'Lakás Törlesztéscsökkentő fiók'!$J$10,'Lakás Törlesztéscsökkentő fiók'!$B$24='Lakás Törlesztéscsökkentő fiók'!$T$5),0,'Lakás Törlesztéscsökkentő fiók'!$J$12+'Lakás Törlesztéscsökkentő fiók'!$J$13) -> 0 | H123: 0 | K123: 0 | L123: =IRR($K$2:K123,0.05) -> 
A124: 122 | C124: =B124*'Lakás Törlesztéscsökkentő fiók'!$B$27/12 ->  | D124: =IF(A124>'Lakás Törlesztéscsökkentő fiók'!$J$10,0,'Lakás Törlesztéscsökkentő fiók'!$B$28) -> 0 | F124: =IF(A124>'Lakás Törlesztéscsökkentő fiók'!$J$10,0,'Lakás Törlesztéscsökkentő fiók'!$J$11) -> 0 | G124: =IF(OR(A124>'Lakás Törlesztéscsökkentő fiók'!$J$10,'Lakás Törlesztéscsökkentő fiók'!$B$24='Lakás Törlesztéscsökkentő fiók'!$T$5),0,'Lakás Törlesztéscsökkentő fiók'!$J$12+'Lakás Törlesztéscsökkentő fiók'!$J$13) -> 0 | H124: 0 | K124: 0 | L124: =IRR($K$2:K124,0.05) -> 
A125: 123 | C125: =B125*'Lakás Törlesztéscsökkentő fiók'!$B$27/12 ->  | D125: =IF(A125>'Lakás Törlesztéscsökkentő fiók'!$J$10,0,'Lakás Törlesztéscsökkentő fiók'!$B$28) -> 0 | F125: =IF(A125>'Lakás Törlesztéscsökkentő fiók'!$J$10,0,'Lakás Törlesztéscsökkentő fiók'!$J$11) -> 0 | G125: =IF(OR(A125>'Lakás Törlesztéscsökkentő fiók'!$J$10,'Lakás Törlesztéscsökkentő fiók'!$B$24='Lakás Törlesztéscsökkentő fiók'!$T$5),0,'Lakás Törlesztéscsökkentő fiók'!$J$12+'Lakás Törlesztéscsökkentő fiók'!$J$13) -> 0 | H125: 0 | K125: 0 | L125: =IRR($K$2:K125,0.05) -> 
A126: 124 | C126: =B126*'Lakás Törlesztéscsökkentő fiók'!$B$27/12 ->  | D126: =IF(A126>'Lakás Törlesztéscsökkentő fiók'!$J$10,0,'Lakás Törlesztéscsökkentő fiók'!$B$28) -> 0 | F126: =IF(A126>'Lakás Törlesztéscsökkentő fiók'!$J$10,0,'Lakás Törlesztéscsökkentő fiók'!$J$11) -> 0 | G126: =IF(OR(A126>'Lakás Törlesztéscsökkentő fiók'!$J$10,'Lakás Törlesztéscsökkentő fiók'!$B$24='Lakás Törlesztéscsökkentő fiók'!$T$5),0,'Lakás Törlesztéscsökkentő fiók'!$J$12+'Lakás Törlesztéscsökkentő fiók'!$J$13) -> 0 | H126: 0 | K126: 0 | L126: =IRR($K$2:K126,0.05) -> 
A127: 125 | C127: =B127*'Lakás Törlesztéscsökkentő fiók'!$B$27/12 ->  | D127: =IF(A127>'Lakás Törlesztéscsökkentő fiók'!$J$10,0,'Lakás Törlesztéscsökkentő fiók'!$B$28) -> 0 | F127: =IF(A127>'Lakás Törlesztéscsökkentő fiók'!$J$10,0,'Lakás Törlesztéscsökkentő fiók'!$J$11) -> 0 | G127: =IF(OR(A127>'Lakás Törlesztéscsökkentő fiók'!$J$10,'Lakás Törlesztéscsökkentő fiók'!$B$24='Lakás Törlesztéscsökkentő fiók'!$T$5),0,'Lakás Törlesztéscsökkentő fiók'!$J$12+'Lakás Törlesztéscsökkentő fiók'!$J$13) -> 0 | H127: 0 | K127: 0 | L127: =IRR($K$2:K127,0.05) -> 
A128: 126 | C128: =B128*'Lakás Törlesztéscsökkentő fiók'!$B$27/12 ->  | D128: =IF(A128>'Lakás Törlesztéscsökkentő fiók'!$J$10,0,'Lakás Törlesztéscsökkentő fiók'!$B$28) -> 0 | F128: =IF(A128>'Lakás Törlesztéscsökkentő fiók'!$J$10,0,'Lakás Törlesztéscsökkentő fiók'!$J$11) -> 0 | G128: =IF(OR(A128>'Lakás Törlesztéscsökkentő fiók'!$J$10,'Lakás Törlesztéscsökkentő fiók'!$B$24='Lakás Törlesztéscsökkentő fiók'!$T$5),0,'Lakás Törlesztéscsökkentő fiók'!$J$12+'Lakás Törlesztéscsökkentő fiók'!$J$13) -> 0 | H128: 0 | K128: 0 | L128: =IRR($K$2:K128,0.05) -> 
A129: 127 | C129: =B129*'Lakás Törlesztéscsökkentő fiók'!$B$27/12 ->  | D129: =IF(A129>'Lakás Törlesztéscsökkentő fiók'!$J$10,0,'Lakás Törlesztéscsökkentő fiók'!$B$28) -> 0 | F129: =IF(A129>'Lakás Törlesztéscsökkentő fiók'!$J$10,0,'Lakás Törlesztéscsökkentő fiók'!$J$11) -> 0 | G129: =IF(OR(A129>'Lakás Törlesztéscsökkentő fiók'!$J$10,'Lakás Törlesztéscsökkentő fiók'!$B$24='Lakás Törlesztéscsökkentő fiók'!$T$5),0,'Lakás Törlesztéscsökkentő fiók'!$J$12+'Lakás Törlesztéscsökkentő fiók'!$J$13) -> 0 | H129: 0 | K129: 0 | L129: =IRR($K$2:K129,0.05) -> 
A130: 128 | C130: =B130*'Lakás Törlesztéscsökkentő fiók'!$B$27/12 ->  | D130: =IF(A130>'Lakás Törlesztéscsökkentő fiók'!$J$10,0,'Lakás Törlesztéscsökkentő fiók'!$B$28) -> 0 | F130: =IF(A130>'Lakás Törlesztéscsökkentő fiók'!$J$10,0,'Lakás Törlesztéscsökkentő fiók'!$J$11) -> 0 | G130: =IF(OR(A130>'Lakás Törlesztéscsökkentő fiók'!$J$10,'Lakás Törlesztéscsökkentő fiók'!$B$24='Lakás Törlesztéscsökkentő fiók'!$T$5),0,'Lakás Törlesztéscsökkentő fiók'!$J$12+'Lakás Törlesztéscsökkentő fiók'!$J$13) -> 0 | H130: 0 | K130: 0 | L130: =IRR($K$2:K130,0.05) -> 
A131: 129 | C131: =B131*'Lakás Törlesztéscsökkentő fiók'!$B$27/12 ->  | D131: =IF(A131>'Lakás Törlesztéscsökkentő fiók'!$J$10,0,'Lakás Törlesztéscsökkentő fiók'!$B$28) -> 0 | F131: =IF(A131>'Lakás Törlesztéscsökkentő fiók'!$J$10,0,'Lakás Törlesztéscsökkentő fiók'!$J$11) -> 0 | G131: =IF(OR(A131>'Lakás Törlesztéscsökkentő fiók'!$J$10,'Lakás Törlesztéscsökkentő fiók'!$B$24='Lakás Törlesztéscsökkentő fiók'!$T$5),0,'Lakás Törlesztéscsökkentő fiók'!$J$12+'Lakás Törlesztéscsökkentő fiók'!$J$13) -> 0 | H131: 0 | K131: 0 | L131: =IRR($K$2:K131,0.05) -> 
A132: 130 | C132: =B132*'Lakás Törlesztéscsökkentő fiók'!$B$27/12 ->  | D132: =IF(A132>'Lakás Törlesztéscsökkentő fiók'!$J$10,0,'Lakás Törlesztéscsökkentő fiók'!$B$28) -> 0 | E132: =+B132+C132-D132 ->  | F132: =IF(A132>'Lakás Törlesztéscsökkentő fiók'!$J$10,0,'Lakás Törlesztéscsökkentő fiók'!$J$11) -> 0 | G132: =IF(OR(A132>'Lakás Törlesztéscsökkentő fiók'!$J$10,'Lakás Törlesztéscsökkentő fiók'!$B$24='Lakás Törlesztéscsökkentő fiók'!$T$5),0,'Lakás Törlesztéscsökkentő fiók'!$J$12+'Lakás Törlesztéscsökkentő fiók'!$J$13) -> 0 | H132: 0 | K132: =D132+F132+G132 -> 0 | L132: =IRR($K$2:K132,0.05) -> 
A133: =+A132+1 -> 131 | B133: =+E132 ->  | C133: =B133*'Lakás Törlesztéscsökkentő fiók'!$B$27/12 ->  | D133: =IF(A133>'Lakás Törlesztéscsökkentő fiók'!$J$10,0,'Lakás Törlesztéscsökkentő fiók'!$B$28) -> 0 | F133: =IF(A133>'Lakás Törlesztéscsökkentő fiók'!$J$10,0,'Lakás Törlesztéscsökkentő fiók'!$J$11) -> 0 | G133: =IF(OR(A133>'Lakás Törlesztéscsökkentő fiók'!$J$10,'Lakás Törlesztéscsökkentő fiók'!$B$24='Lakás Törlesztéscsökkentő fiók'!$T$5),0,'Lakás Törlesztéscsökkentő fiók'!$J$12+'Lakás Törlesztéscsökkentő fiók'!$J$13) -> 0 | H133: =H132+(D133+F133+G133)/(1+$H$1)^(A133/12) -> 0 | K133: 0 | L133: =IRR($K$2:K133,0.05) -> 
A134: 132 | C134: =B134*'Lakás Törlesztéscsökkentő fiók'!$B$27/12 ->  | D134: =IF(A134>'Lakás Törlesztéscsökkentő fiók'!$J$10,0,'Lakás Törlesztéscsökkentő fiók'!$B$28) -> 0 | F134: =IF(A134>'Lakás Törlesztéscsökkentő fiók'!$J$10,0,'Lakás Törlesztéscsökkentő fiók'!$J$11) -> 0 | G134: =IF(OR(A134>'Lakás Törlesztéscsökkentő fiók'!$J$10,'Lakás Törlesztéscsökkentő fiók'!$B$24='Lakás Törlesztéscsökkentő fiók'!$T$5),0,'Lakás Törlesztéscsökkentő fiók'!$J$12+'Lakás Törlesztéscsökkentő fiók'!$J$13) -> 0 | H134: 0 | K134: 0 | L134: =IRR($K$2:K134,0.05) -> 
A135: 133 | C135: =B135*'Lakás Törlesztéscsökkentő fiók'!$B$27/12 ->  | D135: =IF(A135>'Lakás Törlesztéscsökkentő fiók'!$J$10,0,'Lakás Törlesztéscsökkentő fiók'!$B$28) -> 0 | F135: =IF(A135>'Lakás Törlesztéscsökkentő fiók'!$J$10,0,'Lakás Törlesztéscsökkentő fiók'!$J$11) -> 0 | G135: =IF(OR(A135>'Lakás Törlesztéscsökkentő fiók'!$J$10,'Lakás Törlesztéscsökkentő fiók'!$B$24='Lakás Törlesztéscsökkentő fiók'!$T$5),0,'Lakás Törlesztéscsökkentő fiók'!$J$12+'Lakás Törlesztéscsökkentő fiók'!$J$13) -> 0 | H135: 0 | K135: 0 | L135: =IRR($K$2:K135,0.05) -> 
A136: 134 | C136: =B136*'Lakás Törlesztéscsökkentő fiók'!$B$27/12 ->  | D136: =IF(A136>'Lakás Törlesztéscsökkentő fiók'!$J$10,0,'Lakás Törlesztéscsökkentő fiók'!$B$28) -> 0 | F136: =IF(A136>'Lakás Törlesztéscsökkentő fiók'!$J$10,0,'Lakás Törlesztéscsökkentő fiók'!$J$11) -> 0 | G136: =IF(OR(A136>'Lakás Törlesztéscsökkentő fiók'!$J$10,'Lakás Törlesztéscsökkentő fiók'!$B$24='Lakás Törlesztéscsökkentő fiók'!$T$5),0,'Lakás Törlesztéscsökkentő fiók'!$J$12+'Lakás Törlesztéscsökkentő fiók'!$J$13) -> 0 | H136: 0 | K136: 0 | L136: =IRR($K$2:K136,0.05) -> 
A137: 135 | C137: =B137*'Lakás Törlesztéscsökkentő fiók'!$B$27/12 ->  | D137: =IF(A137>'Lakás Törlesztéscsökkentő fiók'!$J$10,0,'Lakás Törlesztéscsökkentő fiók'!$B$28) -> 0 | F137: =IF(A137>'Lakás Törlesztéscsökkentő fiók'!$J$10,0,'Lakás Törlesztéscsökkentő fiók'!$J$11) -> 0 | G137: =IF(OR(A137>'Lakás Törlesztéscsökkentő fiók'!$J$10,'Lakás Törlesztéscsökkentő fiók'!$B$24='Lakás Törlesztéscsökkentő fiók'!$T$5),0,'Lakás Törlesztéscsökkentő fiók'!$J$12+'Lakás Törlesztéscsökkentő fiók'!$J$13) -> 0 | H137: 0 | K137: 0 | L137: =IRR($K$2:K137,0.05) -> 
A138: 136 | C138: =B138*'Lakás Törlesztéscsökkentő fiók'!$B$27/12 ->  | D138: =IF(A138>'Lakás Törlesztéscsökkentő fiók'!$J$10,0,'Lakás Törlesztéscsökkentő fiók'!$B$28) -> 0 | F138: =IF(A138>'Lakás Törlesztéscsökkentő fiók'!$J$10,0,'Lakás Törlesztéscsökkentő fiók'!$J$11) -> 0 | G138: =IF(OR(A138>'Lakás Törlesztéscsökkentő fiók'!$J$10,'Lakás Törlesztéscsökkentő fiók'!$B$24='Lakás Törlesztéscsökkentő fiók'!$T$5),0,'Lakás Törlesztéscsökkentő fiók'!$J$12+'Lakás Törlesztéscsökkentő fiók'!$J$13) -> 0 | H138: 0 | K138: 0 | L138: =IRR($K$2:K138,0.05) -> 
A139: 137 | C139: =B139*'Lakás Törlesztéscsökkentő fiók'!$B$27/12 ->  | D139: =IF(A139>'Lakás Törlesztéscsökkentő fiók'!$J$10,0,'Lakás Törlesztéscsökkentő fiók'!$B$28) -> 0 | F139: =IF(A139>'Lakás Törlesztéscsökkentő fiók'!$J$10,0,'Lakás Törlesztéscsökkentő fiók'!$J$11) -> 0 | G139: =IF(OR(A139>'Lakás Törlesztéscsökkentő fiók'!$J$10,'Lakás Törlesztéscsökkentő fiók'!$B$24='Lakás Törlesztéscsökkentő fiók'!$T$5),0,'Lakás Törlesztéscsökkentő fiók'!$J$12+'Lakás Törlesztéscsökkentő fiók'!$J$13) -> 0 | H139: 0 | K139: 0 | L139: =IRR($K$2:K139,0.05) -> 
A140: 138 | C140: =B140*'Lakás Törlesztéscsökkentő fiók'!$B$27/12 ->  | D140: =IF(A140>'Lakás Törlesztéscsökkentő fiók'!$J$10,0,'Lakás Törlesztéscsökkentő fiók'!$B$28) -> 0 | F140: =IF(A140>'Lakás Törlesztéscsökkentő fiók'!$J$10,0,'Lakás Törlesztéscsökkentő fiók'!$J$11) -> 0 | G140: =IF(OR(A140>'Lakás Törlesztéscsökkentő fiók'!$J$10,'Lakás Törlesztéscsökkentő fiók'!$B$24='Lakás Törlesztéscsökkentő fiók'!$T$5),0,'Lakás Törlesztéscsökkentő fiók'!$J$12+'Lakás Törlesztéscsökkentő fiók'!$J$13) -> 0 | H140: 0 | K140: 0 | L140: =IRR($K$2:K140,0.05) -> 
A141: 139 | C141: =B141*'Lakás Törlesztéscsökkentő fiók'!$B$27/12 ->  | D141: =IF(A141>'Lakás Törlesztéscsökkentő fiók'!$J$10,0,'Lakás Törlesztéscsökkentő fiók'!$B$28) -> 0 | F141: =IF(A141>'Lakás Törlesztéscsökkentő fiók'!$J$10,0,'Lakás Törlesztéscsökkentő fiók'!$J$11) -> 0 | G141: =IF(OR(A141>'Lakás Törlesztéscsökkentő fiók'!$J$10,'Lakás Törlesztéscsökkentő fiók'!$B$24='Lakás Törlesztéscsökkentő fiók'!$T$5),0,'Lakás Törlesztéscsökkentő fiók'!$J$12+'Lakás Törlesztéscsökkentő fiók'!$J$13) -> 0 | H141: 0 | K141: 0 | L141: =IRR($K$2:K141,0.05) -> 
A142: 140 | C142: =B142*'Lakás Törlesztéscsökkentő fiók'!$B$27/12 ->  | D142: =IF(A142>'Lakás Törlesztéscsökkentő fiók'!$J$10,0,'Lakás Törlesztéscsökkentő fiók'!$B$28) -> 0 | F142: =IF(A142>'Lakás Törlesztéscsökkentő fiók'!$J$10,0,'Lakás Törlesztéscsökkentő fiók'!$J$11) -> 0 | G142: =IF(OR(A142>'Lakás Törlesztéscsökkentő fiók'!$J$10,'Lakás Törlesztéscsökkentő fiók'!$B$24='Lakás Törlesztéscsökkentő fiók'!$T$5),0,'Lakás Törlesztéscsökkentő fiók'!$J$12+'Lakás Törlesztéscsökkentő fiók'!$J$13) -> 0 | H142: 0 | K142: 0 | L142: =IRR($K$2:K142,0.05) -> 
A143: 141 | C143: =B143*'Lakás Törlesztéscsökkentő fiók'!$B$27/12 ->  | D143: =IF(A143>'Lakás Törlesztéscsökkentő fiók'!$J$10,0,'Lakás Törlesztéscsökkentő fiók'!$B$28) -> 0 | F143: =IF(A143>'Lakás Törlesztéscsökkentő fiók'!$J$10,0,'Lakás Törlesztéscsökkentő fiók'!$J$11) -> 0 | G143: =IF(OR(A143>'Lakás Törlesztéscsökkentő fiók'!$J$10,'Lakás Törlesztéscsökkentő fiók'!$B$24='Lakás Törlesztéscsökkentő fiók'!$T$5),0,'Lakás Törlesztéscsökkentő fiók'!$J$12+'Lakás Törlesztéscsökkentő fiók'!$J$13) -> 0 | H143: 0 | K143: 0 | L143: =IRR($K$2:K143,0.05) -> 
A144: 142 | C144: =B144*'Lakás Törlesztéscsökkentő fiók'!$B$27/12 ->  | D144: =IF(A144>'Lakás Törlesztéscsökkentő fiók'!$J$10,0,'Lakás Törlesztéscsökkentő fiók'!$B$28) -> 0 | F144: =IF(A144>'Lakás Törlesztéscsökkentő fiók'!$J$10,0,'Lakás Törlesztéscsökkentő fiók'!$J$11) -> 0 | G144: =IF(OR(A144>'Lakás Törlesztéscsökkentő fiók'!$J$10,'Lakás Törlesztéscsökkentő fiók'!$B$24='Lakás Törlesztéscsökkentő fiók'!$T$5),0,'Lakás Törlesztéscsökkentő fiók'!$J$12+'Lakás Törlesztéscsökkentő fiók'!$J$13) -> 0 | H144: 0 | K144: 0 | L144: =IRR($K$2:K144,0.05) -> 
A145: 143 | C145: =B145*'Lakás Törlesztéscsökkentő fiók'!$B$27/12 ->  | D145: =IF(A145>'Lakás Törlesztéscsökkentő fiók'!$J$10,0,'Lakás Törlesztéscsökkentő fiók'!$B$28) -> 0 | F145: =IF(A145>'Lakás Törlesztéscsökkentő fiók'!$J$10,0,'Lakás Törlesztéscsökkentő fiók'!$J$11) -> 0 | G145: =IF(OR(A145>'Lakás Törlesztéscsökkentő fiók'!$J$10,'Lakás Törlesztéscsökkentő fiók'!$B$24='Lakás Törlesztéscsökkentő fiók'!$T$5),0,'Lakás Törlesztéscsökkentő fiók'!$J$12+'Lakás Törlesztéscsökkentő fiók'!$J$13) -> 0 | H145: 0 | K145: 0 | L145: =IRR($K$2:K145,0.05) -> 
A146: 144 | C146: =B146*'Lakás Törlesztéscsökkentő fiók'!$B$27/12 ->  | D146: =IF(A146>'Lakás Törlesztéscsökkentő fiók'!$J$10,0,'Lakás Törlesztéscsökkentő fiók'!$B$28) -> 0 | F146: =IF(A146>'Lakás Törlesztéscsökkentő fiók'!$J$10,0,'Lakás Törlesztéscsökkentő fiók'!$J$11) -> 0 | G146: =IF(OR(A146>'Lakás Törlesztéscsökkentő fiók'!$J$10,'Lakás Törlesztéscsökkentő fiók'!$B$24='Lakás Törlesztéscsökkentő fiók'!$T$5),0,'Lakás Törlesztéscsökkentő fiók'!$J$12+'Lakás Törlesztéscsökkentő fiók'!$J$13) -> 0 | H146: 0 | K146: 0 | L146: =IRR($K$2:K146,0.05) -> 
A147: 145 | C147: =B147*'Lakás Törlesztéscsökkentő fiók'!$B$27/12 ->  | D147: =IF(A147>'Lakás Törlesztéscsökkentő fiók'!$J$10,0,'Lakás Törlesztéscsökkentő fiók'!$B$28) -> 0 | F147: =IF(A147>'Lakás Törlesztéscsökkentő fiók'!$J$10,0,'Lakás Törlesztéscsökkentő fiók'!$J$11) -> 0 | G147: =IF(OR(A147>'Lakás Törlesztéscsökkentő fiók'!$J$10,'Lakás Törlesztéscsökkentő fiók'!$B$24='Lakás Törlesztéscsökkentő fiók'!$T$5),0,'Lakás Törlesztéscsökkentő fiók'!$J$12+'Lakás Törlesztéscsökkentő fiók'!$J$13) -> 0 | H147: 0 | K147: 0 | L147: =IRR($K$2:K147,0.05) -> 
A148: 146 | C148: =B148*'Lakás Törlesztéscsökkentő fiók'!$B$27/12 ->  | D148: =IF(A148>'Lakás Törlesztéscsökkentő fiók'!$J$10,0,'Lakás Törlesztéscsökkentő fiók'!$B$28) -> 0 | F148: =IF(A148>'Lakás Törlesztéscsökkentő fiók'!$J$10,0,'Lakás Törlesztéscsökkentő fiók'!$J$11) -> 0 | G148: =IF(OR(A148>'Lakás Törlesztéscsökkentő fiók'!$J$10,'Lakás Törlesztéscsökkentő fiók'!$B$24='Lakás Törlesztéscsökkentő fiók'!$T$5),0,'Lakás Törlesztéscsökkentő fiók'!$J$12+'Lakás Törlesztéscsökkentő fiók'!$J$13) -> 0 | H148: 0 | K148: 0 | L148: =IRR($K$2:K148,0.05) -> 
A149: 147 | C149: =B149*'Lakás Törlesztéscsökkentő fiók'!$B$27/12 ->  | D149: =IF(A149>'Lakás Törlesztéscsökkentő fiók'!$J$10,0,'Lakás Törlesztéscsökkentő fiók'!$B$28) -> 0 | F149: =IF(A149>'Lakás Törlesztéscsökkentő fiók'!$J$10,0,'Lakás Törlesztéscsökkentő fiók'!$J$11) -> 0 | G149: =IF(OR(A149>'Lakás Törlesztéscsökkentő fiók'!$J$10,'Lakás Törlesztéscsökkentő fiók'!$B$24='Lakás Törlesztéscsökkentő fiók'!$T$5),0,'Lakás Törlesztéscsökkentő fiók'!$J$12+'Lakás Törlesztéscsökkentő fiók'!$J$13) -> 0 | H149: 0 | K149: 0 | L149: =IRR($K$2:K149,0.05) -> 
A150: 148 | C150: =B150*'Lakás Törlesztéscsökkentő fiók'!$B$27/12 ->  | D150: =IF(A150>'Lakás Törlesztéscsökkentő fiók'!$J$10,0,'Lakás Törlesztéscsökkentő fiók'!$B$28) -> 0 | F150: =IF(A150>'Lakás Törlesztéscsökkentő fiók'!$J$10,0,'Lakás Törlesztéscsökkentő fiók'!$J$11) -> 0 | G150: =IF(OR(A150>'Lakás Törlesztéscsökkentő fiók'!$J$10,'Lakás Törlesztéscsökkentő fiók'!$B$24='Lakás Törlesztéscsökkentő fiók'!$T$5),0,'Lakás Törlesztéscsökkentő fiók'!$J$12+'Lakás Törlesztéscsökkentő fiók'!$J$13) -> 0 | H150: 0 | K150: 0 | L150: =IRR($K$2:K150,0.05) -> 
A151: 149 | C151: =B151*'Lakás Törlesztéscsökkentő fiók'!$B$27/12 ->  | D151: =IF(A151>'Lakás Törlesztéscsökkentő fiók'!$J$10,0,'Lakás Törlesztéscsökkentő fiók'!$B$28) -> 0 | F151: =IF(A151>'Lakás Törlesztéscsökkentő fiók'!$J$10,0,'Lakás Törlesztéscsökkentő fiók'!$J$11) -> 0 | G151: =IF(OR(A151>'Lakás Törlesztéscsökkentő fiók'!$J$10,'Lakás Törlesztéscsökkentő fiók'!$B$24='Lakás Törlesztéscsökkentő fiók'!$T$5),0,'Lakás Törlesztéscsökkentő fiók'!$J$12+'Lakás Törlesztéscsökkentő fiók'!$J$13) -> 0 | H151: 0 | K151: 0 | L151: =IRR($K$2:K151,0.05) -> 
A152: 150 | C152: =B152*'Lakás Törlesztéscsökkentő fiók'!$B$27/12 ->  | D152: =IF(A152>'Lakás Törlesztéscsökkentő fiók'!$J$10,0,'Lakás Törlesztéscsökkentő fiók'!$B$28) -> 0 | F152: =IF(A152>'Lakás Törlesztéscsökkentő fiók'!$J$10,0,'Lakás Törlesztéscsökkentő fiók'!$J$11) -> 0 | G152: =IF(OR(A152>'Lakás Törlesztéscsökkentő fiók'!$J$10,'Lakás Törlesztéscsökkentő fiók'!$B$24='Lakás Törlesztéscsökkentő fiók'!$T$5),0,'Lakás Törlesztéscsökkentő fiók'!$J$12+'Lakás Törlesztéscsökkentő fiók'!$J$13) -> 0 | H152: 0 | K152: 0 | L152: =IRR($K$2:K152,0.05) -> 
A153: 151 | C153: =B153*'Lakás Törlesztéscsökkentő fiók'!$B$27/12 ->  | D153: =IF(A153>'Lakás Törlesztéscsökkentő fiók'!$J$10,0,'Lakás Törlesztéscsökkentő fiók'!$B$28) -> 0 | F153: =IF(A153>'Lakás Törlesztéscsökkentő fiók'!$J$10,0,'Lakás Törlesztéscsökkentő fiók'!$J$11) -> 0 | G153: =IF(OR(A153>'Lakás Törlesztéscsökkentő fiók'!$J$10,'Lakás Törlesztéscsökkentő fiók'!$B$24='Lakás Törlesztéscsökkentő fiók'!$T$5),0,'Lakás Törlesztéscsökkentő fiók'!$J$12+'Lakás Törlesztéscsökkentő fiók'!$J$13) -> 0 | H153: 0 | K153: 0 | L153: =IRR($K$2:K153,0.05) -> 
A154: 152 | C154: =B154*'Lakás Törlesztéscsökkentő fiók'!$B$27/12 ->  | D154: =IF(A154>'Lakás Törlesztéscsökkentő fiók'!$J$10,0,'Lakás Törlesztéscsökkentő fiók'!$B$28) -> 0 | F154: =IF(A154>'Lakás Törlesztéscsökkentő fiók'!$J$10,0,'Lakás Törlesztéscsökkentő fiók'!$J$11) -> 0 | G154: =IF(OR(A154>'Lakás Törlesztéscsökkentő fiók'!$J$10,'Lakás Törlesztéscsökkentő fiók'!$B$24='Lakás Törlesztéscsökkentő fiók'!$T$5),0,'Lakás Törlesztéscsökkentő fiók'!$J$12+'Lakás Törlesztéscsökkentő fiók'!$J$13) -> 0 | H154: 0 | K154: 0 | L154: =IRR($K$2:K154,0.05) -> 
A155: 153 | C155: =B155*'Lakás Törlesztéscsökkentő fiók'!$B$27/12 ->  | D155: =IF(A155>'Lakás Törlesztéscsökkentő fiók'!$J$10,0,'Lakás Törlesztéscsökkentő fiók'!$B$28) -> 0 | F155: =IF(A155>'Lakás Törlesztéscsökkentő fiók'!$J$10,0,'Lakás Törlesztéscsökkentő fiók'!$J$11) -> 0 | G155: =IF(OR(A155>'Lakás Törlesztéscsökkentő fiók'!$J$10,'Lakás Törlesztéscsökkentő fiók'!$B$24='Lakás Törlesztéscsökkentő fiók'!$T$5),0,'Lakás Törlesztéscsökkentő fiók'!$J$12+'Lakás Törlesztéscsökkentő fiók'!$J$13) -> 0 | H155: 0 | K155: 0 | L155: =IRR($K$2:K155,0.05) -> 
A156: 154 | C156: =B156*'Lakás Törlesztéscsökkentő fiók'!$B$27/12 ->  | D156: =IF(A156>'Lakás Törlesztéscsökkentő fiók'!$J$10,0,'Lakás Törlesztéscsökkentő fiók'!$B$28) -> 0 | F156: =IF(A156>'Lakás Törlesztéscsökkentő fiók'!$J$10,0,'Lakás Törlesztéscsökkentő fiók'!$J$11) -> 0 | G156: =IF(OR(A156>'Lakás Törlesztéscsökkentő fiók'!$J$10,'Lakás Törlesztéscsökkentő fiók'!$B$24='Lakás Törlesztéscsökkentő fiók'!$T$5),0,'Lakás Törlesztéscsökkentő fiók'!$J$12+'Lakás Törlesztéscsökkentő fiók'!$J$13) -> 0 | H156: 0 | K156: 0 | L156: =IRR($K$2:K156,0.05) -> 
A157: 155 | C157: =B157*'Lakás Törlesztéscsökkentő fiók'!$B$27/12 ->  | D157: =IF(A157>'Lakás Törlesztéscsökkentő fiók'!$J$10,0,'Lakás Törlesztéscsökkentő fiók'!$B$28) -> 0 | F157: =IF(A157>'Lakás Törlesztéscsökkentő fiók'!$J$10,0,'Lakás Törlesztéscsökkentő fiók'!$J$11) -> 0 | G157: =IF(OR(A157>'Lakás Törlesztéscsökkentő fiók'!$J$10,'Lakás Törlesztéscsökkentő fiók'!$B$24='Lakás Törlesztéscsökkentő fiók'!$T$5),0,'Lakás Törlesztéscsökkentő fiók'!$J$12+'Lakás Törlesztéscsökkentő fiók'!$J$13) -> 0 | H157: 0 | K157: 0 | L157: =IRR($K$2:K157,0.05) -> 
A158: 156 | C158: =B158*'Lakás Törlesztéscsökkentő fiók'!$B$27/12 ->  | D158: =IF(A158>'Lakás Törlesztéscsökkentő fiók'!$J$10,0,'Lakás Törlesztéscsökkentő fiók'!$B$28) -> 0 | F158: =IF(A158>'Lakás Törlesztéscsökkentő fiók'!$J$10,0,'Lakás Törlesztéscsökkentő fiók'!$J$11) -> 0 | G158: =IF(OR(A158>'Lakás Törlesztéscsökkentő fiók'!$J$10,'Lakás Törlesztéscsökkentő fiók'!$B$24='Lakás Törlesztéscsökkentő fiók'!$T$5),0,'Lakás Törlesztéscsökkentő fiók'!$J$12+'Lakás Törlesztéscsökkentő fiók'!$J$13) -> 0 | H158: 0 | K158: 0 | L158: =IRR($K$2:K158,0.05) -> 
A159: 157 | C159: =B159*'Lakás Törlesztéscsökkentő fiók'!$B$27/12 ->  | D159: =IF(A159>'Lakás Törlesztéscsökkentő fiók'!$J$10,0,'Lakás Törlesztéscsökkentő fiók'!$B$28) -> 0 | F159: =IF(A159>'Lakás Törlesztéscsökkentő fiók'!$J$10,0,'Lakás Törlesztéscsökkentő fiók'!$J$11) -> 0 | G159: =IF(OR(A159>'Lakás Törlesztéscsökkentő fiók'!$J$10,'Lakás Törlesztéscsökkentő fiók'!$B$24='Lakás Törlesztéscsökkentő fiók'!$T$5),0,'Lakás Törlesztéscsökkentő fiók'!$J$12+'Lakás Törlesztéscsökkentő fiók'!$J$13) -> 0 | H159: 0 | K159: 0 | L159: =IRR($K$2:K159,0.05) -> 
A160: 158 | C160: =B160*'Lakás Törlesztéscsökkentő fiók'!$B$27/12 ->  | D160: =IF(A160>'Lakás Törlesztéscsökkentő fiók'!$J$10,0,'Lakás Törlesztéscsökkentő fiók'!$B$28) -> 0 | F160: =IF(A160>'Lakás Törlesztéscsökkentő fiók'!$J$10,0,'Lakás Törlesztéscsökkentő fiók'!$J$11) -> 0 | G160: =IF(OR(A160>'Lakás Törlesztéscsökkentő fiók'!$J$10,'Lakás Törlesztéscsökkentő fiók'!$B$24='Lakás Törlesztéscsökkentő fiók'!$T$5),0,'Lakás Törlesztéscsökkentő fiók'!$J$12+'Lakás Törlesztéscsökkentő fiók'!$J$13) -> 0 | H160: 0 | K160: 0 | L160: =IRR($K$2:K160,0.05) -> 
A161: 159 | C161: =B161*'Lakás Törlesztéscsökkentő fiók'!$B$27/12 ->  | D161: =IF(A161>'Lakás Törlesztéscsökkentő fiók'!$J$10,0,'Lakás Törlesztéscsökkentő fiók'!$B$28) -> 0 | F161: =IF(A161>'Lakás Törlesztéscsökkentő fiók'!$J$10,0,'Lakás Törlesztéscsökkentő fiók'!$J$11) -> 0 | G161: =IF(OR(A161>'Lakás Törlesztéscsökkentő fiók'!$J$10,'Lakás Törlesztéscsökkentő fiók'!$B$24='Lakás Törlesztéscsökkentő fiók'!$T$5),0,'Lakás Törlesztéscsökkentő fiók'!$J$12+'Lakás Törlesztéscsökkentő fiók'!$J$13) -> 0 | H161: 0 | K161: 0 | L161: =IRR($K$2:K161,0.05) -> 
A162: 160 | C162: =B162*'Lakás Törlesztéscsökkentő fiók'!$B$27/12 ->  | D162: =IF(A162>'Lakás Törlesztéscsökkentő fiók'!$J$10,0,'Lakás Törlesztéscsökkentő fiók'!$B$28) -> 0 | F162: =IF(A162>'Lakás Törlesztéscsökkentő fiók'!$J$10,0,'Lakás Törlesztéscsökkentő fiók'!$J$11) -> 0 | G162: =IF(OR(A162>'Lakás Törlesztéscsökkentő fiók'!$J$10,'Lakás Törlesztéscsökkentő fiók'!$B$24='Lakás Törlesztéscsökkentő fiók'!$T$5),0,'Lakás Törlesztéscsökkentő fiók'!$J$12+'Lakás Törlesztéscsökkentő fiók'!$J$13) -> 0 | H162: 0 | K162: 0 | L162: =IRR($K$2:K162,0.05) -> 
A163: 161 | C163: =B163*'Lakás Törlesztéscsökkentő fiók'!$B$27/12 ->  | D163: =IF(A163>'Lakás Törlesztéscsökkentő fiók'!$J$10,0,'Lakás Törlesztéscsökkentő fiók'!$B$28) -> 0 | F163: =IF(A163>'Lakás Törlesztéscsökkentő fiók'!$J$10,0,'Lakás Törlesztéscsökkentő fiók'!$J$11) -> 0 | G163: =IF(OR(A163>'Lakás Törlesztéscsökkentő fiók'!$J$10,'Lakás Törlesztéscsökkentő fiók'!$B$24='Lakás Törlesztéscsökkentő fiók'!$T$5),0,'Lakás Törlesztéscsökkentő fiók'!$J$12+'Lakás Törlesztéscsökkentő fiók'!$J$13) -> 0 | H163: 0 | K163: 0 | L163: =IRR($K$2:K163,0.05) -> 
A164: 162 | C164: =B164*'Lakás Törlesztéscsökkentő fiók'!$B$27/12 ->  | D164: =IF(A164>'Lakás Törlesztéscsökkentő fiók'!$J$10,0,'Lakás Törlesztéscsökkentő fiók'!$B$28) -> 0 | F164: =IF(A164>'Lakás Törlesztéscsökkentő fiók'!$J$10,0,'Lakás Törlesztéscsökkentő fiók'!$J$11) -> 0 | G164: =IF(OR(A164>'Lakás Törlesztéscsökkentő fiók'!$J$10,'Lakás Törlesztéscsökkentő fiók'!$B$24='Lakás Törlesztéscsökkentő fiók'!$T$5),0,'Lakás Törlesztéscsökkentő fiók'!$J$12+'Lakás Törlesztéscsökkentő fiók'!$J$13) -> 0 | H164: 0 | K164: 0 | L164: =IRR($K$2:K164,0.05) -> 
A165: 163 | C165: =B165*'Lakás Törlesztéscsökkentő fiók'!$B$27/12 ->  | D165: =IF(A165>'Lakás Törlesztéscsökkentő fiók'!$J$10,0,'Lakás Törlesztéscsökkentő fiók'!$B$28) -> 0 | F165: =IF(A165>'Lakás Törlesztéscsökkentő fiók'!$J$10,0,'Lakás Törlesztéscsökkentő fiók'!$J$11) -> 0 | G165: =IF(OR(A165>'Lakás Törlesztéscsökkentő fiók'!$J$10,'Lakás Törlesztéscsökkentő fiók'!$B$24='Lakás Törlesztéscsökkentő fiók'!$T$5),0,'Lakás Törlesztéscsökkentő fiók'!$J$12+'Lakás Törlesztéscsökkentő fiók'!$J$13) -> 0 | H165: 0 | K165: 0 | L165: =IRR($K$2:K165,0.05) -> 
A166: 164 | C166: =B166*'Lakás Törlesztéscsökkentő fiók'!$B$27/12 ->  | D166: =IF(A166>'Lakás Törlesztéscsökkentő fiók'!$J$10,0,'Lakás Törlesztéscsökkentő fiók'!$B$28) -> 0 | F166: =IF(A166>'Lakás Törlesztéscsökkentő fiók'!$J$10,0,'Lakás Törlesztéscsökkentő fiók'!$J$11) -> 0 | G166: =IF(OR(A166>'Lakás Törlesztéscsökkentő fiók'!$J$10,'Lakás Törlesztéscsökkentő fiók'!$B$24='Lakás Törlesztéscsökkentő fiók'!$T$5),0,'Lakás Törlesztéscsökkentő fiók'!$J$12+'Lakás Törlesztéscsökkentő fiók'!$J$13) -> 0 | H166: 0 | K166: 0 | L166: =IRR($K$2:K166,0.05) -> 
A167: 165 | C167: =B167*'Lakás Törlesztéscsökkentő fiók'!$B$27/12 ->  | D167: =IF(A167>'Lakás Törlesztéscsökkentő fiók'!$J$10,0,'Lakás Törlesztéscsökkentő fiók'!$B$28) -> 0 | F167: =IF(A167>'Lakás Törlesztéscsökkentő fiók'!$J$10,0,'Lakás Törlesztéscsökkentő fiók'!$J$11) -> 0 | G167: =IF(OR(A167>'Lakás Törlesztéscsökkentő fiók'!$J$10,'Lakás Törlesztéscsökkentő fiók'!$B$24='Lakás Törlesztéscsökkentő fiók'!$T$5),0,'Lakás Törlesztéscsökkentő fiók'!$J$12+'Lakás Törlesztéscsökkentő fiók'!$J$13) -> 0 | H167: 0 | K167: 0 | L167: =IRR($K$2:K167,0.05) -> 
A168: 166 | C168: =B168*'Lakás Törlesztéscsökkentő fiók'!$B$27/12 ->  | D168: =IF(A168>'Lakás Törlesztéscsökkentő fiók'!$J$10,0,'Lakás Törlesztéscsökkentő fiók'!$B$28) -> 0 | F168: =IF(A168>'Lakás Törlesztéscsökkentő fiók'!$J$10,0,'Lakás Törlesztéscsökkentő fiók'!$J$11) -> 0 | G168: =IF(OR(A168>'Lakás Törlesztéscsökkentő fiók'!$J$10,'Lakás Törlesztéscsökkentő fiók'!$B$24='Lakás Törlesztéscsökkentő fiók'!$T$5),0,'Lakás Törlesztéscsökkentő fiók'!$J$12+'Lakás Törlesztéscsökkentő fiók'!$J$13) -> 0 | H168: 0 | K168: 0 | L168: =IRR($K$2:K168,0.05) -> 
A169: 167 | C169: =B169*'Lakás Törlesztéscsökkentő fiók'!$B$27/12 ->  | D169: =IF(A169>'Lakás Törlesztéscsökkentő fiók'!$J$10,0,'Lakás Törlesztéscsökkentő fiók'!$B$28) -> 0 | F169: =IF(A169>'Lakás Törlesztéscsökkentő fiók'!$J$10,0,'Lakás Törlesztéscsökkentő fiók'!$J$11) -> 0 | G169: =IF(OR(A169>'Lakás Törlesztéscsökkentő fiók'!$J$10,'Lakás Törlesztéscsökkentő fiók'!$B$24='Lakás Törlesztéscsökkentő fiók'!$T$5),0,'Lakás Törlesztéscsökkentő fiók'!$J$12+'Lakás Törlesztéscsökkentő fiók'!$J$13) -> 0 | H169: 0 | K169: 0 | L169: =IRR($K$2:K169,0.05) -> 
A170: 168 | C170: =B170*'Lakás Törlesztéscsökkentő fiók'!$B$27/12 ->  | D170: =IF(A170>'Lakás Törlesztéscsökkentő fiók'!$J$10,0,'Lakás Törlesztéscsökkentő fiók'!$B$28) -> 0 | F170: =IF(A170>'Lakás Törlesztéscsökkentő fiók'!$J$10,0,'Lakás Törlesztéscsökkentő fiók'!$J$11) -> 0 | G170: =IF(OR(A170>'Lakás Törlesztéscsökkentő fiók'!$J$10,'Lakás Törlesztéscsökkentő fiók'!$B$24='Lakás Törlesztéscsökkentő fiók'!$T$5),0,'Lakás Törlesztéscsökkentő fiók'!$J$12+'Lakás Törlesztéscsökkentő fiók'!$J$13) -> 0 | H170: 0 | K170: 0 | L170: =IRR($K$2:K170,0.05) -> 
A171: 169 | C171: =B171*'Lakás Törlesztéscsökkentő fiók'!$B$27/12 ->  | D171: =IF(A171>'Lakás Törlesztéscsökkentő fiók'!$J$10,0,'Lakás Törlesztéscsökkentő fiók'!$B$28) -> 0 | F171: =IF(A171>'Lakás Törlesztéscsökkentő fiók'!$J$10,0,'Lakás Törlesztéscsökkentő fiók'!$J$11) -> 0 | G171: =IF(OR(A171>'Lakás Törlesztéscsökkentő fiók'!$J$10,'Lakás Törlesztéscsökkentő fiók'!$B$24='Lakás Törlesztéscsökkentő fiók'!$T$5),0,'Lakás Törlesztéscsökkentő fiók'!$J$12+'Lakás Törlesztéscsökkentő fiók'!$J$13) -> 0 | H171: 0 | K171: 0 | L171: =IRR($K$2:K171,0.05) -> 
A172: 170 | C172: =B172*'Lakás Törlesztéscsökkentő fiók'!$B$27/12 ->  | D172: =IF(A172>'Lakás Törlesztéscsökkentő fiók'!$J$10,0,'Lakás Törlesztéscsökkentő fiók'!$B$28) -> 0 | F172: =IF(A172>'Lakás Törlesztéscsökkentő fiók'!$J$10,0,'Lakás Törlesztéscsökkentő fiók'!$J$11) -> 0 | G172: =IF(OR(A172>'Lakás Törlesztéscsökkentő fiók'!$J$10,'Lakás Törlesztéscsökkentő fiók'!$B$24='Lakás Törlesztéscsökkentő fiók'!$T$5),0,'Lakás Törlesztéscsökkentő fiók'!$J$12+'Lakás Törlesztéscsökkentő fiók'!$J$13) -> 0 | H172: 0 | K172: 0 | L172: =IRR($K$2:K172,0.05) -> 
A173: 171 | C173: =B173*'Lakás Törlesztéscsökkentő fiók'!$B$27/12 ->  | D173: =IF(A173>'Lakás Törlesztéscsökkentő fiók'!$J$10,0,'Lakás Törlesztéscsökkentő fiók'!$B$28) -> 0 | F173: =IF(A173>'Lakás Törlesztéscsökkentő fiók'!$J$10,0,'Lakás Törlesztéscsökkentő fiók'!$J$11) -> 0 | G173: =IF(OR(A173>'Lakás Törlesztéscsökkentő fiók'!$J$10,'Lakás Törlesztéscsökkentő fiók'!$B$24='Lakás Törlesztéscsökkentő fiók'!$T$5),0,'Lakás Törlesztéscsökkentő fiók'!$J$12+'Lakás Törlesztéscsökkentő fiók'!$J$13) -> 0 | H173: 0 | K173: 0 | L173: =IRR($K$2:K173,0.05) -> 
A174: 172 | C174: =B174*'Lakás Törlesztéscsökkentő fiók'!$B$27/12 ->  | D174: =IF(A174>'Lakás Törlesztéscsökkentő fiók'!$J$10,0,'Lakás Törlesztéscsökkentő fiók'!$B$28) -> 0 | F174: =IF(A174>'Lakás Törlesztéscsökkentő fiók'!$J$10,0,'Lakás Törlesztéscsökkentő fiók'!$J$11) -> 0 | G174: =IF(OR(A174>'Lakás Törlesztéscsökkentő fiók'!$J$10,'Lakás Törlesztéscsökkentő fiók'!$B$24='Lakás Törlesztéscsökkentő fiók'!$T$5),0,'Lakás Törlesztéscsökkentő fiók'!$J$12+'Lakás Törlesztéscsökkentő fiók'!$J$13) -> 0 | H174: 0 | K174: 0 | L174: =IRR($K$2:K174,0.05) -> 
A175: 173 | C175: =B175*'Lakás Törlesztéscsökkentő fiók'!$B$27/12 ->  | D175: =IF(A175>'Lakás Törlesztéscsökkentő fiók'!$J$10,0,'Lakás Törlesztéscsökkentő fiók'!$B$28) -> 0 | F175: =IF(A175>'Lakás Törlesztéscsökkentő fiók'!$J$10,0,'Lakás Törlesztéscsökkentő fiók'!$J$11) -> 0 | G175: =IF(OR(A175>'Lakás Törlesztéscsökkentő fiók'!$J$10,'Lakás Törlesztéscsökkentő fiók'!$B$24='Lakás Törlesztéscsökkentő fiók'!$T$5),0,'Lakás Törlesztéscsökkentő fiók'!$J$12+'Lakás Törlesztéscsökkentő fiók'!$J$13) -> 0 | H175: 0 | K175: 0 | L175: =IRR($K$2:K175,0.05) -> 
A176: 174 | C176: =B176*'Lakás Törlesztéscsökkentő fiók'!$B$27/12 ->  | D176: =IF(A176>'Lakás Törlesztéscsökkentő fiók'!$J$10,0,'Lakás Törlesztéscsökkentő fiók'!$B$28) -> 0 | F176: =IF(A176>'Lakás Törlesztéscsökkentő fiók'!$J$10,0,'Lakás Törlesztéscsökkentő fiók'!$J$11) -> 0 | G176: =IF(OR(A176>'Lakás Törlesztéscsökkentő fiók'!$J$10,'Lakás Törlesztéscsökkentő fiók'!$B$24='Lakás Törlesztéscsökkentő fiók'!$T$5),0,'Lakás Törlesztéscsökkentő fiók'!$J$12+'Lakás Törlesztéscsökkentő fiók'!$J$13) -> 0 | H176: 0 | K176: 0 | L176: =IRR($K$2:K176,0.05) -> 
A177: 175 | C177: =B177*'Lakás Törlesztéscsökkentő fiók'!$B$27/12 ->  | D177: =IF(A177>'Lakás Törlesztéscsökkentő fiók'!$J$10,0,'Lakás Törlesztéscsökkentő fiók'!$B$28) -> 0 | F177: =IF(A177>'Lakás Törlesztéscsökkentő fiók'!$J$10,0,'Lakás Törlesztéscsökkentő fiók'!$J$11) -> 0 | G177: =IF(OR(A177>'Lakás Törlesztéscsökkentő fiók'!$J$10,'Lakás Törlesztéscsökkentő fiók'!$B$24='Lakás Törlesztéscsökkentő fiók'!$T$5),0,'Lakás Törlesztéscsökkentő fiók'!$J$12+'Lakás Törlesztéscsökkentő fiók'!$J$13) -> 0 | H177: 0 | K177: 0 | L177: =IRR($K$2:K177,0.05) -> 
A178: 176 | C178: =B178*'Lakás Törlesztéscsökkentő fiók'!$B$27/12 ->  | D178: =IF(A178>'Lakás Törlesztéscsökkentő fiók'!$J$10,0,'Lakás Törlesztéscsökkentő fiók'!$B$28) -> 0 | F178: =IF(A178>'Lakás Törlesztéscsökkentő fiók'!$J$10,0,'Lakás Törlesztéscsökkentő fiók'!$J$11) -> 0 | G178: =IF(OR(A178>'Lakás Törlesztéscsökkentő fiók'!$J$10,'Lakás Törlesztéscsökkentő fiók'!$B$24='Lakás Törlesztéscsökkentő fiók'!$T$5),0,'Lakás Törlesztéscsökkentő fiók'!$J$12+'Lakás Törlesztéscsökkentő fiók'!$J$13) -> 0 | H178: 0 | K178: 0 | L178: =IRR($K$2:K178,0.05) -> 
A179: 177 | C179: =B179*'Lakás Törlesztéscsökkentő fiók'!$B$27/12 ->  | D179: =IF(A179>'Lakás Törlesztéscsökkentő fiók'!$J$10,0,'Lakás Törlesztéscsökkentő fiók'!$B$28) -> 0 | F179: =IF(A179>'Lakás Törlesztéscsökkentő fiók'!$J$10,0,'Lakás Törlesztéscsökkentő fiók'!$J$11) -> 0 | G179: =IF(OR(A179>'Lakás Törlesztéscsökkentő fiók'!$J$10,'Lakás Törlesztéscsökkentő fiók'!$B$24='Lakás Törlesztéscsökkentő fiók'!$T$5),0,'Lakás Törlesztéscsökkentő fiók'!$J$12+'Lakás Törlesztéscsökkentő fiók'!$J$13) -> 0 | H179: 0 | K179: 0 | L179: =IRR($K$2:K179,0.05) -> 
A180: 178 | C180: =B180*'Lakás Törlesztéscsökkentő fiók'!$B$27/12 ->  | D180: =IF(A180>'Lakás Törlesztéscsökkentő fiók'!$J$10,0,'Lakás Törlesztéscsökkentő fiók'!$B$28) -> 0 | F180: =IF(A180>'Lakás Törlesztéscsökkentő fiók'!$J$10,0,'Lakás Törlesztéscsökkentő fiók'!$J$11) -> 0 | G180: =IF(OR(A180>'Lakás Törlesztéscsökkentő fiók'!$J$10,'Lakás Törlesztéscsökkentő fiók'!$B$24='Lakás Törlesztéscsökkentő fiók'!$T$5),0,'Lakás Törlesztéscsökkentő fiók'!$J$12+'Lakás Törlesztéscsökkentő fiók'!$J$13) -> 0 | H180: 0 | K180: 0 | L180: =IRR($K$2:K180,0.05) -> 
A181: 179 | C181: =B181*'Lakás Törlesztéscsökkentő fiók'!$B$27/12 ->  | D181: =IF(A181>'Lakás Törlesztéscsökkentő fiók'!$J$10,0,'Lakás Törlesztéscsökkentő fiók'!$B$28) -> 0 | F181: =IF(A181>'Lakás Törlesztéscsökkentő fiók'!$J$10,0,'Lakás Törlesztéscsökkentő fiók'!$J$11) -> 0 | G181: =IF(OR(A181>'Lakás Törlesztéscsökkentő fiók'!$J$10,'Lakás Törlesztéscsökkentő fiók'!$B$24='Lakás Törlesztéscsökkentő fiók'!$T$5),0,'Lakás Törlesztéscsökkentő fiók'!$J$12+'Lakás Törlesztéscsökkentő fiók'!$J$13) -> 0 | H181: 0 | K181: 0 | L181: =IRR($K$2:K181,0.05) -> 
A182: 180 | C182: =B182*'Lakás Törlesztéscsökkentő fiók'!$B$27/12 ->  | D182: =IF(A182>'Lakás Törlesztéscsökkentő fiók'!$J$10,0,'Lakás Törlesztéscsökkentő fiók'!$B$28) -> 0 | F182: =IF(A182>'Lakás Törlesztéscsökkentő fiók'!$J$10,0,'Lakás Törlesztéscsökkentő fiók'!$J$11) -> 0 | G182: =IF(OR(A182>'Lakás Törlesztéscsökkentő fiók'!$J$10,'Lakás Törlesztéscsökkentő fiók'!$B$24='Lakás Törlesztéscsökkentő fiók'!$T$5),0,'Lakás Törlesztéscsökkentő fiók'!$J$12+'Lakás Törlesztéscsökkentő fiók'!$J$13) -> 0 | H182: 0 | K182: 0 | L182: =IRR($K$2:K182,0.05) -> 
A183: 181 | C183: =B183*'Lakás Törlesztéscsökkentő fiók'!$B$27/12 ->  | D183: =IF(A183>'Lakás Törlesztéscsökkentő fiók'!$J$10,0,'Lakás Törlesztéscsökkentő fiók'!$B$28) -> 0 | F183: =IF(A183>'Lakás Törlesztéscsökkentő fiók'!$J$10,0,'Lakás Törlesztéscsökkentő fiók'!$J$11) -> 0 | G183: =IF(OR(A183>'Lakás Törlesztéscsökkentő fiók'!$J$10,'Lakás Törlesztéscsökkentő fiók'!$B$24='Lakás Törlesztéscsökkentő fiók'!$T$5),0,'Lakás Törlesztéscsökkentő fiók'!$J$12+'Lakás Törlesztéscsökkentő fiók'!$J$13) -> 0 | H183: 0 | K183: 0 | L183: =IRR($K$2:K183,0.05) -> 
A184: 182 | C184: =B184*'Lakás Törlesztéscsökkentő fiók'!$B$27/12 ->  | D184: =IF(A184>'Lakás Törlesztéscsökkentő fiók'!$J$10,0,'Lakás Törlesztéscsökkentő fiók'!$B$28) -> 0 | F184: =IF(A184>'Lakás Törlesztéscsökkentő fiók'!$J$10,0,'Lakás Törlesztéscsökkentő fiók'!$J$11) -> 0 | G184: =IF(OR(A184>'Lakás Törlesztéscsökkentő fiók'!$J$10,'Lakás Törlesztéscsökkentő fiók'!$B$24='Lakás Törlesztéscsökkentő fiók'!$T$5),0,'Lakás Törlesztéscsökkentő fiók'!$J$12+'Lakás Törlesztéscsökkentő fiók'!$J$13) -> 0 | H184: 0 | K184: 0 | L184: =IRR($K$2:K184,0.05) -> 
A185: 183 | C185: =B185*'Lakás Törlesztéscsökkentő fiók'!$B$27/12 ->  | D185: =IF(A185>'Lakás Törlesztéscsökkentő fiók'!$J$10,0,'Lakás Törlesztéscsökkentő fiók'!$B$28) -> 0 | F185: =IF(A185>'Lakás Törlesztéscsökkentő fiók'!$J$10,0,'Lakás Törlesztéscsökkentő fiók'!$J$11) -> 0 | G185: =IF(OR(A185>'Lakás Törlesztéscsökkentő fiók'!$J$10,'Lakás Törlesztéscsökkentő fiók'!$B$24='Lakás Törlesztéscsökkentő fiók'!$T$5),0,'Lakás Törlesztéscsökkentő fiók'!$J$12+'Lakás Törlesztéscsökkentő fiók'!$J$13) -> 0 | H185: 0 | K185: 0 | L185: =IRR($K$2:K185,0.05) -> 
A186: 184 | C186: =B186*'Lakás Törlesztéscsökkentő fiók'!$B$27/12 ->  | D186: =IF(A186>'Lakás Törlesztéscsökkentő fiók'!$J$10,0,'Lakás Törlesztéscsökkentő fiók'!$B$28) -> 0 | F186: =IF(A186>'Lakás Törlesztéscsökkentő fiók'!$J$10,0,'Lakás Törlesztéscsökkentő fiók'!$J$11) -> 0 | G186: =IF(OR(A186>'Lakás Törlesztéscsökkentő fiók'!$J$10,'Lakás Törlesztéscsökkentő fiók'!$B$24='Lakás Törlesztéscsökkentő fiók'!$T$5),0,'Lakás Törlesztéscsökkentő fiók'!$J$12+'Lakás Törlesztéscsökkentő fiók'!$J$13) -> 0 | H186: 0 | K186: 0 | L186: =IRR($K$2:K186,0.05) -> 
A187: 185 | C187: =B187*'Lakás Törlesztéscsökkentő fiók'!$B$27/12 ->  | D187: =IF(A187>'Lakás Törlesztéscsökkentő fiók'!$J$10,0,'Lakás Törlesztéscsökkentő fiók'!$B$28) -> 0 | F187: =IF(A187>'Lakás Törlesztéscsökkentő fiók'!$J$10,0,'Lakás Törlesztéscsökkentő fiók'!$J$11) -> 0 | G187: =IF(OR(A187>'Lakás Törlesztéscsökkentő fiók'!$J$10,'Lakás Törlesztéscsökkentő fiók'!$B$24='Lakás Törlesztéscsökkentő fiók'!$T$5),0,'Lakás Törlesztéscsökkentő fiók'!$J$12+'Lakás Törlesztéscsökkentő fiók'!$J$13) -> 0 | H187: 0 | K187: 0 | L187: =IRR($K$2:K187,0.05) -> 
A188: 186 | C188: =B188*'Lakás Törlesztéscsökkentő fiók'!$B$27/12 ->  | D188: =IF(A188>'Lakás Törlesztéscsökkentő fiók'!$J$10,0,'Lakás Törlesztéscsökkentő fiók'!$B$28) -> 0 | F188: =IF(A188>'Lakás Törlesztéscsökkentő fiók'!$J$10,0,'Lakás Törlesztéscsökkentő fiók'!$J$11) -> 0 | G188: =IF(OR(A188>'Lakás Törlesztéscsökkentő fiók'!$J$10,'Lakás Törlesztéscsökkentő fiók'!$B$24='Lakás Törlesztéscsökkentő fiók'!$T$5),0,'Lakás Törlesztéscsökkentő fiók'!$J$12+'Lakás Törlesztéscsökkentő fiók'!$J$13) -> 0 | H188: 0 | K188: 0 | L188: =IRR($K$2:K188,0.05) -> 
A189: 187 | C189: =B189*'Lakás Törlesztéscsökkentő fiók'!$B$27/12 ->  | D189: =IF(A189>'Lakás Törlesztéscsökkentő fiók'!$J$10,0,'Lakás Törlesztéscsökkentő fiók'!$B$28) -> 0 | F189: =IF(A189>'Lakás Törlesztéscsökkentő fiók'!$J$10,0,'Lakás Törlesztéscsökkentő fiók'!$J$11) -> 0 | G189: =IF(OR(A189>'Lakás Törlesztéscsökkentő fiók'!$J$10,'Lakás Törlesztéscsökkentő fiók'!$B$24='Lakás Törlesztéscsökkentő fiók'!$T$5),0,'Lakás Törlesztéscsökkentő fiók'!$J$12+'Lakás Törlesztéscsökkentő fiók'!$J$13) -> 0 | H189: 0 | K189: 0 | L189: =IRR($K$2:K189,0.05) -> 
A190: 188 | C190: =B190*'Lakás Törlesztéscsökkentő fiók'!$B$27/12 ->  | D190: =IF(A190>'Lakás Törlesztéscsökkentő fiók'!$J$10,0,'Lakás Törlesztéscsökkentő fiók'!$B$28) -> 0 | F190: =IF(A190>'Lakás Törlesztéscsökkentő fiók'!$J$10,0,'Lakás Törlesztéscsökkentő fiók'!$J$11) -> 0 | G190: =IF(OR(A190>'Lakás Törlesztéscsökkentő fiók'!$J$10,'Lakás Törlesztéscsökkentő fiók'!$B$24='Lakás Törlesztéscsökkentő fiók'!$T$5),0,'Lakás Törlesztéscsökkentő fiók'!$J$12+'Lakás Törlesztéscsökkentő fiók'!$J$13) -> 0 | H190: 0 | K190: 0 | L190: =IRR($K$2:K190,0.05) -> 
A191: 189 | C191: =B191*'Lakás Törlesztéscsökkentő fiók'!$B$27/12 ->  | D191: =IF(A191>'Lakás Törlesztéscsökkentő fiók'!$J$10,0,'Lakás Törlesztéscsökkentő fiók'!$B$28) -> 0 | F191: =IF(A191>'Lakás Törlesztéscsökkentő fiók'!$J$10,0,'Lakás Törlesztéscsökkentő fiók'!$J$11) -> 0 | G191: =IF(OR(A191>'Lakás Törlesztéscsökkentő fiók'!$J$10,'Lakás Törlesztéscsökkentő fiók'!$B$24='Lakás Törlesztéscsökkentő fiók'!$T$5),0,'Lakás Törlesztéscsökkentő fiók'!$J$12+'Lakás Törlesztéscsökkentő fiók'!$J$13) -> 0 | H191: 0 | K191: 0 | L191: =IRR($K$2:K191,0.05) -> 
A192: 190 | C192: =B192*'Lakás Törlesztéscsökkentő fiók'!$B$27/12 ->  | D192: =IF(A192>'Lakás Törlesztéscsökkentő fiók'!$J$10,0,'Lakás Törlesztéscsökkentő fiók'!$B$28) -> 0 | F192: =IF(A192>'Lakás Törlesztéscsökkentő fiók'!$J$10,0,'Lakás Törlesztéscsökkentő fiók'!$J$11) -> 0 | G192: =IF(OR(A192>'Lakás Törlesztéscsökkentő fiók'!$J$10,'Lakás Törlesztéscsökkentő fiók'!$B$24='Lakás Törlesztéscsökkentő fiók'!$T$5),0,'Lakás Törlesztéscsökkentő fiók'!$J$12+'Lakás Törlesztéscsökkentő fiók'!$J$13) -> 0 | H192: 0 | K192: 0 | L192: =IRR($K$2:K192,0.05) -> 
A193: 191 | C193: =B193*'Lakás Törlesztéscsökkentő fiók'!$B$27/12 ->  | D193: =IF(A193>'Lakás Törlesztéscsökkentő fiók'!$J$10,0,'Lakás Törlesztéscsökkentő fiók'!$B$28) -> 0 | F193: =IF(A193>'Lakás Törlesztéscsökkentő fiók'!$J$10,0,'Lakás Törlesztéscsökkentő fiók'!$J$11) -> 0 | G193: =IF(OR(A193>'Lakás Törlesztéscsökkentő fiók'!$J$10,'Lakás Törlesztéscsökkentő fiók'!$B$24='Lakás Törlesztéscsökkentő fiók'!$T$5),0,'Lakás Törlesztéscsökkentő fiók'!$J$12+'Lakás Törlesztéscsökkentő fiók'!$J$13) -> 0 | H193: 0 | K193: 0 | L193: =IRR($K$2:K193,0.05) -> 
A194: 192 | C194: =B194*'Lakás Törlesztéscsökkentő fiók'!$B$27/12 ->  | D194: =IF(A194>'Lakás Törlesztéscsökkentő fiók'!$J$10,0,'Lakás Törlesztéscsökkentő fiók'!$B$28) -> 0 | F194: =IF(A194>'Lakás Törlesztéscsökkentő fiók'!$J$10,0,'Lakás Törlesztéscsökkentő fiók'!$J$11) -> 0 | G194: =IF(OR(A194>'Lakás Törlesztéscsökkentő fiók'!$J$10,'Lakás Törlesztéscsökkentő fiók'!$B$24='Lakás Törlesztéscsökkentő fiók'!$T$5),0,'Lakás Törlesztéscsökkentő fiók'!$J$12+'Lakás Törlesztéscsökkentő fiók'!$J$13) -> 0 | H194: 0 | K194: 0 | L194: =IRR($K$2:K194,0.05) -> 
A195: 193 | C195: =B195*'Lakás Törlesztéscsökkentő fiók'!$B$27/12 ->  | D195: =IF(A195>'Lakás Törlesztéscsökkentő fiók'!$J$10,0,'Lakás Törlesztéscsökkentő fiók'!$B$28) -> 0 | F195: =IF(A195>'Lakás Törlesztéscsökkentő fiók'!$J$10,0,'Lakás Törlesztéscsökkentő fiók'!$J$11) -> 0 | G195: =IF(OR(A195>'Lakás Törlesztéscsökkentő fiók'!$J$10,'Lakás Törlesztéscsökkentő fiók'!$B$24='Lakás Törlesztéscsökkentő fiók'!$T$5),0,'Lakás Törlesztéscsökkentő fiók'!$J$12+'Lakás Törlesztéscsökkentő fiók'!$J$13) -> 0 | H195: 0 | K195: 0 | L195: =IRR($K$2:K195,0.05) -> 
A196: 194 | C196: =B196*'Lakás Törlesztéscsökkentő fiók'!$B$27/12 ->  | D196: =IF(A196>'Lakás Törlesztéscsökkentő fiók'!$J$10,0,'Lakás Törlesztéscsökkentő fiók'!$B$28) -> 0 | E196: =+B196+C196-D196 ->  | F196: =IF(A196>'Lakás Törlesztéscsökkentő fiók'!$J$10,0,'Lakás Törlesztéscsökkentő fiók'!$J$11) -> 0 | G196: =IF(OR(A196>'Lakás Törlesztéscsökkentő fiók'!$J$10,'Lakás Törlesztéscsökkentő fiók'!$B$24='Lakás Törlesztéscsökkentő fiók'!$T$5),0,'Lakás Törlesztéscsökkentő fiók'!$J$12+'Lakás Törlesztéscsökkentő fiók'!$J$13) -> 0 | H196: 0 | K196: =D196+F196+G196 -> 0 | L196: =IRR($K$2:K196,0.05) -> 
A197: =+A196+1 -> 195 | B197: =+E196 ->  | C197: =B197*'Lakás Törlesztéscsökkentő fiók'!$B$27/12 ->  | D197: =IF(A197>'Lakás Törlesztéscsökkentő fiók'!$J$10,0,'Lakás Törlesztéscsökkentő fiók'!$B$28) -> 0 | F197: =IF(A197>'Lakás Törlesztéscsökkentő fiók'!$J$10,0,'Lakás Törlesztéscsökkentő fiók'!$J$11) -> 0 | G197: =IF(OR(A197>'Lakás Törlesztéscsökkentő fiók'!$J$10,'Lakás Törlesztéscsökkentő fiók'!$B$24='Lakás Törlesztéscsökkentő fiók'!$T$5),0,'Lakás Törlesztéscsökkentő fiók'!$J$12+'Lakás Törlesztéscsökkentő fiók'!$J$13) -> 0 | H197: =H196+(D197+F197+G197)/(1+$H$1)^(A197/12) -> 0 | K197: 0 | L197: =IRR($K$2:K197,0.05) -> 
A198: 196 | C198: =B198*'Lakás Törlesztéscsökkentő fiók'!$B$27/12 ->  | D198: =IF(A198>'Lakás Törlesztéscsökkentő fiók'!$J$10,0,'Lakás Törlesztéscsökkentő fiók'!$B$28) -> 0 | F198: =IF(A198>'Lakás Törlesztéscsökkentő fiók'!$J$10,0,'Lakás Törlesztéscsökkentő fiók'!$J$11) -> 0 | G198: =IF(OR(A198>'Lakás Törlesztéscsökkentő fiók'!$J$10,'Lakás Törlesztéscsökkentő fiók'!$B$24='Lakás Törlesztéscsökkentő fiók'!$T$5),0,'Lakás Törlesztéscsökkentő fiók'!$J$12+'Lakás Törlesztéscsökkentő fiók'!$J$13) -> 0 | H198: 0 | K198: 0 | L198: =IRR($K$2:K198,0.05) -> 
A199: 197 | C199: =B199*'Lakás Törlesztéscsökkentő fiók'!$B$27/12 ->  | D199: =IF(A199>'Lakás Törlesztéscsökkentő fiók'!$J$10,0,'Lakás Törlesztéscsökkentő fiók'!$B$28) -> 0 | F199: =IF(A199>'Lakás Törlesztéscsökkentő fiók'!$J$10,0,'Lakás Törlesztéscsökkentő fiók'!$J$11) -> 0 | G199: =IF(OR(A199>'Lakás Törlesztéscsökkentő fiók'!$J$10,'Lakás Törlesztéscsökkentő fiók'!$B$24='Lakás Törlesztéscsökkentő fiók'!$T$5),0,'Lakás Törlesztéscsökkentő fiók'!$J$12+'Lakás Törlesztéscsökkentő fiók'!$J$13) -> 0 | H199: 0 | K199: 0 | L199: =IRR($K$2:K199,0.05) -> 
A200: 198 | C200: =B200*'Lakás Törlesztéscsökkentő fiók'!$B$27/12 ->  | D200: =IF(A200>'Lakás Törlesztéscsökkentő fiók'!$J$10,0,'Lakás Törlesztéscsökkentő fiók'!$B$28) -> 0 | F200: =IF(A200>'Lakás Törlesztéscsökkentő fiók'!$J$10,0,'Lakás Törlesztéscsökkentő fiók'!$J$11) -> 0 | G200: =IF(OR(A200>'Lakás Törlesztéscsökkentő fiók'!$J$10,'Lakás Törlesztéscsökkentő fiók'!$B$24='Lakás Törlesztéscsökkentő fiók'!$T$5),0,'Lakás Törlesztéscsökkentő fiók'!$J$12+'Lakás Törlesztéscsökkentő fiók'!$J$13) -> 0 | H200: 0 | K200: 0 | L200: =IRR($K$2:K200,0.05) -> 
... 222 more rows

Sheet THM fiók HE (hidden)
H1: 0.07233086498 | K1: =IRR(K2:K422) ->  | L1: =((1+K1)^12)-1 ->  | M1: 10
B2: nyitó | C2: kamat | D2: törlesztés | E2: záró | F2: számla | G2: életbizt | H2: =+'Személyi Törl. csökkentő fiók'!B16-'Személyi Törl. csökkentő fiók'!J14-'Személyi Törl. csökkentő fiók'!B20 ->  | I2: =+H2-H422 ->  | K2: =-H2 -> 
A3: 1 | B3: =+'Személyi Törl. csökkentő fiók'!B16 ->  | C3: =B3*'Személyi Törl. csökkentő fiók'!$B$27/12 ->  | D3: =IF(A3>'Személyi Törl. csökkentő fiók'!$J$10,0,'Személyi Törl. csökkentő fiók'!$B$28) -> 0 | E3: =+B3+C3-D3 ->  | F3: =IF(A3>'Személyi Törl. csökkentő fiók'!$J$10,0,'Személyi Törl. csökkentő fiók'!$J$11) -> 0 | G3: =IF(OR(A3>'Személyi Törl. csökkentő fiók'!$J$10,'Személyi Törl. csökkentő fiók'!$B$24='Személyi Törl. csökkentő fiók'!$T$5),0,'Személyi Törl. csökkentő fiók'!$J$12+'Személyi Törl. csökkentő fiók'!$J$13) -> 0 | H3: =(D3+F3+G3)/(1+$H$1)^(A3/12) -> 0 | K3: =D3+F3+G3 -> 0 | L3: =IRR($K$2:K3,0.05) -> 
A4: =+A3+1 -> 2 | B4: =+E3 ->  | C4: =B4*'Személyi Törl. csökkentő fiók'!$B$27/12 ->  | D4: =IF(A4>'Személyi Törl. csökkentő fiók'!$J$10,0,'Személyi Törl. csökkentő fiók'!$B$28) -> 0 | E4: =+B4+C4-D4 ->  | F4: =IF(A4>'Személyi Törl. csökkentő fiók'!$J$10,0,'Személyi Törl. csökkentő fiók'!$J$11) -> 0 | G4: =IF(OR(A4>'Személyi Törl. csökkentő fiók'!$J$10,'Személyi Törl. csökkentő fiók'!$B$24='Személyi Törl. csökkentő fiók'!$T$5),0,'Személyi Törl. csökkentő fiók'!$J$12+'Személyi Törl. csökkentő fiók'!$J$13) -> 0 | H4: =H3+(D4+F4+G4)/(1+$H$1)^(A4/12) -> 0 | K4: =D4+F4+G4 -> 0 | L4: =IRR($K$2:K4,0.05) -> 
A5: =+A4+1 -> 3 | B5: =+E4 ->  | C5: =B5*'Személyi Törl. csökkentő fiók'!$B$27/12 ->  | D5: =IF(A5>'Személyi Törl. csökkentő fiók'!$J$10,0,'Személyi Törl. csökkentő fiók'!$B$28) -> 0 | F5: =IF(A5>'Személyi Törl. csökkentő fiók'!$J$10,0,'Személyi Törl. csökkentő fiók'!$J$11) -> 0 | G5: =IF(OR(A5>'Személyi Törl. csökkentő fiók'!$J$10,'Személyi Törl. csökkentő fiók'!$B$24='Személyi Törl. csökkentő fiók'!$T$5),0,'Személyi Törl. csökkentő fiók'!$J$12+'Személyi Törl. csökkentő fiók'!$J$13) -> 0 | H5: =H4+(D5+F5+G5)/(1+$H$1)^(A5/12) -> 0 | K5: 0 | L5: =IRR($K$2:K5,0.05) -> 
A6: 4 | C6: =B6*'Személyi Törl. csökkentő fiók'!$B$27/12 ->  | D6: =IF(A6>'Személyi Törl. csökkentő fiók'!$J$10,0,'Személyi Törl. csökkentő fiók'!$B$28) -> 0 | F6: =IF(A6>'Személyi Törl. csökkentő fiók'!$J$10,0,'Személyi Törl. csökkentő fiók'!$J$11) -> 0 | G6: =IF(OR(A6>'Személyi Törl. csökkentő fiók'!$J$10,'Személyi Törl. csökkentő fiók'!$B$24='Személyi Törl. csökkentő fiók'!$T$5),0,'Személyi Törl. csökkentő fiók'!$J$12+'Személyi Törl. csökkentő fiók'!$J$13) -> 0 | H6: 0 | K6: 0 | L6: =IRR($K$2:K6,0.05) -> 
A7: 5 | C7: =B7*'Személyi Törl. csökkentő fiók'!$B$27/12 ->  | D7: =IF(A7>'Személyi Törl. csökkentő fiók'!$J$10,0,'Személyi Törl. csökkentő fiók'!$B$28) -> 0 | F7: =IF(A7>'Személyi Törl. csökkentő fiók'!$J$10,0,'Személyi Törl. csökkentő fiók'!$J$11) -> 0 | G7: =IF(OR(A7>'Személyi Törl. csökkentő fiók'!$J$10,'Személyi Törl. csökkentő fiók'!$B$24='Személyi Törl. csökkentő fiók'!$T$5),0,'Személyi Törl. csökkentő fiók'!$J$12+'Személyi Törl. csökkentő fiók'!$J$13) -> 0 | H7: 0 | K7: 0 | L7: =IRR($K$2:K7,0.05) -> 
A8: 6 | C8: =B8*'Személyi Törl. csökkentő fiók'!$B$27/12 ->  | D8: =IF(A8>'Személyi Törl. csökkentő fiók'!$J$10,0,'Személyi Törl. csökkentő fiók'!$B$28) -> 0 | F8: =IF(A8>'Személyi Törl. csökkentő fiók'!$J$10,0,'Személyi Törl. csökkentő fiók'!$J$11) -> 0 | G8: =IF(OR(A8>'Személyi Törl. csökkentő fiók'!$J$10,'Személyi Törl. csökkentő fiók'!$B$24='Személyi Törl. csökkentő fiók'!$T$5),0,'Személyi Törl. csökkentő fiók'!$J$12+'Személyi Törl. csökkentő fiók'!$J$13) -> 0 | H8: 0 | K8: 0 | L8: =IRR($K$2:K8,0.05) -> 
A9: 7 | C9: =B9*'Személyi Törl. csökkentő fiók'!$B$27/12 ->  | D9: =IF(A9>'Személyi Törl. csökkentő fiók'!$J$10,0,'Személyi Törl. csökkentő fiók'!$B$28) -> 0 | F9: =IF(A9>'Személyi Törl. csökkentő fiók'!$J$10,0,'Személyi Törl. csökkentő fiók'!$J$11) -> 0 | G9: =IF(OR(A9>'Személyi Törl. csökkentő fiók'!$J$10,'Személyi Törl. csökkentő fiók'!$B$24='Személyi Törl. csökkentő fiók'!$T$5),0,'Személyi Törl. csökkentő fiók'!$J$12+'Személyi Törl. csökkentő fiók'!$J$13) -> 0 | H9: 0 | K9: 0 | L9: =IRR($K$2:K9,0.05) -> 
A10: 8 | C10: =B10*'Személyi Törl. csökkentő fiók'!$B$27/12 ->  | D10: =IF(A10>'Személyi Törl. csökkentő fiók'!$J$10,0,'Személyi Törl. csökkentő fiók'!$B$28) -> 0 | F10: =IF(A10>'Személyi Törl. csökkentő fiók'!$J$10,0,'Személyi Törl. csökkentő fiók'!$J$11) -> 0 | G10: =IF(OR(A10>'Személyi Törl. csökkentő fiók'!$J$10,'Személyi Törl. csökkentő fiók'!$B$24='Személyi Törl. csökkentő fiók'!$T$5),0,'Személyi Törl. csökkentő fiók'!$J$12+'Személyi Törl. csökkentő fiók'!$J$13) -> 0 | H10: 0 | K10: 0 | L10: =IRR($K$2:K10,0.05) -> 
A11: 9 | C11: =B11*'Személyi Törl. csökkentő fiók'!$B$27/12 ->  | D11: =IF(A11>'Személyi Törl. csökkentő fiók'!$J$10,0,'Személyi Törl. csökkentő fiók'!$B$28) -> 0 | F11: =IF(A11>'Személyi Törl. csökkentő fiók'!$J$10,0,'Személyi Törl. csökkentő fiók'!$J$11) -> 0 | G11: =IF(OR(A11>'Személyi Törl. csökkentő fiók'!$J$10,'Személyi Törl. csökkentő fiók'!$B$24='Személyi Törl. csökkentő fiók'!$T$5),0,'Személyi Törl. csökkentő fiók'!$J$12+'Személyi Törl. csökkentő fiók'!$J$13) -> 0 | H11: 0 | K11: 0 | L11: =IRR($K$2:K11,0.05) -> 
A12: 10 | C12: =B12*'Személyi Törl. csökkentő fiók'!$B$27/12 ->  | D12: =IF(A12>'Személyi Törl. csökkentő fiók'!$J$10,0,'Személyi Törl. csökkentő fiók'!$B$28) -> 0 | F12: =IF(A12>'Személyi Törl. csökkentő fiók'!$J$10,0,'Személyi Törl. csökkentő fiók'!$J$11) -> 0 | G12: =IF(OR(A12>'Személyi Törl. csökkentő fiók'!$J$10,'Személyi Törl. csökkentő fiók'!$B$24='Személyi Törl. csökkentő fiók'!$T$5),0,'Személyi Törl. csökkentő fiók'!$J$12+'Személyi Törl. csökkentő fiók'!$J$13) -> 0 | H12: 0 | K12: 0 | L12: =IRR($K$2:K12,0.05) -> 
A13: 11 | C13: =B13*'Személyi Törl. csökkentő fiók'!$B$27/12 ->  | D13: =IF(A13>'Személyi Törl. csökkentő fiók'!$J$10,0,'Személyi Törl. csökkentő fiók'!$B$28) -> 0 | F13: =IF(A13>'Személyi Törl. csökkentő fiók'!$J$10,0,'Személyi Törl. csökkentő fiók'!$J$11) -> 0 | G13: =IF(OR(A13>'Személyi Törl. csökkentő fiók'!$J$10,'Személyi Törl. csökkentő fiók'!$B$24='Személyi Törl. csökkentő fiók'!$T$5),0,'Személyi Törl. csökkentő fiók'!$J$12+'Személyi Törl. csökkentő fiók'!$J$13) -> 0 | H13: 0 | K13: 0 | L13: =IRR($K$2:K13,0.05) -> 
A14: 12 | C14: =B14*'Személyi Törl. csökkentő fiók'!$B$27/12 ->  | D14: =IF(A14>'Személyi Törl. csökkentő fiók'!$J$10,0,'Személyi Törl. csökkentő fiók'!$B$28) -> 0 | F14: =IF(A14>'Személyi Törl. csökkentő fiók'!$J$10,0,'Személyi Törl. csökkentő fiók'!$J$11) -> 0 | G14: =IF(OR(A14>'Személyi Törl. csökkentő fiók'!$J$10,'Személyi Törl. csökkentő fiók'!$B$24='Személyi Törl. csökkentő fiók'!$T$5),0,'Személyi Törl. csökkentő fiók'!$J$12+'Személyi Törl. csökkentő fiók'!$J$13) -> 0 | H14: 0 | K14: 0 | L14: =IRR($K$2:K14,0.05) -> 
A15: 13 | C15: =B15*'Személyi Törl. csökkentő fiók'!$B$27/12 ->  | D15: =IF(A15>'Személyi Törl. csökkentő fiók'!$J$10,0,'Személyi Törl. csökkentő fiók'!$B$28) -> 0 | F15: =IF(A15>'Személyi Törl. csökkentő fiók'!$J$10,0,'Személyi Törl. csökkentő fiók'!$J$11) -> 0 | G15: =IF(OR(A15>'Személyi Törl. csökkentő fiók'!$J$10,'Személyi Törl. csökkentő fiók'!$B$24='Személyi Törl. csökkentő fiók'!$T$5),0,'Személyi Törl. csökkentő fiók'!$J$12+'Személyi Törl. csökkentő fiók'!$J$13) -> 0 | H15: 0 | K15: 0 | L15: =IRR($K$2:K15,0.05) -> 
A16: 14 | C16: =B16*'Személyi Törl. csökkentő fiók'!$B$27/12 ->  | D16: =IF(A16>'Személyi Törl. csökkentő fiók'!$J$10,0,'Személyi Törl. csökkentő fiók'!$B$28) -> 0 | F16: =IF(A16>'Személyi Törl. csökkentő fiók'!$J$10,0,'Személyi Törl. csökkentő fiók'!$J$11) -> 0 | G16: =IF(OR(A16>'Személyi Törl. csökkentő fiók'!$J$10,'Személyi Törl. csökkentő fiók'!$B$24='Személyi Törl. csökkentő fiók'!$T$5),0,'Személyi Törl. csökkentő fiók'!$J$12+'Személyi Törl. csökkentő fiók'!$J$13) -> 0 | H16: 0 | K16: 0 | L16: =IRR($K$2:K16,0.05) -> 
A17: 15 | C17: =B17*'Személyi Törl. csökkentő fiók'!$B$27/12 ->  | D17: =IF(A17>'Személyi Törl. csökkentő fiók'!$J$10,0,'Személyi Törl. csökkentő fiók'!$B$28) -> 0 | F17: =IF(A17>'Személyi Törl. csökkentő fiók'!$J$10,0,'Személyi Törl. csökkentő fiók'!$J$11) -> 0 | G17: =IF(OR(A17>'Személyi Törl. csökkentő fiók'!$J$10,'Személyi Törl. csökkentő fiók'!$B$24='Személyi Törl. csökkentő fiók'!$T$5),0,'Személyi Törl. csökkentő fiók'!$J$12+'Személyi Törl. csökkentő fiók'!$J$13) -> 0 | H17: 0 | K17: 0 | L17: =IRR($K$2:K17,0.05) -> 
A18: 16 | C18: =B18*'Személyi Törl. csökkentő fiók'!$B$27/12 ->  | D18: =IF(A18>'Személyi Törl. csökkentő fiók'!$J$10,0,'Személyi Törl. csökkentő fiók'!$B$28) -> 0 | F18: =IF(A18>'Személyi Törl. csökkentő fiók'!$J$10,0,'Személyi Törl. csökkentő fiók'!$J$11) -> 0 | G18: =IF(OR(A18>'Személyi Törl. csökkentő fiók'!$J$10,'Személyi Törl. csökkentő fiók'!$B$24='Személyi Törl. csökkentő fiók'!$T$5),0,'Személyi Törl. csökkentő fiók'!$J$12+'Személyi Törl. csökkentő fiók'!$J$13) -> 0 | H18: 0 | K18: 0 | L18: =IRR($K$2:K18,0.05) -> 
A19: 17 | C19: =B19*'Személyi Törl. csökkentő fiók'!$B$27/12 ->  | D19: =IF(A19>'Személyi Törl. csökkentő fiók'!$J$10,0,'Személyi Törl. csökkentő fiók'!$B$28) -> 0 | F19: =IF(A19>'Személyi Törl. csökkentő fiók'!$J$10,0,'Személyi Törl. csökkentő fiók'!$J$11) -> 0 | G19: =IF(OR(A19>'Személyi Törl. csökkentő fiók'!$J$10,'Személyi Törl. csökkentő fiók'!$B$24='Személyi Törl. csökkentő fiók'!$T$5),0,'Személyi Törl. csökkentő fiók'!$J$12+'Személyi Törl. csökkentő fiók'!$J$13) -> 0 | H19: 0 | K19: 0 | L19: =IRR($K$2:K19,0.05) -> 
A20: 18 | C20: =B20*'Személyi Törl. csökkentő fiók'!$B$27/12 ->  | D20: =IF(A20>'Személyi Törl. csökkentő fiók'!$J$10,0,'Személyi Törl. csökkentő fiók'!$B$28) -> 0 | F20: =IF(A20>'Személyi Törl. csökkentő fiók'!$J$10,0,'Személyi Törl. csökkentő fiók'!$J$11) -> 0 | G20: =IF(OR(A20>'Személyi Törl. csökkentő fiók'!$J$10,'Személyi Törl. csökkentő fiók'!$B$24='Személyi Törl. csökkentő fiók'!$T$5),0,'Személyi Törl. csökkentő fiók'!$J$12+'Személyi Törl. csökkentő fiók'!$J$13) -> 0 | H20: 0 | K20: 0 | L20: =IRR($K$2:K20,0.05) -> 
A21: 19 | C21: =B21*'Személyi Törl. csökkentő fiók'!$B$27/12 ->  | D21: =IF(A21>'Személyi Törl. csökkentő fiók'!$J$10,0,'Személyi Törl. csökkentő fiók'!$B$28) -> 0 | F21: =IF(A21>'Személyi Törl. csökkentő fiók'!$J$10,0,'Személyi Törl. csökkentő fiók'!$J$11) -> 0 | G21: =IF(OR(A21>'Személyi Törl. csökkentő fiók'!$J$10,'Személyi Törl. csökkentő fiók'!$B$24='Személyi Törl. csökkentő fiók'!$T$5),0,'Személyi Törl. csökkentő fiók'!$J$12+'Személyi Törl. csökkentő fiók'!$J$13) -> 0 | H21: 0 | K21: 0 | L21: =IRR($K$2:K21,0.05) -> 
A22: 20 | C22: =B22*'Személyi Törl. csökkentő fiók'!$B$27/12 ->  | D22: =IF(A22>'Személyi Törl. csökkentő fiók'!$J$10,0,'Személyi Törl. csökkentő fiók'!$B$28) -> 0 | F22: =IF(A22>'Személyi Törl. csökkentő fiók'!$J$10,0,'Személyi Törl. csökkentő fiók'!$J$11) -> 0 | G22: =IF(OR(A22>'Személyi Törl. csökkentő fiók'!$J$10,'Személyi Törl. csökkentő fiók'!$B$24='Személyi Törl. csökkentő fiók'!$T$5),0,'Személyi Törl. csökkentő fiók'!$J$12+'Személyi Törl. csökkentő fiók'!$J$13) -> 0 | H22: 0 | K22: 0 | L22: =IRR($K$2:K22,0.05) -> 
A23: 21 | C23: =B23*'Személyi Törl. csökkentő fiók'!$B$27/12 ->  | D23: =IF(A23>'Személyi Törl. csökkentő fiók'!$J$10,0,'Személyi Törl. csökkentő fiók'!$B$28) -> 0 | F23: =IF(A23>'Személyi Törl. csökkentő fiók'!$J$10,0,'Személyi Törl. csökkentő fiók'!$J$11) -> 0 | G23: =IF(OR(A23>'Személyi Törl. csökkentő fiók'!$J$10,'Személyi Törl. csökkentő fiók'!$B$24='Személyi Törl. csökkentő fiók'!$T$5),0,'Személyi Törl. csökkentő fiók'!$J$12+'Személyi Törl. csökkentő fiók'!$J$13) -> 0 | H23: 0 | K23: 0 | L23: =IRR($K$2:K23,0.05) -> 
A24: 22 | C24: =B24*'Személyi Törl. csökkentő fiók'!$B$27/12 ->  | D24: =IF(A24>'Személyi Törl. csökkentő fiók'!$J$10,0,'Személyi Törl. csökkentő fiók'!$B$28) -> 0 | F24: =IF(A24>'Személyi Törl. csökkentő fiók'!$J$10,0,'Személyi Törl. csökkentő fiók'!$J$11) -> 0 | G24: =IF(OR(A24>'Személyi Törl. csökkentő fiók'!$J$10,'Személyi Törl. csökkentő fiók'!$B$24='Személyi Törl. csökkentő fiók'!$T$5),0,'Személyi Törl. csökkentő fiók'!$J$12+'Személyi Törl. csökkentő fiók'!$J$13) -> 0 | H24: 0 | K24: 0 | L24: =IRR($K$2:K24,0.05) -> 
A25: 23 | C25: =B25*'Személyi Törl. csökkentő fiók'!$B$27/12 ->  | D25: =IF(A25>'Személyi Törl. csökkentő fiók'!$J$10,0,'Személyi Törl. csökkentő fiók'!$B$28) -> 0 | F25: =IF(A25>'Személyi Törl. csökkentő fiók'!$J$10,0,'Személyi Törl. csökkentő fiók'!$J$11) -> 0 | G25: =IF(OR(A25>'Személyi Törl. csökkentő fiók'!$J$10,'Személyi Törl. csökkentő fiók'!$B$24='Személyi Törl. csökkentő fiók'!$T$5),0,'Személyi Törl. csökkentő fiók'!$J$12+'Személyi Törl. csökkentő fiók'!$J$13) -> 0 | H25: 0 | K25: 0 | L25: =IRR($K$2:K25,0.05) -> 
A26: 24 | C26: =B26*'Személyi Törl. csökkentő fiók'!$B$27/12 ->  | D26: =IF(A26>'Személyi Törl. csökkentő fiók'!$J$10,0,'Személyi Törl. csökkentő fiók'!$B$28) -> 0 | F26: =IF(A26>'Személyi Törl. csökkentő fiók'!$J$10,0,'Személyi Törl. csökkentő fiók'!$J$11) -> 0 | G26: =IF(OR(A26>'Személyi Törl. csökkentő fiók'!$J$10,'Személyi Törl. csökkentő fiók'!$B$24='Személyi Törl. csökkentő fiók'!$T$5),0,'Személyi Törl. csökkentő fiók'!$J$12+'Személyi Törl. csökkentő fiók'!$J$13) -> 0 | H26: 0 | K26: 0 | L26: =IRR($K$2:K26,0.05) -> 
A27: 25 | C27: =B27*'Személyi Törl. csökkentő fiók'!$B$27/12 ->  | D27: =IF(A27>'Személyi Törl. csökkentő fiók'!$J$10,0,'Személyi Törl. csökkentő fiók'!$B$28) -> 0 | F27: =IF(A27>'Személyi Törl. csökkentő fiók'!$J$10,0,'Személyi Törl. csökkentő fiók'!$J$11) -> 0 | G27: =IF(OR(A27>'Személyi Törl. csökkentő fiók'!$J$10,'Személyi Törl. csökkentő fiók'!$B$24='Személyi Törl. csökkentő fiók'!$T$5),0,'Személyi Törl. csökkentő fiók'!$J$12+'Személyi Törl. csökkentő fiók'!$J$13) -> 0 | H27: 0 | K27: 0 | L27: =IRR($K$2:K27,0.05) -> 
A28: 26 | C28: =B28*'Személyi Törl. csökkentő fiók'!$B$27/12 ->  | D28: =IF(A28>'Személyi Törl. csökkentő fiók'!$J$10,0,'Személyi Törl. csökkentő fiók'!$B$28) -> 0 | F28: =IF(A28>'Személyi Törl. csökkentő fiók'!$J$10,0,'Személyi Törl. csökkentő fiók'!$J$11) -> 0 | G28: =IF(OR(A28>'Személyi Törl. csökkentő fiók'!$J$10,'Személyi Törl. csökkentő fiók'!$B$24='Személyi Törl. csökkentő fiók'!$T$5),0,'Személyi Törl. csökkentő fiók'!$J$12+'Személyi Törl. csökkentő fiók'!$J$13) -> 0 | H28: 0 | K28: 0 | L28: =IRR($K$2:K28,0.05) -> 
A29: 27 | C29: =B29*'Személyi Törl. csökkentő fiók'!$B$27/12 ->  | D29: =IF(A29>'Személyi Törl. csökkentő fiók'!$J$10,0,'Személyi Törl. csökkentő fiók'!$B$28) -> 0 | F29: =IF(A29>'Személyi Törl. csökkentő fiók'!$J$10,0,'Személyi Törl. csökkentő fiók'!$J$11) -> 0 | G29: =IF(OR(A29>'Személyi Törl. csökkentő fiók'!$J$10,'Személyi Törl. csökkentő fiók'!$B$24='Személyi Törl. csökkentő fiók'!$T$5),0,'Személyi Törl. csökkentő fiók'!$J$12+'Személyi Törl. csökkentő fiók'!$J$13) -> 0 | H29: 0 | K29: 0 | L29: =IRR($K$2:K29,0.05) -> 
A30: 28 | C30: =B30*'Személyi Törl. csökkentő fiók'!$B$27/12 ->  | D30: =IF(A30>'Személyi Törl. csökkentő fiók'!$J$10,0,'Személyi Törl. csökkentő fiók'!$B$28) -> 0 | F30: =IF(A30>'Személyi Törl. csökkentő fiók'!$J$10,0,'Személyi Törl. csökkentő fiók'!$J$11) -> 0 | G30: =IF(OR(A30>'Személyi Törl. csökkentő fiók'!$J$10,'Személyi Törl. csökkentő fiók'!$B$24='Személyi Törl. csökkentő fiók'!$T$5),0,'Személyi Törl. csökkentő fiók'!$J$12+'Személyi Törl. csökkentő fiók'!$J$13) -> 0 | H30: 0 | K30: 0 | L30: =IRR($K$2:K30,0.05) -> 
A31: 29 | C31: =B31*'Személyi Törl. csökkentő fiók'!$B$27/12 ->  | D31: =IF(A31>'Személyi Törl. csökkentő fiók'!$J$10,0,'Személyi Törl. csökkentő fiók'!$B$28) -> 0 | F31: =IF(A31>'Személyi Törl. csökkentő fiók'!$J$10,0,'Személyi Törl. csökkentő fiók'!$J$11) -> 0 | G31: =IF(OR(A31>'Személyi Törl. csökkentő fiók'!$J$10,'Személyi Törl. csökkentő fiók'!$B$24='Személyi Törl. csökkentő fiók'!$T$5),0,'Személyi Törl. csökkentő fiók'!$J$12+'Személyi Törl. csökkentő fiók'!$J$13) -> 0 | H31: 0 | K31: 0 | L31: =IRR($K$2:K31,0.05) -> 
A32: 30 | C32: =B32*'Személyi Törl. csökkentő fiók'!$B$27/12 ->  | D32: =IF(A32>'Személyi Törl. csökkentő fiók'!$J$10,0,'Személyi Törl. csökkentő fiók'!$B$28) -> 0 | F32: =IF(A32>'Személyi Törl. csökkentő fiók'!$J$10,0,'Személyi Törl. csökkentő fiók'!$J$11) -> 0 | G32: =IF(OR(A32>'Személyi Törl. csökkentő fiók'!$J$10,'Személyi Törl. csökkentő fiók'!$B$24='Személyi Törl. csökkentő fiók'!$T$5),0,'Személyi Törl. csökkentő fiók'!$J$12+'Személyi Törl. csökkentő fiók'!$J$13) -> 0 | H32: 0 | K32: 0 | L32: =IRR($K$2:K32,0.05) -> 
A33: 31 | C33: =B33*'Személyi Törl. csökkentő fiók'!$B$27/12 ->  | D33: =IF(A33>'Személyi Törl. csökkentő fiók'!$J$10,0,'Személyi Törl. csökkentő fiók'!$B$28) -> 0 | F33: =IF(A33>'Személyi Törl. csökkentő fiók'!$J$10,0,'Személyi Törl. csökkentő fiók'!$J$11) -> 0 | G33: =IF(OR(A33>'Személyi Törl. csökkentő fiók'!$J$10,'Személyi Törl. csökkentő fiók'!$B$24='Személyi Törl. csökkentő fiók'!$T$5),0,'Személyi Törl. csökkentő fiók'!$J$12+'Személyi Törl. csökkentő fiók'!$J$13) -> 0 | H33: 0 | K33: 0 | L33: =IRR($K$2:K33,0.05) -> 
A34: 32 | C34: =B34*'Személyi Törl. csökkentő fiók'!$B$27/12 ->  | D34: =IF(A34>'Személyi Törl. csökkentő fiók'!$J$10,0,'Személyi Törl. csökkentő fiók'!$B$28) -> 0 | F34: =IF(A34>'Személyi Törl. csökkentő fiók'!$J$10,0,'Személyi Törl. csökkentő fiók'!$J$11) -> 0 | G34: =IF(OR(A34>'Személyi Törl. csökkentő fiók'!$J$10,'Személyi Törl. csökkentő fiók'!$B$24='Személyi Törl. csökkentő fiók'!$T$5),0,'Személyi Törl. csökkentő fiók'!$J$12+'Személyi Törl. csökkentő fiók'!$J$13) -> 0 | H34: 0 | K34: 0 | L34: =IRR($K$2:K34,0.05) -> 
A35: 33 | C35: =B35*'Személyi Törl. csökkentő fiók'!$B$27/12 ->  | D35: =IF(A35>'Személyi Törl. csökkentő fiók'!$J$10,0,'Személyi Törl. csökkentő fiók'!$B$28) -> 0 | F35: =IF(A35>'Személyi Törl. csökkentő fiók'!$J$10,0,'Személyi Törl. csökkentő fiók'!$J$11) -> 0 | G35: =IF(OR(A35>'Személyi Törl. csökkentő fiók'!$J$10,'Személyi Törl. csökkentő fiók'!$B$24='Személyi Törl. csökkentő fiók'!$T$5),0,'Személyi Törl. csökkentő fiók'!$J$12+'Személyi Törl. csökkentő fiók'!$J$13) -> 0 | H35: 0 | K35: 0 | L35: =IRR($K$2:K35,0.05) -> 
A36: 34 | C36: =B36*'Személyi Törl. csökkentő fiók'!$B$27/12 ->  | D36: =IF(A36>'Személyi Törl. csökkentő fiók'!$J$10,0,'Személyi Törl. csökkentő fiók'!$B$28) -> 0 | F36: =IF(A36>'Személyi Törl. csökkentő fiók'!$J$10,0,'Személyi Törl. csökkentő fiók'!$J$11) -> 0 | G36: =IF(OR(A36>'Személyi Törl. csökkentő fiók'!$J$10,'Személyi Törl. csökkentő fiók'!$B$24='Személyi Törl. csökkentő fiók'!$T$5),0,'Személyi Törl. csökkentő fiók'!$J$12+'Személyi Törl. csökkentő fiók'!$J$13) -> 0 | H36: 0 | K36: 0 | L36: =IRR($K$2:K36,0.05) -> 
A37: 35 | C37: =B37*'Személyi Törl. csökkentő fiók'!$B$27/12 ->  | D37: =IF(A37>'Személyi Törl. csökkentő fiók'!$J$10,0,'Személyi Törl. csökkentő fiók'!$B$28) -> 0 | F37: =IF(A37>'Személyi Törl. csökkentő fiók'!$J$10,0,'Személyi Törl. csökkentő fiók'!$J$11) -> 0 | G37: =IF(OR(A37>'Személyi Törl. csökkentő fiók'!$J$10,'Személyi Törl. csökkentő fiók'!$B$24='Személyi Törl. csökkentő fiók'!$T$5),0,'Személyi Törl. csökkentő fiók'!$J$12+'Személyi Törl. csökkentő fiók'!$J$13) -> 0 | H37: 0 | K37: 0 | L37: =IRR($K$2:K37,0.05) -> 
A38: 36 | C38: =B38*'Személyi Törl. csökkentő fiók'!$B$27/12 ->  | D38: =IF(A38>'Személyi Törl. csökkentő fiók'!$J$10,0,'Személyi Törl. csökkentő fiók'!$B$28) -> 0 | F38: =IF(A38>'Személyi Törl. csökkentő fiók'!$J$10,0,'Személyi Törl. csökkentő fiók'!$J$11) -> 0 | G38: =IF(OR(A38>'Személyi Törl. csökkentő fiók'!$J$10,'Személyi Törl. csökkentő fiók'!$B$24='Személyi Törl. csökkentő fiók'!$T$5),0,'Személyi Törl. csökkentő fiók'!$J$12+'Személyi Törl. csökkentő fiók'!$J$13) -> 0 | H38: 0 | K38: 0 | L38: =IRR($K$2:K38,0.05) -> 
A39: 37 | C39: =B39*'Személyi Törl. csökkentő fiók'!$B$27/12 ->  | D39: =IF(A39>'Személyi Törl. csökkentő fiók'!$J$10,0,'Személyi Törl. csökkentő fiók'!$B$28) -> 0 | F39: =IF(A39>'Személyi Törl. csökkentő fiók'!$J$10,0,'Személyi Törl. csökkentő fiók'!$J$11) -> 0 | G39: =IF(OR(A39>'Személyi Törl. csökkentő fiók'!$J$10,'Személyi Törl. csökkentő fiók'!$B$24='Személyi Törl. csökkentő fiók'!$T$5),0,'Személyi Törl. csökkentő fiók'!$J$12+'Személyi Törl. csökkentő fiók'!$J$13) -> 0 | H39: 0 | K39: 0 | L39: =IRR($K$2:K39,0.05) -> 
A40: 38 | C40: =B40*'Személyi Törl. csökkentő fiók'!$B$27/12 ->  | D40: =IF(A40>'Személyi Törl. csökkentő fiók'!$J$10,0,'Személyi Törl. csökkentő fiók'!$B$28) -> 0 | F40: =IF(A40>'Személyi Törl. csökkentő fiók'!$J$10,0,'Személyi Törl. csökkentő fiók'!$J$11) -> 0 | G40: =IF(OR(A40>'Személyi Törl. csökkentő fiók'!$J$10,'Személyi Törl. csökkentő fiók'!$B$24='Személyi Törl. csökkentő fiók'!$T$5),0,'Személyi Törl. csökkentő fiók'!$J$12+'Személyi Törl. csökkentő fiók'!$J$13) -> 0 | H40: 0 | K40: 0 | L40: =IRR($K$2:K40,0.05) -> 
A41: 39 | C41: =B41*'Személyi Törl. csökkentő fiók'!$B$27/12 ->  | D41: =IF(A41>'Személyi Törl. csökkentő fiók'!$J$10,0,'Személyi Törl. csökkentő fiók'!$B$28) -> 0 | F41: =IF(A41>'Személyi Törl. csökkentő fiók'!$J$10,0,'Személyi Törl. csökkentő fiók'!$J$11) -> 0 | G41: =IF(OR(A41>'Személyi Törl. csökkentő fiók'!$J$10,'Személyi Törl. csökkentő fiók'!$B$24='Személyi Törl. csökkentő fiók'!$T$5),0,'Személyi Törl. csökkentő fiók'!$J$12+'Személyi Törl. csökkentő fiók'!$J$13) -> 0 | H41: 0 | K41: 0 | L41: =IRR($K$2:K41,0.05) -> 
A42: 40 | C42: =B42*'Személyi Törl. csökkentő fiók'!$B$27/12 ->  | D42: =IF(A42>'Személyi Törl. csökkentő fiók'!$J$10,0,'Személyi Törl. csökkentő fiók'!$B$28) -> 0 | F42: =IF(A42>'Személyi Törl. csökkentő fiók'!$J$10,0,'Személyi Törl. csökkentő fiók'!$J$11) -> 0 | G42: =IF(OR(A42>'Személyi Törl. csökkentő fiók'!$J$10,'Személyi Törl. csökkentő fiók'!$B$24='Személyi Törl. csökkentő fiók'!$T$5),0,'Személyi Törl. csökkentő fiók'!$J$12+'Személyi Törl. csökkentő fiók'!$J$13) -> 0 | H42: 0 | K42: 0 | L42: =IRR($K$2:K42,0.05) -> 
A43: 41 | C43: =B43*'Személyi Törl. csökkentő fiók'!$B$27/12 ->  | D43: =IF(A43>'Személyi Törl. csökkentő fiók'!$J$10,0,'Személyi Törl. csökkentő fiók'!$B$28) -> 0 | F43: =IF(A43>'Személyi Törl. csökkentő fiók'!$J$10,0,'Személyi Törl. csökkentő fiók'!$J$11) -> 0 | G43: =IF(OR(A43>'Személyi Törl. csökkentő fiók'!$J$10,'Személyi Törl. csökkentő fiók'!$B$24='Személyi Törl. csökkentő fiók'!$T$5),0,'Személyi Törl. csökkentő fiók'!$J$12+'Személyi Törl. csökkentő fiók'!$J$13) -> 0 | H43: 0 | K43: 0 | L43: =IRR($K$2:K43,0.05) -> 
A44: 42 | C44: =B44*'Személyi Törl. csökkentő fiók'!$B$27/12 ->  | D44: =IF(A44>'Személyi Törl. csökkentő fiók'!$J$10,0,'Személyi Törl. csökkentő fiók'!$B$28) -> 0 | F44: =IF(A44>'Személyi Törl. csökkentő fiók'!$J$10,0,'Személyi Törl. csökkentő fiók'!$J$11) -> 0 | G44: =IF(OR(A44>'Személyi Törl. csökkentő fiók'!$J$10,'Személyi Törl. csökkentő fiók'!$B$24='Személyi Törl. csökkentő fiók'!$T$5),0,'Személyi Törl. csökkentő fiók'!$J$12+'Személyi Törl. csökkentő fiók'!$J$13) -> 0 | H44: 0 | K44: 0 | L44: =IRR($K$2:K44,0.05) -> 
A45: 43 | C45: =B45*'Személyi Törl. csökkentő fiók'!$B$27/12 ->  | D45: =IF(A45>'Személyi Törl. csökkentő fiók'!$J$10,0,'Személyi Törl. csökkentő fiók'!$B$28) -> 0 | F45: =IF(A45>'Személyi Törl. csökkentő fiók'!$J$10,0,'Személyi Törl. csökkentő fiók'!$J$11) -> 0 | G45: =IF(OR(A45>'Személyi Törl. csökkentő fiók'!$J$10,'Személyi Törl. csökkentő fiók'!$B$24='Személyi Törl. csökkentő fiók'!$T$5),0,'Személyi Törl. csökkentő fiók'!$J$12+'Személyi Törl. csökkentő fiók'!$J$13) -> 0 | H45: 0 | K45: 0 | L45: =IRR($K$2:K45,0.05) -> 
A46: 44 | C46: =B46*'Személyi Törl. csökkentő fiók'!$B$27/12 ->  | D46: =IF(A46>'Személyi Törl. csökkentő fiók'!$J$10,0,'Személyi Törl. csökkentő fiók'!$B$28) -> 0 | F46: =IF(A46>'Személyi Törl. csökkentő fiók'!$J$10,0,'Személyi Törl. csökkentő fiók'!$J$11) -> 0 | G46: =IF(OR(A46>'Személyi Törl. csökkentő fiók'!$J$10,'Személyi Törl. csökkentő fiók'!$B$24='Személyi Törl. csökkentő fiók'!$T$5),0,'Személyi Törl. csökkentő fiók'!$J$12+'Személyi Törl. csökkentő fiók'!$J$13) -> 0 | H46: 0 | K46: 0 | L46: =IRR($K$2:K46,0.05) -> 
A47: 45 | C47: =B47*'Személyi Törl. csökkentő fiók'!$B$27/12 ->  | D47: =IF(A47>'Személyi Törl. csökkentő fiók'!$J$10,0,'Személyi Törl. csökkentő fiók'!$B$28) -> 0 | F47: =IF(A47>'Személyi Törl. csökkentő fiók'!$J$10,0,'Személyi Törl. csökkentő fiók'!$J$11) -> 0 | G47: =IF(OR(A47>'Személyi Törl. csökkentő fiók'!$J$10,'Személyi Törl. csökkentő fiók'!$B$24='Személyi Törl. csökkentő fiók'!$T$5),0,'Személyi Törl. csökkentő fiók'!$J$12+'Személyi Törl. csökkentő fiók'!$J$13) -> 0 | H47: 0 | K47: 0 | L47: =IRR($K$2:K47,0.05) -> 
A48: 46 | C48: =B48*'Személyi Törl. csökkentő fiók'!$B$27/12 ->  | D48: =IF(A48>'Személyi Törl. csökkentő fiók'!$J$10,0,'Személyi Törl. csökkentő fiók'!$B$28) -> 0 | F48: =IF(A48>'Személyi Törl. csökkentő fiók'!$J$10,0,'Személyi Törl. csökkentő fiók'!$J$11) -> 0 | G48: =IF(OR(A48>'Személyi Törl. csökkentő fiók'!$J$10,'Személyi Törl. csökkentő fiók'!$B$24='Személyi Törl. csökkentő fiók'!$T$5),0,'Személyi Törl. csökkentő fiók'!$J$12+'Személyi Törl. csökkentő fiók'!$J$13) -> 0 | H48: 0 | K48: 0 | L48: =IRR($K$2:K48,0.05) -> 
A49: 47 | C49: =B49*'Személyi Törl. csökkentő fiók'!$B$27/12 ->  | D49: =IF(A49>'Személyi Törl. csökkentő fiók'!$J$10,0,'Személyi Törl. csökkentő fiók'!$B$28) -> 0 | F49: =IF(A49>'Személyi Törl. csökkentő fiók'!$J$10,0,'Személyi Törl. csökkentő fiók'!$J$11) -> 0 | G49: =IF(OR(A49>'Személyi Törl. csökkentő fiók'!$J$10,'Személyi Törl. csökkentő fiók'!$B$24='Személyi Törl. csökkentő fiók'!$T$5),0,'Személyi Törl. csökkentő fiók'!$J$12+'Személyi Törl. csökkentő fiók'!$J$13) -> 0 | H49: 0 | K49: 0 | L49: =IRR($K$2:K49,0.05) -> 
A50: 48 | C50: =B50*'Személyi Törl. csökkentő fiók'!$B$27/12 ->  | D50: =IF(A50>'Személyi Törl. csökkentő fiók'!$J$10,0,'Személyi Törl. csökkentő fiók'!$B$28) -> 0 | F50: =IF(A50>'Személyi Törl. csökkentő fiók'!$J$10,0,'Személyi Törl. csökkentő fiók'!$J$11) -> 0 | G50: =IF(OR(A50>'Személyi Törl. csökkentő fiók'!$J$10,'Személyi Törl. csökkentő fiók'!$B$24='Személyi Törl. csökkentő fiók'!$T$5),0,'Személyi Törl. csökkentő fiók'!$J$12+'Személyi Törl. csökkentő fiók'!$J$13) -> 0 | H50: 0 | K50: 0 | L50: =IRR($K$2:K50,0.05) -> 
A51: 49 | C51: =B51*'Személyi Törl. csökkentő fiók'!$B$27/12 ->  | D51: =IF(A51>'Személyi Törl. csökkentő fiók'!$J$10,0,'Személyi Törl. csökkentő fiók'!$B$28) -> 0 | F51: =IF(A51>'Személyi Törl. csökkentő fiók'!$J$10,0,'Személyi Törl. csökkentő fiók'!$J$11) -> 0 | G51: =IF(OR(A51>'Személyi Törl. csökkentő fiók'!$J$10,'Személyi Törl. csökkentő fiók'!$B$24='Személyi Törl. csökkentő fiók'!$T$5),0,'Személyi Törl. csökkentő fiók'!$J$12+'Személyi Törl. csökkentő fiók'!$J$13) -> 0 | H51: 0 | K51: 0 | L51: =IRR($K$2:K51,0.05) -> 
A52: 50 | C52: =B52*'Személyi Törl. csökkentő fiók'!$B$27/12 ->  | D52: =IF(A52>'Személyi Törl. csökkentő fiók'!$J$10,0,'Személyi Törl. csökkentő fiók'!$B$28) -> 0 | F52: =IF(A52>'Személyi Törl. csökkentő fiók'!$J$10,0,'Személyi Törl. csökkentő fiók'!$J$11) -> 0 | G52: =IF(OR(A52>'Személyi Törl. csökkentő fiók'!$J$10,'Személyi Törl. csökkentő fiók'!$B$24='Személyi Törl. csökkentő fiók'!$T$5),0,'Személyi Törl. csökkentő fiók'!$J$12+'Személyi Törl. csökkentő fiók'!$J$13) -> 0 | H52: 0 | K52: 0 | L52: =IRR($K$2:K52,0.05) -> 
A53: 51 | C53: =B53*'Személyi Törl. csökkentő fiók'!$B$27/12 ->  | D53: =IF(A53>'Személyi Törl. csökkentő fiók'!$J$10,0,'Személyi Törl. csökkentő fiók'!$B$28) -> 0 | F53: =IF(A53>'Személyi Törl. csökkentő fiók'!$J$10,0,'Személyi Törl. csökkentő fiók'!$J$11) -> 0 | G53: =IF(OR(A53>'Személyi Törl. csökkentő fiók'!$J$10,'Személyi Törl. csökkentő fiók'!$B$24='Személyi Törl. csökkentő fiók'!$T$5),0,'Személyi Törl. csökkentő fiók'!$J$12+'Személyi Törl. csökkentő fiók'!$J$13) -> 0 | H53: 0 | K53: 0 | L53: =IRR($K$2:K53,0.05) -> 
A54: 52 | C54: =B54*'Személyi Törl. csökkentő fiók'!$B$27/12 ->  | D54: =IF(A54>'Személyi Törl. csökkentő fiók'!$J$10,0,'Személyi Törl. csökkentő fiók'!$B$28) -> 0 | F54: =IF(A54>'Személyi Törl. csökkentő fiók'!$J$10,0,'Személyi Törl. csökkentő fiók'!$J$11) -> 0 | G54: =IF(OR(A54>'Személyi Törl. csökkentő fiók'!$J$10,'Személyi Törl. csökkentő fiók'!$B$24='Személyi Törl. csökkentő fiók'!$T$5),0,'Személyi Törl. csökkentő fiók'!$J$12+'Személyi Törl. csökkentő fiók'!$J$13) -> 0 | H54: 0 | K54: 0 | L54: =IRR($K$2:K54,0.05) -> 
A55: 53 | C55: =B55*'Személyi Törl. csökkentő fiók'!$B$27/12 ->  | D55: =IF(A55>'Személyi Törl. csökkentő fiók'!$J$10,0,'Személyi Törl. csökkentő fiók'!$B$28) -> 0 | F55: =IF(A55>'Személyi Törl. csökkentő fiók'!$J$10,0,'Személyi Törl. csökkentő fiók'!$J$11) -> 0 | G55: =IF(OR(A55>'Személyi Törl. csökkentő fiók'!$J$10,'Személyi Törl. csökkentő fiók'!$B$24='Személyi Törl. csökkentő fiók'!$T$5),0,'Személyi Törl. csökkentő fiók'!$J$12+'Személyi Törl. csökkentő fiók'!$J$13) -> 0 | H55: 0 | K55: 0 | L55: =IRR($K$2:K55,0.05) -> 
A56: 54 | C56: =B56*'Személyi Törl. csökkentő fiók'!$B$27/12 ->  | D56: =IF(A56>'Személyi Törl. csökkentő fiók'!$J$10,0,'Személyi Törl. csökkentő fiók'!$B$28) -> 0 | F56: =IF(A56>'Személyi Törl. csökkentő fiók'!$J$10,0,'Személyi Törl. csökkentő fiók'!$J$11) -> 0 | G56: =IF(OR(A56>'Személyi Törl. csökkentő fiók'!$J$10,'Személyi Törl. csökkentő fiók'!$B$24='Személyi Törl. csökkentő fiók'!$T$5),0,'Személyi Törl. csökkentő fiók'!$J$12+'Személyi Törl. csökkentő fiók'!$J$13) -> 0 | H56: 0 | K56: 0 | L56: =IRR($K$2:K56,0.05) -> 
A57: 55 | C57: =B57*'Személyi Törl. csökkentő fiók'!$B$27/12 ->  | D57: =IF(A57>'Személyi Törl. csökkentő fiók'!$J$10,0,'Személyi Törl. csökkentő fiók'!$B$28) -> 0 | F57: =IF(A57>'Személyi Törl. csökkentő fiók'!$J$10,0,'Személyi Törl. csökkentő fiók'!$J$11) -> 0 | G57: =IF(OR(A57>'Személyi Törl. csökkentő fiók'!$J$10,'Személyi Törl. csökkentő fiók'!$B$24='Személyi Törl. csökkentő fiók'!$T$5),0,'Személyi Törl. csökkentő fiók'!$J$12+'Személyi Törl. csökkentő fiók'!$J$13) -> 0 | H57: 0 | K57: 0 | L57: =IRR($K$2:K57,0.05) -> 
A58: 56 | C58: =B58*'Személyi Törl. csökkentő fiók'!$B$27/12 ->  | D58: =IF(A58>'Személyi Törl. csökkentő fiók'!$J$10,0,'Személyi Törl. csökkentő fiók'!$B$28) -> 0 | F58: =IF(A58>'Személyi Törl. csökkentő fiók'!$J$10,0,'Személyi Törl. csökkentő fiók'!$J$11) -> 0 | G58: =IF(OR(A58>'Személyi Törl. csökkentő fiók'!$J$10,'Személyi Törl. csökkentő fiók'!$B$24='Személyi Törl. csökkentő fiók'!$T$5),0,'Személyi Törl. csökkentő fiók'!$J$12+'Személyi Törl. csökkentő fiók'!$J$13) -> 0 | H58: 0 | K58: 0 | L58: =IRR($K$2:K58,0.05) -> 
A59: 57 | C59: =B59*'Személyi Törl. csökkentő fiók'!$B$27/12 ->  | D59: =IF(A59>'Személyi Törl. csökkentő fiók'!$J$10,0,'Személyi Törl. csökkentő fiók'!$B$28) -> 0 | F59: =IF(A59>'Személyi Törl. csökkentő fiók'!$J$10,0,'Személyi Törl. csökkentő fiók'!$J$11) -> 0 | G59: =IF(OR(A59>'Személyi Törl. csökkentő fiók'!$J$10,'Személyi Törl. csökkentő fiók'!$B$24='Személyi Törl. csökkentő fiók'!$T$5),0,'Személyi Törl. csökkentő fiók'!$J$12+'Személyi Törl. csökkentő fiók'!$J$13) -> 0 | H59: 0 | K59: 0 | L59: =IRR($K$2:K59,0.05) -> 
A60: 58 | C60: =B60*'Személyi Törl. csökkentő fiók'!$B$27/12 ->  | D60: =IF(A60>'Személyi Törl. csökkentő fiók'!$J$10,0,'Személyi Törl. csökkentő fiók'!$B$28) -> 0 | F60: =IF(A60>'Személyi Törl. csökkentő fiók'!$J$10,0,'Személyi Törl. csökkentő fiók'!$J$11) -> 0 | G60: =IF(OR(A60>'Személyi Törl. csökkentő fiók'!$J$10,'Személyi Törl. csökkentő fiók'!$B$24='Személyi Törl. csökkentő fiók'!$T$5),0,'Személyi Törl. csökkentő fiók'!$J$12+'Személyi Törl. csökkentő fiók'!$J$13) -> 0 | H60: 0 | K60: 0 | L60: =IRR($K$2:K60,0.05) -> 
A61: 59 | C61: =B61*'Személyi Törl. csökkentő fiók'!$B$27/12 ->  | D61: =IF(A61>'Személyi Törl. csökkentő fiók'!$J$10,0,'Személyi Törl. csökkentő fiók'!$B$28) -> 0 | F61: =IF(A61>'Személyi Törl. csökkentő fiók'!$J$10,0,'Személyi Törl. csökkentő fiók'!$J$11) -> 0 | G61: =IF(OR(A61>'Személyi Törl. csökkentő fiók'!$J$10,'Személyi Törl. csökkentő fiók'!$B$24='Személyi Törl. csökkentő fiók'!$T$5),0,'Személyi Törl. csökkentő fiók'!$J$12+'Személyi Törl. csökkentő fiók'!$J$13) -> 0 | H61: 0 | K61: 0 | L61: =IRR($K$2:K61,0.05) -> 
A62: 60 | C62: =B62*'Személyi Törl. csökkentő fiók'!$B$27/12 ->  | D62: =IF(A62>'Személyi Törl. csökkentő fiók'!$J$10,0,'Személyi Törl. csökkentő fiók'!$B$28) -> 0 | F62: =IF(A62>'Személyi Törl. csökkentő fiók'!$J$10,0,'Személyi Törl. csökkentő fiók'!$J$11) -> 0 | G62: =IF(OR(A62>'Személyi Törl. csökkentő fiók'!$J$10,'Személyi Törl. csökkentő fiók'!$B$24='Személyi Törl. csökkentő fiók'!$T$5),0,'Személyi Törl. csökkentő fiók'!$J$12+'Személyi Törl. csökkentő fiók'!$J$13) -> 0 | H62: 0 | K62: 0 | L62: =IRR($K$2:K62,0.05) -> 
A63: 61 | C63: =B63*'Személyi Törl. csökkentő fiók'!$B$27/12 ->  | D63: =IF(A63>'Személyi Törl. csökkentő fiók'!$J$10,0,'Személyi Törl. csökkentő fiók'!$B$28) -> 0 | F63: =IF(A63>'Személyi Törl. csökkentő fiók'!$J$10,0,'Személyi Törl. csökkentő fiók'!$J$11) -> 0 | G63: =IF(OR(A63>'Személyi Törl. csökkentő fiók'!$J$10,'Személyi Törl. csökkentő fiók'!$B$24='Személyi Törl. csökkentő fiók'!$T$5),0,'Személyi Törl. csökkentő fiók'!$J$12+'Személyi Törl. csökkentő fiók'!$J$13) -> 0 | H63: 0 | K63: 0 | L63: =IRR($K$2:K63,0.05) -> 
A64: 62 | C64: =B64*'Személyi Törl. csökkentő fiók'!$B$27/12 ->  | D64: =IF(A64>'Személyi Törl. csökkentő fiók'!$J$10,0,'Személyi Törl. csökkentő fiók'!$B$28) -> 0 | F64: =IF(A64>'Személyi Törl. csökkentő fiók'!$J$10,0,'Személyi Törl. csökkentő fiók'!$J$11) -> 0 | G64: =IF(OR(A64>'Személyi Törl. csökkentő fiók'!$J$10,'Személyi Törl. csökkentő fiók'!$B$24='Személyi Törl. csökkentő fiók'!$T$5),0,'Személyi Törl. csökkentő fiók'!$J$12+'Személyi Törl. csökkentő fiók'!$J$13) -> 0 | H64: 0 | K64: 0 | L64: =IRR($K$2:K64,0.05) -> 
A65: 63 | C65: =B65*'Személyi Törl. csökkentő fiók'!$B$27/12 ->  | D65: =IF(A65>'Személyi Törl. csökkentő fiók'!$J$10,0,'Személyi Törl. csökkentő fiók'!$B$28) -> 0 | F65: =IF(A65>'Személyi Törl. csökkentő fiók'!$J$10,0,'Személyi Törl. csökkentő fiók'!$J$11) -> 0 | G65: =IF(OR(A65>'Személyi Törl. csökkentő fiók'!$J$10,'Személyi Törl. csökkentő fiók'!$B$24='Személyi Törl. csökkentő fiók'!$T$5),0,'Személyi Törl. csökkentő fiók'!$J$12+'Személyi Törl. csökkentő fiók'!$J$13) -> 0 | H65: 0 | K65: 0 | L65: =IRR($K$2:K65,0.05) -> 
A66: 64 | C66: =B66*'Személyi Törl. csökkentő fiók'!$B$27/12 ->  | D66: =IF(A66>'Személyi Törl. csökkentő fiók'!$J$10,0,'Személyi Törl. csökkentő fiók'!$B$28) -> 0 | F66: =IF(A66>'Személyi Törl. csökkentő fiók'!$J$10,0,'Személyi Törl. csökkentő fiók'!$J$11) -> 0 | G66: =IF(OR(A66>'Személyi Törl. csökkentő fiók'!$J$10,'Személyi Törl. csökkentő fiók'!$B$24='Személyi Törl. csökkentő fiók'!$T$5),0,'Személyi Törl. csökkentő fiók'!$J$12+'Személyi Törl. csökkentő fiók'!$J$13) -> 0 | H66: 0 | K66: 0 | L66: =IRR($K$2:K66,0.05) -> 
A67: 65 | C67: =B67*'Személyi Törl. csökkentő fiók'!$B$27/12 ->  | D67: =IF(A67>'Személyi Törl. csökkentő fiók'!$J$10,0,'Személyi Törl. csökkentő fiók'!$B$28) -> 0 | F67: =IF(A67>'Személyi Törl. csökkentő fiók'!$J$10,0,'Személyi Törl. csökkentő fiók'!$J$11) -> 0 | G67: =IF(OR(A67>'Személyi Törl. csökkentő fiók'!$J$10,'Személyi Törl. csökkentő fiók'!$B$24='Személyi Törl. csökkentő fiók'!$T$5),0,'Személyi Törl. csökkentő fiók'!$J$12+'Személyi Törl. csökkentő fiók'!$J$13) -> 0 | H67: 0 | K67: 0 | L67: =IRR($K$2:K67,0.05) -> 
A68: 66 | C68: =B68*'Személyi Törl. csökkentő fiók'!$B$27/12 ->  | D68: =IF(A68>'Személyi Törl. csökkentő fiók'!$J$10,0,'Személyi Törl. csökkentő fiók'!$B$28) -> 0 | E68: =+B68+C68-D68 ->  | F68: =IF(A68>'Személyi Törl. csökkentő fiók'!$J$10,0,'Személyi Törl. csökkentő fiók'!$J$11) -> 0 | G68: =IF(OR(A68>'Személyi Törl. csökkentő fiók'!$J$10,'Személyi Törl. csökkentő fiók'!$B$24='Személyi Törl. csökkentő fiók'!$T$5),0,'Személyi Törl. csökkentő fiók'!$J$12+'Személyi Törl. csökkentő fiók'!$J$13) -> 0 | H68: 0 | K68: =D68+F68+G68 -> 0 | L68: =IRR($K$2:K68,0.05) -> 
A69: =+A68+1 -> 67 | B69: =+E68 ->  | C69: =B69*'Személyi Törl. csökkentő fiók'!$B$27/12 ->  | D69: =IF(A69>'Személyi Törl. csökkentő fiók'!$J$10,0,'Személyi Törl. csökkentő fiók'!$B$28) -> 0 | F69: =IF(A69>'Személyi Törl. csökkentő fiók'!$J$10,0,'Személyi Törl. csökkentő fiók'!$J$11) -> 0 | G69: =IF(OR(A69>'Személyi Törl. csökkentő fiók'!$J$10,'Személyi Törl. csökkentő fiók'!$B$24='Személyi Törl. csökkentő fiók'!$T$5),0,'Személyi Törl. csökkentő fiók'!$J$12+'Személyi Törl. csökkentő fiók'!$J$13) -> 0 | H69: =H68+(D69+F69+G69)/(1+$H$1)^(A69/12) -> 0 | K69: 0 | L69: =IRR($K$2:K69,0.05) -> 
A70: 68 | C70: =B70*'Személyi Törl. csökkentő fiók'!$B$27/12 ->  | D70: =IF(A70>'Személyi Törl. csökkentő fiók'!$J$10,0,'Személyi Törl. csökkentő fiók'!$B$28) -> 0 | F70: =IF(A70>'Személyi Törl. csökkentő fiók'!$J$10,0,'Személyi Törl. csökkentő fiók'!$J$11) -> 0 | G70: =IF(OR(A70>'Személyi Törl. csökkentő fiók'!$J$10,'Személyi Törl. csökkentő fiók'!$B$24='Személyi Törl. csökkentő fiók'!$T$5),0,'Személyi Törl. csökkentő fiók'!$J$12+'Személyi Törl. csökkentő fiók'!$J$13) -> 0 | H70: 0 | K70: 0 | L70: =IRR($K$2:K70,0.05) -> 
A71: 69 | C71: =B71*'Személyi Törl. csökkentő fiók'!$B$27/12 ->  | D71: =IF(A71>'Személyi Törl. csökkentő fiók'!$J$10,0,'Személyi Törl. csökkentő fiók'!$B$28) -> 0 | F71: =IF(A71>'Személyi Törl. csökkentő fiók'!$J$10,0,'Személyi Törl. csökkentő fiók'!$J$11) -> 0 | G71: =IF(OR(A71>'Személyi Törl. csökkentő fiók'!$J$10,'Személyi Törl. csökkentő fiók'!$B$24='Személyi Törl. csökkentő fiók'!$T$5),0,'Személyi Törl. csökkentő fiók'!$J$12+'Személyi Törl. csökkentő fiók'!$J$13) -> 0 | H71: 0 | K71: 0 | L71: =IRR($K$2:K71,0.05) -> 
A72: 70 | C72: =B72*'Személyi Törl. csökkentő fiók'!$B$27/12 ->  | D72: =IF(A72>'Személyi Törl. csökkentő fiók'!$J$10,0,'Személyi Törl. csökkentő fiók'!$B$28) -> 0 | F72: =IF(A72>'Személyi Törl. csökkentő fiók'!$J$10,0,'Személyi Törl. csökkentő fiók'!$J$11) -> 0 | G72: =IF(OR(A72>'Személyi Törl. csökkentő fiók'!$J$10,'Személyi Törl. csökkentő fiók'!$B$24='Személyi Törl. csökkentő fiók'!$T$5),0,'Személyi Törl. csökkentő fiók'!$J$12+'Személyi Törl. csökkentő fiók'!$J$13) -> 0 | H72: 0 | K72: 0 | L72: =IRR($K$2:K72,0.05) -> 
A73: 71 | C73: =B73*'Személyi Törl. csökkentő fiók'!$B$27/12 ->  | D73: =IF(A73>'Személyi Törl. csökkentő fiók'!$J$10,0,'Személyi Törl. csökkentő fiók'!$B$28) -> 0 | F73: =IF(A73>'Személyi Törl. csökkentő fiók'!$J$10,0,'Személyi Törl. csökkentő fiók'!$J$11) -> 0 | G73: =IF(OR(A73>'Személyi Törl. csökkentő fiók'!$J$10,'Személyi Törl. csökkentő fiók'!$B$24='Személyi Törl. csökkentő fiók'!$T$5),0,'Személyi Törl. csökkentő fiók'!$J$12+'Személyi Törl. csökkentő fiók'!$J$13) -> 0 | H73: 0 | K73: 0 | L73: =IRR($K$2:K73,0.05) -> 
A74: 72 | C74: =B74*'Személyi Törl. csökkentő fiók'!$B$27/12 ->  | D74: =IF(A74>'Személyi Törl. csökkentő fiók'!$J$10,0,'Személyi Törl. csökkentő fiók'!$B$28) -> 0 | F74: =IF(A74>'Személyi Törl. csökkentő fiók'!$J$10,0,'Személyi Törl. csökkentő fiók'!$J$11) -> 0 | G74: =IF(OR(A74>'Személyi Törl. csökkentő fiók'!$J$10,'Személyi Törl. csökkentő fiók'!$B$24='Személyi Törl. csökkentő fiók'!$T$5),0,'Személyi Törl. csökkentő fiók'!$J$12+'Személyi Törl. csökkentő fiók'!$J$13) -> 0 | H74: 0 | K74: 0 | L74: =IRR($K$2:K74,0.05) -> 
A75: 73 | C75: =B75*'Személyi Törl. csökkentő fiók'!$B$27/12 ->  | D75: =IF(A75>'Személyi Törl. csökkentő fiók'!$J$10,0,'Személyi Törl. csökkentő fiók'!$B$28) -> 0 | F75: =IF(A75>'Személyi Törl. csökkentő fiók'!$J$10,0,'Személyi Törl. csökkentő fiók'!$J$11) -> 0 | G75: =IF(OR(A75>'Személyi Törl. csökkentő fiók'!$J$10,'Személyi Törl. csökkentő fiók'!$B$24='Személyi Törl. csökkentő fiók'!$T$5),0,'Személyi Törl. csökkentő fiók'!$J$12+'Személyi Törl. csökkentő fiók'!$J$13) -> 0 | H75: 0 | K75: 0 | L75: =IRR($K$2:K75,0.05) -> 
A76: 74 | C76: =B76*'Személyi Törl. csökkentő fiók'!$B$27/12 ->  | D76: =IF(A76>'Személyi Törl. csökkentő fiók'!$J$10,0,'Személyi Törl. csökkentő fiók'!$B$28) -> 0 | F76: =IF(A76>'Személyi Törl. csökkentő fiók'!$J$10,0,'Személyi Törl. csökkentő fiók'!$J$11) -> 0 | G76: =IF(OR(A76>'Személyi Törl. csökkentő fiók'!$J$10,'Személyi Törl. csökkentő fiók'!$B$24='Személyi Törl. csökkentő fiók'!$T$5),0,'Személyi Törl. csökkentő fiók'!$J$12+'Személyi Törl. csökkentő fiók'!$J$13) -> 0 | H76: 0 | K76: 0 | L76: =IRR($K$2:K76,0.05) -> 
A77: 75 | C77: =B77*'Személyi Törl. csökkentő fiók'!$B$27/12 ->  | D77: =IF(A77>'Személyi Törl. csökkentő fiók'!$J$10,0,'Személyi Törl. csökkentő fiók'!$B$28) -> 0 | F77: =IF(A77>'Személyi Törl. csökkentő fiók'!$J$10,0,'Személyi Törl. csökkentő fiók'!$J$11) -> 0 | G77: =IF(OR(A77>'Személyi Törl. csökkentő fiók'!$J$10,'Személyi Törl. csökkentő fiók'!$B$24='Személyi Törl. csökkentő fiók'!$T$5),0,'Személyi Törl. csökkentő fiók'!$J$12+'Személyi Törl. csökkentő fiók'!$J$13) -> 0 | H77: 0 | K77: 0 | L77: =IRR($K$2:K77,0.05) -> 
A78: 76 | C78: =B78*'Személyi Törl. csökkentő fiók'!$B$27/12 ->  | D78: =IF(A78>'Személyi Törl. csökkentő fiók'!$J$10,0,'Személyi Törl. csökkentő fiók'!$B$28) -> 0 | F78: =IF(A78>'Személyi Törl. csökkentő fiók'!$J$10,0,'Személyi Törl. csökkentő fiók'!$J$11) -> 0 | G78: =IF(OR(A78>'Személyi Törl. csökkentő fiók'!$J$10,'Személyi Törl. csökkentő fiók'!$B$24='Személyi Törl. csökkentő fiók'!$T$5),0,'Személyi Törl. csökkentő fiók'!$J$12+'Személyi Törl. csökkentő fiók'!$J$13) -> 0 | H78: 0 | K78: 0 | L78: =IRR($K$2:K78,0.05) -> 
A79: 77 | C79: =B79*'Személyi Törl. csökkentő fiók'!$B$27/12 ->  | D79: =IF(A79>'Személyi Törl. csökkentő fiók'!$J$10,0,'Személyi Törl. csökkentő fiók'!$B$28) -> 0 | F79: =IF(A79>'Személyi Törl. csökkentő fiók'!$J$10,0,'Személyi Törl. csökkentő fiók'!$J$11) -> 0 | G79: =IF(OR(A79>'Személyi Törl. csökkentő fiók'!$J$10,'Személyi Törl. csökkentő fiók'!$B$24='Személyi Törl. csökkentő fiók'!$T$5),0,'Személyi Törl. csökkentő fiók'!$J$12+'Személyi Törl. csökkentő fiók'!$J$13) -> 0 | H79: 0 | K79: 0 | L79: =IRR($K$2:K79,0.05) -> 
A80: 78 | C80: =B80*'Személyi Törl. csökkentő fiók'!$B$27/12 ->  | D80: =IF(A80>'Személyi Törl. csökkentő fiók'!$J$10,0,'Személyi Törl. csökkentő fiók'!$B$28) -> 0 | F80: =IF(A80>'Személyi Törl. csökkentő fiók'!$J$10,0,'Személyi Törl. csökkentő fiók'!$J$11) -> 0 | G80: =IF(OR(A80>'Személyi Törl. csökkentő fiók'!$J$10,'Személyi Törl. csökkentő fiók'!$B$24='Személyi Törl. csökkentő fiók'!$T$5),0,'Személyi Törl. csökkentő fiók'!$J$12+'Személyi Törl. csökkentő fiók'!$J$13) -> 0 | H80: 0 | K80: 0 | L80: =IRR($K$2:K80,0.05) -> 
A81: 79 | C81: =B81*'Személyi Törl. csökkentő fiók'!$B$27/12 ->  | D81: =IF(A81>'Személyi Törl. csökkentő fiók'!$J$10,0,'Személyi Törl. csökkentő fiók'!$B$28) -> 0 | F81: =IF(A81>'Személyi Törl. csökkentő fiók'!$J$10,0,'Személyi Törl. csökkentő fiók'!$J$11) -> 0 | G81: =IF(OR(A81>'Személyi Törl. csökkentő fiók'!$J$10,'Személyi Törl. csökkentő fiók'!$B$24='Személyi Törl. csökkentő fiók'!$T$5),0,'Személyi Törl. csökkentő fiók'!$J$12+'Személyi Törl. csökkentő fiók'!$J$13) -> 0 | H81: 0 | K81: 0 | L81: =IRR($K$2:K81,0.05) -> 
A82: 80 | C82: =B82*'Személyi Törl. csökkentő fiók'!$B$27/12 ->  | D82: =IF(A82>'Személyi Törl. csökkentő fiók'!$J$10,0,'Személyi Törl. csökkentő fiók'!$B$28) -> 0 | F82: =IF(A82>'Személyi Törl. csökkentő fiók'!$J$10,0,'Személyi Törl. csökkentő fiók'!$J$11) -> 0 | G82: =IF(OR(A82>'Személyi Törl. csökkentő fiók'!$J$10,'Személyi Törl. csökkentő fiók'!$B$24='Személyi Törl. csökkentő fiók'!$T$5),0,'Személyi Törl. csökkentő fiók'!$J$12+'Személyi Törl. csökkentő fiók'!$J$13) -> 0 | H82: 0 | K82: 0 | L82: =IRR($K$2:K82,0.05) -> 
A83: 81 | C83: =B83*'Személyi Törl. csökkentő fiók'!$B$27/12 ->  | D83: =IF(A83>'Személyi Törl. csökkentő fiók'!$J$10,0,'Személyi Törl. csökkentő fiók'!$B$28) -> 0 | F83: =IF(A83>'Személyi Törl. csökkentő fiók'!$J$10,0,'Személyi Törl. csökkentő fiók'!$J$11) -> 0 | G83: =IF(OR(A83>'Személyi Törl. csökkentő fiók'!$J$10,'Személyi Törl. csökkentő fiók'!$B$24='Személyi Törl. csökkentő fiók'!$T$5),0,'Személyi Törl. csökkentő fiók'!$J$12+'Személyi Törl. csökkentő fiók'!$J$13) -> 0 | H83: 0 | K83: 0 | L83: =IRR($K$2:K83,0.05) -> 
A84: 82 | C84: =B84*'Személyi Törl. csökkentő fiók'!$B$27/12 ->  | D84: =IF(A84>'Személyi Törl. csökkentő fiók'!$J$10,0,'Személyi Törl. csökkentő fiók'!$B$28) -> 0 | F84: =IF(A84>'Személyi Törl. csökkentő fiók'!$J$10,0,'Személyi Törl. csökkentő fiók'!$J$11) -> 0 | G84: =IF(OR(A84>'Személyi Törl. csökkentő fiók'!$J$10,'Személyi Törl. csökkentő fiók'!$B$24='Személyi Törl. csökkentő fiók'!$T$5),0,'Személyi Törl. csökkentő fiók'!$J$12+'Személyi Törl. csökkentő fiók'!$J$13) -> 0 | H84: 0 | K84: 0 | L84: =IRR($K$2:K84,0.05) -> 
A85: 83 | C85: =B85*'Személyi Törl. csökkentő fiók'!$B$27/12 ->  | D85: =IF(A85>'Személyi Törl. csökkentő fiók'!$J$10,0,'Személyi Törl. csökkentő fiók'!$B$28) -> 0 | F85: =IF(A85>'Személyi Törl. csökkentő fiók'!$J$10,0,'Személyi Törl. csökkentő fiók'!$J$11) -> 0 | G85: =IF(OR(A85>'Személyi Törl. csökkentő fiók'!$J$10,'Személyi Törl. csökkentő fiók'!$B$24='Személyi Törl. csökkentő fiók'!$T$5),0,'Személyi Törl. csökkentő fiók'!$J$12+'Személyi Törl. csökkentő fiók'!$J$13) -> 0 | H85: 0 | K85: 0 | L85: =IRR($K$2:K85,0.05) -> 
A86: 84 | C86: =B86*'Személyi Törl. csökkentő fiók'!$B$27/12 ->  | D86: =IF(A86>'Személyi Törl. csökkentő fiók'!$J$10,0,'Személyi Törl. csökkentő fiók'!$B$28) -> 0 | F86: =IF(A86>'Személyi Törl. csökkentő fiók'!$J$10,0,'Személyi Törl. csökkentő fiók'!$J$11) -> 0 | G86: =IF(OR(A86>'Személyi Törl. csökkentő fiók'!$J$10,'Személyi Törl. csökkentő fiók'!$B$24='Személyi Törl. csökkentő fiók'!$T$5),0,'Személyi Törl. csökkentő fiók'!$J$12+'Személyi Törl. csökkentő fiók'!$J$13) -> 0 | H86: 0 | K86: 0 | L86: =IRR($K$2:K86,0.05) -> 
A87: 85 | C87: =B87*'Személyi Törl. csökkentő fiók'!$B$27/12 ->  | D87: =IF(A87>'Személyi Törl. csökkentő fiók'!$J$10,0,'Személyi Törl. csökkentő fiók'!$B$28) -> 0 | F87: =IF(A87>'Személyi Törl. csökkentő fiók'!$J$10,0,'Személyi Törl. csökkentő fiók'!$J$11) -> 0 | G87: =IF(OR(A87>'Személyi Törl. csökkentő fiók'!$J$10,'Személyi Törl. csökkentő fiók'!$B$24='Személyi Törl. csökkentő fiók'!$T$5),0,'Személyi Törl. csökkentő fiók'!$J$12+'Személyi Törl. csökkentő fiók'!$J$13) -> 0 | H87: 0 | K87: 0 | L87: =IRR($K$2:K87,0.05) -> 
A88: 86 | C88: =B88*'Személyi Törl. csökkentő fiók'!$B$27/12 ->  | D88: =IF(A88>'Személyi Törl. csökkentő fiók'!$J$10,0,'Személyi Törl. csökkentő fiók'!$B$28) -> 0 | F88: =IF(A88>'Személyi Törl. csökkentő fiók'!$J$10,0,'Személyi Törl. csökkentő fiók'!$J$11) -> 0 | G88: =IF(OR(A88>'Személyi Törl. csökkentő fiók'!$J$10,'Személyi Törl. csökkentő fiók'!$B$24='Személyi Törl. csökkentő fiók'!$T$5),0,'Személyi Törl. csökkentő fiók'!$J$12+'Személyi Törl. csökkentő fiók'!$J$13) -> 0 | H88: 0 | K88: 0 | L88: =IRR($K$2:K88,0.05) -> 
A89: 87 | C89: =B89*'Személyi Törl. csökkentő fiók'!$B$27/12 ->  | D89: =IF(A89>'Személyi Törl. csökkentő fiók'!$J$10,0,'Személyi Törl. csökkentő fiók'!$B$28) -> 0 | F89: =IF(A89>'Személyi Törl. csökkentő fiók'!$J$10,0,'Személyi Törl. csökkentő fiók'!$J$11) -> 0 | G89: =IF(OR(A89>'Személyi Törl. csökkentő fiók'!$J$10,'Személyi Törl. csökkentő fiók'!$B$24='Személyi Törl. csökkentő fiók'!$T$5),0,'Személyi Törl. csökkentő fiók'!$J$12+'Személyi Törl. csökkentő fiók'!$J$13) -> 0 | H89: 0 | K89: 0 | L89: =IRR($K$2:K89,0.05) -> 
A90: 88 | C90: =B90*'Személyi Törl. csökkentő fiók'!$B$27/12 ->  | D90: =IF(A90>'Személyi Törl. csökkentő fiók'!$J$10,0,'Személyi Törl. csökkentő fiók'!$B$28) -> 0 | F90: =IF(A90>'Személyi Törl. csökkentő fiók'!$J$10,0,'Személyi Törl. csökkentő fiók'!$J$11) -> 0 | G90: =IF(OR(A90>'Személyi Törl. csökkentő fiók'!$J$10,'Személyi Törl. csökkentő fiók'!$B$24='Személyi Törl. csökkentő fiók'!$T$5),0,'Személyi Törl. csökkentő fiók'!$J$12+'Személyi Törl. csökkentő fiók'!$J$13) -> 0 | H90: 0 | K90: 0 | L90: =IRR($K$2:K90,0.05) -> 
A91: 89 | C91: =B91*'Személyi Törl. csökkentő fiók'!$B$27/12 ->  | D91: =IF(A91>'Személyi Törl. csökkentő fiók'!$J$10,0,'Személyi Törl. csökkentő fiók'!$B$28) -> 0 | F91: =IF(A91>'Személyi Törl. csökkentő fiók'!$J$10,0,'Személyi Törl. csökkentő fiók'!$J$11) -> 0 | G91: =IF(OR(A91>'Személyi Törl. csökkentő fiók'!$J$10,'Személyi Törl. csökkentő fiók'!$B$24='Személyi Törl. csökkentő fiók'!$T$5),0,'Személyi Törl. csökkentő fiók'!$J$12+'Személyi Törl. csökkentő fiók'!$J$13) -> 0 | H91: 0 | K91: 0 | L91: =IRR($K$2:K91,0.05) -> 
A92: 90 | C92: =B92*'Személyi Törl. csökkentő fiók'!$B$27/12 ->  | D92: =IF(A92>'Személyi Törl. csökkentő fiók'!$J$10,0,'Személyi Törl. csökkentő fiók'!$B$28) -> 0 | F92: =IF(A92>'Személyi Törl. csökkentő fiók'!$J$10,0,'Személyi Törl. csökkentő fiók'!$J$11) -> 0 | G92: =IF(OR(A92>'Személyi Törl. csökkentő fiók'!$J$10,'Személyi Törl. csökkentő fiók'!$B$24='Személyi Törl. csökkentő fiók'!$T$5),0,'Személyi Törl. csökkentő fiók'!$J$12+'Személyi Törl. csökkentő fiók'!$J$13) -> 0 | H92: 0 | K92: 0 | L92: =IRR($K$2:K92,0.05) -> 
A93: 91 | C93: =B93*'Személyi Törl. csökkentő fiók'!$B$27/12 ->  | D93: =IF(A93>'Személyi Törl. csökkentő fiók'!$J$10,0,'Személyi Törl. csökkentő fiók'!$B$28) -> 0 | F93: =IF(A93>'Személyi Törl. csökkentő fiók'!$J$10,0,'Személyi Törl. csökkentő fiók'!$J$11) -> 0 | G93: =IF(OR(A93>'Személyi Törl. csökkentő fiók'!$J$10,'Személyi Törl. csökkentő fiók'!$B$24='Személyi Törl. csökkentő fiók'!$T$5),0,'Személyi Törl. csökkentő fiók'!$J$12+'Személyi Törl. csökkentő fiók'!$J$13) -> 0 | H93: 0 | K93: 0 | L93: =IRR($K$2:K93,0.05) -> 
A94: 92 | C94: =B94*'Személyi Törl. csökkentő fiók'!$B$27/12 ->  | D94: =IF(A94>'Személyi Törl. csökkentő fiók'!$J$10,0,'Személyi Törl. csökkentő fiók'!$B$28) -> 0 | F94: =IF(A94>'Személyi Törl. csökkentő fiók'!$J$10,0,'Személyi Törl. csökkentő fiók'!$J$11) -> 0 | G94: =IF(OR(A94>'Személyi Törl. csökkentő fiók'!$J$10,'Személyi Törl. csökkentő fiók'!$B$24='Személyi Törl. csökkentő fiók'!$T$5),0,'Személyi Törl. csökkentő fiók'!$J$12+'Személyi Törl. csökkentő fiók'!$J$13) -> 0 | H94: 0 | K94: 0 | L94: =IRR($K$2:K94,0.05) -> 
A95: 93 | C95: =B95*'Személyi Törl. csökkentő fiók'!$B$27/12 ->  | D95: =IF(A95>'Személyi Törl. csökkentő fiók'!$J$10,0,'Személyi Törl. csökkentő fiók'!$B$28) -> 0 | F95: =IF(A95>'Személyi Törl. csökkentő fiók'!$J$10,0,'Személyi Törl. csökkentő fiók'!$J$11) -> 0 | G95: =IF(OR(A95>'Személyi Törl. csökkentő fiók'!$J$10,'Személyi Törl. csökkentő fiók'!$B$24='Személyi Törl. csökkentő fiók'!$T$5),0,'Személyi Törl. csökkentő fiók'!$J$12+'Személyi Törl. csökkentő fiók'!$J$13) -> 0 | H95: 0 | K95: 0 | L95: =IRR($K$2:K95,0.05) -> 
A96: 94 | C96: =B96*'Személyi Törl. csökkentő fiók'!$B$27/12 ->  | D96: =IF(A96>'Személyi Törl. csökkentő fiók'!$J$10,0,'Személyi Törl. csökkentő fiók'!$B$28) -> 0 | F96: =IF(A96>'Személyi Törl. csökkentő fiók'!$J$10,0,'Személyi Törl. csökkentő fiók'!$J$11) -> 0 | G96: =IF(OR(A96>'Személyi Törl. csökkentő fiók'!$J$10,'Személyi Törl. csökkentő fiók'!$B$24='Személyi Törl. csökkentő fiók'!$T$5),0,'Személyi Törl. csökkentő fiók'!$J$12+'Személyi Törl. csökkentő fiók'!$J$13) -> 0 | H96: 0 | K96: 0 | L96: =IRR($K$2:K96,0.05) -> 
A97: 95 | C97: =B97*'Személyi Törl. csökkentő fiók'!$B$27/12 ->  | D97: =IF(A97>'Személyi Törl. csökkentő fiók'!$J$10,0,'Személyi Törl. csökkentő fiók'!$B$28) -> 0 | F97: =IF(A97>'Személyi Törl. csökkentő fiók'!$J$10,0,'Személyi Törl. csökkentő fiók'!$J$11) -> 0 | G97: =IF(OR(A97>'Személyi Törl. csökkentő fiók'!$J$10,'Személyi Törl. csökkentő fiók'!$B$24='Személyi Törl. csökkentő fiók'!$T$5),0,'Személyi Törl. csökkentő fiók'!$J$12+'Személyi Törl. csökkentő fiók'!$J$13) -> 0 | H97: 0 | K97: 0 | L97: =IRR($K$2:K97,0.05) -> 
A98: 96 | C98: =B98*'Személyi Törl. csökkentő fiók'!$B$27/12 ->  | D98: =IF(A98>'Személyi Törl. csökkentő fiók'!$J$10,0,'Személyi Törl. csökkentő fiók'!$B$28) -> 0 | F98: =IF(A98>'Személyi Törl. csökkentő fiók'!$J$10,0,'Személyi Törl. csökkentő fiók'!$J$11) -> 0 | G98: =IF(OR(A98>'Személyi Törl. csökkentő fiók'!$J$10,'Személyi Törl. csökkentő fiók'!$B$24='Személyi Törl. csökkentő fiók'!$T$5),0,'Személyi Törl. csökkentő fiók'!$J$12+'Személyi Törl. csökkentő fiók'!$J$13) -> 0 | H98: 0 | K98: 0 | L98: =IRR($K$2:K98,0.05) -> 
A99: 97 | C99: =B99*'Személyi Törl. csökkentő fiók'!$B$27/12 ->  | D99: =IF(A99>'Személyi Törl. csökkentő fiók'!$J$10,0,'Személyi Törl. csökkentő fiók'!$B$28) -> 0 | F99: =IF(A99>'Személyi Törl. csökkentő fiók'!$J$10,0,'Személyi Törl. csökkentő fiók'!$J$11) -> 0 | G99: =IF(OR(A99>'Személyi Törl. csökkentő fiók'!$J$10,'Személyi Törl. csökkentő fiók'!$B$24='Személyi Törl. csökkentő fiók'!$T$5),0,'Személyi Törl. csökkentő fiók'!$J$12+'Személyi Törl. csökkentő fiók'!$J$13) -> 0 | H99: 0 | K99: 0 | L99: =IRR($K$2:K99,0.05) -> 
A100: 98 | C100: =B100*'Személyi Törl. csökkentő fiók'!$B$27/12 ->  | D100: =IF(A100>'Személyi Törl. csökkentő fiók'!$J$10,0,'Személyi Törl. csökkentő fiók'!$B$28) -> 0 | F100: =IF(A100>'Személyi Törl. csökkentő fiók'!$J$10,0,'Személyi Törl. csökkentő fiók'!$J$11) -> 0 | G100: =IF(OR(A100>'Személyi Törl. csökkentő fiók'!$J$10,'Személyi Törl. csökkentő fiók'!$B$24='Személyi Törl. csökkentő fiók'!$T$5),0,'Személyi Törl. csökkentő fiók'!$J$12+'Személyi Törl. csökkentő fiók'!$J$13) -> 0 | H100: 0 | K100: 0 | L100: =IRR($K$2:K100,0.05) -> 
A101: 99 | C101: =B101*'Személyi Törl. csökkentő fiók'!$B$27/12 ->  | D101: =IF(A101>'Személyi Törl. csökkentő fiók'!$J$10,0,'Személyi Törl. csökkentő fiók'!$B$28) -> 0 | F101: =IF(A101>'Személyi Törl. csökkentő fiók'!$J$10,0,'Személyi Törl. csökkentő fiók'!$J$11) -> 0 | G101: =IF(OR(A101>'Személyi Törl. csökkentő fiók'!$J$10,'Személyi Törl. csökkentő fiók'!$B$24='Személyi Törl. csökkentő fiók'!$T$5),0,'Személyi Törl. csökkentő fiók'!$J$12+'Személyi Törl. csökkentő fiók'!$J$13) -> 0 | H101: 0 | K101: 0 | L101: =IRR($K$2:K101,0.05) -> 
A102: 100 | C102: =B102*'Személyi Törl. csökkentő fiók'!$B$27/12 ->  | D102: =IF(A102>'Személyi Törl. csökkentő fiók'!$J$10,0,'Személyi Törl. csökkentő fiók'!$B$28) -> 0 | F102: =IF(A102>'Személyi Törl. csökkentő fiók'!$J$10,0,'Személyi Törl. csökkentő fiók'!$J$11) -> 0 | G102: =IF(OR(A102>'Személyi Törl. csökkentő fiók'!$J$10,'Személyi Törl. csökkentő fiók'!$B$24='Személyi Törl. csökkentő fiók'!$T$5),0,'Személyi Törl. csökkentő fiók'!$J$12+'Személyi Törl. csökkentő fiók'!$J$13) -> 0 | H102: 0 | K102: 0 | L102: =IRR($K$2:K102,0.05) -> 
A103: 101 | C103: =B103*'Személyi Törl. csökkentő fiók'!$B$27/12 ->  | D103: =IF(A103>'Személyi Törl. csökkentő fiók'!$J$10,0,'Személyi Törl. csökkentő fiók'!$B$28) -> 0 | F103: =IF(A103>'Személyi Törl. csökkentő fiók'!$J$10,0,'Személyi Törl. csökkentő fiók'!$J$11) -> 0 | G103: =IF(OR(A103>'Személyi Törl. csökkentő fiók'!$J$10,'Személyi Törl. csökkentő fiók'!$B$24='Személyi Törl. csökkentő fiók'!$T$5),0,'Személyi Törl. csökkentő fiók'!$J$12+'Személyi Törl. csökkentő fiók'!$J$13) -> 0 | H103: 0 | K103: 0 | L103: =IRR($K$2:K103,0.05) -> 
A104: 102 | C104: =B104*'Személyi Törl. csökkentő fiók'!$B$27/12 ->  | D104: =IF(A104>'Személyi Törl. csökkentő fiók'!$J$10,0,'Személyi Törl. csökkentő fiók'!$B$28) -> 0 | F104: =IF(A104>'Személyi Törl. csökkentő fiók'!$J$10,0,'Személyi Törl. csökkentő fiók'!$J$11) -> 0 | G104: =IF(OR(A104>'Személyi Törl. csökkentő fiók'!$J$10,'Személyi Törl. csökkentő fiók'!$B$24='Személyi Törl. csökkentő fiók'!$T$5),0,'Személyi Törl. csökkentő fiók'!$J$12+'Személyi Törl. csökkentő fiók'!$J$13) -> 0 | H104: 0 | K104: 0 | L104: =IRR($K$2:K104,0.05) -> 
A105: 103 | C105: =B105*'Személyi Törl. csökkentő fiók'!$B$27/12 ->  | D105: =IF(A105>'Személyi Törl. csökkentő fiók'!$J$10,0,'Személyi Törl. csökkentő fiók'!$B$28) -> 0 | F105: =IF(A105>'Személyi Törl. csökkentő fiók'!$J$10,0,'Személyi Törl. csökkentő fiók'!$J$11) -> 0 | G105: =IF(OR(A105>'Személyi Törl. csökkentő fiók'!$J$10,'Személyi Törl. csökkentő fiók'!$B$24='Személyi Törl. csökkentő fiók'!$T$5),0,'Személyi Törl. csökkentő fiók'!$J$12+'Személyi Törl. csökkentő fiók'!$J$13) -> 0 | H105: 0 | K105: 0 | L105: =IRR($K$2:K105,0.05) -> 
A106: 104 | C106: =B106*'Személyi Törl. csökkentő fiók'!$B$27/12 ->  | D106: =IF(A106>'Személyi Törl. csökkentő fiók'!$J$10,0,'Személyi Törl. csökkentő fiók'!$B$28) -> 0 | F106: =IF(A106>'Személyi Törl. csökkentő fiók'!$J$10,0,'Személyi Törl. csökkentő fiók'!$J$11) -> 0 | G106: =IF(OR(A106>'Személyi Törl. csökkentő fiók'!$J$10,'Személyi Törl. csökkentő fiók'!$B$24='Személyi Törl. csökkentő fiók'!$T$5),0,'Személyi Törl. csökkentő fiók'!$J$12+'Személyi Törl. csökkentő fiók'!$J$13) -> 0 | H106: 0 | K106: 0 | L106: =IRR($K$2:K106,0.05) -> 
A107: 105 | C107: =B107*'Személyi Törl. csökkentő fiók'!$B$27/12 ->  | D107: =IF(A107>'Személyi Törl. csökkentő fiók'!$J$10,0,'Személyi Törl. csökkentő fiók'!$B$28) -> 0 | F107: =IF(A107>'Személyi Törl. csökkentő fiók'!$J$10,0,'Személyi Törl. csökkentő fiók'!$J$11) -> 0 | G107: =IF(OR(A107>'Személyi Törl. csökkentő fiók'!$J$10,'Személyi Törl. csökkentő fiók'!$B$24='Személyi Törl. csökkentő fiók'!$T$5),0,'Személyi Törl. csökkentő fiók'!$J$12+'Személyi Törl. csökkentő fiók'!$J$13) -> 0 | H107: 0 | K107: 0 | L107: =IRR($K$2:K107,0.05) -> 
A108: 106 | C108: =B108*'Személyi Törl. csökkentő fiók'!$B$27/12 ->  | D108: =IF(A108>'Személyi Törl. csökkentő fiók'!$J$10,0,'Személyi Törl. csökkentő fiók'!$B$28) -> 0 | F108: =IF(A108>'Személyi Törl. csökkentő fiók'!$J$10,0,'Személyi Törl. csökkentő fiók'!$J$11) -> 0 | G108: =IF(OR(A108>'Személyi Törl. csökkentő fiók'!$J$10,'Személyi Törl. csökkentő fiók'!$B$24='Személyi Törl. csökkentő fiók'!$T$5),0,'Személyi Törl. csökkentő fiók'!$J$12+'Személyi Törl. csökkentő fiók'!$J$13) -> 0 | H108: 0 | K108: 0 | L108: =IRR($K$2:K108,0.05) -> 
A109: 107 | C109: =B109*'Személyi Törl. csökkentő fiók'!$B$27/12 ->  | D109: =IF(A109>'Személyi Törl. csökkentő fiók'!$J$10,0,'Személyi Törl. csökkentő fiók'!$B$28) -> 0 | F109: =IF(A109>'Személyi Törl. csökkentő fiók'!$J$10,0,'Személyi Törl. csökkentő fiók'!$J$11) -> 0 | G109: =IF(OR(A109>'Személyi Törl. csökkentő fiók'!$J$10,'Személyi Törl. csökkentő fiók'!$B$24='Személyi Törl. csökkentő fiók'!$T$5),0,'Személyi Törl. csökkentő fiók'!$J$12+'Személyi Törl. csökkentő fiók'!$J$13) -> 0 | H109: 0 | K109: 0 | L109: =IRR($K$2:K109,0.05) -> 
A110: 108 | C110: =B110*'Személyi Törl. csökkentő fiók'!$B$27/12 ->  | D110: =IF(A110>'Személyi Törl. csökkentő fiók'!$J$10,0,'Személyi Törl. csökkentő fiók'!$B$28) -> 0 | F110: =IF(A110>'Személyi Törl. csökkentő fiók'!$J$10,0,'Személyi Törl. csökkentő fiók'!$J$11) -> 0 | G110: =IF(OR(A110>'Személyi Törl. csökkentő fiók'!$J$10,'Személyi Törl. csökkentő fiók'!$B$24='Személyi Törl. csökkentő fiók'!$T$5),0,'Személyi Törl. csökkentő fiók'!$J$12+'Személyi Törl. csökkentő fiók'!$J$13) -> 0 | H110: 0 | K110: 0 | L110: =IRR($K$2:K110,0.05) -> 
A111: 109 | C111: =B111*'Személyi Törl. csökkentő fiók'!$B$27/12 ->  | D111: =IF(A111>'Személyi Törl. csökkentő fiók'!$J$10,0,'Személyi Törl. csökkentő fiók'!$B$28) -> 0 | F111: =IF(A111>'Személyi Törl. csökkentő fiók'!$J$10,0,'Személyi Törl. csökkentő fiók'!$J$11) -> 0 | G111: =IF(OR(A111>'Személyi Törl. csökkentő fiók'!$J$10,'Személyi Törl. csökkentő fiók'!$B$24='Személyi Törl. csökkentő fiók'!$T$5),0,'Személyi Törl. csökkentő fiók'!$J$12+'Személyi Törl. csökkentő fiók'!$J$13) -> 0 | H111: 0 | K111: 0 | L111: =IRR($K$2:K111,0.05) -> 
A112: 110 | C112: =B112*'Személyi Törl. csökkentő fiók'!$B$27/12 ->  | D112: =IF(A112>'Személyi Törl. csökkentő fiók'!$J$10,0,'Személyi Törl. csökkentő fiók'!$B$28) -> 0 | F112: =IF(A112>'Személyi Törl. csökkentő fiók'!$J$10,0,'Személyi Törl. csökkentő fiók'!$J$11) -> 0 | G112: =IF(OR(A112>'Személyi Törl. csökkentő fiók'!$J$10,'Személyi Törl. csökkentő fiók'!$B$24='Személyi Törl. csökkentő fiók'!$T$5),0,'Személyi Törl. csökkentő fiók'!$J$12+'Személyi Törl. csökkentő fiók'!$J$13) -> 0 | H112: 0 | K112: 0 | L112: =IRR($K$2:K112,0.05) -> 
A113: 111 | C113: =B113*'Személyi Törl. csökkentő fiók'!$B$27/12 ->  | D113: =IF(A113>'Személyi Törl. csökkentő fiók'!$J$10,0,'Személyi Törl. csökkentő fiók'!$B$28) -> 0 | F113: =IF(A113>'Személyi Törl. csökkentő fiók'!$J$10,0,'Személyi Törl. csökkentő fiók'!$J$11) -> 0 | G113: =IF(OR(A113>'Személyi Törl. csökkentő fiók'!$J$10,'Személyi Törl. csökkentő fiók'!$B$24='Személyi Törl. csökkentő fiók'!$T$5),0,'Személyi Törl. csökkentő fiók'!$J$12+'Személyi Törl. csökkentő fiók'!$J$13) -> 0 | H113: 0 | K113: 0 | L113: =IRR($K$2:K113,0.05) -> 
A114: 112 | C114: =B114*'Személyi Törl. csökkentő fiók'!$B$27/12 ->  | D114: =IF(A114>'Személyi Törl. csökkentő fiók'!$J$10,0,'Személyi Törl. csökkentő fiók'!$B$28) -> 0 | F114: =IF(A114>'Személyi Törl. csökkentő fiók'!$J$10,0,'Személyi Törl. csökkentő fiók'!$J$11) -> 0 | G114: =IF(OR(A114>'Személyi Törl. csökkentő fiók'!$J$10,'Személyi Törl. csökkentő fiók'!$B$24='Személyi Törl. csökkentő fiók'!$T$5),0,'Személyi Törl. csökkentő fiók'!$J$12+'Személyi Törl. csökkentő fiók'!$J$13) -> 0 | H114: 0 | K114: 0 | L114: =IRR($K$2:K114,0.05) -> 
A115: 113 | C115: =B115*'Személyi Törl. csökkentő fiók'!$B$27/12 ->  | D115: =IF(A115>'Személyi Törl. csökkentő fiók'!$J$10,0,'Személyi Törl. csökkentő fiók'!$B$28) -> 0 | F115: =IF(A115>'Személyi Törl. csökkentő fiók'!$J$10,0,'Személyi Törl. csökkentő fiók'!$J$11) -> 0 | G115: =IF(OR(A115>'Személyi Törl. csökkentő fiók'!$J$10,'Személyi Törl. csökkentő fiók'!$B$24='Személyi Törl. csökkentő fiók'!$T$5),0,'Személyi Törl. csökkentő fiók'!$J$12+'Személyi Törl. csökkentő fiók'!$J$13) -> 0 | H115: 0 | K115: 0 | L115: =IRR($K$2:K115,0.05) -> 
A116: 114 | C116: =B116*'Személyi Törl. csökkentő fiók'!$B$27/12 ->  | D116: =IF(A116>'Személyi Törl. csökkentő fiók'!$J$10,0,'Személyi Törl. csökkentő fiók'!$B$28) -> 0 | F116: =IF(A116>'Személyi Törl. csökkentő fiók'!$J$10,0,'Személyi Törl. csökkentő fiók'!$J$11) -> 0 | G116: =IF(OR(A116>'Személyi Törl. csökkentő fiók'!$J$10,'Személyi Törl. csökkentő fiók'!$B$24='Személyi Törl. csökkentő fiók'!$T$5),0,'Személyi Törl. csökkentő fiók'!$J$12+'Személyi Törl. csökkentő fiók'!$J$13) -> 0 | H116: 0 | K116: 0 | L116: =IRR($K$2:K116,0.05) -> 
A117: 115 | C117: =B117*'Személyi Törl. csökkentő fiók'!$B$27/12 ->  | D117: =IF(A117>'Személyi Törl. csökkentő fiók'!$J$10,0,'Személyi Törl. csökkentő fiók'!$B$28) -> 0 | F117: =IF(A117>'Személyi Törl. csökkentő fiók'!$J$10,0,'Személyi Törl. csökkentő fiók'!$J$11) -> 0 | G117: =IF(OR(A117>'Személyi Törl. csökkentő fiók'!$J$10,'Személyi Törl. csökkentő fiók'!$B$24='Személyi Törl. csökkentő fiók'!$T$5),0,'Személyi Törl. csökkentő fiók'!$J$12+'Személyi Törl. csökkentő fiók'!$J$13) -> 0 | H117: 0 | K117: 0 | L117: =IRR($K$2:K117,0.05) -> 
A118: 116 | C118: =B118*'Személyi Törl. csökkentő fiók'!$B$27/12 ->  | D118: =IF(A118>'Személyi Törl. csökkentő fiók'!$J$10,0,'Személyi Törl. csökkentő fiók'!$B$28) -> 0 | F118: =IF(A118>'Személyi Törl. csökkentő fiók'!$J$10,0,'Személyi Törl. csökkentő fiók'!$J$11) -> 0 | G118: =IF(OR(A118>'Személyi Törl. csökkentő fiók'!$J$10,'Személyi Törl. csökkentő fiók'!$B$24='Személyi Törl. csökkentő fiók'!$T$5),0,'Személyi Törl. csökkentő fiók'!$J$12+'Személyi Törl. csökkentő fiók'!$J$13) -> 0 | H118: 0 | K118: 0 | L118: =IRR($K$2:K118,0.05) -> 
A119: 117 | C119: =B119*'Személyi Törl. csökkentő fiók'!$B$27/12 ->  | D119: =IF(A119>'Személyi Törl. csökkentő fiók'!$J$10,0,'Személyi Törl. csökkentő fiók'!$B$28) -> 0 | F119: =IF(A119>'Személyi Törl. csökkentő fiók'!$J$10,0,'Személyi Törl. csökkentő fiók'!$J$11) -> 0 | G119: =IF(OR(A119>'Személyi Törl. csökkentő fiók'!$J$10,'Személyi Törl. csökkentő fiók'!$B$24='Személyi Törl. csökkentő fiók'!$T$5),0,'Személyi Törl. csökkentő fiók'!$J$12+'Személyi Törl. csökkentő fiók'!$J$13) -> 0 | H119: 0 | K119: 0 | L119: =IRR($K$2:K119,0.05) -> 
A120: 118 | C120: =B120*'Személyi Törl. csökkentő fiók'!$B$27/12 ->  | D120: =IF(A120>'Személyi Törl. csökkentő fiók'!$J$10,0,'Személyi Törl. csökkentő fiók'!$B$28) -> 0 | F120: =IF(A120>'Személyi Törl. csökkentő fiók'!$J$10,0,'Személyi Törl. csökkentő fiók'!$J$11) -> 0 | G120: =IF(OR(A120>'Személyi Törl. csökkentő fiók'!$J$10,'Személyi Törl. csökkentő fiók'!$B$24='Személyi Törl. csökkentő fiók'!$T$5),0,'Személyi Törl. csökkentő fiók'!$J$12+'Személyi Törl. csökkentő fiók'!$J$13) -> 0 | H120: 0 | K120: 0 | L120: =IRR($K$2:K120,0.05) -> 
A121: 119 | C121: =B121*'Személyi Törl. csökkentő fiók'!$B$27/12 ->  | D121: =IF(A121>'Személyi Törl. csökkentő fiók'!$J$10,0,'Személyi Törl. csökkentő fiók'!$B$28) -> 0 | F121: =IF(A121>'Személyi Törl. csökkentő fiók'!$J$10,0,'Személyi Törl. csökkentő fiók'!$J$11) -> 0 | G121: =IF(OR(A121>'Személyi Törl. csökkentő fiók'!$J$10,'Személyi Törl. csökkentő fiók'!$B$24='Személyi Törl. csökkentő fiók'!$T$5),0,'Személyi Törl. csökkentő fiók'!$J$12+'Személyi Törl. csökkentő fiók'!$J$13) -> 0 | H121: 0 | K121: 0 | L121: =IRR($K$2:K121,0.05) -> 
A122: 120 | C122: =B122*'Személyi Törl. csökkentő fiók'!$B$27/12 ->  | D122: =IF(A122>'Személyi Törl. csökkentő fiók'!$J$10,0,'Személyi Törl. csökkentő fiók'!$B$28) -> 0 | F122: =IF(A122>'Személyi Törl. csökkentő fiók'!$J$10,0,'Személyi Törl. csökkentő fiók'!$J$11) -> 0 | G122: =IF(OR(A122>'Személyi Törl. csökkentő fiók'!$J$10,'Személyi Törl. csökkentő fiók'!$B$24='Személyi Törl. csökkentő fiók'!$T$5),0,'Személyi Törl. csökkentő fiók'!$J$12+'Személyi Törl. csökkentő fiók'!$J$13) -> 0 | H122: 0 | K122: 0 | L122: =IRR($K$2:K122,0.05) -> 
A123: 121 | C123: =B123*'Személyi Törl. csökkentő fiók'!$B$27/12 ->  | D123: =IF(A123>'Személyi Törl. csökkentő fiók'!$J$10,0,'Személyi Törl. csökkentő fiók'!$B$28) -> 0 | F123: =IF(A123>'Személyi Törl. csökkentő fiók'!$J$10,0,'Személyi Törl. csökkentő fiók'!$J$11) -> 0 | G123: =IF(OR(A123>'Személyi Törl. csökkentő fiók'!$J$10,'Személyi Törl. csökkentő fiók'!$B$24='Személyi Törl. csökkentő fiók'!$T$5),0,'Személyi Törl. csökkentő fiók'!$J$12+'Személyi Törl. csökkentő fiók'!$J$13) -> 0 | H123: 0 | K123: 0 | L123: =IRR($K$2:K123,0.05) -> 
A124: 122 | C124: =B124*'Személyi Törl. csökkentő fiók'!$B$27/12 ->  | D124: =IF(A124>'Személyi Törl. csökkentő fiók'!$J$10,0,'Személyi Törl. csökkentő fiók'!$B$28) -> 0 | F124: =IF(A124>'Személyi Törl. csökkentő fiók'!$J$10,0,'Személyi Törl. csökkentő fiók'!$J$11) -> 0 | G124: =IF(OR(A124>'Személyi Törl. csökkentő fiók'!$J$10,'Személyi Törl. csökkentő fiók'!$B$24='Személyi Törl. csökkentő fiók'!$T$5),0,'Személyi Törl. csökkentő fiók'!$J$12+'Személyi Törl. csökkentő fiók'!$J$13) -> 0 | H124: 0 | K124: 0 | L124: =IRR($K$2:K124,0.05) -> 
A125: 123 | C125: =B125*'Személyi Törl. csökkentő fiók'!$B$27/12 ->  | D125: =IF(A125>'Személyi Törl. csökkentő fiók'!$J$10,0,'Személyi Törl. csökkentő fiók'!$B$28) -> 0 | F125: =IF(A125>'Személyi Törl. csökkentő fiók'!$J$10,0,'Személyi Törl. csökkentő fiók'!$J$11) -> 0 | G125: =IF(OR(A125>'Személyi Törl. csökkentő fiók'!$J$10,'Személyi Törl. csökkentő fiók'!$B$24='Személyi Törl. csökkentő fiók'!$T$5),0,'Személyi Törl. csökkentő fiók'!$J$12+'Személyi Törl. csökkentő fiók'!$J$13) -> 0 | H125: 0 | K125: 0 | L125: =IRR($K$2:K125,0.05) -> 
A126: 124 | C126: =B126*'Személyi Törl. csökkentő fiók'!$B$27/12 ->  | D126: =IF(A126>'Személyi Törl. csökkentő fiók'!$J$10,0,'Személyi Törl. csökkentő fiók'!$B$28) -> 0 | F126: =IF(A126>'Személyi Törl. csökkentő fiók'!$J$10,0,'Személyi Törl. csökkentő fiók'!$J$11) -> 0 | G126: =IF(OR(A126>'Személyi Törl. csökkentő fiók'!$J$10,'Személyi Törl. csökkentő fiók'!$B$24='Személyi Törl. csökkentő fiók'!$T$5),0,'Személyi Törl. csökkentő fiók'!$J$12+'Személyi Törl. csökkentő fiók'!$J$13) -> 0 | H126: 0 | K126: 0 | L126: =IRR($K$2:K126,0.05) -> 
A127: 125 | C127: =B127*'Személyi Törl. csökkentő fiók'!$B$27/12 ->  | D127: =IF(A127>'Személyi Törl. csökkentő fiók'!$J$10,0,'Személyi Törl. csökkentő fiók'!$B$28) -> 0 | F127: =IF(A127>'Személyi Törl. csökkentő fiók'!$J$10,0,'Személyi Törl. csökkentő fiók'!$J$11) -> 0 | G127: =IF(OR(A127>'Személyi Törl. csökkentő fiók'!$J$10,'Személyi Törl. csökkentő fiók'!$B$24='Személyi Törl. csökkentő fiók'!$T$5),0,'Személyi Törl. csökkentő fiók'!$J$12+'Személyi Törl. csökkentő fiók'!$J$13) -> 0 | H127: 0 | K127: 0 | L127: =IRR($K$2:K127,0.05) -> 
A128: 126 | C128: =B128*'Személyi Törl. csökkentő fiók'!$B$27/12 ->  | D128: =IF(A128>'Személyi Törl. csökkentő fiók'!$J$10,0,'Személyi Törl. csökkentő fiók'!$B$28) -> 0 | F128: =IF(A128>'Személyi Törl. csökkentő fiók'!$J$10,0,'Személyi Törl. csökkentő fiók'!$J$11) -> 0 | G128: =IF(OR(A128>'Személyi Törl. csökkentő fiók'!$J$10,'Személyi Törl. csökkentő fiók'!$B$24='Személyi Törl. csökkentő fiók'!$T$5),0,'Személyi Törl. csökkentő fiók'!$J$12+'Személyi Törl. csökkentő fiók'!$J$13) -> 0 | H128: 0 | K128: 0 | L128: =IRR($K$2:K128,0.05) -> 
A129: 127 | C129: =B129*'Személyi Törl. csökkentő fiók'!$B$27/12 ->  | D129: =IF(A129>'Személyi Törl. csökkentő fiók'!$J$10,0,'Személyi Törl. csökkentő fiók'!$B$28) -> 0 | F129: =IF(A129>'Személyi Törl. csökkentő fiók'!$J$10,0,'Személyi Törl. csökkentő fiók'!$J$11) -> 0 | G129: =IF(OR(A129>'Személyi Törl. csökkentő fiók'!$J$10,'Személyi Törl. csökkentő fiók'!$B$24='Személyi Törl. csökkentő fiók'!$T$5),0,'Személyi Törl. csökkentő fiók'!$J$12+'Személyi Törl. csökkentő fiók'!$J$13) -> 0 | H129: 0 | K129: 0 | L129: =IRR($K$2:K129,0.05) -> 
A130: 128 | C130: =B130*'Személyi Törl. csökkentő fiók'!$B$27/12 ->  | D130: =IF(A130>'Személyi Törl. csökkentő fiók'!$J$10,0,'Személyi Törl. csökkentő fiók'!$B$28) -> 0 | F130: =IF(A130>'Személyi Törl. csökkentő fiók'!$J$10,0,'Személyi Törl. csökkentő fiók'!$J$11) -> 0 | G130: =IF(OR(A130>'Személyi Törl. csökkentő fiók'!$J$10,'Személyi Törl. csökkentő fiók'!$B$24='Személyi Törl. csökkentő fiók'!$T$5),0,'Személyi Törl. csökkentő fiók'!$J$12+'Személyi Törl. csökkentő fiók'!$J$13) -> 0 | H130: 0 | K130: 0 | L130: =IRR($K$2:K130,0.05) -> 
A131: 129 | C131: =B131*'Személyi Törl. csökkentő fiók'!$B$27/12 ->  | D131: =IF(A131>'Személyi Törl. csökkentő fiók'!$J$10,0,'Személyi Törl. csökkentő fiók'!$B$28) -> 0 | F131: =IF(A131>'Személyi Törl. csökkentő fiók'!$J$10,0,'Személyi Törl. csökkentő fiók'!$J$11) -> 0 | G131: =IF(OR(A131>'Személyi Törl. csökkentő fiók'!$J$10,'Személyi Törl. csökkentő fiók'!$B$24='Személyi Törl. csökkentő fiók'!$T$5),0,'Személyi Törl. csökkentő fiók'!$J$12+'Személyi Törl. csökkentő fiók'!$J$13) -> 0 | H131: 0 | K131: 0 | L131: =IRR($K$2:K131,0.05) -> 
A132: 130 | C132: =B132*'Személyi Törl. csökkentő fiók'!$B$27/12 ->  | D132: =IF(A132>'Személyi Törl. csökkentő fiók'!$J$10,0,'Személyi Törl. csökkentő fiók'!$B$28) -> 0 | E132: =+B132+C132-D132 ->  | F132: =IF(A132>'Személyi Törl. csökkentő fiók'!$J$10,0,'Személyi Törl. csökkentő fiók'!$J$11) -> 0 | G132: =IF(OR(A132>'Személyi Törl. csökkentő fiók'!$J$10,'Személyi Törl. csökkentő fiók'!$B$24='Személyi Törl. csökkentő fiók'!$T$5),0,'Személyi Törl. csökkentő fiók'!$J$12+'Személyi Törl. csökkentő fiók'!$J$13) -> 0 | H132: 0 | K132: =D132+F132+G132 -> 0 | L132: =IRR($K$2:K132,0.05) -> 
A133: =+A132+1 -> 131 | B133: =+E132 ->  | C133: =B133*'Személyi Törl. csökkentő fiók'!$B$27/12 ->  | D133: =IF(A133>'Személyi Törl. csökkentő fiók'!$J$10,0,'Személyi Törl. csökkentő fiók'!$B$28) -> 0 | F133: =IF(A133>'Személyi Törl. csökkentő fiók'!$J$10,0,'Személyi Törl. csökkentő fiók'!$J$11) -> 0 | G133: =IF(OR(A133>'Személyi Törl. csökkentő fiók'!$J$10,'Személyi Törl. csökkentő fiók'!$B$24='Személyi Törl. csökkentő fiók'!$T$5),0,'Személyi Törl. csökkentő fiók'!$J$12+'Személyi Törl. csökkentő fiók'!$J$13) -> 0 | H133: =H132+(D133+F133+G133)/(1+$H$1)^(A133/12) -> 0 | K133: 0 | L133: =IRR($K$2:K133,0.05) -> 
A134: 132 | C134: =B134*'Személyi Törl. csökkentő fiók'!$B$27/12 ->  | D134: =IF(A134>'Személyi Törl. csökkentő fiók'!$J$10,0,'Személyi Törl. csökkentő fiók'!$B$28) -> 0 | F134: =IF(A134>'Személyi Törl. csökkentő fiók'!$J$10,0,'Személyi Törl. csökkentő fiók'!$J$11) -> 0 | G134: =IF(OR(A134>'Személyi Törl. csökkentő fiók'!$J$10,'Személyi Törl. csökkentő fiók'!$B$24='Személyi Törl. csökkentő fiók'!$T$5),0,'Személyi Törl. csökkentő fiók'!$J$12+'Személyi Törl. csökkentő fiók'!$J$13) -> 0 | H134: 0 | K134: 0 | L134: =IRR($K$2:K134,0.05) -> 
A135: 133 | C135: =B135*'Személyi Törl. csökkentő fiók'!$B$27/12 ->  | D135: =IF(A135>'Személyi Törl. csökkentő fiók'!$J$10,0,'Személyi Törl. csökkentő fiók'!$B$28) -> 0 | F135: =IF(A135>'Személyi Törl. csökkentő fiók'!$J$10,0,'Személyi Törl. csökkentő fiók'!$J$11) -> 0 | G135: =IF(OR(A135>'Személyi Törl. csökkentő fiók'!$J$10,'Személyi Törl. csökkentő fiók'!$B$24='Személyi Törl. csökkentő fiók'!$T$5),0,'Személyi Törl. csökkentő fiók'!$J$12+'Személyi Törl. csökkentő fiók'!$J$13) -> 0 | H135: 0 | K135: 0 | L135: =IRR($K$2:K135,0.05) -> 
A136: 134 | C136: =B136*'Személyi Törl. csökkentő fiók'!$B$27/12 ->  | D136: =IF(A136>'Személyi Törl. csökkentő fiók'!$J$10,0,'Személyi Törl. csökkentő fiók'!$B$28) -> 0 | F136: =IF(A136>'Személyi Törl. csökkentő fiók'!$J$10,0,'Személyi Törl. csökkentő fiók'!$J$11) -> 0 | G136: =IF(OR(A136>'Személyi Törl. csökkentő fiók'!$J$10,'Személyi Törl. csökkentő fiók'!$B$24='Személyi Törl. csökkentő fiók'!$T$5),0,'Személyi Törl. csökkentő fiók'!$J$12+'Személyi Törl. csökkentő fiók'!$J$13) -> 0 | H136: 0 | K136: 0 | L136: =IRR($K$2:K136,0.05) -> 
A137: 135 | C137: =B137*'Személyi Törl. csökkentő fiók'!$B$27/12 ->  | D137: =IF(A137>'Személyi Törl. csökkentő fiók'!$J$10,0,'Személyi Törl. csökkentő fiók'!$B$28) -> 0 | F137: =IF(A137>'Személyi Törl. csökkentő fiók'!$J$10,0,'Személyi Törl. csökkentő fiók'!$J$11) -> 0 | G137: =IF(OR(A137>'Személyi Törl. csökkentő fiók'!$J$10,'Személyi Törl. csökkentő fiók'!$B$24='Személyi Törl. csökkentő fiók'!$T$5),0,'Személyi Törl. csökkentő fiók'!$J$12+'Személyi Törl. csökkentő fiók'!$J$13) -> 0 | H137: 0 | K137: 0 | L137: =IRR($K$2:K137,0.05) -> 
A138: 136 | C138: =B138*'Személyi Törl. csökkentő fiók'!$B$27/12 ->  | D138: =IF(A138>'Személyi Törl. csökkentő fiók'!$J$10,0,'Személyi Törl. csökkentő fiók'!$B$28) -> 0 | F138: =IF(A138>'Személyi Törl. csökkentő fiók'!$J$10,0,'Személyi Törl. csökkentő fiók'!$J$11) -> 0 | G138: =IF(OR(A138>'Személyi Törl. csökkentő fiók'!$J$10,'Személyi Törl. csökkentő fiók'!$B$24='Személyi Törl. csökkentő fiók'!$T$5),0,'Személyi Törl. csökkentő fiók'!$J$12+'Személyi Törl. csökkentő fiók'!$J$13) -> 0 | H138: 0 | K138: 0 | L138: =IRR($K$2:K138,0.05) -> 
A139: 137 | C139: =B139*'Személyi Törl. csökkentő fiók'!$B$27/12 ->  | D139: =IF(A139>'Személyi Törl. csökkentő fiók'!$J$10,0,'Személyi Törl. csökkentő fiók'!$B$28) -> 0 | F139: =IF(A139>'Személyi Törl. csökkentő fiók'!$J$10,0,'Személyi Törl. csökkentő fiók'!$J$11) -> 0 | G139: =IF(OR(A139>'Személyi Törl. csökkentő fiók'!$J$10,'Személyi Törl. csökkentő fiók'!$B$24='Személyi Törl. csökkentő fiók'!$T$5),0,'Személyi Törl. csökkentő fiók'!$J$12+'Személyi Törl. csökkentő fiók'!$J$13) -> 0 | H139: 0 | K139: 0 | L139: =IRR($K$2:K139,0.05) -> 
A140: 138 | C140: =B140*'Személyi Törl. csökkentő fiók'!$B$27/12 ->  | D140: =IF(A140>'Személyi Törl. csökkentő fiók'!$J$10,0,'Személyi Törl. csökkentő fiók'!$B$28) -> 0 | F140: =IF(A140>'Személyi Törl. csökkentő fiók'!$J$10,0,'Személyi Törl. csökkentő fiók'!$J$11) -> 0 | G140: =IF(OR(A140>'Személyi Törl. csökkentő fiók'!$J$10,'Személyi Törl. csökkentő fiók'!$B$24='Személyi Törl. csökkentő fiók'!$T$5),0,'Személyi Törl. csökkentő fiók'!$J$12+'Személyi Törl. csökkentő fiók'!$J$13) -> 0 | H140: 0 | K140: 0 | L140: =IRR($K$2:K140,0.05) -> 
A141: 139 | C141: =B141*'Személyi Törl. csökkentő fiók'!$B$27/12 ->  | D141: =IF(A141>'Személyi Törl. csökkentő fiók'!$J$10,0,'Személyi Törl. csökkentő fiók'!$B$28) -> 0 | F141: =IF(A141>'Személyi Törl. csökkentő fiók'!$J$10,0,'Személyi Törl. csökkentő fiók'!$J$11) -> 0 | G141: =IF(OR(A141>'Személyi Törl. csökkentő fiók'!$J$10,'Személyi Törl. csökkentő fiók'!$B$24='Személyi Törl. csökkentő fiók'!$T$5),0,'Személyi Törl. csökkentő fiók'!$J$12+'Személyi Törl. csökkentő fiók'!$J$13) -> 0 | H141: 0 | K141: 0 | L141: =IRR($K$2:K141,0.05) -> 
A142: 140 | C142: =B142*'Személyi Törl. csökkentő fiók'!$B$27/12 ->  | D142: =IF(A142>'Személyi Törl. csökkentő fiók'!$J$10,0,'Személyi Törl. csökkentő fiók'!$B$28) -> 0 | F142: =IF(A142>'Személyi Törl. csökkentő fiók'!$J$10,0,'Személyi Törl. csökkentő fiók'!$J$11) -> 0 | G142: =IF(OR(A142>'Személyi Törl. csökkentő fiók'!$J$10,'Személyi Törl. csökkentő fiók'!$B$24='Személyi Törl. csökkentő fiók'!$T$5),0,'Személyi Törl. csökkentő fiók'!$J$12+'Személyi Törl. csökkentő fiók'!$J$13) -> 0 | H142: 0 | K142: 0 | L142: =IRR($K$2:K142,0.05) -> 
A143: 141 | C143: =B143*'Személyi Törl. csökkentő fiók'!$B$27/12 ->  | D143: =IF(A143>'Személyi Törl. csökkentő fiók'!$J$10,0,'Személyi Törl. csökkentő fiók'!$B$28) -> 0 | F143: =IF(A143>'Személyi Törl. csökkentő fiók'!$J$10,0,'Személyi Törl. csökkentő fiók'!$J$11) -> 0 | G143: =IF(OR(A143>'Személyi Törl. csökkentő fiók'!$J$10,'Személyi Törl. csökkentő fiók'!$B$24='Személyi Törl. csökkentő fiók'!$T$5),0,'Személyi Törl. csökkentő fiók'!$J$12+'Személyi Törl. csökkentő fiók'!$J$13) -> 0 | H143: 0 | K143: 0 | L143: =IRR($K$2:K143,0.05) -> 
A144: 142 | C144: =B144*'Személyi Törl. csökkentő fiók'!$B$27/12 ->  | D144: =IF(A144>'Személyi Törl. csökkentő fiók'!$J$10,0,'Személyi Törl. csökkentő fiók'!$B$28) -> 0 | F144: =IF(A144>'Személyi Törl. csökkentő fiók'!$J$10,0,'Személyi Törl. csökkentő fiók'!$J$11) -> 0 | G144: =IF(OR(A144>'Személyi Törl. csökkentő fiók'!$J$10,'Személyi Törl. csökkentő fiók'!$B$24='Személyi Törl. csökkentő fiók'!$T$5),0,'Személyi Törl. csökkentő fiók'!$J$12+'Személyi Törl. csökkentő fiók'!$J$13) -> 0 | H144: 0 | K144: 0 | L144: =IRR($K$2:K144,0.05) -> 
A145: 143 | C145: =B145*'Személyi Törl. csökkentő fiók'!$B$27/12 ->  | D145: =IF(A145>'Személyi Törl. csökkentő fiók'!$J$10,0,'Személyi Törl. csökkentő fiók'!$B$28) -> 0 | F145: =IF(A145>'Személyi Törl. csökkentő fiók'!$J$10,0,'Személyi Törl. csökkentő fiók'!$J$11) -> 0 | G145: =IF(OR(A145>'Személyi Törl. csökkentő fiók'!$J$10,'Személyi Törl. csökkentő fiók'!$B$24='Személyi Törl. csökkentő fiók'!$T$5),0,'Személyi Törl. csökkentő fiók'!$J$12+'Személyi Törl. csökkentő fiók'!$J$13) -> 0 | H145: 0 | K145: 0 | L145: =IRR($K$2:K145,0.05) -> 
A146: 144 | C146: =B146*'Személyi Törl. csökkentő fiók'!$B$27/12 ->  | D146: =IF(A146>'Személyi Törl. csökkentő fiók'!$J$10,0,'Személyi Törl. csökkentő fiók'!$B$28) -> 0 | F146: =IF(A146>'Személyi Törl. csökkentő fiók'!$J$10,0,'Személyi Törl. csökkentő fiók'!$J$11) -> 0 | G146: =IF(OR(A146>'Személyi Törl. csökkentő fiók'!$J$10,'Személyi Törl. csökkentő fiók'!$B$24='Személyi Törl. csökkentő fiók'!$T$5),0,'Személyi Törl. csökkentő fiók'!$J$12+'Személyi Törl. csökkentő fiók'!$J$13) -> 0 | H146: 0 | K146: 0 | L146: =IRR($K$2:K146,0.05) -> 
A147: 145 | C147: =B147*'Személyi Törl. csökkentő fiók'!$B$27/12 ->  | D147: =IF(A147>'Személyi Törl. csökkentő fiók'!$J$10,0,'Személyi Törl. csökkentő fiók'!$B$28) -> 0 | F147: =IF(A147>'Személyi Törl. csökkentő fiók'!$J$10,0,'Személyi Törl. csökkentő fiók'!$J$11) -> 0 | G147: =IF(OR(A147>'Személyi Törl. csökkentő fiók'!$J$10,'Személyi Törl. csökkentő fiók'!$B$24='Személyi Törl. csökkentő fiók'!$T$5),0,'Személyi Törl. csökkentő fiók'!$J$12+'Személyi Törl. csökkentő fiók'!$J$13) -> 0 | H147: 0 | K147: 0 | L147: =IRR($K$2:K147,0.05) -> 
A148: 146 | C148: =B148*'Személyi Törl. csökkentő fiók'!$B$27/12 ->  | D148: =IF(A148>'Személyi Törl. csökkentő fiók'!$J$10,0,'Személyi Törl. csökkentő fiók'!$B$28) -> 0 | F148: =IF(A148>'Személyi Törl. csökkentő fiók'!$J$10,0,'Személyi Törl. csökkentő fiók'!$J$11) -> 0 | G148: =IF(OR(A148>'Személyi Törl. csökkentő fiók'!$J$10,'Személyi Törl. csökkentő fiók'!$B$24='Személyi Törl. csökkentő fiók'!$T$5),0,'Személyi Törl. csökkentő fiók'!$J$12+'Személyi Törl. csökkentő fiók'!$J$13) -> 0 | H148: 0 | K148: 0 | L148: =IRR($K$2:K148,0.05) -> 
A149: 147 | C149: =B149*'Személyi Törl. csökkentő fiók'!$B$27/12 ->  | D149: =IF(A149>'Személyi Törl. csökkentő fiók'!$J$10,0,'Személyi Törl. csökkentő fiók'!$B$28) -> 0 | F149: =IF(A149>'Személyi Törl. csökkentő fiók'!$J$10,0,'Személyi Törl. csökkentő fiók'!$J$11) -> 0 | G149: =IF(OR(A149>'Személyi Törl. csökkentő fiók'!$J$10,'Személyi Törl. csökkentő fiók'!$B$24='Személyi Törl. csökkentő fiók'!$T$5),0,'Személyi Törl. csökkentő fiók'!$J$12+'Személyi Törl. csökkentő fiók'!$J$13) -> 0 | H149: 0 | K149: 0 | L149: =IRR($K$2:K149,0.05) -> 
A150: 148 | C150: =B150*'Személyi Törl. csökkentő fiók'!$B$27/12 ->  | D150: =IF(A150>'Személyi Törl. csökkentő fiók'!$J$10,0,'Személyi Törl. csökkentő fiók'!$B$28) -> 0 | F150: =IF(A150>'Személyi Törl. csökkentő fiók'!$J$10,0,'Személyi Törl. csökkentő fiók'!$J$11) -> 0 | G150: =IF(OR(A150>'Személyi Törl. csökkentő fiók'!$J$10,'Személyi Törl. csökkentő fiók'!$B$24='Személyi Törl. csökkentő fiók'!$T$5),0,'Személyi Törl. csökkentő fiók'!$J$12+'Személyi Törl. csökkentő fiók'!$J$13) -> 0 | H150: 0 | K150: 0 | L150: =IRR($K$2:K150,0.05) -> 
A151: 149 | C151: =B151*'Személyi Törl. csökkentő fiók'!$B$27/12 ->  | D151: =IF(A151>'Személyi Törl. csökkentő fiók'!$J$10,0,'Személyi Törl. csökkentő fiók'!$B$28) -> 0 | F151: =IF(A151>'Személyi Törl. csökkentő fiók'!$J$10,0,'Személyi Törl. csökkentő fiók'!$J$11) -> 0 | G151: =IF(OR(A151>'Személyi Törl. csökkentő fiók'!$J$10,'Személyi Törl. csökkentő fiók'!$B$24='Személyi Törl. csökkentő fiók'!$T$5),0,'Személyi Törl. csökkentő fiók'!$J$12+'Személyi Törl. csökkentő fiók'!$J$13) -> 0 | H151: 0 | K151: 0 | L151: =IRR($K$2:K151,0.05) -> 
A152: 150 | C152: =B152*'Személyi Törl. csökkentő fiók'!$B$27/12 ->  | D152: =IF(A152>'Személyi Törl. csökkentő fiók'!$J$10,0,'Személyi Törl. csökkentő fiók'!$B$28) -> 0 | F152: =IF(A152>'Személyi Törl. csökkentő fiók'!$J$10,0,'Személyi Törl. csökkentő fiók'!$J$11) -> 0 | G152: =IF(OR(A152>'Személyi Törl. csökkentő fiók'!$J$10,'Személyi Törl. csökkentő fiók'!$B$24='Személyi Törl. csökkentő fiók'!$T$5),0,'Személyi Törl. csökkentő fiók'!$J$12+'Személyi Törl. csökkentő fiók'!$J$13) -> 0 | H152: 0 | K152: 0 | L152: =IRR($K$2:K152,0.05) -> 
A153: 151 | C153: =B153*'Személyi Törl. csökkentő fiók'!$B$27/12 ->  | D153: =IF(A153>'Személyi Törl. csökkentő fiók'!$J$10,0,'Személyi Törl. csökkentő fiók'!$B$28) -> 0 | F153: =IF(A153>'Személyi Törl. csökkentő fiók'!$J$10,0,'Személyi Törl. csökkentő fiók'!$J$11) -> 0 | G153: =IF(OR(A153>'Személyi Törl. csökkentő fiók'!$J$10,'Személyi Törl. csökkentő fiók'!$B$24='Személyi Törl. csökkentő fiók'!$T$5),0,'Személyi Törl. csökkentő fiók'!$J$12+'Személyi Törl. csökkentő fiók'!$J$13) -> 0 | H153: 0 | K153: 0 | L153: =IRR($K$2:K153,0.05) -> 
A154: 152 | C154: =B154*'Személyi Törl. csökkentő fiók'!$B$27/12 ->  | D154: =IF(A154>'Személyi Törl. csökkentő fiók'!$J$10,0,'Személyi Törl. csökkentő fiók'!$B$28) -> 0 | F154: =IF(A154>'Személyi Törl. csökkentő fiók'!$J$10,0,'Személyi Törl. csökkentő fiók'!$J$11) -> 0 | G154: =IF(OR(A154>'Személyi Törl. csökkentő fiók'!$J$10,'Személyi Törl. csökkentő fiók'!$B$24='Személyi Törl. csökkentő fiók'!$T$5),0,'Személyi Törl. csökkentő fiók'!$J$12+'Személyi Törl. csökkentő fiók'!$J$13) -> 0 | H154: 0 | K154: 0 | L154: =IRR($K$2:K154,0.05) -> 
A155: 153 | C155: =B155*'Személyi Törl. csökkentő fiók'!$B$27/12 ->  | D155: =IF(A155>'Személyi Törl. csökkentő fiók'!$J$10,0,'Személyi Törl. csökkentő fiók'!$B$28) -> 0 | F155: =IF(A155>'Személyi Törl. csökkentő fiók'!$J$10,0,'Személyi Törl. csökkentő fiók'!$J$11) -> 0 | G155: =IF(OR(A155>'Személyi Törl. csökkentő fiók'!$J$10,'Személyi Törl. csökkentő fiók'!$B$24='Személyi Törl. csökkentő fiók'!$T$5),0,'Személyi Törl. csökkentő fiók'!$J$12+'Személyi Törl. csökkentő fiók'!$J$13) -> 0 | H155: 0 | K155: 0 | L155: =IRR($K$2:K155,0.05) -> 
A156: 154 | C156: =B156*'Személyi Törl. csökkentő fiók'!$B$27/12 ->  | D156: =IF(A156>'Személyi Törl. csökkentő fiók'!$J$10,0,'Személyi Törl. csökkentő fiók'!$B$28) -> 0 | F156: =IF(A156>'Személyi Törl. csökkentő fiók'!$J$10,0,'Személyi Törl. csökkentő fiók'!$J$11) -> 0 | G156: =IF(OR(A156>'Személyi Törl. csökkentő fiók'!$J$10,'Személyi Törl. csökkentő fiók'!$B$24='Személyi Törl. csökkentő fiók'!$T$5),0,'Személyi Törl. csökkentő fiók'!$J$12+'Személyi Törl. csökkentő fiók'!$J$13) -> 0 | H156: 0 | K156: 0 | L156: =IRR($K$2:K156,0.05) -> 
A157: 155 | C157: =B157*'Személyi Törl. csökkentő fiók'!$B$27/12 ->  | D157: =IF(A157>'Személyi Törl. csökkentő fiók'!$J$10,0,'Személyi Törl. csökkentő fiók'!$B$28) -> 0 | F157: =IF(A157>'Személyi Törl. csökkentő fiók'!$J$10,0,'Személyi Törl. csökkentő fiók'!$J$11) -> 0 | G157: =IF(OR(A157>'Személyi Törl. csökkentő fiók'!$J$10,'Személyi Törl. csökkentő fiók'!$B$24='Személyi Törl. csökkentő fiók'!$T$5),0,'Személyi Törl. csökkentő fiók'!$J$12+'Személyi Törl. csökkentő fiók'!$J$13) -> 0 | H157: 0 | K157: 0 | L157: =IRR($K$2:K157,0.05) -> 
A158: 156 | C158: =B158*'Személyi Törl. csökkentő fiók'!$B$27/12 ->  | D158: =IF(A158>'Személyi Törl. csökkentő fiók'!$J$10,0,'Személyi Törl. csökkentő fiók'!$B$28) -> 0 | F158: =IF(A158>'Személyi Törl. csökkentő fiók'!$J$10,0,'Személyi Törl. csökkentő fiók'!$J$11) -> 0 | G158: =IF(OR(A158>'Személyi Törl. csökkentő fiók'!$J$10,'Személyi Törl. csökkentő fiók'!$B$24='Személyi Törl. csökkentő fiók'!$T$5),0,'Személyi Törl. csökkentő fiók'!$J$12+'Személyi Törl. csökkentő fiók'!$J$13) -> 0 | H158: 0 | K158: 0 | L158: =IRR($K$2:K158,0.05) -> 
A159: 157 | C159: =B159*'Személyi Törl. csökkentő fiók'!$B$27/12 ->  | D159: =IF(A159>'Személyi Törl. csökkentő fiók'!$J$10,0,'Személyi Törl. csökkentő fiók'!$B$28) -> 0 | F159: =IF(A159>'Személyi Törl. csökkentő fiók'!$J$10,0,'Személyi Törl. csökkentő fiók'!$J$11) -> 0 | G159: =IF(OR(A159>'Személyi Törl. csökkentő fiók'!$J$10,'Személyi Törl. csökkentő fiók'!$B$24='Személyi Törl. csökkentő fiók'!$T$5),0,'Személyi Törl. csökkentő fiók'!$J$12+'Személyi Törl. csökkentő fiók'!$J$13) -> 0 | H159: 0 | K159: 0 | L159: =IRR($K$2:K159,0.05) -> 
A160: 158 | C160: =B160*'Személyi Törl. csökkentő fiók'!$B$27/12 ->  | D160: =IF(A160>'Személyi Törl. csökkentő fiók'!$J$10,0,'Személyi Törl. csökkentő fiók'!$B$28) -> 0 | F160: =IF(A160>'Személyi Törl. csökkentő fiók'!$J$10,0,'Személyi Törl. csökkentő fiók'!$J$11) -> 0 | G160: =IF(OR(A160>'Személyi Törl. csökkentő fiók'!$J$10,'Személyi Törl. csökkentő fiók'!$B$24='Személyi Törl. csökkentő fiók'!$T$5),0,'Személyi Törl. csökkentő fiók'!$J$12+'Személyi Törl. csökkentő fiók'!$J$13) -> 0 | H160: 0 | K160: 0 | L160: =IRR($K$2:K160,0.05) -> 
A161: 159 | C161: =B161*'Személyi Törl. csökkentő fiók'!$B$27/12 ->  | D161: =IF(A161>'Személyi Törl. csökkentő fiók'!$J$10,0,'Személyi Törl. csökkentő fiók'!$B$28) -> 0 | F161: =IF(A161>'Személyi Törl. csökkentő fiók'!$J$10,0,'Személyi Törl. csökkentő fiók'!$J$11) -> 0 | G161: =IF(OR(A161>'Személyi Törl. csökkentő fiók'!$J$10,'Személyi Törl. csökkentő fiók'!$B$24='Személyi Törl. csökkentő fiók'!$T$5),0,'Személyi Törl. csökkentő fiók'!$J$12+'Személyi Törl. csökkentő fiók'!$J$13) -> 0 | H161: 0 | K161: 0 | L161: =IRR($K$2:K161,0.05) -> 
A162: 160 | C162: =B162*'Személyi Törl. csökkentő fiók'!$B$27/12 ->  | D162: =IF(A162>'Személyi Törl. csökkentő fiók'!$J$10,0,'Személyi Törl. csökkentő fiók'!$B$28) -> 0 | F162: =IF(A162>'Személyi Törl. csökkentő fiók'!$J$10,0,'Személyi Törl. csökkentő fiók'!$J$11) -> 0 | G162: =IF(OR(A162>'Személyi Törl. csökkentő fiók'!$J$10,'Személyi Törl. csökkentő fiók'!$B$24='Személyi Törl. csökkentő fiók'!$T$5),0,'Személyi Törl. csökkentő fiók'!$J$12+'Személyi Törl. csökkentő fiók'!$J$13) -> 0 | H162: 0 | K162: 0 | L162: =IRR($K$2:K162,0.05) -> 
A163: 161 | C163: =B163*'Személyi Törl. csökkentő fiók'!$B$27/12 ->  | D163: =IF(A163>'Személyi Törl. csökkentő fiók'!$J$10,0,'Személyi Törl. csökkentő fiók'!$B$28) -> 0 | F163: =IF(A163>'Személyi Törl. csökkentő fiók'!$J$10,0,'Személyi Törl. csökkentő fiók'!$J$11) -> 0 | G163: =IF(OR(A163>'Személyi Törl. csökkentő fiók'!$J$10,'Személyi Törl. csökkentő fiók'!$B$24='Személyi Törl. csökkentő fiók'!$T$5),0,'Személyi Törl. csökkentő fiók'!$J$12+'Személyi Törl. csökkentő fiók'!$J$13) -> 0 | H163: 0 | K163: 0 | L163: =IRR($K$2:K163,0.05) -> 
A164: 162 | C164: =B164*'Személyi Törl. csökkentő fiók'!$B$27/12 ->  | D164: =IF(A164>'Személyi Törl. csökkentő fiók'!$J$10,0,'Személyi Törl. csökkentő fiók'!$B$28) -> 0 | F164: =IF(A164>'Személyi Törl. csökkentő fiók'!$J$10,0,'Személyi Törl. csökkentő fiók'!$J$11) -> 0 | G164: =IF(OR(A164>'Személyi Törl. csökkentő fiók'!$J$10,'Személyi Törl. csökkentő fiók'!$B$24='Személyi Törl. csökkentő fiók'!$T$5),0,'Személyi Törl. csökkentő fiók'!$J$12+'Személyi Törl. csökkentő fiók'!$J$13) -> 0 | H164: 0 | K164: 0 | L164: =IRR($K$2:K164,0.05) -> 
A165: 163 | C165: =B165*'Személyi Törl. csökkentő fiók'!$B$27/12 ->  | D165: =IF(A165>'Személyi Törl. csökkentő fiók'!$J$10,0,'Személyi Törl. csökkentő fiók'!$B$28) -> 0 | F165: =IF(A165>'Személyi Törl. csökkentő fiók'!$J$10,0,'Személyi Törl. csökkentő fiók'!$J$11) -> 0 | G165: =IF(OR(A165>'Személyi Törl. csökkentő fiók'!$J$10,'Személyi Törl. csökkentő fiók'!$B$24='Személyi Törl. csökkentő fiók'!$T$5),0,'Személyi Törl. csökkentő fiók'!$J$12+'Személyi Törl. csökkentő fiók'!$J$13) -> 0 | H165: 0 | K165: 0 | L165: =IRR($K$2:K165,0.05) -> 
A166: 164 | C166: =B166*'Személyi Törl. csökkentő fiók'!$B$27/12 ->  | D166: =IF(A166>'Személyi Törl. csökkentő fiók'!$J$10,0,'Személyi Törl. csökkentő fiók'!$B$28) -> 0 | F166: =IF(A166>'Személyi Törl. csökkentő fiók'!$J$10,0,'Személyi Törl. csökkentő fiók'!$J$11) -> 0 | G166: =IF(OR(A166>'Személyi Törl. csökkentő fiók'!$J$10,'Személyi Törl. csökkentő fiók'!$B$24='Személyi Törl. csökkentő fiók'!$T$5),0,'Személyi Törl. csökkentő fiók'!$J$12+'Személyi Törl. csökkentő fiók'!$J$13) -> 0 | H166: 0 | K166: 0 | L166: =IRR($K$2:K166,0.05) -> 
A167: 165 | C167: =B167*'Személyi Törl. csökkentő fiók'!$B$27/12 ->  | D167: =IF(A167>'Személyi Törl. csökkentő fiók'!$J$10,0,'Személyi Törl. csökkentő fiók'!$B$28) -> 0 | F167: =IF(A167>'Személyi Törl. csökkentő fiók'!$J$10,0,'Személyi Törl. csökkentő fiók'!$J$11) -> 0 | G167: =IF(OR(A167>'Személyi Törl. csökkentő fiók'!$J$10,'Személyi Törl. csökkentő fiók'!$B$24='Személyi Törl. csökkentő fiók'!$T$5),0,'Személyi Törl. csökkentő fiók'!$J$12+'Személyi Törl. csökkentő fiók'!$J$13) -> 0 | H167: 0 | K167: 0 | L167: =IRR($K$2:K167,0.05) -> 
A168: 166 | C168: =B168*'Személyi Törl. csökkentő fiók'!$B$27/12 ->  | D168: =IF(A168>'Személyi Törl. csökkentő fiók'!$J$10,0,'Személyi Törl. csökkentő fiók'!$B$28) -> 0 | F168: =IF(A168>'Személyi Törl. csökkentő fiók'!$J$10,0,'Személyi Törl. csökkentő fiók'!$J$11) -> 0 | G168: =IF(OR(A168>'Személyi Törl. csökkentő fiók'!$J$10,'Személyi Törl. csökkentő fiók'!$B$24='Személyi Törl. csökkentő fiók'!$T$5),0,'Személyi Törl. csökkentő fiók'!$J$12+'Személyi Törl. csökkentő fiók'!$J$13) -> 0 | H168: 0 | K168: 0 | L168: =IRR($K$2:K168,0.05) -> 
A169: 167 | C169: =B169*'Személyi Törl. csökkentő fiók'!$B$27/12 ->  | D169: =IF(A169>'Személyi Törl. csökkentő fiók'!$J$10,0,'Személyi Törl. csökkentő fiók'!$B$28) -> 0 | F169: =IF(A169>'Személyi Törl. csökkentő fiók'!$J$10,0,'Személyi Törl. csökkentő fiók'!$J$11) -> 0 | G169: =IF(OR(A169>'Személyi Törl. csökkentő fiók'!$J$10,'Személyi Törl. csökkentő fiók'!$B$24='Személyi Törl. csökkentő fiók'!$T$5),0,'Személyi Törl. csökkentő fiók'!$J$12+'Személyi Törl. csökkentő fiók'!$J$13) -> 0 | H169: 0 | K169: 0 | L169: =IRR($K$2:K169,0.05) -> 
A170: 168 | C170: =B170*'Személyi Törl. csökkentő fiók'!$B$27/12 ->  | D170: =IF(A170>'Személyi Törl. csökkentő fiók'!$J$10,0,'Személyi Törl. csökkentő fiók'!$B$28) -> 0 | F170: =IF(A170>'Személyi Törl. csökkentő fiók'!$J$10,0,'Személyi Törl. csökkentő fiók'!$J$11) -> 0 | G170: =IF(OR(A170>'Személyi Törl. csökkentő fiók'!$J$10,'Személyi Törl. csökkentő fiók'!$B$24='Személyi Törl. csökkentő fiók'!$T$5),0,'Személyi Törl. csökkentő fiók'!$J$12+'Személyi Törl. csökkentő fiók'!$J$13) -> 0 | H170: 0 | K170: 0 | L170: =IRR($K$2:K170,0.05) -> 
A171: 169 | C171: =B171*'Személyi Törl. csökkentő fiók'!$B$27/12 ->  | D171: =IF(A171>'Személyi Törl. csökkentő fiók'!$J$10,0,'Személyi Törl. csökkentő fiók'!$B$28) -> 0 | F171: =IF(A171>'Személyi Törl. csökkentő fiók'!$J$10,0,'Személyi Törl. csökkentő fiók'!$J$11) -> 0 | G171: =IF(OR(A171>'Személyi Törl. csökkentő fiók'!$J$10,'Személyi Törl. csökkentő fiók'!$B$24='Személyi Törl. csökkentő fiók'!$T$5),0,'Személyi Törl. csökkentő fiók'!$J$12+'Személyi Törl. csökkentő fiók'!$J$13) -> 0 | H171: 0 | K171: 0 | L171: =IRR($K$2:K171,0.05) -> 
A172: 170 | C172: =B172*'Személyi Törl. csökkentő fiók'!$B$27/12 ->  | D172: =IF(A172>'Személyi Törl. csökkentő fiók'!$J$10,0,'Személyi Törl. csökkentő fiók'!$B$28) -> 0 | F172: =IF(A172>'Személyi Törl. csökkentő fiók'!$J$10,0,'Személyi Törl. csökkentő fiók'!$J$11) -> 0 | G172: =IF(OR(A172>'Személyi Törl. csökkentő fiók'!$J$10,'Személyi Törl. csökkentő fiók'!$B$24='Személyi Törl. csökkentő fiók'!$T$5),0,'Személyi Törl. csökkentő fiók'!$J$12+'Személyi Törl. csökkentő fiók'!$J$13) -> 0 | H172: 0 | K172: 0 | L172: =IRR($K$2:K172,0.05) -> 
A173: 171 | C173: =B173*'Személyi Törl. csökkentő fiók'!$B$27/12 ->  | D173: =IF(A173>'Személyi Törl. csökkentő fiók'!$J$10,0,'Személyi Törl. csökkentő fiók'!$B$28) -> 0 | F173: =IF(A173>'Személyi Törl. csökkentő fiók'!$J$10,0,'Személyi Törl. csökkentő fiók'!$J$11) -> 0 | G173: =IF(OR(A173>'Személyi Törl. csökkentő fiók'!$J$10,'Személyi Törl. csökkentő fiók'!$B$24='Személyi Törl. csökkentő fiók'!$T$5),0,'Személyi Törl. csökkentő fiók'!$J$12+'Személyi Törl. csökkentő fiók'!$J$13) -> 0 | H173: 0 | K173: 0 | L173: =IRR($K$2:K173,0.05) -> 
A174: 172 | C174: =B174*'Személyi Törl. csökkentő fiók'!$B$27/12 ->  | D174: =IF(A174>'Személyi Törl. csökkentő fiók'!$J$10,0,'Személyi Törl. csökkentő fiók'!$B$28) -> 0 | F174: =IF(A174>'Személyi Törl. csökkentő fiók'!$J$10,0,'Személyi Törl. csökkentő fiók'!$J$11) -> 0 | G174: =IF(OR(A174>'Személyi Törl. csökkentő fiók'!$J$10,'Személyi Törl. csökkentő fiók'!$B$24='Személyi Törl. csökkentő fiók'!$T$5),0,'Személyi Törl. csökkentő fiók'!$J$12+'Személyi Törl. csökkentő fiók'!$J$13) -> 0 | H174: 0 | K174: 0 | L174: =IRR($K$2:K174,0.05) -> 
A175: 173 | C175: =B175*'Személyi Törl. csökkentő fiók'!$B$27/12 ->  | D175: =IF(A175>'Személyi Törl. csökkentő fiók'!$J$10,0,'Személyi Törl. csökkentő fiók'!$B$28) -> 0 | F175: =IF(A175>'Személyi Törl. csökkentő fiók'!$J$10,0,'Személyi Törl. csökkentő fiók'!$J$11) -> 0 | G175: =IF(OR(A175>'Személyi Törl. csökkentő fiók'!$J$10,'Személyi Törl. csökkentő fiók'!$B$24='Személyi Törl. csökkentő fiók'!$T$5),0,'Személyi Törl. csökkentő fiók'!$J$12+'Személyi Törl. csökkentő fiók'!$J$13) -> 0 | H175: 0 | K175: 0 | L175: =IRR($K$2:K175,0.05) -> 
A176: 174 | C176: =B176*'Személyi Törl. csökkentő fiók'!$B$27/12 ->  | D176: =IF(A176>'Személyi Törl. csökkentő fiók'!$J$10,0,'Személyi Törl. csökkentő fiók'!$B$28) -> 0 | F176: =IF(A176>'Személyi Törl. csökkentő fiók'!$J$10,0,'Személyi Törl. csökkentő fiók'!$J$11) -> 0 | G176: =IF(OR(A176>'Személyi Törl. csökkentő fiók'!$J$10,'Személyi Törl. csökkentő fiók'!$B$24='Személyi Törl. csökkentő fiók'!$T$5),0,'Személyi Törl. csökkentő fiók'!$J$12+'Személyi Törl. csökkentő fiók'!$J$13) -> 0 | H176: 0 | K176: 0 | L176: =IRR($K$2:K176,0.05) -> 
A177: 175 | C177: =B177*'Személyi Törl. csökkentő fiók'!$B$27/12 ->  | D177: =IF(A177>'Személyi Törl. csökkentő fiók'!$J$10,0,'Személyi Törl. csökkentő fiók'!$B$28) -> 0 | F177: =IF(A177>'Személyi Törl. csökkentő fiók'!$J$10,0,'Személyi Törl. csökkentő fiók'!$J$11) -> 0 | G177: =IF(OR(A177>'Személyi Törl. csökkentő fiók'!$J$10,'Személyi Törl. csökkentő fiók'!$B$24='Személyi Törl. csökkentő fiók'!$T$5),0,'Személyi Törl. csökkentő fiók'!$J$12+'Személyi Törl. csökkentő fiók'!$J$13) -> 0 | H177: 0 | K177: 0 | L177: =IRR($K$2:K177,0.05) -> 
A178: 176 | C178: =B178*'Személyi Törl. csökkentő fiók'!$B$27/12 ->  | D178: =IF(A178>'Személyi Törl. csökkentő fiók'!$J$10,0,'Személyi Törl. csökkentő fiók'!$B$28) -> 0 | F178: =IF(A178>'Személyi Törl. csökkentő fiók'!$J$10,0,'Személyi Törl. csökkentő fiók'!$J$11) -> 0 | G178: =IF(OR(A178>'Személyi Törl. csökkentő fiók'!$J$10,'Személyi Törl. csökkentő fiók'!$B$24='Személyi Törl. csökkentő fiók'!$T$5),0,'Személyi Törl. csökkentő fiók'!$J$12+'Személyi Törl. csökkentő fiók'!$J$13) -> 0 | H178: 0 | K178: 0 | L178: =IRR($K$2:K178,0.05) -> 
A179: 177 | C179: =B179*'Személyi Törl. csökkentő fiók'!$B$27/12 ->  | D179: =IF(A179>'Személyi Törl. csökkentő fiók'!$J$10,0,'Személyi Törl. csökkentő fiók'!$B$28) -> 0 | F179: =IF(A179>'Személyi Törl. csökkentő fiók'!$J$10,0,'Személyi Törl. csökkentő fiók'!$J$11) -> 0 | G179: =IF(OR(A179>'Személyi Törl. csökkentő fiók'!$J$10,'Személyi Törl. csökkentő fiók'!$B$24='Személyi Törl. csökkentő fiók'!$T$5),0,'Személyi Törl. csökkentő fiók'!$J$12+'Személyi Törl. csökkentő fiók'!$J$13) -> 0 | H179: 0 | K179: 0 | L179: =IRR($K$2:K179,0.05) -> 
A180: 178 | C180: =B180*'Személyi Törl. csökkentő fiók'!$B$27/12 ->  | D180: =IF(A180>'Személyi Törl. csökkentő fiók'!$J$10,0,'Személyi Törl. csökkentő fiók'!$B$28) -> 0 | F180: =IF(A180>'Személyi Törl. csökkentő fiók'!$J$10,0,'Személyi Törl. csökkentő fiók'!$J$11) -> 0 | G180: =IF(OR(A180>'Személyi Törl. csökkentő fiók'!$J$10,'Személyi Törl. csökkentő fiók'!$B$24='Személyi Törl. csökkentő fiók'!$T$5),0,'Személyi Törl. csökkentő fiók'!$J$12+'Személyi Törl. csökkentő fiók'!$J$13) -> 0 | H180: 0 | K180: 0 | L180: =IRR($K$2:K180,0.05) -> 
A181: 179 | C181: =B181*'Személyi Törl. csökkentő fiók'!$B$27/12 ->  | D181: =IF(A181>'Személyi Törl. csökkentő fiók'!$J$10,0,'Személyi Törl. csökkentő fiók'!$B$28) -> 0 | F181: =IF(A181>'Személyi Törl. csökkentő fiók'!$J$10,0,'Személyi Törl. csökkentő fiók'!$J$11) -> 0 | G181: =IF(OR(A181>'Személyi Törl. csökkentő fiók'!$J$10,'Személyi Törl. csökkentő fiók'!$B$24='Személyi Törl. csökkentő fiók'!$T$5),0,'Személyi Törl. csökkentő fiók'!$J$12+'Személyi Törl. csökkentő fiók'!$J$13) -> 0 | H181: 0 | K181: 0 | L181: =IRR($K$2:K181,0.05) -> 
A182: 180 | C182: =B182*'Személyi Törl. csökkentő fiók'!$B$27/12 ->  | D182: =IF(A182>'Személyi Törl. csökkentő fiók'!$J$10,0,'Személyi Törl. csökkentő fiók'!$B$28) -> 0 | F182: =IF(A182>'Személyi Törl. csökkentő fiók'!$J$10,0,'Személyi Törl. csökkentő fiók'!$J$11) -> 0 | G182: =IF(OR(A182>'Személyi Törl. csökkentő fiók'!$J$10,'Személyi Törl. csökkentő fiók'!$B$24='Személyi Törl. csökkentő fiók'!$T$5),0,'Személyi Törl. csökkentő fiók'!$J$12+'Személyi Törl. csökkentő fiók'!$J$13) -> 0 | H182: 0 | K182: 0 | L182: =IRR($K$2:K182,0.05) -> 
A183: 181 | C183: =B183*'Személyi Törl. csökkentő fiók'!$B$27/12 ->  | D183: =IF(A183>'Személyi Törl. csökkentő fiók'!$J$10,0,'Személyi Törl. csökkentő fiók'!$B$28) -> 0 | F183: =IF(A183>'Személyi Törl. csökkentő fiók'!$J$10,0,'Személyi Törl. csökkentő fiók'!$J$11) -> 0 | G183: =IF(OR(A183>'Személyi Törl. csökkentő fiók'!$J$10,'Személyi Törl. csökkentő fiók'!$B$24='Személyi Törl. csökkentő fiók'!$T$5),0,'Személyi Törl. csökkentő fiók'!$J$12+'Személyi Törl. csökkentő fiók'!$J$13) -> 0 | H183: 0 | K183: 0 | L183: =IRR($K$2:K183,0.05) -> 
A184: 182 | C184: =B184*'Személyi Törl. csökkentő fiók'!$B$27/12 ->  | D184: =IF(A184>'Személyi Törl. csökkentő fiók'!$J$10,0,'Személyi Törl. csökkentő fiók'!$B$28) -> 0 | F184: =IF(A184>'Személyi Törl. csökkentő fiók'!$J$10,0,'Személyi Törl. csökkentő fiók'!$J$11) -> 0 | G184: =IF(OR(A184>'Személyi Törl. csökkentő fiók'!$J$10,'Személyi Törl. csökkentő fiók'!$B$24='Személyi Törl. csökkentő fiók'!$T$5),0,'Személyi Törl. csökkentő fiók'!$J$12+'Személyi Törl. csökkentő fiók'!$J$13) -> 0 | H184: 0 | K184: 0 | L184: =IRR($K$2:K184,0.05) -> 
A185: 183 | C185: =B185*'Személyi Törl. csökkentő fiók'!$B$27/12 ->  | D185: =IF(A185>'Személyi Törl. csökkentő fiók'!$J$10,0,'Személyi Törl. csökkentő fiók'!$B$28) -> 0 | F185: =IF(A185>'Személyi Törl. csökkentő fiók'!$J$10,0,'Személyi Törl. csökkentő fiók'!$J$11) -> 0 | G185: =IF(OR(A185>'Személyi Törl. csökkentő fiók'!$J$10,'Személyi Törl. csökkentő fiók'!$B$24='Személyi Törl. csökkentő fiók'!$T$5),0,'Személyi Törl. csökkentő fiók'!$J$12+'Személyi Törl. csökkentő fiók'!$J$13) -> 0 | H185: 0 | K185: 0 | L185: =IRR($K$2:K185,0.05) -> 
A186: 184 | C186: =B186*'Személyi Törl. csökkentő fiók'!$B$27/12 ->  | D186: =IF(A186>'Személyi Törl. csökkentő fiók'!$J$10,0,'Személyi Törl. csökkentő fiók'!$B$28) -> 0 | F186: =IF(A186>'Személyi Törl. csökkentő fiók'!$J$10,0,'Személyi Törl. csökkentő fiók'!$J$11) -> 0 | G186: =IF(OR(A186>'Személyi Törl. csökkentő fiók'!$J$10,'Személyi Törl. csökkentő fiók'!$B$24='Személyi Törl. csökkentő fiók'!$T$5),0,'Személyi Törl. csökkentő fiók'!$J$12+'Személyi Törl. csökkentő fiók'!$J$13) -> 0 | H186: 0 | K186: 0 | L186: =IRR($K$2:K186,0.05) -> 
A187: 185 | C187: =B187*'Személyi Törl. csökkentő fiók'!$B$27/12 ->  | D187: =IF(A187>'Személyi Törl. csökkentő fiók'!$J$10,0,'Személyi Törl. csökkentő fiók'!$B$28) -> 0 | F187: =IF(A187>'Személyi Törl. csökkentő fiók'!$J$10,0,'Személyi Törl. csökkentő fiók'!$J$11) -> 0 | G187: =IF(OR(A187>'Személyi Törl. csökkentő fiók'!$J$10,'Személyi Törl. csökkentő fiók'!$B$24='Személyi Törl. csökkentő fiók'!$T$5),0,'Személyi Törl. csökkentő fiók'!$J$12+'Személyi Törl. csökkentő fiók'!$J$13) -> 0 | H187: 0 | K187: 0 | L187: =IRR($K$2:K187,0.05) -> 
A188: 186 | C188: =B188*'Személyi Törl. csökkentő fiók'!$B$27/12 ->  | D188: =IF(A188>'Személyi Törl. csökkentő fiók'!$J$10,0,'Személyi Törl. csökkentő fiók'!$B$28) -> 0 | F188: =IF(A188>'Személyi Törl. csökkentő fiók'!$J$10,0,'Személyi Törl. csökkentő fiók'!$J$11) -> 0 | G188: =IF(OR(A188>'Személyi Törl. csökkentő fiók'!$J$10,'Személyi Törl. csökkentő fiók'!$B$24='Személyi Törl. csökkentő fiók'!$T$5),0,'Személyi Törl. csökkentő fiók'!$J$12+'Személyi Törl. csökkentő fiók'!$J$13) -> 0 | H188: 0 | K188: 0 | L188: =IRR($K$2:K188,0.05) -> 
A189: 187 | C189: =B189*'Személyi Törl. csökkentő fiók'!$B$27/12 ->  | D189: =IF(A189>'Személyi Törl. csökkentő fiók'!$J$10,0,'Személyi Törl. csökkentő fiók'!$B$28) -> 0 | F189: =IF(A189>'Személyi Törl. csökkentő fiók'!$J$10,0,'Személyi Törl. csökkentő fiók'!$J$11) -> 0 | G189: =IF(OR(A189>'Személyi Törl. csökkentő fiók'!$J$10,'Személyi Törl. csökkentő fiók'!$B$24='Személyi Törl. csökkentő fiók'!$T$5),0,'Személyi Törl. csökkentő fiók'!$J$12+'Személyi Törl. csökkentő fiók'!$J$13) -> 0 | H189: 0 | K189: 0 | L189: =IRR($K$2:K189,0.05) -> 
A190: 188 | C190: =B190*'Személyi Törl. csökkentő fiók'!$B$27/12 ->  | D190: =IF(A190>'Személyi Törl. csökkentő fiók'!$J$10,0,'Személyi Törl. csökkentő fiók'!$B$28) -> 0 | F190: =IF(A190>'Személyi Törl. csökkentő fiók'!$J$10,0,'Személyi Törl. csökkentő fiók'!$J$11) -> 0 | G190: =IF(OR(A190>'Személyi Törl. csökkentő fiók'!$J$10,'Személyi Törl. csökkentő fiók'!$B$24='Személyi Törl. csökkentő fiók'!$T$5),0,'Személyi Törl. csökkentő fiók'!$J$12+'Személyi Törl. csökkentő fiók'!$J$13) -> 0 | H190: 0 | K190: 0 | L190: =IRR($K$2:K190,0.05) -> 
A191: 189 | C191: =B191*'Személyi Törl. csökkentő fiók'!$B$27/12 ->  | D191: =IF(A191>'Személyi Törl. csökkentő fiók'!$J$10,0,'Személyi Törl. csökkentő fiók'!$B$28) -> 0 | F191: =IF(A191>'Személyi Törl. csökkentő fiók'!$J$10,0,'Személyi Törl. csökkentő fiók'!$J$11) -> 0 | G191: =IF(OR(A191>'Személyi Törl. csökkentő fiók'!$J$10,'Személyi Törl. csökkentő fiók'!$B$24='Személyi Törl. csökkentő fiók'!$T$5),0,'Személyi Törl. csökkentő fiók'!$J$12+'Személyi Törl. csökkentő fiók'!$J$13) -> 0 | H191: 0 | K191: 0 | L191: =IRR($K$2:K191,0.05) -> 
A192: 190 | C192: =B192*'Személyi Törl. csökkentő fiók'!$B$27/12 ->  | D192: =IF(A192>'Személyi Törl. csökkentő fiók'!$J$10,0,'Személyi Törl. csökkentő fiók'!$B$28) -> 0 | F192: =IF(A192>'Személyi Törl. csökkentő fiók'!$J$10,0,'Személyi Törl. csökkentő fiók'!$J$11) -> 0 | G192: =IF(OR(A192>'Személyi Törl. csökkentő fiók'!$J$10,'Személyi Törl. csökkentő fiók'!$B$24='Személyi Törl. csökkentő fiók'!$T$5),0,'Személyi Törl. csökkentő fiók'!$J$12+'Személyi Törl. csökkentő fiók'!$J$13) -> 0 | H192: 0 | K192: 0 | L192: =IRR($K$2:K192,0.05) -> 
A193: 191 | C193: =B193*'Személyi Törl. csökkentő fiók'!$B$27/12 ->  | D193: =IF(A193>'Személyi Törl. csökkentő fiók'!$J$10,0,'Személyi Törl. csökkentő fiók'!$B$28) -> 0 | F193: =IF(A193>'Személyi Törl. csökkentő fiók'!$J$10,0,'Személyi Törl. csökkentő fiók'!$J$11) -> 0 | G193: =IF(OR(A193>'Személyi Törl. csökkentő fiók'!$J$10,'Személyi Törl. csökkentő fiók'!$B$24='Személyi Törl. csökkentő fiók'!$T$5),0,'Személyi Törl. csökkentő fiók'!$J$12+'Személyi Törl. csökkentő fiók'!$J$13) -> 0 | H193: 0 | K193: 0 | L193: =IRR($K$2:K193,0.05) -> 
A194: 192 | C194: =B194*'Személyi Törl. csökkentő fiók'!$B$27/12 ->  | D194: =IF(A194>'Személyi Törl. csökkentő fiók'!$J$10,0,'Személyi Törl. csökkentő fiók'!$B$28) -> 0 | F194: =IF(A194>'Személyi Törl. csökkentő fiók'!$J$10,0,'Személyi Törl. csökkentő fiók'!$J$11) -> 0 | G194: =IF(OR(A194>'Személyi Törl. csökkentő fiók'!$J$10,'Személyi Törl. csökkentő fiók'!$B$24='Személyi Törl. csökkentő fiók'!$T$5),0,'Személyi Törl. csökkentő fiók'!$J$12+'Személyi Törl. csökkentő fiók'!$J$13) -> 0 | H194: 0 | K194: 0 | L194: =IRR($K$2:K194,0.05) -> 
A195: 193 | C195: =B195*'Személyi Törl. csökkentő fiók'!$B$27/12 ->  | D195: =IF(A195>'Személyi Törl. csökkentő fiók'!$J$10,0,'Személyi Törl. csökkentő fiók'!$B$28) -> 0 | F195: =IF(A195>'Személyi Törl. csökkentő fiók'!$J$10,0,'Személyi Törl. csökkentő fiók'!$J$11) -> 0 | G195: =IF(OR(A195>'Személyi Törl. csökkentő fiók'!$J$10,'Személyi Törl. csökkentő fiók'!$B$24='Személyi Törl. csökkentő fiók'!$T$5),0,'Személyi Törl. csökkentő fiók'!$J$12+'Személyi Törl. csökkentő fiók'!$J$13) -> 0 | H195: 0 | K195: 0 | L195: =IRR($K$2:K195,0.05) -> 
A196: 194 | C196: =B196*'Személyi Törl. csökkentő fiók'!$B$27/12 ->  | D196: =IF(A196>'Személyi Törl. csökkentő fiók'!$J$10,0,'Személyi Törl. csökkentő fiók'!$B$28) -> 0 | E196: =+B196+C196-D196 ->  | F196: =IF(A196>'Személyi Törl. csökkentő fiók'!$J$10,0,'Személyi Törl. csökkentő fiók'!$J$11) -> 0 | G196: =IF(OR(A196>'Személyi Törl. csökkentő fiók'!$J$10,'Személyi Törl. csökkentő fiók'!$B$24='Személyi Törl. csökkentő fiók'!$T$5),0,'Személyi Törl. csökkentő fiók'!$J$12+'Személyi Törl. csökkentő fiók'!$J$13) -> 0 | H196: 0 | K196: =D196+F196+G196 -> 0 | L196: =IRR($K$2:K196,0.05) -> 
A197: =+A196+1 -> 195 | B197: =+E196 ->  | C197: =B197*'Személyi Törl. csökkentő fiók'!$B$27/12 ->  | D197: =IF(A197>'Személyi Törl. csökkentő fiók'!$J$10,0,'Személyi Törl. csökkentő fiók'!$B$28) -> 0 | F197: =IF(A197>'Személyi Törl. csökkentő fiók'!$J$10,0,'Személyi Törl. csökkentő fiók'!$J$11) -> 0 | G197: =IF(OR(A197>'Személyi Törl. csökkentő fiók'!$J$10,'Személyi Törl. csökkentő fiók'!$B$24='Személyi Törl. csökkentő fiók'!$T$5),0,'Személyi Törl. csökkentő fiók'!$J$12+'Személyi Törl. csökkentő fiók'!$J$13) -> 0 | H197: =H196+(D197+F197+G197)/(1+$H$1)^(A197/12) -> 0 | K197: 0 | L197: =IRR($K$2:K197,0.05) -> 
A198: 196 | C198: =B198*'Személyi Törl. csökkentő fiók'!$B$27/12 ->  | D198: =IF(A198>'Személyi Törl. csökkentő fiók'!$J$10,0,'Személyi Törl. csökkentő fiók'!$B$28) -> 0 | F198: =IF(A198>'Személyi Törl. csökkentő fiók'!$J$10,0,'Személyi Törl. csökkentő fiók'!$J$11) -> 0 | G198: =IF(OR(A198>'Személyi Törl. csökkentő fiók'!$J$10,'Személyi Törl. csökkentő fiók'!$B$24='Személyi Törl. csökkentő fiók'!$T$5),0,'Személyi Törl. csökkentő fiók'!$J$12+'Személyi Törl. csökkentő fiók'!$J$13) -> 0 | H198: 0 | K198: 0 | L198: =IRR($K$2:K198,0.05) -> 
A199: 197 | C199: =B199*'Személyi Törl. csökkentő fiók'!$B$27/12 ->  | D199: =IF(A199>'Személyi Törl. csökkentő fiók'!$J$10,0,'Személyi Törl. csökkentő fiók'!$B$28) -> 0 | F199: =IF(A199>'Személyi Törl. csökkentő fiók'!$J$10,0,'Személyi Törl. csökkentő fiók'!$J$11) -> 0 | G199: =IF(OR(A199>'Személyi Törl. csökkentő fiók'!$J$10,'Személyi Törl. csökkentő fiók'!$B$24='Személyi Törl. csökkentő fiók'!$T$5),0,'Személyi Törl. csökkentő fiók'!$J$12+'Személyi Törl. csökkentő fiók'!$J$13) -> 0 | H199: 0 | K199: 0 | L199: =IRR($K$2:K199,0.05) -> 
A200: 198 | C200: =B200*'Személyi Törl. csökkentő fiók'!$B$27/12 ->  | D200: =IF(A200>'Személyi Törl. csökkentő fiók'!$J$10,0,'Személyi Törl. csökkentő fiók'!$B$28) -> 0 | F200: =IF(A200>'Személyi Törl. csökkentő fiók'!$J$10,0,'Személyi Törl. csökkentő fiók'!$J$11) -> 0 | G200: =IF(OR(A200>'Személyi Törl. csökkentő fiók'!$J$10,'Személyi Törl. csökkentő fiók'!$B$24='Személyi Törl. csökkentő fiók'!$T$5),0,'Személyi Törl. csökkentő fiók'!$J$12+'Személyi Törl. csökkentő fiók'!$J$13) -> 0 | H200: 0 | K200: 0 | L200: =IRR($K$2:K200,0.05) -> 
... 222 more rows
